Workbook

Sheet Summary
B3: Initial dG
B4: 199 Ligands | C4: Best Performance
B5: Criterion | C5: Scaling/Force Field | D5: MUE | E5: RMSE | F5: R | G5: PI | H5: PC
B6: MUE | C6: =INDEX('Analysis (199 Ligands)'!$E$2:$CI$2, MATCH(MIN(IF(Summary!B6 = 'Analysis (199 Ligands)'!$E$5:$CI$5, 'Analysis (199 Ligands)'!$E$14:$CI$14, 999999)),IF(Summary!B6 = 'Analysis (199 Ligands)'!$E$5:$CI$5, 'Analysis (199 Ligands)'!$E$14:$CI$14, 999999),0)) -> GAS21 (r = 5 A) | D6: =IFERROR(INDEX('Analysis (199 Ligands)'!$D$14:$FU$14, SMALL(IF(C6 = 'Analysis (199 Ligands)'!$D$2:$FU$2, COLUMN('Analysis (199 Ligands)'!$D$2:$FU$2) - MIN(COLUMN('Analysis (199 Ligands)'!$D$2:$FU$2))+1, ""), COLUMN(D6:H6) - COLUMN(D6)+1)), "") -> 1.63554312 | E6: 1.854982186 | F6: 0.455153763 | G6: 0.4588613936 | H6: 0.6601742043
B7: RMSE | C7: =INDEX('Analysis (199 Ligands)'!$E$2:$CI$2, MATCH(MIN(IF(Summary!B7 = 'Analysis (199 Ligands)'!$E$5:$CI$5, 'Analysis (199 Ligands)'!$E$14:$CI$14, 999999)),IF(Summary!B7 = 'Analysis (199 Ligands)'!$E$5:$CI$5, 'Analysis (199 Ligands)'!$E$14:$CI$14, 999999),0)) -> GAS21 (r = 10 A) | D7: =IFERROR(INDEX('Analysis (199 Ligands)'!$D$14:$FU$14, SMALL(IF(C7 = 'Analysis (199 Ligands)'!$D$2:$FU$2, COLUMN('Analysis (199 Ligands)'!$D$2:$FU$2) - MIN(COLUMN('Analysis (199 Ligands)'!$D$2:$FU$2))+1, ""), COLUMN(D7:H7) - COLUMN(D7)+1)), "") -> 1.637387725 | E7: 1.832214221 | F7: 0.4837874988 | G7: 0.4811722331 | H7: 0.6576609629
B8: R | C8: =INDEX('Analysis (199 Ligands)'!$E$2:$CI$2, MATCH(MAX(IF(Summary!B8 = 'Analysis (199 Ligands)'!$E$5:$CI$5, 'Analysis (199 Ligands)'!$E$14:$CI$14, -1)),IF(Summary!B8 = 'Analysis (199 Ligands)'!$E$5:$CI$5, 'Analysis (199 Ligands)'!$E$14:$CI$14, -1),0)) -> SX21 (r = 5 A) | D8: =IFERROR(INDEX('Analysis (199 Ligands)'!$D$14:$FU$14, SMALL(IF(C8 = 'Analysis (199 Ligands)'!$D$2:$FU$2, COLUMN('Analysis (199 Ligands)'!$D$2:$FU$2) - MIN(COLUMN('Analysis (199 Ligands)'!$D$2:$FU$2))+1, ""), COLUMN(D8:H8) - COLUMN(D8)+1)), "") -> 2.544627673 | E8: 2.727611359 | F8: 0.6143512864 | G8: 0.6402315088 | H8: 0.7190379412
B9: PI | C9: =INDEX('Analysis (199 Ligands)'!$E$2:$CI$2, MATCH(MAX(IF(Summary!B9 = 'Analysis (199 Ligands)'!$E$5:$CI$5, 'Analysis (199 Ligands)'!$E$14:$CI$14, -1)),IF(Summary!B9 = 'Analysis (199 Ligands)'!$E$5:$CI$5, 'Analysis (199 Ligands)'!$E$14:$CI$14, -1),0)) -> SX21 (r = 5 A) | D9: =IFERROR(INDEX('Analysis (199 Ligands)'!$D$14:$FU$14, SMALL(IF(C9 = 'Analysis (199 Ligands)'!$D$2:$FU$2, COLUMN('Analysis (199 Ligands)'!$D$2:$FU$2) - MIN(COLUMN('Analysis (199 Ligands)'!$D$2:$FU$2))+1, ""), COLUMN(D9:H9) - COLUMN(D9)+1)), "") -> 2.544627673 | E9: 2.727611359 | F9: 0.6143512864 | G9: 0.6402315088 | H9: 0.7190379412
B10: PC | C10: =INDEX('Analysis (199 Ligands)'!$E$2:$CI$2, MATCH(MAX(IF(Summary!B10 = 'Analysis (199 Ligands)'!$E$5:$CI$5, 'Analysis (199 Ligands)'!$E$14:$CI$14, -1)),IF(Summary!B10 = 'Analysis (199 Ligands)'!$E$5:$CI$5, 'Analysis (199 Ligands)'!$E$14:$CI$14, -1),0)) -> SX21 (r = 5 A) | D10: =IFERROR(INDEX('Analysis (199 Ligands)'!$D$14:$FU$14, SMALL(IF(C10 = 'Analysis (199 Ligands)'!$D$2:$FU$2, COLUMN('Analysis (199 Ligands)'!$D$2:$FU$2) - MIN(COLUMN('Analysis (199 Ligands)'!$D$2:$FU$2))+1, ""), COLUMN(D10:H10) - COLUMN(D10)+1)), "") -> 2.544627673 | E10: 2.727611359 | F10: 0.6143512864 | G10: 0.6402315088 | H10: 0.7190379412
B11: Best MUE | C11: Various | D11: =IFERROR(INDEX('Analysis (199 Ligands)'!$D$14:$FU$14, SMALL(IF(B11 = 'Analysis (199 Ligands)'!$D$2:$FU$2, COLUMN('Analysis (199 Ligands)'!$D$2:$FU$2) - MIN(COLUMN('Analysis (199 Ligands)'!$D$2:$FU$2))+1, ""), COLUMN(D11:H11) - COLUMN(D11)+1)), "") -> 1.140887372 | E11: 1.360329732 | F11: 0.4983261418 | G11: 0.5271472894 | H11: 0.6993047533
B12: Best PC | C12: Various | D12: =IFERROR(INDEX('Analysis (199 Ligands)'!$D$14:$FU$14, SMALL(IF(B12 = 'Analysis (199 Ligands)'!$D$2:$FU$2, COLUMN('Analysis (199 Ligands)'!$D$2:$FU$2) - MIN(COLUMN('Analysis (199 Ligands)'!$D$2:$FU$2))+1, ""), COLUMN(D12:H12) - COLUMN(D12)+1)), "") -> 2.547637239 | E12: 2.71237341 | F12: 0.6678716007 | G12: 0.7108024613 | H12: 0.7673004538
B13: PC-Optimized | C13: Various | D13: =IFERROR(INDEX('Analysis (199 Ligands)'!$D$14:$FU$14, SMALL(IF(B13 = 'Analysis (199 Ligands)'!$D$2:$FU$2, COLUMN('Analysis (199 Ligands)'!$D$2:$FU$2) - MIN(COLUMN('Analysis (199 Ligands)'!$D$2:$FU$2))+1, ""), COLUMN(D13:H13) - COLUMN(D13)+1)), "") -> 2.537681901 | E13: 2.644567057 | F13: 0.7654573538 | G13: 0.809035628 | H13: 0.8156107968
B14: FEP+ | C14: OPLS 2.1 | D14: =IFERROR(INDEX('Analysis (199 Ligands)'!$D$14:$FU$14, SMALL(IF(B14 = 'Analysis (199 Ligands)'!$D$2:$FU$2, COLUMN('Analysis (199 Ligands)'!$D$2:$FU$2) - MIN(COLUMN('Analysis (199 Ligands)'!$D$2:$FU$2))+1, ""), COLUMN(D14:H14) - COLUMN(D14)+1)), "") -> 0.7317782122 | E14: 0.8838006815 | F14: 0.7420617874 | G14: 0.7513078176 | H14: 0.7806075669
B15: Flare FEP | C15: ff14SB/GAFF 2.1 | D15: =IFERROR(INDEX('Analysis (199 Ligands)'!$D$14:$FU$14, SMALL(IF(B15 = 'Analysis (199 Ligands)'!$D$2:$FU$2, COLUMN('Analysis (199 Ligands)'!$D$2:$FU$2) - MIN(COLUMN('Analysis (199 Ligands)'!$D$2:$FU$2))+1, ""), COLUMN(D15:H15) - COLUMN(D15)+1)), "") -> 0.7933539497 | E15: 1.005406434 | F15: 0.6773676653 | G15: 0.6886339942 | H15: 0.7488673623
B16: pmx (GAFF) | C16: OPLS 3.1/GAFF 2.1 | D16: =IFERROR(INDEX('Analysis (199 Ligands)'!$D$14:$FU$14, SMALL(IF(B16 = 'Analysis (199 Ligands)'!$D$2:$FU$2, COLUMN('Analysis (199 Ligands)'!$D$2:$FU$2) - MIN(COLUMN('Analysis (199 Ligands)'!$D$2:$FU$2))+1, ""), COLUMN(D16:H16) - COLUMN(D16)+1)), "") -> 0.7253183018 | E16: 0.8933556102 | F16: 0.6735545801 | G16: 0.6541988972 | H16: 0.727430944
B17: pmx (CGenFF) | C17: OPLS 3.1/CGenFF 3.0.1+4.1 | D17: =IFERROR(INDEX('Analysis (199 Ligands)'!$D$14:$FU$14, SMALL(IF(B17 = 'Analysis (199 Ligands)'!$D$2:$FU$2, COLUMN('Analysis (199 Ligands)'!$D$2:$FU$2) - MIN(COLUMN('Analysis (199 Ligands)'!$D$2:$FU$2))+1, ""), COLUMN(D17:H17) - COLUMN(D17)+1)), "") -> 0.8365900256 | E17: 1.08928551 | F17: 0.5615298802 | G17: 0.5905136102 | H17: 0.7164981125
B18: pmx (Consensus) | C18: OPLS 3.1/Consensus | D18: =IFERROR(INDEX('Analysis (199 Ligands)'!$D$14:$FU$14, SMALL(IF(B18 = 'Analysis (199 Ligands)'!$D$2:$FU$2, COLUMN('Analysis (199 Ligands)'!$D$2:$FU$2) - MIN(COLUMN('Analysis (199 Ligands)'!$D$2:$FU$2))+1, ""), COLUMN(D18:H18) - COLUMN(D18)+1)), "") -> 0.7436106766 | E18: 0.9020134958 | F18: 0.6370905302 | G18: 0.6588657808 | H18: 0.7383364214
B19: AMBER GPU-TI | C19: ff14SB/GAFF 1.8 | D19: =IFERROR(INDEX('Analysis (199 Ligands)'!$D$14:$FU$14, SMALL(IF(B19 = 'Analysis (199 Ligands)'!$D$2:$FU$2, COLUMN('Analysis (199 Ligands)'!$D$2:$FU$2) - MIN(COLUMN('Analysis (199 Ligands)'!$D$2:$FU$2))+1, ""), COLUMN(D19:H19) - COLUMN(D19)+1)), "") -> 0.9334148099 | E19: 1.168283017 | F19: 0.5591225376 | G19: 0.5979290741 | H19: 0.7112312666
B22: Adjusted dG
B23: 199 Ligands | C23: Best Performance
B24: Criterion | C24: Scaling/Force Field | D24: MUE | E24: RMSE | F24: R | G24: PI | H24: PC
B25: MUE | C25: =INDEX('Analysis (199 Ligands)'!$E$2:$CI$2, MATCH(MIN(IF(Summary!B25 = 'Analysis (199 Ligands)'!$E$5:$CI$5, 'Analysis (199 Ligands)'!$E$29:$CI$29, 999999)),IF(Summary!B25 = 'Analysis (199 Ligands)'!$E$5:$CI$5, 'Analysis (199 Ligands)'!$E$29:$CI$29, 999999),0)) -> GAS21 (r = 2 A) | D25: =IFERROR(INDEX('Analysis (199 Ligands)'!$D$29:$FU$29, SMALL(IF(C25 = 'Analysis (199 Ligands)'!$D$2:$FU$2, COLUMN('Analysis (199 Ligands)'!$D$2:$FU$2) - MIN(COLUMN('Analysis (199 Ligands)'!$D$2:$FU$2))+1, ""), COLUMN(D25:H25) - COLUMN(D25)+1)), "") -> 0.7970701881 | E25: 0.9944446557 | F25: 0.4211570713 | G25: 0.430671558 | H25: 0.6542148187
B26: RMSE | C26: =INDEX('Analysis (199 Ligands)'!$E$2:$CI$2, MATCH(MIN(IF(Summary!B26 = 'Analysis (199 Ligands)'!$E$5:$CI$5, 'Analysis (199 Ligands)'!$E$29:$CI$29, 999999)),IF(Summary!B26 = 'Analysis (199 Ligands)'!$E$5:$CI$5, 'Analysis (199 Ligands)'!$E$29:$CI$29, 999999),0)) -> GAS21 (r = 2 A) | D26: =IFERROR(INDEX('Analysis (199 Ligands)'!$D$29:$FU$29, SMALL(IF(C26 = 'Analysis (199 Ligands)'!$D$2:$FU$2, COLUMN('Analysis (199 Ligands)'!$D$2:$FU$2) - MIN(COLUMN('Analysis (199 Ligands)'!$D$2:$FU$2))+1, ""), COLUMN(D26:H26) - COLUMN(D26)+1)), "") -> 0.7970701881 | E26: 0.9944446557 | F26: 0.4211570713 | G26: 0.430671558 | H26: 0.6542148187
B27: R | C27: =INDEX('Analysis (199 Ligands)'!$E$2:$CI$2, MATCH(MAX(IF(Summary!B27 = 'Analysis (199 Ligands)'!$E$5:$CI$5, 'Analysis (199 Ligands)'!$E$29:$CI$29, -1)),IF(Summary!B27 = 'Analysis (199 Ligands)'!$E$5:$CI$5, 'Analysis (199 Ligands)'!$E$29:$CI$29, -1),0)) -> SX21 (r = 5 A) | D27: =IFERROR(INDEX('Analysis (199 Ligands)'!$D$29:$FU$29, SMALL(IF(C27 = 'Analysis (199 Ligands)'!$D$2:$FU$2, COLUMN('Analysis (199 Ligands)'!$D$2:$FU$2) - MIN(COLUMN('Analysis (199 Ligands)'!$D$2:$FU$2))+1, ""), COLUMN(D27:H27) - COLUMN(D27)+1)), "") -> 0.8004724225 | E27: 1.014071178 | F27: 0.6143512864 | G27: 0.6402315088 | H27: 0.7190379412
B28: PI | C28: =INDEX('Analysis (199 Ligands)'!$E$2:$CI$2, MATCH(MAX(IF(Summary!B28 = 'Analysis (199 Ligands)'!$E$5:$CI$5, 'Analysis (199 Ligands)'!$E$29:$CI$29, -1)),IF(Summary!B28 = 'Analysis (199 Ligands)'!$E$5:$CI$5, 'Analysis (199 Ligands)'!$E$29:$CI$29, -1),0)) -> SX21 (r = 5 A) | D28: =IFERROR(INDEX('Analysis (199 Ligands)'!$D$29:$FU$29, SMALL(IF(C28 = 'Analysis (199 Ligands)'!$D$2:$FU$2, COLUMN('Analysis (199 Ligands)'!$D$2:$FU$2) - MIN(COLUMN('Analysis (199 Ligands)'!$D$2:$FU$2))+1, ""), COLUMN(D28:H28) - COLUMN(D28)+1)), "") -> 0.8004724225 | E28: 1.014071178 | F28: 0.6143512864 | G28: 0.6402315088 | H28: 0.7190379412
B29: PC | C29: =INDEX('Analysis (199 Ligands)'!$E$2:$CI$2, MATCH(MAX(IF(Summary!B29 = 'Analysis (199 Ligands)'!$E$5:$CI$5, 'Analysis (199 Ligands)'!$E$29:$CI$29, -1)),IF(Summary!B29 = 'Analysis (199 Ligands)'!$E$5:$CI$5, 'Analysis (199 Ligands)'!$E$29:$CI$29, -1),0)) -> SX21 (r = 5 A) | D29: =IFERROR(INDEX('Analysis (199 Ligands)'!$D$29:$FU$29, SMALL(IF(C29 = 'Analysis (199 Ligands)'!$D$2:$FU$2, COLUMN('Analysis (199 Ligands)'!$D$2:$FU$2) - MIN(COLUMN('Analysis (199 Ligands)'!$D$2:$FU$2))+1, ""), COLUMN(D29:H29) - COLUMN(D29)+1)), "") -> 0.8004724225 | E29: 1.014071178 | F29: 0.6143512864 | G29: 0.6402315088 | H29: 0.7190379412
B30: Best MUE | C30: Various | D30: =IFERROR(INDEX('Analysis (199 Ligands)'!$D$29:$FU$29, SMALL(IF(B30 = 'Analysis (199 Ligands)'!$D$2:$FU$2, COLUMN('Analysis (199 Ligands)'!$D$2:$FU$2) - MIN(COLUMN('Analysis (199 Ligands)'!$D$2:$FU$2))+1, ""), COLUMN(D30:H30) - COLUMN(D30)+1)), "") -> 0.6329191039 | E30: 0.8150319252 | F30: 0.6459009253 | G30: 0.6797678424 | H30: 0.7463079253
B31: Best PC | C31: Various | D31: =IFERROR(INDEX('Analysis (199 Ligands)'!$D$29:$FU$29, SMALL(IF(B31 = 'Analysis (199 Ligands)'!$D$2:$FU$2, COLUMN('Analysis (199 Ligands)'!$D$2:$FU$2) - MIN(COLUMN('Analysis (199 Ligands)'!$D$2:$FU$2))+1, ""), COLUMN(D31:H31) - COLUMN(D31)+1)), "") -> 0.7324765936 | E31: 0.9283844412 | F31: 0.6678716007 | G31: 0.7108024613 | H31: 0.7673004538
B32: PC-Optimized | C32: Various | D32: =IFERROR(INDEX('Analysis (199 Ligands)'!$D$29:$FU$29, SMALL(IF(B32 = 'Analysis (199 Ligands)'!$D$2:$FU$2, COLUMN('Analysis (199 Ligands)'!$D$2:$FU$2) - MIN(COLUMN('Analysis (199 Ligands)'!$D$2:$FU$2))+1, ""), COLUMN(D32:H32) - COLUMN(D32)+1)), "") -> 0.6734503659 | E32: 0.8072816392 | F32: 0.7654573538 | G32: 0.809035628 | H32: 0.8156107968
B33: FEP+ | C33: OPLS 2.1 | D33: =IFERROR(INDEX('Analysis (199 Ligands)'!$D$29:$FU$29, SMALL(IF(B33 = 'Analysis (199 Ligands)'!$D$2:$FU$2, COLUMN('Analysis (199 Ligands)'!$D$2:$FU$2) - MIN(COLUMN('Analysis (199 Ligands)'!$D$2:$FU$2))+1, ""), COLUMN(D33:H33) - COLUMN(D33)+1)), "") -> 0.7283585454 | E33: 0.8813135603 | F33: 0.7420617874 | G33: 0.7513078176 | H33: 0.7806075669
B34: Flare FEP | C34: ff14SB/GAFF 2.1 | D34: =IFERROR(INDEX('Analysis (199 Ligands)'!$D$29:$FU$29, SMALL(IF(B34 = 'Analysis (199 Ligands)'!$D$2:$FU$2, COLUMN('Analysis (199 Ligands)'!$D$2:$FU$2) - MIN(COLUMN('Analysis (199 Ligands)'!$D$2:$FU$2))+1, ""), COLUMN(D34:H34) - COLUMN(D34)+1)), "") -> 0.7907366525 | E34: 1.003174685 | F34: 0.6773676653 | G34: 0.6886339942 | H34: 0.7488673623
B35: pmx (GAFF) | C35: OPLS 3.1/GAFF 2.1 | D35: =IFERROR(INDEX('Analysis (199 Ligands)'!$D$29:$FU$29, SMALL(IF(B35 = 'Analysis (199 Ligands)'!$D$2:$FU$2, COLUMN('Analysis (199 Ligands)'!$D$2:$FU$2) - MIN(COLUMN('Analysis (199 Ligands)'!$D$2:$FU$2))+1, ""), COLUMN(D35:H35) - COLUMN(D35)+1)), "") -> 0.7208649507 | E35: 0.891276774 | F35: 0.6735545801 | G35: 0.6541988972 | H35: 0.727430944
B36: pmx (CGenFF) | C36: OPLS 3.1/CGenFF 3.0.1+4.1 | D36: =IFERROR(INDEX('Analysis (199 Ligands)'!$D$29:$FU$29, SMALL(IF(B36 = 'Analysis (199 Ligands)'!$D$2:$FU$2, COLUMN('Analysis (199 Ligands)'!$D$2:$FU$2) - MIN(COLUMN('Analysis (199 Ligands)'!$D$2:$FU$2))+1, ""), COLUMN(D36:H36) - COLUMN(D36)+1)), "") -> 0.835301761 | E36: 1.087689038 | F36: 0.5615298802 | G36: 0.5905136102 | H36: 0.7164981125
B37: pmx (Consensus) | C37: OPLS 3.1/Consensus | D37: =IFERROR(INDEX('Analysis (199 Ligands)'!$D$29:$FU$29, SMALL(IF(B37 = 'Analysis (199 Ligands)'!$D$2:$FU$2, COLUMN('Analysis (199 Ligands)'!$D$2:$FU$2) - MIN(COLUMN('Analysis (199 Ligands)'!$D$2:$FU$2))+1, ""), COLUMN(D37:H37) - COLUMN(D37)+1)), "") -> 0.7402969885 | E37: 0.8999093374 | F37: 0.6370905302 | G37: 0.6588657808 | H37: 0.7383364214
B38: AMBER GPU-TI | C38: ff14SB/GAFF 1.8 | D38: =IFERROR(INDEX('Analysis (199 Ligands)'!$D$29:$FU$29, SMALL(IF(B38 = 'Analysis (199 Ligands)'!$D$2:$FU$2, COLUMN('Analysis (199 Ligands)'!$D$2:$FU$2) - MIN(COLUMN('Analysis (199 Ligands)'!$D$2:$FU$2))+1, ""), COLUMN(D38:H38) - COLUMN(D38)+1)), "") -> 0.9325692041 | E38: 1.165831295 | F38: 0.5591225376 | G38: 0.5979290741 | H38: 0.7112312666
B41: ddG
B42: 330 Perturbations | C42: Best Performance
B43: Criterion | C43: Scaling/Force Field | D43: MUE | E43: RMSE
B44: MUE | C44: =INDEX('Analysis (199 Ligands)'!$E$2:$CI$2, MATCH(MIN(IF(Summary!B44 = 'Analysis (199 Ligands)'!$E$5:$CI$5, 'Analysis (199 Ligands)'!$E$44:$CI$44, 999999)),IF(Summary!B44 = 'Analysis (199 Ligands)'!$E$5:$CI$5, 'Analysis (199 Ligands)'!$E$44:$CI$44, 999999),0)) -> GAS21 (r = 5 A) | D44: =IFERROR(INDEX('Analysis (199 Ligands)'!$D$44:$FU$44, SMALL(IF(C44 = 'Analysis (199 Ligands)'!$D$2:$FU$2, COLUMN('Analysis (199 Ligands)'!$D$2:$FU$2) - MIN(COLUMN('Analysis (199 Ligands)'!$D$2:$FU$2))+1, ""), COLUMN(D44:E44) - COLUMN(D44)+1)), "") -> 0.9887057868 | E44: 1.283132149
B45: RMSE | C45: =INDEX('Analysis (199 Ligands)'!$E$2:$CI$2, MATCH(MIN(IF(Summary!B45 = 'Analysis (199 Ligands)'!$E$5:$CI$5, 'Analysis (199 Ligands)'!$E$44:$CI$44, 999999)),IF(Summary!B45 = 'Analysis (199 Ligands)'!$E$5:$CI$5, 'Analysis (199 Ligands)'!$E$44:$CI$44, 999999),0)) -> GAS21 (r = 2 A) | D45: =IFERROR(INDEX('Analysis (199 Ligands)'!$D$44:$FU$44, SMALL(IF(C45 = 'Analysis (199 Ligands)'!$D$2:$FU$2, COLUMN('Analysis (199 Ligands)'!$D$2:$FU$2) - MIN(COLUMN('Analysis (199 Ligands)'!$D$2:$FU$2))+1, ""), COLUMN(D45:E45) - COLUMN(D45)+1)), "") -> 0.9950275844 | E45: 1.264270672
B46: Best MUE | C46: Various | D46: =IFERROR(INDEX('Analysis (199 Ligands)'!$D$44:$FU$44, SMALL(IF(B46 = 'Analysis (199 Ligands)'!$D$2:$FU$2, COLUMN('Analysis (199 Ligands)'!$D$2:$FU$2) - MIN(COLUMN('Analysis (199 Ligands)'!$D$2:$FU$2))+1, ""), COLUMN(D46:E46) - COLUMN(D46)+1)), "") -> 0.9300777256 | E46: 1.202547279
B47: Best PC | C47: Various | D47: =IFERROR(INDEX('Analysis (199 Ligands)'!$D$44:$FU$44, SMALL(IF(B47 = 'Analysis (199 Ligands)'!$D$2:$FU$2, COLUMN('Analysis (199 Ligands)'!$D$2:$FU$2) - MIN(COLUMN('Analysis (199 Ligands)'!$D$2:$FU$2))+1, ""), COLUMN(D47:E47) - COLUMN(D47)+1)), "") -> 1.065023087 | E47: 1.350593848
B48: PC-Optimized | C48: Various | D48: =IFERROR(INDEX('Analysis (199 Ligands)'!$D$44:$FU$44, SMALL(IF(B48 = 'Analysis (199 Ligands)'!$D$2:$FU$2, COLUMN('Analysis (199 Ligands)'!$D$2:$FU$2) - MIN(COLUMN('Analysis (199 Ligands)'!$D$2:$FU$2))+1, ""), COLUMN(D48:E48) - COLUMN(D48)+1)), "") -> 0.8635868971 | E48: 1.079147624
B49: FEP+ | C49: OPLS 2.1 | D49: =IFERROR(INDEX('Analysis (199 Ligands)'!$D$44:$FU$44, SMALL(IF(B49 = 'Analysis (199 Ligands)'!$D$2:$FU$2, COLUMN('Analysis (199 Ligands)'!$D$2:$FU$2) - MIN(COLUMN('Analysis (199 Ligands)'!$D$2:$FU$2))+1, ""), COLUMN(D49:E49) - COLUMN(D49)+1)), "") -> 0.8992617516 | E49: 1.14588217
B50: Flare FEP | C50: ff14SB/GAFF 2.1 | D50: =IFERROR(INDEX('Analysis (199 Ligands)'!$D$44:$FU$44, SMALL(IF(B50 = 'Analysis (199 Ligands)'!$D$2:$FU$2, COLUMN('Analysis (199 Ligands)'!$D$2:$FU$2) - MIN(COLUMN('Analysis (199 Ligands)'!$D$2:$FU$2))+1, ""), COLUMN(D50:E50) - COLUMN(D50)+1)), "") -> 1.101425744 | E50: 1.427136501
B51: pmx (GAFF) | C51: OPLS 3.1/GAFF 2.1 | D51: =IFERROR(INDEX('Analysis (199 Ligands)'!$D$44:$FU$44, SMALL(IF(B51 = 'Analysis (199 Ligands)'!$D$2:$FU$2, COLUMN('Analysis (199 Ligands)'!$D$2:$FU$2) - MIN(COLUMN('Analysis (199 Ligands)'!$D$2:$FU$2))+1, ""), COLUMN(D51:E51) - COLUMN(D51)+1)), "") -> 0.8705881777 | E51: 1.130106213
B52: pmx (CGenFF) | C52: OPLS 3.1/CGenFF 3.0.1+4.1 | D52: =IFERROR(INDEX('Analysis (199 Ligands)'!$D$44:$FU$44, SMALL(IF(B52 = 'Analysis (199 Ligands)'!$D$2:$FU$2, COLUMN('Analysis (199 Ligands)'!$D$2:$FU$2) - MIN(COLUMN('Analysis (199 Ligands)'!$D$2:$FU$2))+1, ""), COLUMN(D52:E52) - COLUMN(D52)+1)), "") -> 1.096611446 | E52: 1.44132488
B53: pmx (Consensus) | C53: OPLS 3.1/Consensus | D53: =IFERROR(INDEX('Analysis (199 Ligands)'!$D$44:$FU$44, SMALL(IF(B53 = 'Analysis (199 Ligands)'!$D$2:$FU$2, COLUMN('Analysis (199 Ligands)'!$D$2:$FU$2) - MIN(COLUMN('Analysis (199 Ligands)'!$D$2:$FU$2))+1, ""), COLUMN(D53:E53) - COLUMN(D53)+1)), "") -> 0.8552150527 | E53: 1.138930045
B54: AMBER GPU-TI | C54: ff14SB/GAFF 1.8 | D54: =IFERROR(INDEX('Analysis (199 Ligands)'!$D$44:$FU$44, SMALL(IF(B54 = 'Analysis (199 Ligands)'!$D$2:$FU$2, COLUMN('Analysis (199 Ligands)'!$D$2:$FU$2) - MIN(COLUMN('Analysis (199 Ligands)'!$D$2:$FU$2))+1, ""), COLUMN(D54:E54) - COLUMN(D54)+1)), "") -> 1.179591525 | E54: 1.502894431
B57: Definitions and parameters
B58: MUE | C58: Mean unsigned error (kcal/mol)
B59: RMSE | C59: Root mean square error (kcal/mol)
B61: R | C61: Pearsons correlation coefficient ∈ [-1:1]
C62: EXCEL function: PEARSON()
C63: R = ∑(exper_i - <exper>)*(comput_i - <comput>) / SQRT[ ∑(exper_i - <exper>)^2 * ∑(comput_i - <comput>)^2 ]
B65: PI | C65: Predictive index ∈ [-1:1]
C66: EXCEL function macro: PREDICTIVE_INDEX()
C67: PI = ∑_i,j>i (C_ij * 𝜋_ij) / ∑_ij 𝜋_ij
C68: 𝜋_ij = |exper_i - exper_j|
C69: C_ij = { 0 if comput_i = comput_j; 1 if (exper_i - exper_j) / (comput_i - comput_j) > 0; -1 otherwise }
B71: PC | C71: Average percent correct ∈ [0:1]
C72: EXCEL function macro: PERCENT_CORRECT()
C73: PC = (true positives + true negatives) / total comparisons
C74: true positive: (exper_i < exper_j) and (comput_i < comput_j)
C75: true negative: (exper_i >= exper_j) and (comput_i >= comput_j)
C76: false positive: (exper_i >= exper_j) and (comput_i < comput_j)
C77: false negative: (exper_i < exper_j) and (comput_i >= comput_j)
C78: total comparisons = N*(N-1); N = number of ligands
B80: Exp. dG | C80: kT * ln(IC50 or Ki) | D80: kcal/mol
B81: Boltzmann (k) | C81: 0.001987 | D81: kcal/mol*K
B82: Temperature (T) | C82: 297 | D82: K
B83: nM-to-M | C83: 1e-09 | D83: M/nM
B85: Experimental Data (IC50 or Ki)
B86: P38 | C86: Goldstein et al. J. Med. Chem. 2011, 54, 2255-2265.
B87: BACE | C87: Cumming et al. Bioorg. Med. Chem. 2012, 22, 2444-2449.
B88: MCL1 | C88: Friberg et al. J. Med. Chem. 2013, 56, 15-30.
B89: TYK2 | C89: Liang et al. Eur. J. Med. Chem. 2013, 67, 175-187. Liang et al. J. Med. Chem. 2013, 56, 4521-4536.
B90: JNK1 | C90: Szczepankiewicz et al. J. Med. Chem. 2006, 49, 3563-3580.
B91: Thrombin | C91: Baum et al. J. Mol. Biol. 2009, 390, 56-69.
B92: CDK2 | C92: Hardcastle et al. J. Med. Chem. 2004, 47, 3710-3722.
B93: PTP1B | C93: Wilson et al. J. Med. Chem. 2007, 50, 4681-4698.
C94: = data presented as "> X"; X concentration used to calculate dG
C95: = Ki from racemic mixture was divided by 2
B97: Computational Data
B98: SILCS | C98: Goel et al. (This study)
B99: FEP+ | C99: Wang et al. J. Amer. Chem. Soc. 2015, 137, 2695-2703. (Supplemental Information)
B100: Flare FEP | C100: Kuhn et al. J. Chem. Info. Model. 2020, 60, 3120-3130. (Supplemental Information)
B101: pmx | C101: Gapsys et al. Chem. Sci. 2020, 11, 1140-1152. (Values extracted from Kuhn et al Supplemental Information)
B102: AMBER GPU-TI | C102: Song et al. J. Chem. Info. Model. 2019, 59, 3128-3135. (Supplemental Information)
B104: !!! NOTES !!!
B105: A | C105: Experimental dG values used in Flare FEP, PMX, and AMBER GPU-TI studies were copied directly from FEP+ study (Wang et al)
B106: B | C106: Experimental dG values used in this study were recalculated using experimental IC50 or Ki values from source materials (see "Experimental Data")
B107: C | C107: All analysis (MUE, RMSE, R, PI, and PC) performed in this study utilizes the experimental dG values as calculated here, NOT those calculated in Wang et al
B108: D | C108: As some discrepancies exist between experimental dG values employed in this study and those reported in Wang et al,
C109: the final analysis reported in this study (MUE, RMSE, R, PI, and PC) for FEP+, Flare FEP, PMX, and AMBER GPU-TI
C110: may differ from what is reported in their respective source materials
B111: E | C111: For FEP+, Flare FEP, PMX, and AMBER GPU-TI studies, dG values were globally adjusted such that ∑ dG_exper_i = ∑ dG_comput_i
C112: dG_comput_i += dG_offset ∀i, where dG_offset = -<dG_comput_i> + <dG_exper_i>
B113: F | C113: "Initial dG" values for SILCS results are LGFE values directly from SILCS-MC simulations
B114: G | C114: "Initial dG" values for all other computational methods are copied directly from source material (see "Computational Data")
B115: H | C115: "Adjusted dG" values for all computational methods employ the adjustment procedure in Note E using the experimental dG values as calculated in this study (see Notes A-D)

Sheet Analysis (199 Ligands)
E2: GAS21 (r = 1 A) | F2: GAS21 (r = 1 A) | G2: GAS21 (r = 1 A) | H2: GAS21 (r = 1 A) | I2: GAS21 (r = 1 A) | J2: GAX21 (r = 1 A) | K2: GAX21 (r = 1 A) | L2: GAX21 (r = 1 A) | M2: GAX21 (r = 1 A) | N2: GAX21 (r = 1 A) | O2: SS21 (r = 1 A) | P2: SS21 (r = 1 A) | Q2: SS21 (r = 1 A) | R2: SS21 (r = 1 A) | S2: SS21 (r = 1 A) | T2: SX21 (r = 1 A) | U2: SX21 (r = 1 A) | V2: SX21 (r = 1 A) | W2: SX21 (r = 1 A) | X2: SX21 (r = 1 A) | Z2: GAS21 (r = 2 A) | AA2: GAS21 (r = 2 A) | AB2: GAS21 (r = 2 A) | AC2: GAS21 (r = 2 A) | AD2: GAS21 (r = 2 A) | AE2: GAX21 (r = 2 A) | AF2: GAX21 (r = 2 A) | AG2: GAX21 (r = 2 A) | AH2: GAX21 (r = 2 A) | AI2: GAX21 (r = 2 A) | AJ2: SS21 (r = 2 A) | AK2: SS21 (r = 2 A) | AL2: SS21 (r = 2 A) | AM2: SS21 (r = 2 A) | AN2: SS21 (r = 2 A) | AO2: SX21 (r = 2 A) | AP2: SX21 (r = 2 A) | AQ2: SX21 (r = 2 A) | AR2: SX21 (r = 2 A) | AS2: SX21 (r = 2 A) | AU2: GAS21 (r = 5 A) | AV2: GAS21 (r = 5 A) | AW2: GAS21 (r = 5 A) | AX2: GAS21 (r = 5 A) | AY2: GAS21 (r = 5 A) | AZ2: GAX21 (r = 5 A) | BA2: GAX21 (r = 5 A) | BB2: GAX21 (r = 5 A) | BC2: GAX21 (r = 5 A) | BD2: GAX21 (r = 5 A) | BE2: SS21 (r = 5 A) | BF2: SS21 (r = 5 A) | BG2: SS21 (r = 5 A) | BH2: SS21 (r = 5 A) | BI2: SS21 (r = 5 A) | BJ2: SX21 (r = 5 A) | BK2: SX21 (r = 5 A) | BL2: SX21 (r = 5 A) | BM2: SX21 (r = 5 A) | BN2: SX21 (r = 5 A) | BP2: GAS21 (r = 10 A) | BQ2: GAS21 (r = 10 A) | BR2: GAS21 (r = 10 A) | BS2: GAS21 (r = 10 A) | BT2: GAS21 (r = 10 A) | BU2: GAX21 (r = 10 A) | BV2: GAX21 (r = 10 A) | BW2: GAX21 (r = 10 A) | BX2: GAX21 (r = 10 A) | BY2: GAX21 (r = 10 A) | BZ2: SS21 (r = 10 A) | CA2: SS21 (r = 10 A) | CB2: SS21 (r = 10 A) | CC2: SS21 (r = 10 A) | CD2: SS21 (r = 10 A) | CE2: SX21 (r = 10 A) | CF2: SX21 (r = 10 A) | CG2: SX21 (r = 10 A) | CH2: SX21 (r = 10 A) | CI2: SX21 (r = 10 A) | CL2: Best MUE | CM2: Best MUE | CN2: Best MUE | CO2: Best MUE | CP2: Best MUE | CR2: Best RMSE | CS2: Best RMSE | CT2: Best RMSE | CU2: Best RMSE | CV2: Best RMSE | CX2: Best R | CY2: Best R | CZ2: Best R | DA2: Best R | DB2: Best R | DD2: Best PI | DE2: Best PI | DF2: Best PI | DG2: Best PI | DH2: Best PI | DJ2: Best PC | DK2: Best PC | DL2: Best PC | DM2: Best PC | DN2: Best PC | DP2: GAS21* (r = 5 A) | DQ2: GAS21* (r = 5 A) | DR2: GAS21* (r = 5 A) | DS2: GAS21* (r = 5 A) | DT2: GAS21* (r = 5 A) | DU2: GAX21* (r = 5 A) | DV2: GAX21* (r = 5 A) | DW2: GAX21* (r = 5 A) | DX2: GAX21* (r = 5 A) | DY2: GAX21* (r = 5 A) | DZ2: SS21* (r = 5 A) | EA2: SS21* (r = 5 A) | EB2: SS21* (r = 5 A) | EC2: SS21* (r = 5 A) | ED2: SS21* (r = 5 A) | EE2: SX21* (r = 5 A) | EF2: SX21* (r = 5 A) | EG2: SX21* (r = 5 A) | EH2: SX21* (r = 5 A) | EI2: SX21* (r = 5 A) | EL2: PC-Optimized | EM2: PC-Optimized | EN2: PC-Optimized | EO2: PC-Optimized | EP2: PC-Optimized | ER2: FEP+ | ES2: FEP+ | ET2: FEP+ | EU2: FEP+ | EV2: FEP+ | EW2: Flare FEP | EX2: Flare FEP | EY2: Flare FEP | EZ2: Flare FEP | FA2: Flare FEP | FB2: pmx (GAFF) | FC2: pmx (GAFF) | FD2: pmx (GAFF) | FE2: pmx (GAFF) | FF2: pmx (GAFF) | FG2: pmx (CGenFF) | FH2: pmx (CGenFF) | FI2: pmx (CGenFF) | FJ2: pmx (CGenFF) | FK2: pmx (CGenFF) | FL2: pmx (consensus) | FM2: pmx (consensus) | FN2: pmx (consensus) | FO2: pmx (consensus) | FP2: pmx (consensus) | FQ2: AMBER GPU-TI | FR2: AMBER GPU-TI | FS2: AMBER GPU-TI | FT2: AMBER GPU-TI | FU2: AMBER GPU-TI
B3: Initial dG | E3: SILCS Exhaustive (r = 1 A) | Z3: SILCS Exhaustive (r = 2 A) | AU3: SILCS Exhaustive (r = 5 A) | BP3: SILCS Exhaustive (r = 10 A) | CK3: SILCS Exhaustive (Best Individual Performance) | DP3: SILCS PC-Optimized Exhaustive (r = 5 A) | EK3: SILCS PC-Optimized Exhaustive (Best Individual Performance) | ER3: FEP+ | EW3: Flare FEP | FB3: pmx (GAFF) | FG3: pmx (CGenFF) | FL3: pmx (Consensus) | FQ3: AMBER GPU-TI
B4: 199 Ligands | E4: GAS21 | J4: GAX21 | O4: SS21 | T4: SX21 | Z4: GAS21 | AE4: GAX21 | AJ4: SS21 | AO4: SX21 | AU4: GAS21 | AZ4: GAX21 | BE4: SS21 | BJ4: SX21 | BP4: GAS21 | BU4: GAX21 | BZ4: SS21 | CE4: SX21 | CK4: Best MUE | CQ4: Best RMSE | CW4: Best R | DC4: Best PI | DI4: Best PC | DP4: GAS21* | DU4: GAX21* | DZ4: SS21* | EE4: SX21* | EK4: Best PC | ER4: OPLS 2.1 | EW4: ff14SB/GAFF 2.1 | FB4: OPLS 3.1/GAFF 2.1 | FG4: OPLS 3.1/CGenFF 3.0.1+4.1 | FL4: OPLS 3.1/Consensus | FQ4: ff14SB/GAFF 1.8
B5: Target | C5: Ligands | E5: MUE | F5: RMSE | G5: R | H5: PI | I5: PC | J5: MUE | K5: RMSE | L5: R | M5: PI | N5: PC | O5: MUE | P5: RMSE | Q5: R | R5: PI | S5: PC | T5: MUE | U5: RMSE | V5: R | W5: PI | X5: PC | Z5: MUE | AA5: RMSE | AB5: R | AC5: PI | AD5: PC | AE5: MUE | AF5: RMSE | AG5: R | AH5: PI | AI5: PC | AJ5: MUE | AK5: RMSE | AL5: R | AM5: PI | AN5: PC | AO5: MUE | AP5: RMSE | AQ5: R | AR5: PI | AS5: PC | AU5: MUE | AV5: RMSE | AW5: R | AX5: PI | AY5: PC | AZ5: MUE | BA5: RMSE | BB5: R | BC5: PI | BD5: PC | BE5: MUE | BF5: RMSE | BG5: R | BH5: PI | BI5: PC | BJ5: MUE | BK5: RMSE | BL5: R | BM5: PI | BN5: PC | BP5: MUE | BQ5: RMSE | BR5: R | BS5: PI | BT5: PC | BU5: MUE | BV5: RMSE | BW5: R | BX5: PI | BY5: PC | BZ5: MUE | CA5: RMSE | CB5: R | CC5: PI | CD5: PC | CE5: MUE | CF5: RMSE | CG5: R | CH5: PI | CI5: PC | CK5: Scaling | CL5: MUE | CM5: RMSE | CN5: R | CO5: PI | CP5: PC | CQ5: Scaling | CR5: MUE | CS5: RMSE | CT5: R | CU5: PI | CV5: PC | CW5: Scaling | CX5: MUE | CY5: RMSE | CZ5: R | DA5: PI | DB5: PC | DC5: Scaling | DD5: MUE | DE5: RMSE | DF5: R | DG5: PI | DH5: PC | DI5: Scaling | DJ5: MUE | DK5: RMSE | DL5: R | DM5: PI | DN5: PC | DP5: MUE | DQ5: RMSE | DR5: R | DS5: PI | DT5: PC | DU5: MUE | DV5: RMSE | DW5: R | DX5: PI | DY5: PC | DZ5: MUE | EA5: RMSE | EB5: R | EC5: PI | ED5: PC | EE5: MUE | EF5: RMSE | EG5: R | EH5: PI | EI5: PC | EK5: Scaling | EL5: MUE | EM5: RMSE | EN5: R | EO5: PI | EP5: PC | ER5: MUE | ES5: RMSE | ET5: R | EU5: PI | EV5: PC | EW5: MUE | EX5: RMSE | EY5: R | EZ5: PI | FA5: PC | FB5: MUE | FC5: RMSE | FD5: R | FE5: PI | FF5: PC | FG5: MUE | FH5: RMSE | FI5: R | FJ5: PI | FK5: PC | FL5: MUE | FM5: RMSE | FN5: R | FO5: PI | FP5: PC | FQ5: MUE | FR5: RMSE | FS5: R | FT5: PI | FU5: PC
B6: P38 | C6: 34 | E6: =INDEX('P38 (34 Ligands)'!$E$39:$T$43, MATCH('Analysis (199 Ligands)'!E$5, 'P38 (34 Ligands)'!$C$39:$C$43, 0), MATCH('Analysis (199 Ligands)'!E$2, 'P38 (34 Ligands)'!$E$2:$T$2, 0)) -> 1.463468532 | F6: =INDEX('P38 (34 Ligands)'!$E$39:$T$43, MATCH('Analysis (199 Ligands)'!F$5, 'P38 (34 Ligands)'!$C$39:$C$43, 0), MATCH('Analysis (199 Ligands)'!F$2, 'P38 (34 Ligands)'!$E$2:$T$2, 0)) -> 1.678082745 | G6: =INDEX('P38 (34 Ligands)'!$E$39:$T$43, MATCH('Analysis (199 Ligands)'!G$5, 'P38 (34 Ligands)'!$C$39:$C$43, 0), MATCH('Analysis (199 Ligands)'!G$2, 'P38 (34 Ligands)'!$E$2:$T$2, 0)) -> 0.2927020887 | H6: =INDEX('P38 (34 Ligands)'!$E$39:$T$43, MATCH('Analysis (199 Ligands)'!H$5, 'P38 (34 Ligands)'!$C$39:$C$43, 0), MATCH('Analysis (199 Ligands)'!H$2, 'P38 (34 Ligands)'!$E$2:$T$2, 0)) -> 0.3392593094 | I6: =INDEX('P38 (34 Ligands)'!$E$39:$T$43, MATCH('Analysis (199 Ligands)'!I$5, 'P38 (34 Ligands)'!$C$39:$C$43, 0), MATCH('Analysis (199 Ligands)'!I$2, 'P38 (34 Ligands)'!$E$2:$T$2, 0)) -> 0.6256684492 | J6: =INDEX('P38 (34 Ligands)'!$E$39:$T$43, MATCH('Analysis (199 Ligands)'!J$5, 'P38 (34 Ligands)'!$C$39:$C$43, 0), MATCH('Analysis (199 Ligands)'!J$2, 'P38 (34 Ligands)'!$E$2:$T$2, 0)) -> 4.295187946 | K6: =INDEX('P38 (34 Ligands)'!$E$39:$T$43, MATCH('Analysis (199 Ligands)'!K$5, 'P38 (34 Ligands)'!$C$39:$C$43, 0), MATCH('Analysis (199 Ligands)'!K$2, 'P38 (34 Ligands)'!$E$2:$T$2, 0)) -> 4.560703064 | L6: =INDEX('P38 (34 Ligands)'!$E$39:$T$43, MATCH('Analysis (199 Ligands)'!L$5, 'P38 (34 Ligands)'!$C$39:$C$43, 0), MATCH('Analysis (199 Ligands)'!L$2, 'P38 (34 Ligands)'!$E$2:$T$2, 0)) -> 0.5973865764 | M6: =INDEX('P38 (34 Ligands)'!$E$39:$T$43, MATCH('Analysis (199 Ligands)'!M$5, 'P38 (34 Ligands)'!$C$39:$C$43, 0), MATCH('Analysis (199 Ligands)'!M$2, 'P38 (34 Ligands)'!$E$2:$T$2, 0)) -> 0.6113067547 | N6: =INDEX('P38 (34 Ligands)'!$E$39:$T$43, MATCH('Analysis (199 Ligands)'!N$5, 'P38 (34 Ligands)'!$C$39:$C$43, 0), MATCH('Analysis (199 Ligands)'!N$2, 'P38 (34 Ligands)'!$E$2:$T$2, 0)) -> 0.7165775401 | O6: =INDEX('P38 (34 Ligands)'!$E$39:$T$43, MATCH('Analysis (199 Ligands)'!O$5, 'P38 (34 Ligands)'!$C$39:$C$43, 0), MATCH('Analysis (199 Ligands)'!O$2, 'P38 (34 Ligands)'!$E$2:$T$2, 0)) -> 1.476109334 | P6: =INDEX('P38 (34 Ligands)'!$E$39:$T$43, MATCH('Analysis (199 Ligands)'!P$5, 'P38 (34 Ligands)'!$C$39:$C$43, 0), MATCH('Analysis (199 Ligands)'!P$2, 'P38 (34 Ligands)'!$E$2:$T$2, 0)) -> 1.754986635 | Q6: =INDEX('P38 (34 Ligands)'!$E$39:$T$43, MATCH('Analysis (199 Ligands)'!Q$5, 'P38 (34 Ligands)'!$C$39:$C$43, 0), MATCH('Analysis (199 Ligands)'!Q$2, 'P38 (34 Ligands)'!$E$2:$T$2, 0)) -> 0.3123076119 | R6: =INDEX('P38 (34 Ligands)'!$E$39:$T$43, MATCH('Analysis (199 Ligands)'!R$5, 'P38 (34 Ligands)'!$C$39:$C$43, 0), MATCH('Analysis (199 Ligands)'!R$2, 'P38 (34 Ligands)'!$E$2:$T$2, 0)) -> 0.3593467105 | S6: =INDEX('P38 (34 Ligands)'!$E$39:$T$43, MATCH('Analysis (199 Ligands)'!S$5, 'P38 (34 Ligands)'!$C$39:$C$43, 0), MATCH('Analysis (199 Ligands)'!S$2, 'P38 (34 Ligands)'!$E$2:$T$2, 0)) -> 0.6310160428 | T6: =INDEX('P38 (34 Ligands)'!$E$39:$T$43, MATCH('Analysis (199 Ligands)'!T$5, 'P38 (34 Ligands)'!$C$39:$C$43, 0), MATCH('Analysis (199 Ligands)'!T$2, 'P38 (34 Ligands)'!$E$2:$T$2, 0)) -> 4.394158534 | U6: =INDEX('P38 (34 Ligands)'!$E$39:$T$43, MATCH('Analysis (199 Ligands)'!U$5, 'P38 (34 Ligands)'!$C$39:$C$43, 0), MATCH('Analysis (199 Ligands)'!U$2, 'P38 (34 Ligands)'!$E$2:$T$2, 0)) -> 4.702738511 | V6: =INDEX('P38 (34 Ligands)'!$E$39:$T$43, MATCH('Analysis (199 Ligands)'!V$5, 'P38 (34 Ligands)'!$C$39:$C$43, 0), MATCH('Analysis (199 Ligands)'!V$2, 'P38 (34 Ligands)'!$E$2:$T$2, 0)) -> 0.6307868139 | W6: =INDEX('P38 (34 Ligands)'!$E$39:$T$43, MATCH('Analysis (199 Ligands)'!W$5, 'P38 (34 Ligands)'!$C$39:$C$43, 0), MATCH('Analysis (199 Ligands)'!W$2, 'P38 (34 Ligands)'!$E$2:$T$2, 0)) -> 0.6526587173 | X6: =INDEX('P38 (34 Ligands)'!$E$39:$T$43, MATCH('Analysis (199 Ligands)'!X$5, 'P38 (34 Ligands)'!$C$39:$C$43, 0), MATCH('Analysis (199 Ligands)'!X$2, 'P38 (34 Ligands)'!$E$2:$T$2, 0)) -> 0.7415329768 | Z6: =INDEX('P38 (34 Ligands)'!$E$39:$T$43, MATCH('Analysis (199 Ligands)'!Z$5, 'P38 (34 Ligands)'!$C$39:$C$43, 0), MATCH('Analysis (199 Ligands)'!Z$2, 'P38 (34 Ligands)'!$E$2:$T$2, 0)) -> 1.802929616 | AA6: =INDEX('P38 (34 Ligands)'!$E$39:$T$43, MATCH('Analysis (199 Ligands)'!AA$5, 'P38 (34 Ligands)'!$C$39:$C$43, 0), MATCH('Analysis (199 Ligands)'!AA$2, 'P38 (34 Ligands)'!$E$2:$T$2, 0)) -> 1.987321369 | AB6: =INDEX('P38 (34 Ligands)'!$E$39:$T$43, MATCH('Analysis (199 Ligands)'!AB$5, 'P38 (34 Ligands)'!$C$39:$C$43, 0), MATCH('Analysis (199 Ligands)'!AB$2, 'P38 (34 Ligands)'!$E$2:$T$2, 0)) -> 0.4885422847 | AC6: =INDEX('P38 (34 Ligands)'!$E$39:$T$43, MATCH('Analysis (199 Ligands)'!AC$5, 'P38 (34 Ligands)'!$C$39:$C$43, 0), MATCH('Analysis (199 Ligands)'!AC$2, 'P38 (34 Ligands)'!$E$2:$T$2, 0)) -> 0.5222406284 | AD6: =INDEX('P38 (34 Ligands)'!$E$39:$T$43, MATCH('Analysis (199 Ligands)'!AD$5, 'P38 (34 Ligands)'!$C$39:$C$43, 0), MATCH('Analysis (199 Ligands)'!AD$2, 'P38 (34 Ligands)'!$E$2:$T$2, 0)) -> 0.688057041 | AE6: =INDEX('P38 (34 Ligands)'!$E$39:$T$43, MATCH('Analysis (199 Ligands)'!AE$5, 'P38 (34 Ligands)'!$C$39:$C$43, 0), MATCH('Analysis (199 Ligands)'!AE$2, 'P38 (34 Ligands)'!$E$2:$T$2, 0)) -> 4.370364417 | AF6: =INDEX('P38 (34 Ligands)'!$E$39:$T$43, MATCH('Analysis (199 Ligands)'!AF$5, 'P38 (34 Ligands)'!$C$39:$C$43, 0), MATCH('Analysis (199 Ligands)'!AF$2, 'P38 (34 Ligands)'!$E$2:$T$2, 0)) -> 4.613141608 | AG6: =INDEX('P38 (34 Ligands)'!$E$39:$T$43, MATCH('Analysis (199 Ligands)'!AG$5, 'P38 (34 Ligands)'!$C$39:$C$43, 0), MATCH('Analysis (199 Ligands)'!AG$2, 'P38 (34 Ligands)'!$E$2:$T$2, 0)) -> 0.5762011887 | AH6: =INDEX('P38 (34 Ligands)'!$E$39:$T$43, MATCH('Analysis (199 Ligands)'!AH$5, 'P38 (34 Ligands)'!$C$39:$C$43, 0), MATCH('Analysis (199 Ligands)'!AH$2, 'P38 (34 Ligands)'!$E$2:$T$2, 0)) -> 0.5744149946 | AI6: =INDEX('P38 (34 Ligands)'!$E$39:$T$43, MATCH('Analysis (199 Ligands)'!AI$5, 'P38 (34 Ligands)'!$C$39:$C$43, 0), MATCH('Analysis (199 Ligands)'!AI$2, 'P38 (34 Ligands)'!$E$2:$T$2, 0)) -> 0.7023172906 | AJ6: =INDEX('P38 (34 Ligands)'!$E$39:$T$43, MATCH('Analysis (199 Ligands)'!AJ$5, 'P38 (34 Ligands)'!$C$39:$C$43, 0), MATCH('Analysis (199 Ligands)'!AJ$2, 'P38 (34 Ligands)'!$E$2:$T$2, 0)) -> 1.652934169 | AK6: =INDEX('P38 (34 Ligands)'!$E$39:$T$43, MATCH('Analysis (199 Ligands)'!AK$5, 'P38 (34 Ligands)'!$C$39:$C$43, 0), MATCH('Analysis (199 Ligands)'!AK$2, 'P38 (34 Ligands)'!$E$2:$T$2, 0)) -> 1.852886328 | AL6: =INDEX('P38 (34 Ligands)'!$E$39:$T$43, MATCH('Analysis (199 Ligands)'!AL$5, 'P38 (34 Ligands)'!$C$39:$C$43, 0), MATCH('Analysis (199 Ligands)'!AL$2, 'P38 (34 Ligands)'!$E$2:$T$2, 0)) -> 0.412815091 | AM6: =INDEX('P38 (34 Ligands)'!$E$39:$T$43, MATCH('Analysis (199 Ligands)'!AM$5, 'P38 (34 Ligands)'!$C$39:$C$43, 0), MATCH('Analysis (199 Ligands)'!AM$2, 'P38 (34 Ligands)'!$E$2:$T$2, 0)) -> 0.4436645048 | AN6: =INDEX('P38 (34 Ligands)'!$E$39:$T$43, MATCH('Analysis (199 Ligands)'!AN$5, 'P38 (34 Ligands)'!$C$39:$C$43, 0), MATCH('Analysis (199 Ligands)'!AN$2, 'P38 (34 Ligands)'!$E$2:$T$2, 0)) -> 0.6613190731 | AO6: =INDEX('P38 (34 Ligands)'!$E$39:$T$43, MATCH('Analysis (199 Ligands)'!AO$5, 'P38 (34 Ligands)'!$C$39:$C$43, 0), MATCH('Analysis (199 Ligands)'!AO$2, 'P38 (34 Ligands)'!$E$2:$T$2, 0)) -> 4.659393828 | AP6: =INDEX('P38 (34 Ligands)'!$E$39:$T$43, MATCH('Analysis (199 Ligands)'!AP$5, 'P38 (34 Ligands)'!$C$39:$C$43, 0), MATCH('Analysis (199 Ligands)'!AP$2, 'P38 (34 Ligands)'!$E$2:$T$2, 0)) -> 4.905065067 | AQ6: =INDEX('P38 (34 Ligands)'!$E$39:$T$43, MATCH('Analysis (199 Ligands)'!AQ$5, 'P38 (34 Ligands)'!$C$39:$C$43, 0), MATCH('Analysis (199 Ligands)'!AQ$2, 'P38 (34 Ligands)'!$E$2:$T$2, 0)) -> 0.6283441947 | AR6: =INDEX('P38 (34 Ligands)'!$E$39:$T$43, MATCH('Analysis (199 Ligands)'!AR$5, 'P38 (34 Ligands)'!$C$39:$C$43, 0), MATCH('Analysis (199 Ligands)'!AR$2, 'P38 (34 Ligands)'!$E$2:$T$2, 0)) -> 0.6344491906 | AS6: =INDEX('P38 (34 Ligands)'!$E$39:$T$43, MATCH('Analysis (199 Ligands)'!AS$5, 'P38 (34 Ligands)'!$C$39:$C$43, 0), MATCH('Analysis (199 Ligands)'!AS$2, 'P38 (34 Ligands)'!$E$2:$T$2, 0)) -> 0.7326203209 | AU6: =INDEX('P38 (34 Ligands)'!$E$39:$T$43, MATCH('Analysis (199 Ligands)'!AU$5, 'P38 (34 Ligands)'!$C$39:$C$43, 0), MATCH('Analysis (199 Ligands)'!AU$2, 'P38 (34 Ligands)'!$E$2:$T$2, 0)) -> 2.064305653 | AV6: =INDEX('P38 (34 Ligands)'!$E$39:$T$43, MATCH('Analysis (199 Ligands)'!AV$5, 'P38 (34 Ligands)'!$C$39:$C$43, 0), MATCH('Analysis (199 Ligands)'!AV$2, 'P38 (34 Ligands)'!$E$2:$T$2, 0)) -> 2.258104123 | AW6: =INDEX('P38 (34 Ligands)'!$E$39:$T$43, MATCH('Analysis (199 Ligands)'!AW$5, 'P38 (34 Ligands)'!$C$39:$C$43, 0), MATCH('Analysis (199 Ligands)'!AW$2, 'P38 (34 Ligands)'!$E$2:$T$2, 0)) -> 0.5332977135 | AX6: =INDEX('P38 (34 Ligands)'!$E$39:$T$43, MATCH('Analysis (199 Ligands)'!AX$5, 'P38 (34 Ligands)'!$C$39:$C$43, 0), MATCH('Analysis (199 Ligands)'!AX$2, 'P38 (34 Ligands)'!$E$2:$T$2, 0)) -> 0.5826758689 | AY6: =INDEX('P38 (34 Ligands)'!$E$39:$T$43, MATCH('Analysis (199 Ligands)'!AY$5, 'P38 (34 Ligands)'!$C$39:$C$43, 0), MATCH('Analysis (199 Ligands)'!AY$2, 'P38 (34 Ligands)'!$E$2:$T$2, 0)) -> 0.7112299465 | AZ6: =INDEX('P38 (34 Ligands)'!$E$39:$T$43, MATCH('Analysis (199 Ligands)'!AZ$5, 'P38 (34 Ligands)'!$C$39:$C$43, 0), MATCH('Analysis (199 Ligands)'!AZ$2, 'P38 (34 Ligands)'!$E$2:$T$2, 0)) -> 4.324805593 | BA6: =INDEX('P38 (34 Ligands)'!$E$39:$T$43, MATCH('Analysis (199 Ligands)'!BA$5, 'P38 (34 Ligands)'!$C$39:$C$43, 0), MATCH('Analysis (199 Ligands)'!BA$2, 'P38 (34 Ligands)'!$E$2:$T$2, 0)) -> 4.555265519 | BB6: =INDEX('P38 (34 Ligands)'!$E$39:$T$43, MATCH('Analysis (199 Ligands)'!BB$5, 'P38 (34 Ligands)'!$C$39:$C$43, 0), MATCH('Analysis (199 Ligands)'!BB$2, 'P38 (34 Ligands)'!$E$2:$T$2, 0)) -> 0.5821499497 | BC6: =INDEX('P38 (34 Ligands)'!$E$39:$T$43, MATCH('Analysis (199 Ligands)'!BC$5, 'P38 (34 Ligands)'!$C$39:$C$43, 0), MATCH('Analysis (199 Ligands)'!BC$2, 'P38 (34 Ligands)'!$E$2:$T$2, 0)) -> 0.572427322 | BD6: =INDEX('P38 (34 Ligands)'!$E$39:$T$43, MATCH('Analysis (199 Ligands)'!BD$5, 'P38 (34 Ligands)'!$C$39:$C$43, 0), MATCH('Analysis (199 Ligands)'!BD$2, 'P38 (34 Ligands)'!$E$2:$T$2, 0)) -> 0.7023172906 | BE6: =INDEX('P38 (34 Ligands)'!$E$39:$T$43, MATCH('Analysis (199 Ligands)'!BE$5, 'P38 (34 Ligands)'!$C$39:$C$43, 0), MATCH('Analysis (199 Ligands)'!BE$2, 'P38 (34 Ligands)'!$E$2:$T$2, 0)) -> 2.358220546 | BF6: =INDEX('P38 (34 Ligands)'!$E$39:$T$43, MATCH('Analysis (199 Ligands)'!BF$5, 'P38 (34 Ligands)'!$C$39:$C$43, 0), MATCH('Analysis (199 Ligands)'!BF$2, 'P38 (34 Ligands)'!$E$2:$T$2, 0)) -> 2.567827773 | BG6: =INDEX('P38 (34 Ligands)'!$E$39:$T$43, MATCH('Analysis (199 Ligands)'!BG$5, 'P38 (34 Ligands)'!$C$39:$C$43, 0), MATCH('Analysis (199 Ligands)'!BG$2, 'P38 (34 Ligands)'!$E$2:$T$2, 0)) -> 0.5142414232 | BH6: =INDEX('P38 (34 Ligands)'!$E$39:$T$43, MATCH('Analysis (199 Ligands)'!BH$5, 'P38 (34 Ligands)'!$C$39:$C$43, 0), MATCH('Analysis (199 Ligands)'!BH$2, 'P38 (34 Ligands)'!$E$2:$T$2, 0)) -> 0.5037052441 | BI6: =INDEX('P38 (34 Ligands)'!$E$39:$T$43, MATCH('Analysis (199 Ligands)'!BI$5, 'P38 (34 Ligands)'!$C$39:$C$43, 0), MATCH('Analysis (199 Ligands)'!BI$2, 'P38 (34 Ligands)'!$E$2:$T$2, 0)) -> 0.7023172906 | BJ6: =INDEX('P38 (34 Ligands)'!$E$39:$T$43, MATCH('Analysis (199 Ligands)'!BJ$5, 'P38 (34 Ligands)'!$C$39:$C$43, 0), MATCH('Analysis (199 Ligands)'!BJ$2, 'P38 (34 Ligands)'!$E$2:$T$2, 0)) -> 4.647393828 | BK6: =INDEX('P38 (34 Ligands)'!$E$39:$T$43, MATCH('Analysis (199 Ligands)'!BK$5, 'P38 (34 Ligands)'!$C$39:$C$43, 0), MATCH('Analysis (199 Ligands)'!BK$2, 'P38 (34 Ligands)'!$E$2:$T$2, 0)) -> 4.902745767 | BL6: =INDEX('P38 (34 Ligands)'!$E$39:$T$43, MATCH('Analysis (199 Ligands)'!BL$5, 'P38 (34 Ligands)'!$C$39:$C$43, 0), MATCH('Analysis (199 Ligands)'!BL$2, 'P38 (34 Ligands)'!$E$2:$T$2, 0)) -> 0.6338432449 | BM6: =INDEX('P38 (34 Ligands)'!$E$39:$T$43, MATCH('Analysis (199 Ligands)'!BM$5, 'P38 (34 Ligands)'!$C$39:$C$43, 0), MATCH('Analysis (199 Ligands)'!BM$2, 'P38 (34 Ligands)'!$E$2:$T$2, 0)) -> 0.6442583124 | BN6: =INDEX('P38 (34 Ligands)'!$E$39:$T$43, MATCH('Analysis (199 Ligands)'!BN$5, 'P38 (34 Ligands)'!$C$39:$C$43, 0), MATCH('Analysis (199 Ligands)'!BN$2, 'P38 (34 Ligands)'!$E$2:$T$2, 0)) -> 0.734402852 | BP6: =INDEX('P38 (34 Ligands)'!$E$39:$T$43, MATCH('Analysis (199 Ligands)'!BP$5, 'P38 (34 Ligands)'!$C$39:$C$43, 0), MATCH('Analysis (199 Ligands)'!BP$2, 'P38 (34 Ligands)'!$E$2:$T$2, 0)) -> 2.104276241 | BQ6: =INDEX('P38 (34 Ligands)'!$E$39:$T$43, MATCH('Analysis (199 Ligands)'!BQ$5, 'P38 (34 Ligands)'!$C$39:$C$43, 0), MATCH('Analysis (199 Ligands)'!BQ$2, 'P38 (34 Ligands)'!$E$2:$T$2, 0)) -> 2.321070583 | BR6: =INDEX('P38 (34 Ligands)'!$E$39:$T$43, MATCH('Analysis (199 Ligands)'!BR$5, 'P38 (34 Ligands)'!$C$39:$C$43, 0), MATCH('Analysis (199 Ligands)'!BR$2, 'P38 (34 Ligands)'!$E$2:$T$2, 0)) -> 0.5041120627 | BS6: =INDEX('P38 (34 Ligands)'!$E$39:$T$43, MATCH('Analysis (199 Ligands)'!BS$5, 'P38 (34 Ligands)'!$C$39:$C$43, 0), MATCH('Analysis (199 Ligands)'!BS$2, 'P38 (34 Ligands)'!$E$2:$T$2, 0)) -> 0.5545692986 | BT6: =INDEX('P38 (34 Ligands)'!$E$39:$T$43, MATCH('Analysis (199 Ligands)'!BT$5, 'P38 (34 Ligands)'!$C$39:$C$43, 0), MATCH('Analysis (199 Ligands)'!BT$2, 'P38 (34 Ligands)'!$E$2:$T$2, 0)) -> 0.6916221034 | BU6: =INDEX('P38 (34 Ligands)'!$E$39:$T$43, MATCH('Analysis (199 Ligands)'!BU$5, 'P38 (34 Ligands)'!$C$39:$C$43, 0), MATCH('Analysis (199 Ligands)'!BU$2, 'P38 (34 Ligands)'!$E$2:$T$2, 0)) -> 4.337982064 | BV6: =INDEX('P38 (34 Ligands)'!$E$39:$T$43, MATCH('Analysis (199 Ligands)'!BV$5, 'P38 (34 Ligands)'!$C$39:$C$43, 0), MATCH('Analysis (199 Ligands)'!BV$2, 'P38 (34 Ligands)'!$E$2:$T$2, 0)) -> 4.560597507 | BW6: =INDEX('P38 (34 Ligands)'!$E$39:$T$43, MATCH('Analysis (199 Ligands)'!BW$5, 'P38 (34 Ligands)'!$C$39:$C$43, 0), MATCH('Analysis (199 Ligands)'!BW$2, 'P38 (34 Ligands)'!$E$2:$T$2, 0)) -> 0.5859353123 | BX6: =INDEX('P38 (34 Ligands)'!$E$39:$T$43, MATCH('Analysis (199 Ligands)'!BX$5, 'P38 (34 Ligands)'!$C$39:$C$43, 0), MATCH('Analysis (199 Ligands)'!BX$2, 'P38 (34 Ligands)'!$E$2:$T$2, 0)) -> 0.5967888601 | BY6: =INDEX('P38 (34 Ligands)'!$E$39:$T$43, MATCH('Analysis (199 Ligands)'!BY$5, 'P38 (34 Ligands)'!$C$39:$C$43, 0), MATCH('Analysis (199 Ligands)'!BY$2, 'P38 (34 Ligands)'!$E$2:$T$2, 0)) -> 0.7147950089 | BZ6: =INDEX('P38 (34 Ligands)'!$E$39:$T$43, MATCH('Analysis (199 Ligands)'!BZ$5, 'P38 (34 Ligands)'!$C$39:$C$43, 0), MATCH('Analysis (199 Ligands)'!BZ$2, 'P38 (34 Ligands)'!$E$2:$T$2, 0)) -> 2.275864476 | CA6: =INDEX('P38 (34 Ligands)'!$E$39:$T$43, MATCH('Analysis (199 Ligands)'!CA$5, 'P38 (34 Ligands)'!$C$39:$C$43, 0), MATCH('Analysis (199 Ligands)'!CA$2, 'P38 (34 Ligands)'!$E$2:$T$2, 0)) -> 2.49091651 | CB6: =INDEX('P38 (34 Ligands)'!$E$39:$T$43, MATCH('Analysis (199 Ligands)'!CB$5, 'P38 (34 Ligands)'!$C$39:$C$43, 0), MATCH('Analysis (199 Ligands)'!CB$2, 'P38 (34 Ligands)'!$E$2:$T$2, 0)) -> 0.5527587605 | CC6: =INDEX('P38 (34 Ligands)'!$E$39:$T$43, MATCH('Analysis (199 Ligands)'!CC$5, 'P38 (34 Ligands)'!$C$39:$C$43, 0), MATCH('Analysis (199 Ligands)'!CC$2, 'P38 (34 Ligands)'!$E$2:$T$2, 0)) -> 0.5668257704 | CD6: =INDEX('P38 (34 Ligands)'!$E$39:$T$43, MATCH('Analysis (199 Ligands)'!CD$5, 'P38 (34 Ligands)'!$C$39:$C$43, 0), MATCH('Analysis (199 Ligands)'!CD$2, 'P38 (34 Ligands)'!$E$2:$T$2, 0)) -> 0.7058823529 | CE6: =INDEX('P38 (34 Ligands)'!$E$39:$T$43, MATCH('Analysis (199 Ligands)'!CE$5, 'P38 (34 Ligands)'!$C$39:$C$43, 0), MATCH('Analysis (199 Ligands)'!CE$2, 'P38 (34 Ligands)'!$E$2:$T$2, 0)) -> 4.664658534 | CF6: =INDEX('P38 (34 Ligands)'!$E$39:$T$43, MATCH('Analysis (199 Ligands)'!CF$5, 'P38 (34 Ligands)'!$C$39:$C$43, 0), MATCH('Analysis (199 Ligands)'!CF$2, 'P38 (34 Ligands)'!$E$2:$T$2, 0)) -> 4.90310115 | CG6: =INDEX('P38 (34 Ligands)'!$E$39:$T$43, MATCH('Analysis (199 Ligands)'!CG$5, 'P38 (34 Ligands)'!$C$39:$C$43, 0), MATCH('Analysis (199 Ligands)'!CG$2, 'P38 (34 Ligands)'!$E$2:$T$2, 0)) -> 0.6239718447 | CH6: =INDEX('P38 (34 Ligands)'!$E$39:$T$43, MATCH('Analysis (199 Ligands)'!CH$5, 'P38 (34 Ligands)'!$C$39:$C$43, 0), MATCH('Analysis (199 Ligands)'!CH$2, 'P38 (34 Ligands)'!$E$2:$T$2, 0)) -> 0.6233241969 | CI6: =INDEX('P38 (34 Ligands)'!$E$39:$T$43, MATCH('Analysis (199 Ligands)'!CI$5, 'P38 (34 Ligands)'!$C$39:$C$43, 0), MATCH('Analysis (199 Ligands)'!CI$2, 'P38 (34 Ligands)'!$E$2:$T$2, 0)) -> 0.7272727273 | CK6: =INDEX($E$2:$CI$2, MATCH(MIN(IF(CL$5 = $E$5:$CI$5, $E6:$CI6, 999999)),IF(CL$5 = $E$5:$CI$5, $E6:$CI6, 999999),0)) -> GAS21 (r = 1 A) | CL6: =IFERROR(INDEX($E6:$CI6, SMALL(IF(CK6 = $E$2:$CI$2, COLUMN($E$2:$CI$2) - MIN(COLUMN($E$2:$CI$2))+1, ""), COLUMN(CL6:CP6) - COLUMN(CL6)+1)), "") -> 1.463468532 | CM6: 1.678082745 | CN6: 0.2927020887 | CO6: 0.3392593094 | CP6: 0.6256684492 | CQ6: =INDEX($E$2:$CI$2, MATCH(MIN(IF(CS$5 = $E$5:$CI$5, $E6:$CI6, 999999)),IF(CS$5 = $E$5:$CI$5, $E6:$CI6, 999999),0)) -> GAS21 (r = 1 A) | CR6: =IFERROR(INDEX($E6:$CI6, SMALL(IF(CQ6 = $E$2:$CI$2, COLUMN($E$2:$CI$2) - MIN(COLUMN($E$2:$CI$2))+1, ""), COLUMN(CR6:CV6) - COLUMN(CR6)+1)), "") -> 1.463468532 | CS6: 1.678082745 | CT6: 0.2927020887 | CU6: 0.3392593094 | CV6: 0.6256684492 | CW6: =INDEX($E$2:$CI$2, MATCH(MAX(IF(CZ$5 = $E$5:$CI$5, $E6:$CI6, -1)),IF(CZ$5 = $E$5:$CI$5, $E6:$CI6, -1),0)) -> SX21 (r = 5 A) | CX6: =IFERROR(INDEX($E6:$CI6, SMALL(IF(CW6 = $E$2:$CI$2, COLUMN($E$2:$CI$2) - MIN(COLUMN($E$2:$CI$2))+1, ""), COLUMN(CX6:DB6) - COLUMN(CX6)+1)), "") -> 4.647393828 | CY6: 4.902745767 | CZ6: 0.6338432449 | DA6: 0.6442583124 | DB6: 0.734402852 | DC6: =INDEX($E$2:$CI$2, MATCH(MAX(IF(DG$5 = $E$5:$CI$5, $E6:$CI6, -1)),IF(DG$5 = $E$5:$CI$5, $E6:$CI6, -1),0)) -> SX21 (r = 1 A) | DD6: =IFERROR(INDEX($E6:$CI6, SMALL(IF(DC6 = $E$2:$CI$2, COLUMN($E$2:$CI$2) - MIN(COLUMN($E$2:$CI$2))+1, ""), COLUMN(DD6:DH6) - COLUMN(DD6)+1)), "") -> 4.394158534 | DE6: 4.702738511 | DF6: 0.6307868139 | DG6: 0.6526587173 | DH6: 0.7415329768 | DI6: =INDEX($E$2:$CI$2, MATCH(MAX(IF(DN$5 = $E$5:$CI$5, $E6:$CI6, -1)),IF(DN$5 = $E$5:$CI$5, $E6:$CI6, -1),0)) -> SX21 (r = 1 A) | DJ6: =IFERROR(INDEX($E6:$CI6, SMALL(IF(DI6 = $E$2:$CI$2, COLUMN($E$2:$CI$2) - MIN(COLUMN($E$2:$CI$2))+1, ""), COLUMN(DJ6:DN6) - COLUMN(DJ6)+1)), "") -> 4.394158534 | DK6: 4.702738511 | DL6: 0.6307868139 | DM6: 0.6526587173 | DN6: 0.7415329768 | DP6: =INDEX('P38 (34 Ligands)'!$V$39:$AV$43, MATCH('Analysis (199 Ligands)'!DP$5, 'P38 (34 Ligands)'!$C$39:$C$43, 0), MATCH('Analysis (199 Ligands)'!DP$2, 'P38 (34 Ligands)'!$V$2:$AV$2, 0)) -> 2.026629182 | DQ6: =INDEX('P38 (34 Ligands)'!$V$39:$AV$43, MATCH('Analysis (199 Ligands)'!DQ$5, 'P38 (34 Ligands)'!$C$39:$C$43, 0), MATCH('Analysis (199 Ligands)'!DQ$2, 'P38 (34 Ligands)'!$V$2:$AV$2, 0)) -> 2.235862593 | DR6: =INDEX('P38 (34 Ligands)'!$V$39:$AV$43, MATCH('Analysis (199 Ligands)'!DR$5, 'P38 (34 Ligands)'!$C$39:$C$43, 0), MATCH('Analysis (199 Ligands)'!DR$2, 'P38 (34 Ligands)'!$V$2:$AV$2, 0)) -> 0.5283057663 | DS6: =INDEX('P38 (34 Ligands)'!$V$39:$AV$43, MATCH('Analysis (199 Ligands)'!DS$5, 'P38 (34 Ligands)'!$C$39:$C$43, 0), MATCH('Analysis (199 Ligands)'!DS$2, 'P38 (34 Ligands)'!$V$2:$AV$2, 0)) -> 0.572181159 | DT6: =INDEX('P38 (34 Ligands)'!$V$39:$AV$43, MATCH('Analysis (199 Ligands)'!DT$5, 'P38 (34 Ligands)'!$C$39:$C$43, 0), MATCH('Analysis (199 Ligands)'!DT$2, 'P38 (34 Ligands)'!$V$2:$AV$2, 0)) -> 0.7094474153 | DU6: =INDEX('P38 (34 Ligands)'!$V$39:$AV$43, MATCH('Analysis (199 Ligands)'!DU$5, 'P38 (34 Ligands)'!$C$39:$C$43, 0), MATCH('Analysis (199 Ligands)'!DU$2, 'P38 (34 Ligands)'!$V$2:$AV$2, 0)) -> 4.327452652 | DV6: =INDEX('P38 (34 Ligands)'!$V$39:$AV$43, MATCH('Analysis (199 Ligands)'!DV$5, 'P38 (34 Ligands)'!$C$39:$C$43, 0), MATCH('Analysis (199 Ligands)'!DV$2, 'P38 (34 Ligands)'!$V$2:$AV$2, 0)) -> 4.435823661 | DW6: =INDEX('P38 (34 Ligands)'!$V$39:$AV$43, MATCH('Analysis (199 Ligands)'!DW$5, 'P38 (34 Ligands)'!$C$39:$C$43, 0), MATCH('Analysis (199 Ligands)'!DW$2, 'P38 (34 Ligands)'!$V$2:$AV$2, 0)) -> 0.632251799 | DX6: =INDEX('P38 (34 Ligands)'!$V$39:$AV$43, MATCH('Analysis (199 Ligands)'!DX$5, 'P38 (34 Ligands)'!$C$39:$C$43, 0), MATCH('Analysis (199 Ligands)'!DX$2, 'P38 (34 Ligands)'!$V$2:$AV$2, 0)) -> 0.6700880146 | DY6: =INDEX('P38 (34 Ligands)'!$V$39:$AV$43, MATCH('Analysis (199 Ligands)'!DY$5, 'P38 (34 Ligands)'!$C$39:$C$43, 0), MATCH('Analysis (199 Ligands)'!DY$2, 'P38 (34 Ligands)'!$V$2:$AV$2, 0)) -> 0.7415329768 | DZ6: =INDEX('P38 (34 Ligands)'!$V$39:$AV$43, MATCH('Analysis (199 Ligands)'!DZ$5, 'P38 (34 Ligands)'!$C$39:$C$43, 0), MATCH('Analysis (199 Ligands)'!DZ$2, 'P38 (34 Ligands)'!$V$2:$AV$2, 0)) -> 2.613335064 | EA6: =INDEX('P38 (34 Ligands)'!$V$39:$AV$43, MATCH('Analysis (199 Ligands)'!EA$5, 'P38 (34 Ligands)'!$C$39:$C$43, 0), MATCH('Analysis (199 Ligands)'!EA$2, 'P38 (34 Ligands)'!$V$2:$AV$2, 0)) -> 2.86855818 | EB6: =INDEX('P38 (34 Ligands)'!$V$39:$AV$43, MATCH('Analysis (199 Ligands)'!EB$5, 'P38 (34 Ligands)'!$C$39:$C$43, 0), MATCH('Analysis (199 Ligands)'!EB$2, 'P38 (34 Ligands)'!$V$2:$AV$2, 0)) -> 0.6067254182 | EC6: =INDEX('P38 (34 Ligands)'!$V$39:$AV$43, MATCH('Analysis (199 Ligands)'!EC$5, 'P38 (34 Ligands)'!$C$39:$C$43, 0), MATCH('Analysis (199 Ligands)'!EC$2, 'P38 (34 Ligands)'!$V$2:$AV$2, 0)) -> 0.6846635177 | ED6: =INDEX('P38 (34 Ligands)'!$V$39:$AV$43, MATCH('Analysis (199 Ligands)'!ED$5, 'P38 (34 Ligands)'!$C$39:$C$43, 0), MATCH('Analysis (199 Ligands)'!ED$2, 'P38 (34 Ligands)'!$V$2:$AV$2, 0)) -> 0.7736185383 | EE6: =INDEX('P38 (34 Ligands)'!$V$39:$AV$43, MATCH('Analysis (199 Ligands)'!EE$5, 'P38 (34 Ligands)'!$C$39:$C$43, 0), MATCH('Analysis (199 Ligands)'!EE$2, 'P38 (34 Ligands)'!$V$2:$AV$2, 0)) -> 4.472570299 | EF6: =INDEX('P38 (34 Ligands)'!$V$39:$AV$43, MATCH('Analysis (199 Ligands)'!EF$5, 'P38 (34 Ligands)'!$C$39:$C$43, 0), MATCH('Analysis (199 Ligands)'!EF$2, 'P38 (34 Ligands)'!$V$2:$AV$2, 0)) -> 4.606660654 | EG6: =INDEX('P38 (34 Ligands)'!$V$39:$AV$43, MATCH('Analysis (199 Ligands)'!EG$5, 'P38 (34 Ligands)'!$C$39:$C$43, 0), MATCH('Analysis (199 Ligands)'!EG$2, 'P38 (34 Ligands)'!$V$2:$AV$2, 0)) -> 0.7442740917 | EH6: =INDEX('P38 (34 Ligands)'!$V$39:$AV$43, MATCH('Analysis (199 Ligands)'!EH$5, 'P38 (34 Ligands)'!$C$39:$C$43, 0), MATCH('Analysis (199 Ligands)'!EH$2, 'P38 (34 Ligands)'!$V$2:$AV$2, 0)) -> 0.7553399724 | EI6: =INDEX('P38 (34 Ligands)'!$V$39:$AV$43, MATCH('Analysis (199 Ligands)'!EI$5, 'P38 (34 Ligands)'!$C$39:$C$43, 0), MATCH('Analysis (199 Ligands)'!EI$2, 'P38 (34 Ligands)'!$V$2:$AV$2, 0)) -> 0.7807486631 | EK6: =INDEX($DP$2:$EI$2, MATCH(MAX(IF($EP$5 = $DP$5:$EI$5, $DP6:$EI6, -1)),IF($EP$5 = $DP$5:$EI$5, $DP6:$EI6, -1),0)) -> SX21* (r = 5 A) | EL6: =IFERROR(INDEX($DP6:$EI6, SMALL(IF(EK6 = $DP$2:$EI$2, COLUMN($DP$2:$EI$2) - MIN(COLUMN($DP$2:$EI$2))+1, ""), COLUMN(EL6:EP6) - COLUMN(EL6)+1)), "") -> 4.472570299 | EM6: 4.606660654 | EN6: 0.7442740917 | EO6: 0.7553399724 | EP6: 0.7807486631 | ER6: =INDEX('P38 (34 Ligands)'!$AX$39:$BC$43, MATCH('Analysis (199 Ligands)'!ER$5, 'P38 (34 Ligands)'!$C$39:$C$43, 0), MATCH('Analysis (199 Ligands)'!ER$2, 'P38 (34 Ligands)'!$AX$2:$BC$2, 0)) -> 0.8554039538 | ES6: =INDEX('P38 (34 Ligands)'!$AX$39:$BC$43, MATCH('Analysis (199 Ligands)'!ES$5, 'P38 (34 Ligands)'!$C$39:$C$43, 0), MATCH('Analysis (199 Ligands)'!ES$2, 'P38 (34 Ligands)'!$AX$2:$BC$2, 0)) -> 0.9656312041 | ET6: =INDEX('P38 (34 Ligands)'!$AX$39:$BC$43, MATCH('Analysis (199 Ligands)'!ET$5, 'P38 (34 Ligands)'!$C$39:$C$43, 0), MATCH('Analysis (199 Ligands)'!ET$2, 'P38 (34 Ligands)'!$AX$2:$BC$2, 0)) -> 0.6533551993 | EU6: =INDEX('P38 (34 Ligands)'!$AX$39:$BC$43, MATCH('Analysis (199 Ligands)'!EU$5, 'P38 (34 Ligands)'!$C$39:$C$43, 0), MATCH('Analysis (199 Ligands)'!EU$2, 'P38 (34 Ligands)'!$AX$2:$BC$2, 0)) -> 0.6626662119 | EV6: =INDEX('P38 (34 Ligands)'!$AX$39:$BC$43, MATCH('Analysis (199 Ligands)'!EV$5, 'P38 (34 Ligands)'!$C$39:$C$43, 0), MATCH('Analysis (199 Ligands)'!EV$2, 'P38 (34 Ligands)'!$AX$2:$BC$2, 0)) -> 0.7308377897 | EW6: =INDEX('P38 (34 Ligands)'!$AX$39:$BC$43, MATCH('Analysis (199 Ligands)'!EW$5, 'P38 (34 Ligands)'!$C$39:$C$43, 0), MATCH('Analysis (199 Ligands)'!EW$2, 'P38 (34 Ligands)'!$AX$2:$BC$2, 0)) -> 0.9440546859 | EX6: =INDEX('P38 (34 Ligands)'!$AX$39:$BC$43, MATCH('Analysis (199 Ligands)'!EX$5, 'P38 (34 Ligands)'!$C$39:$C$43, 0), MATCH('Analysis (199 Ligands)'!EX$2, 'P38 (34 Ligands)'!$AX$2:$BC$2, 0)) -> 1.257746183 | EY6: =INDEX('P38 (34 Ligands)'!$AX$39:$BC$43, MATCH('Analysis (199 Ligands)'!EY$5, 'P38 (34 Ligands)'!$C$39:$C$43, 0), MATCH('Analysis (199 Ligands)'!EY$2, 'P38 (34 Ligands)'!$AX$2:$BC$2, 0)) -> 0.6272552064 | EZ6: =INDEX('P38 (34 Ligands)'!$AX$39:$BC$43, MATCH('Analysis (199 Ligands)'!EZ$5, 'P38 (34 Ligands)'!$C$39:$C$43, 0), MATCH('Analysis (199 Ligands)'!EZ$2, 'P38 (34 Ligands)'!$AX$2:$BC$2, 0)) -> 0.7052116959 | FA6: =INDEX('P38 (34 Ligands)'!$AX$39:$BC$43, MATCH('Analysis (199 Ligands)'!FA$5, 'P38 (34 Ligands)'!$C$39:$C$43, 0), MATCH('Analysis (199 Ligands)'!FA$2, 'P38 (34 Ligands)'!$AX$2:$BC$2, 0)) -> 0.7647058824 | FB6: =INDEX('P38 (34 Ligands)'!$AX$39:$BC$43, MATCH('Analysis (199 Ligands)'!FB$5, 'P38 (34 Ligands)'!$C$39:$C$43, 0), MATCH('Analysis (199 Ligands)'!FB$2, 'P38 (34 Ligands)'!$AX$2:$BC$2, 0)) -> 0.6159199671 | FC6: =INDEX('P38 (34 Ligands)'!$AX$39:$BC$43, MATCH('Analysis (199 Ligands)'!FC$5, 'P38 (34 Ligands)'!$C$39:$C$43, 0), MATCH('Analysis (199 Ligands)'!FC$2, 'P38 (34 Ligands)'!$AX$2:$BC$2, 0)) -> 0.7620956468 | FD6: =INDEX('P38 (34 Ligands)'!$AX$39:$BC$43, MATCH('Analysis (199 Ligands)'!FD$5, 'P38 (34 Ligands)'!$C$39:$C$43, 0), MATCH('Analysis (199 Ligands)'!FD$2, 'P38 (34 Ligands)'!$AX$2:$BC$2, 0)) -> 0.6812730463 | FE6: =INDEX('P38 (34 Ligands)'!$AX$39:$BC$43, MATCH('Analysis (199 Ligands)'!FE$5, 'P38 (34 Ligands)'!$C$39:$C$43, 0), MATCH('Analysis (199 Ligands)'!FE$2, 'P38 (34 Ligands)'!$AX$2:$BC$2, 0)) -> 0.6832081437 | FF6: =INDEX('P38 (34 Ligands)'!$AX$39:$BC$43, MATCH('Analysis (199 Ligands)'!FF$5, 'P38 (34 Ligands)'!$C$39:$C$43, 0), MATCH('Analysis (199 Ligands)'!FF$2, 'P38 (34 Ligands)'!$AX$2:$BC$2, 0)) -> 0.7468805704 | FG6: =INDEX('P38 (34 Ligands)'!$AX$39:$BC$43, MATCH('Analysis (199 Ligands)'!FG$5, 'P38 (34 Ligands)'!$C$39:$C$43, 0), MATCH('Analysis (199 Ligands)'!FG$2, 'P38 (34 Ligands)'!$AX$2:$BC$2, 0)) -> 0.9484532516 | FH6: =INDEX('P38 (34 Ligands)'!$AX$39:$BC$43, MATCH('Analysis (199 Ligands)'!FH$5, 'P38 (34 Ligands)'!$C$39:$C$43, 0), MATCH('Analysis (199 Ligands)'!FH$2, 'P38 (34 Ligands)'!$AX$2:$BC$2, 0)) -> 1.229791782 | FI6: =INDEX('P38 (34 Ligands)'!$AX$39:$BC$43, MATCH('Analysis (199 Ligands)'!FI$5, 'P38 (34 Ligands)'!$C$39:$C$43, 0), MATCH('Analysis (199 Ligands)'!FI$2, 'P38 (34 Ligands)'!$AX$2:$BC$2, 0)) -> 0.7070909979 | FJ6: =INDEX('P38 (34 Ligands)'!$AX$39:$BC$43, MATCH('Analysis (199 Ligands)'!FJ$5, 'P38 (34 Ligands)'!$C$39:$C$43, 0), MATCH('Analysis (199 Ligands)'!FJ$2, 'P38 (34 Ligands)'!$AX$2:$BC$2, 0)) -> 0.7098771112 | FK6: =INDEX('P38 (34 Ligands)'!$AX$39:$BC$43, MATCH('Analysis (199 Ligands)'!FK$5, 'P38 (34 Ligands)'!$C$39:$C$43, 0), MATCH('Analysis (199 Ligands)'!FK$2, 'P38 (34 Ligands)'!$AX$2:$BC$2, 0)) -> 0.7575757576 | FL6: =INDEX('P38 (34 Ligands)'!$AX$39:$BC$43, MATCH('Analysis (199 Ligands)'!FL$5, 'P38 (34 Ligands)'!$C$39:$C$43, 0), MATCH('Analysis (199 Ligands)'!FL$2, 'P38 (34 Ligands)'!$AX$2:$BC$2, 0)) -> 0.5840345428 | FM6: =INDEX('P38 (34 Ligands)'!$AX$39:$BC$43, MATCH('Analysis (199 Ligands)'!FM$5, 'P38 (34 Ligands)'!$C$39:$C$43, 0), MATCH('Analysis (199 Ligands)'!FM$2, 'P38 (34 Ligands)'!$AX$2:$BC$2, 0)) -> 0.8134028528 | FN6: =INDEX('P38 (34 Ligands)'!$AX$39:$BC$43, MATCH('Analysis (199 Ligands)'!FN$5, 'P38 (34 Ligands)'!$C$39:$C$43, 0), MATCH('Analysis (199 Ligands)'!FN$2, 'P38 (34 Ligands)'!$AX$2:$BC$2, 0)) -> 0.7681191391 | FO6: =INDEX('P38 (34 Ligands)'!$AX$39:$BC$43, MATCH('Analysis (199 Ligands)'!FO$5, 'P38 (34 Ligands)'!$C$39:$C$43, 0), MATCH('Analysis (199 Ligands)'!FO$2, 'P38 (34 Ligands)'!$AX$2:$BC$2, 0)) -> 0.834010227 | FP6: =INDEX('P38 (34 Ligands)'!$AX$39:$BC$43, MATCH('Analysis (199 Ligands)'!FP$5, 'P38 (34 Ligands)'!$C$39:$C$43, 0), MATCH('Analysis (199 Ligands)'!FP$2, 'P38 (34 Ligands)'!$AX$2:$BC$2, 0)) -> 0.825311943 | FQ6: =INDEX('P38 (34 Ligands)'!$AX$39:$BC$43, MATCH('Analysis (199 Ligands)'!FQ$5, 'P38 (34 Ligands)'!$C$39:$C$43, 0), MATCH('Analysis (199 Ligands)'!FQ$2, 'P38 (34 Ligands)'!$AX$2:$BC$2, 0)) -> 1.27893791 | FR6: =INDEX('P38 (34 Ligands)'!$AX$39:$BC$43, MATCH('Analysis (199 Ligands)'!FR$5, 'P38 (34 Ligands)'!$C$39:$C$43, 0), MATCH('Analysis (199 Ligands)'!FR$2, 'P38 (34 Ligands)'!$AX$2:$BC$2, 0)) -> 1.617195964 | FS6: =INDEX('P38 (34 Ligands)'!$AX$39:$BC$43, MATCH('Analysis (199 Ligands)'!FS$5, 'P38 (34 Ligands)'!$C$39:$C$43, 0), MATCH('Analysis (199 Ligands)'!FS$2, 'P38 (34 Ligands)'!$AX$2:$BC$2, 0)) -> 0.3875602697 | FT6: =INDEX('P38 (34 Ligands)'!$AX$39:$BC$43, MATCH('Analysis (199 Ligands)'!FT$5, 'P38 (34 Ligands)'!$C$39:$C$43, 0), MATCH('Analysis (199 Ligands)'!FT$2, 'P38 (34 Ligands)'!$AX$2:$BC$2, 0)) -> 0.4598825963 | FU6: =INDEX('P38 (34 Ligands)'!$AX$39:$BC$43, MATCH('Analysis (199 Ligands)'!FU$5, 'P38 (34 Ligands)'!$C$39:$C$43, 0), MATCH('Analysis (199 Ligands)'!FU$2, 'P38 (34 Ligands)'!$AX$2:$BC$2, 0)) -> 0.6417112299
B7: BACE | C7: 36 | E7: =INDEX('BACE (36 Ligands)'!$E$41:$T$45, MATCH('Analysis (199 Ligands)'!E$5, 'BACE (36 Ligands)'!$C$41:$C$45, 0), MATCH('Analysis (199 Ligands)'!E$2, 'BACE (36 Ligands)'!$E$2:$T$2, 0)) -> 2.857728237 | F7: =INDEX('BACE (36 Ligands)'!$E$41:$T$45, MATCH('Analysis (199 Ligands)'!F$5, 'BACE (36 Ligands)'!$C$41:$C$45, 0), MATCH('Analysis (199 Ligands)'!F$2, 'BACE (36 Ligands)'!$E$2:$T$2, 0)) -> 2.955697945 | G7: =INDEX('BACE (36 Ligands)'!$E$41:$T$45, MATCH('Analysis (199 Ligands)'!G$5, 'BACE (36 Ligands)'!$C$41:$C$45, 0), MATCH('Analysis (199 Ligands)'!G$2, 'BACE (36 Ligands)'!$E$2:$T$2, 0)) -> 0.3655851727 | H7: =INDEX('BACE (36 Ligands)'!$E$41:$T$45, MATCH('Analysis (199 Ligands)'!H$5, 'BACE (36 Ligands)'!$C$41:$C$45, 0), MATCH('Analysis (199 Ligands)'!H$2, 'BACE (36 Ligands)'!$E$2:$T$2, 0)) -> 0.3623504046 | I7: =INDEX('BACE (36 Ligands)'!$E$41:$T$45, MATCH('Analysis (199 Ligands)'!I$5, 'BACE (36 Ligands)'!$C$41:$C$45, 0), MATCH('Analysis (199 Ligands)'!I$2, 'BACE (36 Ligands)'!$E$2:$T$2, 0)) -> 0.5888888889 | J7: =INDEX('BACE (36 Ligands)'!$E$41:$T$45, MATCH('Analysis (199 Ligands)'!J$5, 'BACE (36 Ligands)'!$C$41:$C$45, 0), MATCH('Analysis (199 Ligands)'!J$2, 'BACE (36 Ligands)'!$E$2:$T$2, 0)) -> 2.856644903 | K7: =INDEX('BACE (36 Ligands)'!$E$41:$T$45, MATCH('Analysis (199 Ligands)'!K$5, 'BACE (36 Ligands)'!$C$41:$C$45, 0), MATCH('Analysis (199 Ligands)'!K$2, 'BACE (36 Ligands)'!$E$2:$T$2, 0)) -> 2.996490053 | L7: =INDEX('BACE (36 Ligands)'!$E$41:$T$45, MATCH('Analysis (199 Ligands)'!L$5, 'BACE (36 Ligands)'!$C$41:$C$45, 0), MATCH('Analysis (199 Ligands)'!L$2, 'BACE (36 Ligands)'!$E$2:$T$2, 0)) -> 0.1805194198 | M7: =INDEX('BACE (36 Ligands)'!$E$41:$T$45, MATCH('Analysis (199 Ligands)'!M$5, 'BACE (36 Ligands)'!$C$41:$C$45, 0), MATCH('Analysis (199 Ligands)'!M$2, 'BACE (36 Ligands)'!$E$2:$T$2, 0)) -> 0.2371189804 | N7: =INDEX('BACE (36 Ligands)'!$E$41:$T$45, MATCH('Analysis (199 Ligands)'!N$5, 'BACE (36 Ligands)'!$C$41:$C$45, 0), MATCH('Analysis (199 Ligands)'!N$2, 'BACE (36 Ligands)'!$E$2:$T$2, 0)) -> 0.5468253968 | O7: =INDEX('BACE (36 Ligands)'!$E$41:$T$45, MATCH('Analysis (199 Ligands)'!O$5, 'BACE (36 Ligands)'!$C$41:$C$45, 0), MATCH('Analysis (199 Ligands)'!O$2, 'BACE (36 Ligands)'!$E$2:$T$2, 0)) -> 2.813144903 | P7: =INDEX('BACE (36 Ligands)'!$E$41:$T$45, MATCH('Analysis (199 Ligands)'!P$5, 'BACE (36 Ligands)'!$C$41:$C$45, 0), MATCH('Analysis (199 Ligands)'!P$2, 'BACE (36 Ligands)'!$E$2:$T$2, 0)) -> 2.899630162 | Q7: =INDEX('BACE (36 Ligands)'!$E$41:$T$45, MATCH('Analysis (199 Ligands)'!Q$5, 'BACE (36 Ligands)'!$C$41:$C$45, 0), MATCH('Analysis (199 Ligands)'!Q$2, 'BACE (36 Ligands)'!$E$2:$T$2, 0)) -> 0.4956532307 | R7: =INDEX('BACE (36 Ligands)'!$E$41:$T$45, MATCH('Analysis (199 Ligands)'!R$5, 'BACE (36 Ligands)'!$C$41:$C$45, 0), MATCH('Analysis (199 Ligands)'!R$2, 'BACE (36 Ligands)'!$E$2:$T$2, 0)) -> 0.4455938077 | S7: =INDEX('BACE (36 Ligands)'!$E$41:$T$45, MATCH('Analysis (199 Ligands)'!S$5, 'BACE (36 Ligands)'!$C$41:$C$45, 0), MATCH('Analysis (199 Ligands)'!S$2, 'BACE (36 Ligands)'!$E$2:$T$2, 0)) -> 0.6285714286 | T7: =INDEX('BACE (36 Ligands)'!$E$41:$T$45, MATCH('Analysis (199 Ligands)'!T$5, 'BACE (36 Ligands)'!$C$41:$C$45, 0), MATCH('Analysis (199 Ligands)'!T$2, 'BACE (36 Ligands)'!$E$2:$T$2, 0)) -> 2.800950459 | U7: =INDEX('BACE (36 Ligands)'!$E$41:$T$45, MATCH('Analysis (199 Ligands)'!U$5, 'BACE (36 Ligands)'!$C$41:$C$45, 0), MATCH('Analysis (199 Ligands)'!U$2, 'BACE (36 Ligands)'!$E$2:$T$2, 0)) -> 2.914983152 | V7: =INDEX('BACE (36 Ligands)'!$E$41:$T$45, MATCH('Analysis (199 Ligands)'!V$5, 'BACE (36 Ligands)'!$C$41:$C$45, 0), MATCH('Analysis (199 Ligands)'!V$2, 'BACE (36 Ligands)'!$E$2:$T$2, 0)) -> 0.3563154204 | W7: =INDEX('BACE (36 Ligands)'!$E$41:$T$45, MATCH('Analysis (199 Ligands)'!W$5, 'BACE (36 Ligands)'!$C$41:$C$45, 0), MATCH('Analysis (199 Ligands)'!W$2, 'BACE (36 Ligands)'!$E$2:$T$2, 0)) -> 0.312911347 | X7: =INDEX('BACE (36 Ligands)'!$E$41:$T$45, MATCH('Analysis (199 Ligands)'!X$5, 'BACE (36 Ligands)'!$C$41:$C$45, 0), MATCH('Analysis (199 Ligands)'!X$2, 'BACE (36 Ligands)'!$E$2:$T$2, 0)) -> 0.569047619 | Z7: =INDEX('BACE (36 Ligands)'!$E$41:$T$45, MATCH('Analysis (199 Ligands)'!Z$5, 'BACE (36 Ligands)'!$C$41:$C$45, 0), MATCH('Analysis (199 Ligands)'!Z$2, 'BACE (36 Ligands)'!$E$2:$T$2, 0)) -> 1.692339348 | AA7: =INDEX('BACE (36 Ligands)'!$E$41:$T$45, MATCH('Analysis (199 Ligands)'!AA$5, 'BACE (36 Ligands)'!$C$41:$C$45, 0), MATCH('Analysis (199 Ligands)'!AA$2, 'BACE (36 Ligands)'!$E$2:$T$2, 0)) -> 1.856979232 | AB7: =INDEX('BACE (36 Ligands)'!$E$41:$T$45, MATCH('Analysis (199 Ligands)'!AB$5, 'BACE (36 Ligands)'!$C$41:$C$45, 0), MATCH('Analysis (199 Ligands)'!AB$2, 'BACE (36 Ligands)'!$E$2:$T$2, 0)) -> 0.3701956863 | AC7: =INDEX('BACE (36 Ligands)'!$E$41:$T$45, MATCH('Analysis (199 Ligands)'!AC$5, 'BACE (36 Ligands)'!$C$41:$C$45, 0), MATCH('Analysis (199 Ligands)'!AC$2, 'BACE (36 Ligands)'!$E$2:$T$2, 0)) -> 0.2991643627 | AD7: =INDEX('BACE (36 Ligands)'!$E$41:$T$45, MATCH('Analysis (199 Ligands)'!AD$5, 'BACE (36 Ligands)'!$C$41:$C$45, 0), MATCH('Analysis (199 Ligands)'!AD$2, 'BACE (36 Ligands)'!$E$2:$T$2, 0)) -> 0.5603174603 | AE7: =INDEX('BACE (36 Ligands)'!$E$41:$T$45, MATCH('Analysis (199 Ligands)'!AE$5, 'BACE (36 Ligands)'!$C$41:$C$45, 0), MATCH('Analysis (199 Ligands)'!AE$2, 'BACE (36 Ligands)'!$E$2:$T$2, 0)) -> 1.698499635 | AF7: =INDEX('BACE (36 Ligands)'!$E$41:$T$45, MATCH('Analysis (199 Ligands)'!AF$5, 'BACE (36 Ligands)'!$C$41:$C$45, 0), MATCH('Analysis (199 Ligands)'!AF$2, 'BACE (36 Ligands)'!$E$2:$T$2, 0)) -> 1.848287935 | AG7: =INDEX('BACE (36 Ligands)'!$E$41:$T$45, MATCH('Analysis (199 Ligands)'!AG$5, 'BACE (36 Ligands)'!$C$41:$C$45, 0), MATCH('Analysis (199 Ligands)'!AG$2, 'BACE (36 Ligands)'!$E$2:$T$2, 0)) -> 0.3125809409 | AH7: =INDEX('BACE (36 Ligands)'!$E$41:$T$45, MATCH('Analysis (199 Ligands)'!AH$5, 'BACE (36 Ligands)'!$C$41:$C$45, 0), MATCH('Analysis (199 Ligands)'!AH$2, 'BACE (36 Ligands)'!$E$2:$T$2, 0)) -> 0.3590379324 | AI7: =INDEX('BACE (36 Ligands)'!$E$41:$T$45, MATCH('Analysis (199 Ligands)'!AI$5, 'BACE (36 Ligands)'!$C$41:$C$45, 0), MATCH('Analysis (199 Ligands)'!AI$2, 'BACE (36 Ligands)'!$E$2:$T$2, 0)) -> 0.5857142857 | AJ7: =INDEX('BACE (36 Ligands)'!$E$41:$T$45, MATCH('Analysis (199 Ligands)'!AJ$5, 'BACE (36 Ligands)'!$C$41:$C$45, 0), MATCH('Analysis (199 Ligands)'!AJ$2, 'BACE (36 Ligands)'!$E$2:$T$2, 0)) -> 1.831006014 | AK7: =INDEX('BACE (36 Ligands)'!$E$41:$T$45, MATCH('Analysis (199 Ligands)'!AK$5, 'BACE (36 Ligands)'!$C$41:$C$45, 0), MATCH('Analysis (199 Ligands)'!AK$2, 'BACE (36 Ligands)'!$E$2:$T$2, 0)) -> 1.978529272 | AL7: =INDEX('BACE (36 Ligands)'!$E$41:$T$45, MATCH('Analysis (199 Ligands)'!AL$5, 'BACE (36 Ligands)'!$C$41:$C$45, 0), MATCH('Analysis (199 Ligands)'!AL$2, 'BACE (36 Ligands)'!$E$2:$T$2, 0)) -> 0.5511768221 | AM7: =INDEX('BACE (36 Ligands)'!$E$41:$T$45, MATCH('Analysis (199 Ligands)'!AM$5, 'BACE (36 Ligands)'!$C$41:$C$45, 0), MATCH('Analysis (199 Ligands)'!AM$2, 'BACE (36 Ligands)'!$E$2:$T$2, 0)) -> 0.5410721065 | AN7: =INDEX('BACE (36 Ligands)'!$E$41:$T$45, MATCH('Analysis (199 Ligands)'!AN$5, 'BACE (36 Ligands)'!$C$41:$C$45, 0), MATCH('Analysis (199 Ligands)'!AN$2, 'BACE (36 Ligands)'!$E$2:$T$2, 0)) -> 0.6626984127 | AO7: =INDEX('BACE (36 Ligands)'!$E$41:$T$45, MATCH('Analysis (199 Ligands)'!AO$5, 'BACE (36 Ligands)'!$C$41:$C$45, 0), MATCH('Analysis (199 Ligands)'!AO$2, 'BACE (36 Ligands)'!$E$2:$T$2, 0)) -> 1.701337697 | AP7: =INDEX('BACE (36 Ligands)'!$E$41:$T$45, MATCH('Analysis (199 Ligands)'!AP$5, 'BACE (36 Ligands)'!$C$41:$C$45, 0), MATCH('Analysis (199 Ligands)'!AP$2, 'BACE (36 Ligands)'!$E$2:$T$2, 0)) -> 1.898660141 | AQ7: =INDEX('BACE (36 Ligands)'!$E$41:$T$45, MATCH('Analysis (199 Ligands)'!AQ$5, 'BACE (36 Ligands)'!$C$41:$C$45, 0), MATCH('Analysis (199 Ligands)'!AQ$2, 'BACE (36 Ligands)'!$E$2:$T$2, 0)) -> 0.4423644243 | AR7: =INDEX('BACE (36 Ligands)'!$E$41:$T$45, MATCH('Analysis (199 Ligands)'!AR$5, 'BACE (36 Ligands)'!$C$41:$C$45, 0), MATCH('Analysis (199 Ligands)'!AR$2, 'BACE (36 Ligands)'!$E$2:$T$2, 0)) -> 0.4014498414 | AS7: =INDEX('BACE (36 Ligands)'!$E$41:$T$45, MATCH('Analysis (199 Ligands)'!AS$5, 'BACE (36 Ligands)'!$C$41:$C$45, 0), MATCH('Analysis (199 Ligands)'!AS$2, 'BACE (36 Ligands)'!$E$2:$T$2, 0)) -> 0.6119047619 | AU7: =INDEX('BACE (36 Ligands)'!$E$41:$T$45, MATCH('Analysis (199 Ligands)'!AU$5, 'BACE (36 Ligands)'!$C$41:$C$45, 0), MATCH('Analysis (199 Ligands)'!AU$2, 'BACE (36 Ligands)'!$E$2:$T$2, 0)) -> 1.257700459 | AV7: =INDEX('BACE (36 Ligands)'!$E$41:$T$45, MATCH('Analysis (199 Ligands)'!AV$5, 'BACE (36 Ligands)'!$C$41:$C$45, 0), MATCH('Analysis (199 Ligands)'!AV$2, 'BACE (36 Ligands)'!$E$2:$T$2, 0)) -> 1.472411279 | AW7: =INDEX('BACE (36 Ligands)'!$E$41:$T$45, MATCH('Analysis (199 Ligands)'!AW$5, 'BACE (36 Ligands)'!$C$41:$C$45, 0), MATCH('Analysis (199 Ligands)'!AW$2, 'BACE (36 Ligands)'!$E$2:$T$2, 0)) -> 0.2828211386 | AX7: =INDEX('BACE (36 Ligands)'!$E$41:$T$45, MATCH('Analysis (199 Ligands)'!AX$5, 'BACE (36 Ligands)'!$C$41:$C$45, 0), MATCH('Analysis (199 Ligands)'!AX$2, 'BACE (36 Ligands)'!$E$2:$T$2, 0)) -> 0.1691136901 | AY7: =INDEX('BACE (36 Ligands)'!$E$41:$T$45, MATCH('Analysis (199 Ligands)'!AY$5, 'BACE (36 Ligands)'!$C$41:$C$45, 0), MATCH('Analysis (199 Ligands)'!AY$2, 'BACE (36 Ligands)'!$E$2:$T$2, 0)) -> 0.5111111111 | AZ7: =INDEX('BACE (36 Ligands)'!$E$41:$T$45, MATCH('Analysis (199 Ligands)'!AZ$5, 'BACE (36 Ligands)'!$C$41:$C$45, 0), MATCH('Analysis (199 Ligands)'!AZ$2, 'BACE (36 Ligands)'!$E$2:$T$2, 0)) -> 1.178842731 | BA7: =INDEX('BACE (36 Ligands)'!$E$41:$T$45, MATCH('Analysis (199 Ligands)'!BA$5, 'BACE (36 Ligands)'!$C$41:$C$45, 0), MATCH('Analysis (199 Ligands)'!BA$2, 'BACE (36 Ligands)'!$E$2:$T$2, 0)) -> 1.359281519 | BB7: =INDEX('BACE (36 Ligands)'!$E$41:$T$45, MATCH('Analysis (199 Ligands)'!BB$5, 'BACE (36 Ligands)'!$C$41:$C$45, 0), MATCH('Analysis (199 Ligands)'!BB$2, 'BACE (36 Ligands)'!$E$2:$T$2, 0)) -> 0.2652547507 | BC7: =INDEX('BACE (36 Ligands)'!$E$41:$T$45, MATCH('Analysis (199 Ligands)'!BC$5, 'BACE (36 Ligands)'!$C$41:$C$45, 0), MATCH('Analysis (199 Ligands)'!BC$2, 'BACE (36 Ligands)'!$E$2:$T$2, 0)) -> 0.250328609 | BD7: =INDEX('BACE (36 Ligands)'!$E$41:$T$45, MATCH('Analysis (199 Ligands)'!BD$5, 'BACE (36 Ligands)'!$C$41:$C$45, 0), MATCH('Analysis (199 Ligands)'!BD$2, 'BACE (36 Ligands)'!$E$2:$T$2, 0)) -> 0.5428571429 | BE7: =INDEX('BACE (36 Ligands)'!$E$41:$T$45, MATCH('Analysis (199 Ligands)'!BE$5, 'BACE (36 Ligands)'!$C$41:$C$45, 0), MATCH('Analysis (199 Ligands)'!BE$2, 'BACE (36 Ligands)'!$E$2:$T$2, 0)) -> 1.256728237 | BF7: =INDEX('BACE (36 Ligands)'!$E$41:$T$45, MATCH('Analysis (199 Ligands)'!BF$5, 'BACE (36 Ligands)'!$C$41:$C$45, 0), MATCH('Analysis (199 Ligands)'!BF$2, 'BACE (36 Ligands)'!$E$2:$T$2, 0)) -> 1.414172846 | BG7: =INDEX('BACE (36 Ligands)'!$E$41:$T$45, MATCH('Analysis (199 Ligands)'!BG$5, 'BACE (36 Ligands)'!$C$41:$C$45, 0), MATCH('Analysis (199 Ligands)'!BG$2, 'BACE (36 Ligands)'!$E$2:$T$2, 0)) -> 0.5412111294 | BH7: =INDEX('BACE (36 Ligands)'!$E$41:$T$45, MATCH('Analysis (199 Ligands)'!BH$5, 'BACE (36 Ligands)'!$C$41:$C$45, 0), MATCH('Analysis (199 Ligands)'!BH$2, 'BACE (36 Ligands)'!$E$2:$T$2, 0)) -> 0.5486532468 | BI7: =INDEX('BACE (36 Ligands)'!$E$41:$T$45, MATCH('Analysis (199 Ligands)'!BI$5, 'BACE (36 Ligands)'!$C$41:$C$45, 0), MATCH('Analysis (199 Ligands)'!BI$2, 'BACE (36 Ligands)'!$E$2:$T$2, 0)) -> 0.680952381 | BJ7: =INDEX('BACE (36 Ligands)'!$E$41:$T$45, MATCH('Analysis (199 Ligands)'!BJ$5, 'BACE (36 Ligands)'!$C$41:$C$45, 0), MATCH('Analysis (199 Ligands)'!BJ$2, 'BACE (36 Ligands)'!$E$2:$T$2, 0)) -> 1.118433355 | BK7: =INDEX('BACE (36 Ligands)'!$E$41:$T$45, MATCH('Analysis (199 Ligands)'!BK$5, 'BACE (36 Ligands)'!$C$41:$C$45, 0), MATCH('Analysis (199 Ligands)'!BK$2, 'BACE (36 Ligands)'!$E$2:$T$2, 0)) -> 1.279350937 | BL7: =INDEX('BACE (36 Ligands)'!$E$41:$T$45, MATCH('Analysis (199 Ligands)'!BL$5, 'BACE (36 Ligands)'!$C$41:$C$45, 0), MATCH('Analysis (199 Ligands)'!BL$2, 'BACE (36 Ligands)'!$E$2:$T$2, 0)) -> 0.4153695909 | BM7: =INDEX('BACE (36 Ligands)'!$E$41:$T$45, MATCH('Analysis (199 Ligands)'!BM$5, 'BACE (36 Ligands)'!$C$41:$C$45, 0), MATCH('Analysis (199 Ligands)'!BM$2, 'BACE (36 Ligands)'!$E$2:$T$2, 0)) -> 0.4117514037 | BN7: =INDEX('BACE (36 Ligands)'!$E$41:$T$45, MATCH('Analysis (199 Ligands)'!BN$5, 'BACE (36 Ligands)'!$C$41:$C$45, 0), MATCH('Analysis (199 Ligands)'!BN$2, 'BACE (36 Ligands)'!$E$2:$T$2, 0)) -> 0.6079365079 | BP7: =INDEX('BACE (36 Ligands)'!$E$41:$T$45, MATCH('Analysis (199 Ligands)'!BP$5, 'BACE (36 Ligands)'!$C$41:$C$45, 0), MATCH('Analysis (199 Ligands)'!BP$2, 'BACE (36 Ligands)'!$E$2:$T$2, 0)) -> 1.31781157 | BQ7: =INDEX('BACE (36 Ligands)'!$E$41:$T$45, MATCH('Analysis (199 Ligands)'!BQ$5, 'BACE (36 Ligands)'!$C$41:$C$45, 0), MATCH('Analysis (199 Ligands)'!BQ$2, 'BACE (36 Ligands)'!$E$2:$T$2, 0)) -> 1.512018016 | BR7: =INDEX('BACE (36 Ligands)'!$E$41:$T$45, MATCH('Analysis (199 Ligands)'!BR$5, 'BACE (36 Ligands)'!$C$41:$C$45, 0), MATCH('Analysis (199 Ligands)'!BR$2, 'BACE (36 Ligands)'!$E$2:$T$2, 0)) -> 0.3376925129 | BS7: =INDEX('BACE (36 Ligands)'!$E$41:$T$45, MATCH('Analysis (199 Ligands)'!BS$5, 'BACE (36 Ligands)'!$C$41:$C$45, 0), MATCH('Analysis (199 Ligands)'!BS$2, 'BACE (36 Ligands)'!$E$2:$T$2, 0)) -> 0.266734985 | BT7: =INDEX('BACE (36 Ligands)'!$E$41:$T$45, MATCH('Analysis (199 Ligands)'!BT$5, 'BACE (36 Ligands)'!$C$41:$C$45, 0), MATCH('Analysis (199 Ligands)'!BT$2, 'BACE (36 Ligands)'!$E$2:$T$2, 0)) -> 0.5396825397 | BU7: =INDEX('BACE (36 Ligands)'!$E$41:$T$45, MATCH('Analysis (199 Ligands)'!BU$5, 'BACE (36 Ligands)'!$C$41:$C$45, 0), MATCH('Analysis (199 Ligands)'!BU$2, 'BACE (36 Ligands)'!$E$2:$T$2, 0)) -> 1.208266688 | BV7: =INDEX('BACE (36 Ligands)'!$E$41:$T$45, MATCH('Analysis (199 Ligands)'!BV$5, 'BACE (36 Ligands)'!$C$41:$C$45, 0), MATCH('Analysis (199 Ligands)'!BV$2, 'BACE (36 Ligands)'!$E$2:$T$2, 0)) -> 1.369843108 | BW7: =INDEX('BACE (36 Ligands)'!$E$41:$T$45, MATCH('Analysis (199 Ligands)'!BW$5, 'BACE (36 Ligands)'!$C$41:$C$45, 0), MATCH('Analysis (199 Ligands)'!BW$2, 'BACE (36 Ligands)'!$E$2:$T$2, 0)) -> 0.277927506 | BX7: =INDEX('BACE (36 Ligands)'!$E$41:$T$45, MATCH('Analysis (199 Ligands)'!BX$5, 'BACE (36 Ligands)'!$C$41:$C$45, 0), MATCH('Analysis (199 Ligands)'!BX$2, 'BACE (36 Ligands)'!$E$2:$T$2, 0)) -> 0.3196778292 | BY7: =INDEX('BACE (36 Ligands)'!$E$41:$T$45, MATCH('Analysis (199 Ligands)'!BY$5, 'BACE (36 Ligands)'!$C$41:$C$45, 0), MATCH('Analysis (199 Ligands)'!BY$2, 'BACE (36 Ligands)'!$E$2:$T$2, 0)) -> 0.5634920635 | BZ7: =INDEX('BACE (36 Ligands)'!$E$41:$T$45, MATCH('Analysis (199 Ligands)'!BZ$5, 'BACE (36 Ligands)'!$C$41:$C$45, 0), MATCH('Analysis (199 Ligands)'!BZ$2, 'BACE (36 Ligands)'!$E$2:$T$2, 0)) -> 1.263617125 | CA7: =INDEX('BACE (36 Ligands)'!$E$41:$T$45, MATCH('Analysis (199 Ligands)'!CA$5, 'BACE (36 Ligands)'!$C$41:$C$45, 0), MATCH('Analysis (199 Ligands)'!CA$2, 'BACE (36 Ligands)'!$E$2:$T$2, 0)) -> 1.442253663 | CB7: =INDEX('BACE (36 Ligands)'!$E$41:$T$45, MATCH('Analysis (199 Ligands)'!CB$5, 'BACE (36 Ligands)'!$C$41:$C$45, 0), MATCH('Analysis (199 Ligands)'!CB$2, 'BACE (36 Ligands)'!$E$2:$T$2, 0)) -> 0.4489585058 | CC7: =INDEX('BACE (36 Ligands)'!$E$41:$T$45, MATCH('Analysis (199 Ligands)'!CC$5, 'BACE (36 Ligands)'!$C$41:$C$45, 0), MATCH('Analysis (199 Ligands)'!CC$2, 'BACE (36 Ligands)'!$E$2:$T$2, 0)) -> 0.4370049198 | CD7: =INDEX('BACE (36 Ligands)'!$E$41:$T$45, MATCH('Analysis (199 Ligands)'!CD$5, 'BACE (36 Ligands)'!$C$41:$C$45, 0), MATCH('Analysis (199 Ligands)'!CD$2, 'BACE (36 Ligands)'!$E$2:$T$2, 0)) -> 0.6317460317 | CE7: =INDEX('BACE (36 Ligands)'!$E$41:$T$45, MATCH('Analysis (199 Ligands)'!CE$5, 'BACE (36 Ligands)'!$C$41:$C$45, 0), MATCH('Analysis (199 Ligands)'!CE$2, 'BACE (36 Ligands)'!$E$2:$T$2, 0)) -> 1.099112789 | CF7: =INDEX('BACE (36 Ligands)'!$E$41:$T$45, MATCH('Analysis (199 Ligands)'!CF$5, 'BACE (36 Ligands)'!$C$41:$C$45, 0), MATCH('Analysis (199 Ligands)'!CF$2, 'BACE (36 Ligands)'!$E$2:$T$2, 0)) -> 1.263759711 | CG7: =INDEX('BACE (36 Ligands)'!$E$41:$T$45, MATCH('Analysis (199 Ligands)'!CG$5, 'BACE (36 Ligands)'!$C$41:$C$45, 0), MATCH('Analysis (199 Ligands)'!CG$2, 'BACE (36 Ligands)'!$E$2:$T$2, 0)) -> 0.4472019176 | CH7: =INDEX('BACE (36 Ligands)'!$E$41:$T$45, MATCH('Analysis (199 Ligands)'!CH$5, 'BACE (36 Ligands)'!$C$41:$C$45, 0), MATCH('Analysis (199 Ligands)'!CH$2, 'BACE (36 Ligands)'!$E$2:$T$2, 0)) -> 0.4486567947 | CI7: =INDEX('BACE (36 Ligands)'!$E$41:$T$45, MATCH('Analysis (199 Ligands)'!CI$5, 'BACE (36 Ligands)'!$C$41:$C$45, 0), MATCH('Analysis (199 Ligands)'!CI$2, 'BACE (36 Ligands)'!$E$2:$T$2, 0)) -> 0.626984127 | CK7: =INDEX($E$2:$CI$2, MATCH(MIN(IF(CL$5 = $E$5:$CI$5, $E7:$CI7, 999999)),IF(CL$5 = $E$5:$CI$5, $E7:$CI7, 999999),0)) -> SX21 (r = 10 A) | CL7: =IFERROR(INDEX($E7:$CI7, SMALL(IF(CK7 = $E$2:$CI$2, COLUMN($E$2:$CI$2) - MIN(COLUMN($E$2:$CI$2))+1, ""), COLUMN(CL7:CP7) - COLUMN(CL7)+1)), "") -> 1.099112789 | CM7: 1.263759711 | CN7: 0.4472019176 | CO7: 0.4486567947 | CP7: 0.626984127 | CQ7: =INDEX($E$2:$CI$2, MATCH(MIN(IF(CS$5 = $E$5:$CI$5, $E7:$CI7, 999999)),IF(CS$5 = $E$5:$CI$5, $E7:$CI7, 999999),0)) -> SX21 (r = 10 A) | CR7: =IFERROR(INDEX($E7:$CI7, SMALL(IF(CQ7 = $E$2:$CI$2, COLUMN($E$2:$CI$2) - MIN(COLUMN($E$2:$CI$2))+1, ""), COLUMN(CR7:CV7) - COLUMN(CR7)+1)), "") -> 1.099112789 | CS7: 1.263759711 | CT7: 0.4472019176 | CU7: 0.4486567947 | CV7: 0.626984127 | CW7: =INDEX($E$2:$CI$2, MATCH(MAX(IF(CZ$5 = $E$5:$CI$5, $E7:$CI7, -1)),IF(CZ$5 = $E$5:$CI$5, $E7:$CI7, -1),0)) -> SS21 (r = 2 A) | CX7: =IFERROR(INDEX($E7:$CI7, SMALL(IF(CW7 = $E$2:$CI$2, COLUMN($E$2:$CI$2) - MIN(COLUMN($E$2:$CI$2))+1, ""), COLUMN(CX7:DB7) - COLUMN(CX7)+1)), "") -> 1.831006014 | CY7: 1.978529272 | CZ7: 0.5511768221 | DA7: 0.5410721065 | DB7: 0.6626984127 | DC7: =INDEX($E$2:$CI$2, MATCH(MAX(IF(DG$5 = $E$5:$CI$5, $E7:$CI7, -1)),IF(DG$5 = $E$5:$CI$5, $E7:$CI7, -1),0)) -> SS21 (r = 5 A) | DD7: =IFERROR(INDEX($E7:$CI7, SMALL(IF(DC7 = $E$2:$CI$2, COLUMN($E$2:$CI$2) - MIN(COLUMN($E$2:$CI$2))+1, ""), COLUMN(DD7:DH7) - COLUMN(DD7)+1)), "") -> 1.256728237 | DE7: 1.414172846 | DF7: 0.5412111294 | DG7: 0.5486532468 | DH7: 0.680952381 | DI7: =INDEX($E$2:$CI$2, MATCH(MAX(IF(DN$5 = $E$5:$CI$5, $E7:$CI7, -1)),IF(DN$5 = $E$5:$CI$5, $E7:$CI7, -1),0)) -> SS21 (r = 5 A) | DJ7: =IFERROR(INDEX($E7:$CI7, SMALL(IF(DI7 = $E$2:$CI$2, COLUMN($E$2:$CI$2) - MIN(COLUMN($E$2:$CI$2))+1, ""), COLUMN(DJ7:DN7) - COLUMN(DJ7)+1)), "") -> 1.256728237 | DK7: 1.414172846 | DL7: 0.5412111294 | DM7: 0.5486532468 | DN7: 0.680952381 | DP7: =INDEX('BACE (36 Ligands)'!$V$41:$AV$45, MATCH('Analysis (199 Ligands)'!DP$5, 'BACE (36 Ligands)'!$C$41:$C$45, 0), MATCH('Analysis (199 Ligands)'!DP$2, 'BACE (36 Ligands)'!$V$2:$AV$2, 0)) -> 1.078253135 | DQ7: =INDEX('BACE (36 Ligands)'!$V$41:$AV$45, MATCH('Analysis (199 Ligands)'!DQ$5, 'BACE (36 Ligands)'!$C$41:$C$45, 0), MATCH('Analysis (199 Ligands)'!DQ$2, 'BACE (36 Ligands)'!$V$2:$AV$2, 0)) -> 1.198087261 | DR7: =INDEX('BACE (36 Ligands)'!$V$41:$AV$45, MATCH('Analysis (199 Ligands)'!DR$5, 'BACE (36 Ligands)'!$C$41:$C$45, 0), MATCH('Analysis (199 Ligands)'!DR$2, 'BACE (36 Ligands)'!$V$2:$AV$2, 0)) -> 0.5356223199 | DS7: =INDEX('BACE (36 Ligands)'!$V$41:$AV$45, MATCH('Analysis (199 Ligands)'!DS$5, 'BACE (36 Ligands)'!$C$41:$C$45, 0), MATCH('Analysis (199 Ligands)'!DS$2, 'BACE (36 Ligands)'!$V$2:$AV$2, 0)) -> 0.6655732967 | DT7: =INDEX('BACE (36 Ligands)'!$V$41:$AV$45, MATCH('Analysis (199 Ligands)'!DT$5, 'BACE (36 Ligands)'!$C$41:$C$45, 0), MATCH('Analysis (199 Ligands)'!DT$2, 'BACE (36 Ligands)'!$V$2:$AV$2, 0)) -> 0.7238095238 | DU7: =INDEX('BACE (36 Ligands)'!$V$41:$AV$45, MATCH('Analysis (199 Ligands)'!DU$5, 'BACE (36 Ligands)'!$C$41:$C$45, 0), MATCH('Analysis (199 Ligands)'!DU$2, 'BACE (36 Ligands)'!$V$2:$AV$2, 0)) -> 1.533672184 | DV7: =INDEX('BACE (36 Ligands)'!$V$41:$AV$45, MATCH('Analysis (199 Ligands)'!DV$5, 'BACE (36 Ligands)'!$C$41:$C$45, 0), MATCH('Analysis (199 Ligands)'!DV$2, 'BACE (36 Ligands)'!$V$2:$AV$2, 0)) -> 2.013685557 | DW7: =INDEX('BACE (36 Ligands)'!$V$41:$AV$45, MATCH('Analysis (199 Ligands)'!DW$5, 'BACE (36 Ligands)'!$C$41:$C$45, 0), MATCH('Analysis (199 Ligands)'!DW$2, 'BACE (36 Ligands)'!$V$2:$AV$2, 0)) -> 0.5707548722 | DX7: =INDEX('BACE (36 Ligands)'!$V$41:$AV$45, MATCH('Analysis (199 Ligands)'!DX$5, 'BACE (36 Ligands)'!$C$41:$C$45, 0), MATCH('Analysis (199 Ligands)'!DX$2, 'BACE (36 Ligands)'!$V$2:$AV$2, 0)) -> 0.6119051462 | DY7: =INDEX('BACE (36 Ligands)'!$V$41:$AV$45, MATCH('Analysis (199 Ligands)'!DY$5, 'BACE (36 Ligands)'!$C$41:$C$45, 0), MATCH('Analysis (199 Ligands)'!DY$2, 'BACE (36 Ligands)'!$V$2:$AV$2, 0)) -> 0.7015873016 | DZ7: =INDEX('BACE (36 Ligands)'!$V$41:$AV$45, MATCH('Analysis (199 Ligands)'!DZ$5, 'BACE (36 Ligands)'!$C$41:$C$45, 0), MATCH('Analysis (199 Ligands)'!DZ$2, 'BACE (36 Ligands)'!$V$2:$AV$2, 0)) -> 0.8313086655 | EA7: =INDEX('BACE (36 Ligands)'!$V$41:$AV$45, MATCH('Analysis (199 Ligands)'!EA$5, 'BACE (36 Ligands)'!$C$41:$C$45, 0), MATCH('Analysis (199 Ligands)'!EA$2, 'BACE (36 Ligands)'!$V$2:$AV$2, 0)) -> 0.9669369009 | EB7: =INDEX('BACE (36 Ligands)'!$V$41:$AV$45, MATCH('Analysis (199 Ligands)'!EB$5, 'BACE (36 Ligands)'!$C$41:$C$45, 0), MATCH('Analysis (199 Ligands)'!EB$2, 'BACE (36 Ligands)'!$V$2:$AV$2, 0)) -> 0.5626945268 | EC7: =INDEX('BACE (36 Ligands)'!$V$41:$AV$45, MATCH('Analysis (199 Ligands)'!EC$5, 'BACE (36 Ligands)'!$C$41:$C$45, 0), MATCH('Analysis (199 Ligands)'!EC$2, 'BACE (36 Ligands)'!$V$2:$AV$2, 0)) -> 0.6732970391 | ED7: =INDEX('BACE (36 Ligands)'!$V$41:$AV$45, MATCH('Analysis (199 Ligands)'!ED$5, 'BACE (36 Ligands)'!$C$41:$C$45, 0), MATCH('Analysis (199 Ligands)'!ED$2, 'BACE (36 Ligands)'!$V$2:$AV$2, 0)) -> 0.7333333333 | EE7: =INDEX('BACE (36 Ligands)'!$V$41:$AV$45, MATCH('Analysis (199 Ligands)'!EE$5, 'BACE (36 Ligands)'!$C$41:$C$45, 0), MATCH('Analysis (199 Ligands)'!EE$2, 'BACE (36 Ligands)'!$V$2:$AV$2, 0)) -> 0.8386489989 | EF7: =INDEX('BACE (36 Ligands)'!$V$41:$AV$45, MATCH('Analysis (199 Ligands)'!EF$5, 'BACE (36 Ligands)'!$C$41:$C$45, 0), MATCH('Analysis (199 Ligands)'!EF$2, 'BACE (36 Ligands)'!$V$2:$AV$2, 0)) -> 0.9944503605 | EG7: =INDEX('BACE (36 Ligands)'!$V$41:$AV$45, MATCH('Analysis (199 Ligands)'!EG$5, 'BACE (36 Ligands)'!$C$41:$C$45, 0), MATCH('Analysis (199 Ligands)'!EG$2, 'BACE (36 Ligands)'!$V$2:$AV$2, 0)) -> 0.5969553014 | EH7: =INDEX('BACE (36 Ligands)'!$V$41:$AV$45, MATCH('Analysis (199 Ligands)'!EH$5, 'BACE (36 Ligands)'!$C$41:$C$45, 0), MATCH('Analysis (199 Ligands)'!EH$2, 'BACE (36 Ligands)'!$V$2:$AV$2, 0)) -> 0.6013838893 | EI7: =INDEX('BACE (36 Ligands)'!$V$41:$AV$45, MATCH('Analysis (199 Ligands)'!EI$5, 'BACE (36 Ligands)'!$C$41:$C$45, 0), MATCH('Analysis (199 Ligands)'!EI$2, 'BACE (36 Ligands)'!$V$2:$AV$2, 0)) -> 0.7 | EK7: =INDEX($DP$2:$EI$2, MATCH(MAX(IF($EP$5 = $DP$5:$EI$5, $DP7:$EI7, -1)),IF($EP$5 = $DP$5:$EI$5, $DP7:$EI7, -1),0)) -> SS21* (r = 5 A) | EL7: =IFERROR(INDEX($DP7:$EI7, SMALL(IF(EK7 = $DP$2:$EI$2, COLUMN($DP$2:$EI$2) - MIN(COLUMN($DP$2:$EI$2))+1, ""), COLUMN(EL7:EP7) - COLUMN(EL7)+1)), "") -> 0.8313086655 | EM7: 0.9669369009 | EN7: 0.5626945268 | EO7: 0.6732970391 | EP7: 0.7333333333 | ER7: =INDEX('BACE (36 Ligands)'!$AX$41:$BC$45, MATCH('Analysis (199 Ligands)'!ER$5, 'BACE (36 Ligands)'!$C$41:$C$45, 0), MATCH('Analysis (199 Ligands)'!ER$2, 'BACE (36 Ligands)'!$AX$2:$BC$2, 0)) -> 0.675996464 | ES7: =INDEX('BACE (36 Ligands)'!$AX$41:$BC$45, MATCH('Analysis (199 Ligands)'!ES$5, 'BACE (36 Ligands)'!$C$41:$C$45, 0), MATCH('Analysis (199 Ligands)'!ES$2, 'BACE (36 Ligands)'!$AX$2:$BC$2, 0)) -> 0.8553750835 | ET7: =INDEX('BACE (36 Ligands)'!$AX$41:$BC$45, MATCH('Analysis (199 Ligands)'!ET$5, 'BACE (36 Ligands)'!$C$41:$C$45, 0), MATCH('Analysis (199 Ligands)'!ET$2, 'BACE (36 Ligands)'!$AX$2:$BC$2, 0)) -> 0.7821944728 | EU7: =INDEX('BACE (36 Ligands)'!$AX$41:$BC$45, MATCH('Analysis (199 Ligands)'!EU$5, 'BACE (36 Ligands)'!$C$41:$C$45, 0), MATCH('Analysis (199 Ligands)'!EU$2, 'BACE (36 Ligands)'!$AX$2:$BC$2, 0)) -> 0.7974826542 | EV7: =INDEX('BACE (36 Ligands)'!$AX$41:$BC$45, MATCH('Analysis (199 Ligands)'!EV$5, 'BACE (36 Ligands)'!$C$41:$C$45, 0), MATCH('Analysis (199 Ligands)'!EV$2, 'BACE (36 Ligands)'!$AX$2:$BC$2, 0)) -> 0.7825396825 | EW7: =INDEX('BACE (36 Ligands)'!$AX$41:$BC$45, MATCH('Analysis (199 Ligands)'!EW$5, 'BACE (36 Ligands)'!$C$41:$C$45, 0), MATCH('Analysis (199 Ligands)'!EW$2, 'BACE (36 Ligands)'!$AX$2:$BC$2, 0)) -> 0.7562393103 | EX7: =INDEX('BACE (36 Ligands)'!$AX$41:$BC$45, MATCH('Analysis (199 Ligands)'!EX$5, 'BACE (36 Ligands)'!$C$41:$C$45, 0), MATCH('Analysis (199 Ligands)'!EX$2, 'BACE (36 Ligands)'!$AX$2:$BC$2, 0)) -> 0.9439462132 | EY7: =INDEX('BACE (36 Ligands)'!$AX$41:$BC$45, MATCH('Analysis (199 Ligands)'!EY$5, 'BACE (36 Ligands)'!$C$41:$C$45, 0), MATCH('Analysis (199 Ligands)'!EY$2, 'BACE (36 Ligands)'!$AX$2:$BC$2, 0)) -> 0.4353009145 | EZ7: =INDEX('BACE (36 Ligands)'!$AX$41:$BC$45, MATCH('Analysis (199 Ligands)'!EZ$5, 'BACE (36 Ligands)'!$C$41:$C$45, 0), MATCH('Analysis (199 Ligands)'!EZ$2, 'BACE (36 Ligands)'!$AX$2:$BC$2, 0)) -> 0.479480412 | FA7: =INDEX('BACE (36 Ligands)'!$AX$41:$BC$45, MATCH('Analysis (199 Ligands)'!FA$5, 'BACE (36 Ligands)'!$C$41:$C$45, 0), MATCH('Analysis (199 Ligands)'!FA$2, 'BACE (36 Ligands)'!$AX$2:$BC$2, 0)) -> 0.6373015873 | FB7: =INDEX('BACE (36 Ligands)'!$AX$41:$BC$45, MATCH('Analysis (199 Ligands)'!FB$5, 'BACE (36 Ligands)'!$C$41:$C$45, 0), MATCH('Analysis (199 Ligands)'!FB$2, 'BACE (36 Ligands)'!$AX$2:$BC$2, 0)) -> 0.7391900742 | FC7: =INDEX('BACE (36 Ligands)'!$AX$41:$BC$45, MATCH('Analysis (199 Ligands)'!FC$5, 'BACE (36 Ligands)'!$C$41:$C$45, 0), MATCH('Analysis (199 Ligands)'!FC$2, 'BACE (36 Ligands)'!$AX$2:$BC$2, 0)) -> 0.8852626863 | FD7: =INDEX('BACE (36 Ligands)'!$AX$41:$BC$45, MATCH('Analysis (199 Ligands)'!FD$5, 'BACE (36 Ligands)'!$C$41:$C$45, 0), MATCH('Analysis (199 Ligands)'!FD$2, 'BACE (36 Ligands)'!$AX$2:$BC$2, 0)) -> 0.455351275 | FE7: =INDEX('BACE (36 Ligands)'!$AX$41:$BC$45, MATCH('Analysis (199 Ligands)'!FE$5, 'BACE (36 Ligands)'!$C$41:$C$45, 0), MATCH('Analysis (199 Ligands)'!FE$2, 'BACE (36 Ligands)'!$AX$2:$BC$2, 0)) -> 0.4672746315 | FF7: =INDEX('BACE (36 Ligands)'!$AX$41:$BC$45, MATCH('Analysis (199 Ligands)'!FF$5, 'BACE (36 Ligands)'!$C$41:$C$45, 0), MATCH('Analysis (199 Ligands)'!FF$2, 'BACE (36 Ligands)'!$AX$2:$BC$2, 0)) -> 0.6412698413 | FG7: =INDEX('BACE (36 Ligands)'!$AX$41:$BC$45, MATCH('Analysis (199 Ligands)'!FG$5, 'BACE (36 Ligands)'!$C$41:$C$45, 0), MATCH('Analysis (199 Ligands)'!FG$2, 'BACE (36 Ligands)'!$AX$2:$BC$2, 0)) -> 0.7553588578 | FH7: =INDEX('BACE (36 Ligands)'!$AX$41:$BC$45, MATCH('Analysis (199 Ligands)'!FH$5, 'BACE (36 Ligands)'!$C$41:$C$45, 0), MATCH('Analysis (199 Ligands)'!FH$2, 'BACE (36 Ligands)'!$AX$2:$BC$2, 0)) -> 1.025108163 | FI7: =INDEX('BACE (36 Ligands)'!$AX$41:$BC$45, MATCH('Analysis (199 Ligands)'!FI$5, 'BACE (36 Ligands)'!$C$41:$C$45, 0), MATCH('Analysis (199 Ligands)'!FI$2, 'BACE (36 Ligands)'!$AX$2:$BC$2, 0)) -> 0.5625392215 | FJ7: =INDEX('BACE (36 Ligands)'!$AX$41:$BC$45, MATCH('Analysis (199 Ligands)'!FJ$5, 'BACE (36 Ligands)'!$C$41:$C$45, 0), MATCH('Analysis (199 Ligands)'!FJ$2, 'BACE (36 Ligands)'!$AX$2:$BC$2, 0)) -> 0.5461733171 | FK7: =INDEX('BACE (36 Ligands)'!$AX$41:$BC$45, MATCH('Analysis (199 Ligands)'!FK$5, 'BACE (36 Ligands)'!$C$41:$C$45, 0), MATCH('Analysis (199 Ligands)'!FK$2, 'BACE (36 Ligands)'!$AX$2:$BC$2, 0)) -> 0.6873015873 | FL7: =INDEX('BACE (36 Ligands)'!$AX$41:$BC$45, MATCH('Analysis (199 Ligands)'!FL$5, 'BACE (36 Ligands)'!$C$41:$C$45, 0), MATCH('Analysis (199 Ligands)'!FL$2, 'BACE (36 Ligands)'!$AX$2:$BC$2, 0)) -> 0.6371480415 | FM7: =INDEX('BACE (36 Ligands)'!$AX$41:$BC$45, MATCH('Analysis (199 Ligands)'!FM$5, 'BACE (36 Ligands)'!$C$41:$C$45, 0), MATCH('Analysis (199 Ligands)'!FM$2, 'BACE (36 Ligands)'!$AX$2:$BC$2, 0)) -> 0.8348277606 | FN7: =INDEX('BACE (36 Ligands)'!$AX$41:$BC$45, MATCH('Analysis (199 Ligands)'!FN$5, 'BACE (36 Ligands)'!$C$41:$C$45, 0), MATCH('Analysis (199 Ligands)'!FN$2, 'BACE (36 Ligands)'!$AX$2:$BC$2, 0)) -> 0.555330941 | FO7: =INDEX('BACE (36 Ligands)'!$AX$41:$BC$45, MATCH('Analysis (199 Ligands)'!FO$5, 'BACE (36 Ligands)'!$C$41:$C$45, 0), MATCH('Analysis (199 Ligands)'!FO$2, 'BACE (36 Ligands)'!$AX$2:$BC$2, 0)) -> 0.5431142694 | FP7: =INDEX('BACE (36 Ligands)'!$AX$41:$BC$45, MATCH('Analysis (199 Ligands)'!FP$5, 'BACE (36 Ligands)'!$C$41:$C$45, 0), MATCH('Analysis (199 Ligands)'!FP$2, 'BACE (36 Ligands)'!$AX$2:$BC$2, 0)) -> 0.6714285714 | FQ7: =INDEX('BACE (36 Ligands)'!$AX$41:$BC$45, MATCH('Analysis (199 Ligands)'!FQ$5, 'BACE (36 Ligands)'!$C$41:$C$45, 0), MATCH('Analysis (199 Ligands)'!FQ$2, 'BACE (36 Ligands)'!$AX$2:$BC$2, 0)) -> 1.0229893 | FR7: =INDEX('BACE (36 Ligands)'!$AX$41:$BC$45, MATCH('Analysis (199 Ligands)'!FR$5, 'BACE (36 Ligands)'!$C$41:$C$45, 0), MATCH('Analysis (199 Ligands)'!FR$2, 'BACE (36 Ligands)'!$AX$2:$BC$2, 0)) -> 1.324194502 | FS7: =INDEX('BACE (36 Ligands)'!$AX$41:$BC$45, MATCH('Analysis (199 Ligands)'!FS$5, 'BACE (36 Ligands)'!$C$41:$C$45, 0), MATCH('Analysis (199 Ligands)'!FS$2, 'BACE (36 Ligands)'!$AX$2:$BC$2, 0)) -> 0.4333059125 | FT7: =INDEX('BACE (36 Ligands)'!$AX$41:$BC$45, MATCH('Analysis (199 Ligands)'!FT$5, 'BACE (36 Ligands)'!$C$41:$C$45, 0), MATCH('Analysis (199 Ligands)'!FT$2, 'BACE (36 Ligands)'!$AX$2:$BC$2, 0)) -> 0.4562527225 | FU7: =INDEX('BACE (36 Ligands)'!$AX$41:$BC$45, MATCH('Analysis (199 Ligands)'!FU$5, 'BACE (36 Ligands)'!$C$41:$C$45, 0), MATCH('Analysis (199 Ligands)'!FU$2, 'BACE (36 Ligands)'!$AX$2:$BC$2, 0)) -> 0.6444444444
B8: MCL1 | C8: 42 | E8: =INDEX('MCL1 (42 Ligands)'!$E$47:$T$51, MATCH('Analysis (199 Ligands)'!E$5, 'MCL1 (42 Ligands)'!$C$47:$C$51, 0), MATCH('Analysis (199 Ligands)'!E$2, 'MCL1 (42 Ligands)'!$E$2:$T$2, 0)) -> 1.786092538 | F8: =INDEX('MCL1 (42 Ligands)'!$E$47:$T$51, MATCH('Analysis (199 Ligands)'!F$5, 'MCL1 (42 Ligands)'!$C$47:$C$51, 0), MATCH('Analysis (199 Ligands)'!F$2, 'MCL1 (42 Ligands)'!$E$2:$T$2, 0)) -> 2.06146148 | G8: =INDEX('MCL1 (42 Ligands)'!$E$47:$T$51, MATCH('Analysis (199 Ligands)'!G$5, 'MCL1 (42 Ligands)'!$C$47:$C$51, 0), MATCH('Analysis (199 Ligands)'!G$2, 'MCL1 (42 Ligands)'!$E$2:$T$2, 0)) -> 0.5293147656 | H8: =INDEX('MCL1 (42 Ligands)'!$E$47:$T$51, MATCH('Analysis (199 Ligands)'!H$5, 'MCL1 (42 Ligands)'!$C$47:$C$51, 0), MATCH('Analysis (199 Ligands)'!H$2, 'MCL1 (42 Ligands)'!$E$2:$T$2, 0)) -> 0.55561574 | I8: =INDEX('MCL1 (42 Ligands)'!$E$47:$T$51, MATCH('Analysis (199 Ligands)'!I$5, 'MCL1 (42 Ligands)'!$C$47:$C$51, 0), MATCH('Analysis (199 Ligands)'!I$2, 'MCL1 (42 Ligands)'!$E$2:$T$2, 0)) -> 0.6922183508 | J8: =INDEX('MCL1 (42 Ligands)'!$E$47:$T$51, MATCH('Analysis (199 Ligands)'!J$5, 'MCL1 (42 Ligands)'!$C$47:$C$51, 0), MATCH('Analysis (199 Ligands)'!J$2, 'MCL1 (42 Ligands)'!$E$2:$T$2, 0)) -> 2.189579135 | K8: =INDEX('MCL1 (42 Ligands)'!$E$47:$T$51, MATCH('Analysis (199 Ligands)'!K$5, 'MCL1 (42 Ligands)'!$C$47:$C$51, 0), MATCH('Analysis (199 Ligands)'!K$2, 'MCL1 (42 Ligands)'!$E$2:$T$2, 0)) -> 2.415039175 | L8: =INDEX('MCL1 (42 Ligands)'!$E$47:$T$51, MATCH('Analysis (199 Ligands)'!L$5, 'MCL1 (42 Ligands)'!$C$47:$C$51, 0), MATCH('Analysis (199 Ligands)'!L$2, 'MCL1 (42 Ligands)'!$E$2:$T$2, 0)) -> 0.5375228254 | M8: =INDEX('MCL1 (42 Ligands)'!$E$47:$T$51, MATCH('Analysis (199 Ligands)'!M$5, 'MCL1 (42 Ligands)'!$C$47:$C$51, 0), MATCH('Analysis (199 Ligands)'!M$2, 'MCL1 (42 Ligands)'!$E$2:$T$2, 0)) -> 0.5671293515 | N8: =INDEX('MCL1 (42 Ligands)'!$E$47:$T$51, MATCH('Analysis (199 Ligands)'!N$5, 'MCL1 (42 Ligands)'!$C$47:$C$51, 0), MATCH('Analysis (199 Ligands)'!N$2, 'MCL1 (42 Ligands)'!$E$2:$T$2, 0)) -> 0.6957026713 | O8: =INDEX('MCL1 (42 Ligands)'!$E$47:$T$51, MATCH('Analysis (199 Ligands)'!O$5, 'MCL1 (42 Ligands)'!$C$47:$C$51, 0), MATCH('Analysis (199 Ligands)'!O$2, 'MCL1 (42 Ligands)'!$E$2:$T$2, 0)) -> 2.294032511 | P8: =INDEX('MCL1 (42 Ligands)'!$E$47:$T$51, MATCH('Analysis (199 Ligands)'!P$5, 'MCL1 (42 Ligands)'!$C$47:$C$51, 0), MATCH('Analysis (199 Ligands)'!P$2, 'MCL1 (42 Ligands)'!$E$2:$T$2, 0)) -> 2.532628338 | Q8: =INDEX('MCL1 (42 Ligands)'!$E$47:$T$51, MATCH('Analysis (199 Ligands)'!Q$5, 'MCL1 (42 Ligands)'!$C$47:$C$51, 0), MATCH('Analysis (199 Ligands)'!Q$2, 'MCL1 (42 Ligands)'!$E$2:$T$2, 0)) -> 0.5288960146 | R8: =INDEX('MCL1 (42 Ligands)'!$E$47:$T$51, MATCH('Analysis (199 Ligands)'!R$5, 'MCL1 (42 Ligands)'!$C$47:$C$51, 0), MATCH('Analysis (199 Ligands)'!R$2, 'MCL1 (42 Ligands)'!$E$2:$T$2, 0)) -> 0.4922642389 | S8: =INDEX('MCL1 (42 Ligands)'!$E$47:$T$51, MATCH('Analysis (199 Ligands)'!S$5, 'MCL1 (42 Ligands)'!$C$47:$C$51, 0), MATCH('Analysis (199 Ligands)'!S$2, 'MCL1 (42 Ligands)'!$E$2:$T$2, 0)) -> 0.6637630662 | T8: =INDEX('MCL1 (42 Ligands)'!$E$47:$T$51, MATCH('Analysis (199 Ligands)'!T$5, 'MCL1 (42 Ligands)'!$C$47:$C$51, 0), MATCH('Analysis (199 Ligands)'!T$2, 'MCL1 (42 Ligands)'!$E$2:$T$2, 0)) -> 2.62358013 | U8: =INDEX('MCL1 (42 Ligands)'!$E$47:$T$51, MATCH('Analysis (199 Ligands)'!U$5, 'MCL1 (42 Ligands)'!$C$47:$C$51, 0), MATCH('Analysis (199 Ligands)'!U$2, 'MCL1 (42 Ligands)'!$E$2:$T$2, 0)) -> 2.846602109 | V8: =INDEX('MCL1 (42 Ligands)'!$E$47:$T$51, MATCH('Analysis (199 Ligands)'!V$5, 'MCL1 (42 Ligands)'!$C$47:$C$51, 0), MATCH('Analysis (199 Ligands)'!V$2, 'MCL1 (42 Ligands)'!$E$2:$T$2, 0)) -> 0.5643002738 | W8: =INDEX('MCL1 (42 Ligands)'!$E$47:$T$51, MATCH('Analysis (199 Ligands)'!W$5, 'MCL1 (42 Ligands)'!$C$47:$C$51, 0), MATCH('Analysis (199 Ligands)'!W$2, 'MCL1 (42 Ligands)'!$E$2:$T$2, 0)) -> 0.5237067254 | X8: =INDEX('MCL1 (42 Ligands)'!$E$47:$T$51, MATCH('Analysis (199 Ligands)'!X$5, 'MCL1 (42 Ligands)'!$C$47:$C$51, 0), MATCH('Analysis (199 Ligands)'!X$2, 'MCL1 (42 Ligands)'!$E$2:$T$2, 0)) -> 0.6742160279 | Z8: =INDEX('MCL1 (42 Ligands)'!$E$47:$T$51, MATCH('Analysis (199 Ligands)'!Z$5, 'MCL1 (42 Ligands)'!$C$47:$C$51, 0), MATCH('Analysis (199 Ligands)'!Z$2, 'MCL1 (42 Ligands)'!$E$2:$T$2, 0)) -> 2.274976233 | AA8: =INDEX('MCL1 (42 Ligands)'!$E$47:$T$51, MATCH('Analysis (199 Ligands)'!AA$5, 'MCL1 (42 Ligands)'!$C$47:$C$51, 0), MATCH('Analysis (199 Ligands)'!AA$2, 'MCL1 (42 Ligands)'!$E$2:$T$2, 0)) -> 2.462873176 | AB8: =INDEX('MCL1 (42 Ligands)'!$E$47:$T$51, MATCH('Analysis (199 Ligands)'!AB$5, 'MCL1 (42 Ligands)'!$C$47:$C$51, 0), MATCH('Analysis (199 Ligands)'!AB$2, 'MCL1 (42 Ligands)'!$E$2:$T$2, 0)) -> 0.5676364234 | AC8: =INDEX('MCL1 (42 Ligands)'!$E$47:$T$51, MATCH('Analysis (199 Ligands)'!AC$5, 'MCL1 (42 Ligands)'!$C$47:$C$51, 0), MATCH('Analysis (199 Ligands)'!AC$2, 'MCL1 (42 Ligands)'!$E$2:$T$2, 0)) -> 0.5655583925 | AD8: =INDEX('MCL1 (42 Ligands)'!$E$47:$T$51, MATCH('Analysis (199 Ligands)'!AD$5, 'MCL1 (42 Ligands)'!$C$47:$C$51, 0), MATCH('Analysis (199 Ligands)'!AD$2, 'MCL1 (42 Ligands)'!$E$2:$T$2, 0)) -> 0.6951219512 | AE8: =INDEX('MCL1 (42 Ligands)'!$E$47:$T$51, MATCH('Analysis (199 Ligands)'!AE$5, 'MCL1 (42 Ligands)'!$C$47:$C$51, 0), MATCH('Analysis (199 Ligands)'!AE$2, 'MCL1 (42 Ligands)'!$E$2:$T$2, 0)) -> 2.769364849 | AF8: =INDEX('MCL1 (42 Ligands)'!$E$47:$T$51, MATCH('Analysis (199 Ligands)'!AF$5, 'MCL1 (42 Ligands)'!$C$47:$C$51, 0), MATCH('Analysis (199 Ligands)'!AF$2, 'MCL1 (42 Ligands)'!$E$2:$T$2, 0)) -> 2.991025668 | AG8: =INDEX('MCL1 (42 Ligands)'!$E$47:$T$51, MATCH('Analysis (199 Ligands)'!AG$5, 'MCL1 (42 Ligands)'!$C$47:$C$51, 0), MATCH('Analysis (199 Ligands)'!AG$2, 'MCL1 (42 Ligands)'!$E$2:$T$2, 0)) -> 0.5438791192 | AH8: =INDEX('MCL1 (42 Ligands)'!$E$47:$T$51, MATCH('Analysis (199 Ligands)'!AH$5, 'MCL1 (42 Ligands)'!$C$47:$C$51, 0), MATCH('Analysis (199 Ligands)'!AH$2, 'MCL1 (42 Ligands)'!$E$2:$T$2, 0)) -> 0.4893775378 | AI8: =INDEX('MCL1 (42 Ligands)'!$E$47:$T$51, MATCH('Analysis (199 Ligands)'!AI$5, 'MCL1 (42 Ligands)'!$C$47:$C$51, 0), MATCH('Analysis (199 Ligands)'!AI$2, 'MCL1 (42 Ligands)'!$E$2:$T$2, 0)) -> 0.6660859466 | AJ8: =INDEX('MCL1 (42 Ligands)'!$E$47:$T$51, MATCH('Analysis (199 Ligands)'!AJ$5, 'MCL1 (42 Ligands)'!$C$47:$C$51, 0), MATCH('Analysis (199 Ligands)'!AJ$2, 'MCL1 (42 Ligands)'!$E$2:$T$2, 0)) -> 2.824809567 | AK8: =INDEX('MCL1 (42 Ligands)'!$E$47:$T$51, MATCH('Analysis (199 Ligands)'!AK$5, 'MCL1 (42 Ligands)'!$C$47:$C$51, 0), MATCH('Analysis (199 Ligands)'!AK$2, 'MCL1 (42 Ligands)'!$E$2:$T$2, 0)) -> 3.027951872 | AL8: =INDEX('MCL1 (42 Ligands)'!$E$47:$T$51, MATCH('Analysis (199 Ligands)'!AL$5, 'MCL1 (42 Ligands)'!$C$47:$C$51, 0), MATCH('Analysis (199 Ligands)'!AL$2, 'MCL1 (42 Ligands)'!$E$2:$T$2, 0)) -> 0.5047703032 | AM8: =INDEX('MCL1 (42 Ligands)'!$E$47:$T$51, MATCH('Analysis (199 Ligands)'!AM$5, 'MCL1 (42 Ligands)'!$C$47:$C$51, 0), MATCH('Analysis (199 Ligands)'!AM$2, 'MCL1 (42 Ligands)'!$E$2:$T$2, 0)) -> 0.4541299343 | AN8: =INDEX('MCL1 (42 Ligands)'!$E$47:$T$51, MATCH('Analysis (199 Ligands)'!AN$5, 'MCL1 (42 Ligands)'!$C$47:$C$51, 0), MATCH('Analysis (199 Ligands)'!AN$2, 'MCL1 (42 Ligands)'!$E$2:$T$2, 0)) -> 0.6527293844 | AO8: =INDEX('MCL1 (42 Ligands)'!$E$47:$T$51, MATCH('Analysis (199 Ligands)'!AO$5, 'MCL1 (42 Ligands)'!$C$47:$C$51, 0), MATCH('Analysis (199 Ligands)'!AO$2, 'MCL1 (42 Ligands)'!$E$2:$T$2, 0)) -> 3.344809567 | AP8: =INDEX('MCL1 (42 Ligands)'!$E$47:$T$51, MATCH('Analysis (199 Ligands)'!AP$5, 'MCL1 (42 Ligands)'!$C$47:$C$51, 0), MATCH('Analysis (199 Ligands)'!AP$2, 'MCL1 (42 Ligands)'!$E$2:$T$2, 0)) -> 3.600079979 | AQ8: =INDEX('MCL1 (42 Ligands)'!$E$47:$T$51, MATCH('Analysis (199 Ligands)'!AQ$5, 'MCL1 (42 Ligands)'!$C$47:$C$51, 0), MATCH('Analysis (199 Ligands)'!AQ$2, 'MCL1 (42 Ligands)'!$E$2:$T$2, 0)) -> 0.4948405185 | AR8: =INDEX('MCL1 (42 Ligands)'!$E$47:$T$51, MATCH('Analysis (199 Ligands)'!AR$5, 'MCL1 (42 Ligands)'!$C$47:$C$51, 0), MATCH('Analysis (199 Ligands)'!AR$2, 'MCL1 (42 Ligands)'!$E$2:$T$2, 0)) -> 0.4601664191 | AS8: =INDEX('MCL1 (42 Ligands)'!$E$47:$T$51, MATCH('Analysis (199 Ligands)'!AS$5, 'MCL1 (42 Ligands)'!$C$47:$C$51, 0), MATCH('Analysis (199 Ligands)'!AS$2, 'MCL1 (42 Ligands)'!$E$2:$T$2, 0)) -> 0.6550522648 | AU8: =INDEX('MCL1 (42 Ligands)'!$E$47:$T$51, MATCH('Analysis (199 Ligands)'!AU$5, 'MCL1 (42 Ligands)'!$C$47:$C$51, 0), MATCH('Analysis (199 Ligands)'!AU$2, 'MCL1 (42 Ligands)'!$E$2:$T$2, 0)) -> 2.368547662 | AV8: =INDEX('MCL1 (42 Ligands)'!$E$47:$T$51, MATCH('Analysis (199 Ligands)'!AV$5, 'MCL1 (42 Ligands)'!$C$47:$C$51, 0), MATCH('Analysis (199 Ligands)'!AV$2, 'MCL1 (42 Ligands)'!$E$2:$T$2, 0)) -> 2.548444554 | AW8: =INDEX('MCL1 (42 Ligands)'!$E$47:$T$51, MATCH('Analysis (199 Ligands)'!AW$5, 'MCL1 (42 Ligands)'!$C$47:$C$51, 0), MATCH('Analysis (199 Ligands)'!AW$2, 'MCL1 (42 Ligands)'!$E$2:$T$2, 0)) -> 0.5234774973 | AX8: =INDEX('MCL1 (42 Ligands)'!$E$47:$T$51, MATCH('Analysis (199 Ligands)'!AX$5, 'MCL1 (42 Ligands)'!$C$47:$C$51, 0), MATCH('Analysis (199 Ligands)'!AX$2, 'MCL1 (42 Ligands)'!$E$2:$T$2, 0)) -> 0.527747673 | AY8: =INDEX('MCL1 (42 Ligands)'!$E$47:$T$51, MATCH('Analysis (199 Ligands)'!AY$5, 'MCL1 (42 Ligands)'!$C$47:$C$51, 0), MATCH('Analysis (199 Ligands)'!AY$2, 'MCL1 (42 Ligands)'!$E$2:$T$2, 0)) -> 0.6846689895 | AZ8: =INDEX('MCL1 (42 Ligands)'!$E$47:$T$51, MATCH('Analysis (199 Ligands)'!AZ$5, 'MCL1 (42 Ligands)'!$C$47:$C$51, 0), MATCH('Analysis (199 Ligands)'!AZ$2, 'MCL1 (42 Ligands)'!$E$2:$T$2, 0)) -> 2.854023852 | BA8: =INDEX('MCL1 (42 Ligands)'!$E$47:$T$51, MATCH('Analysis (199 Ligands)'!BA$5, 'MCL1 (42 Ligands)'!$C$47:$C$51, 0), MATCH('Analysis (199 Ligands)'!BA$2, 'MCL1 (42 Ligands)'!$E$2:$T$2, 0)) -> 3.029062703 | BB8: =INDEX('MCL1 (42 Ligands)'!$E$47:$T$51, MATCH('Analysis (199 Ligands)'!BB$5, 'MCL1 (42 Ligands)'!$C$47:$C$51, 0), MATCH('Analysis (199 Ligands)'!BB$2, 'MCL1 (42 Ligands)'!$E$2:$T$2, 0)) -> 0.5662888396 | BC8: =INDEX('MCL1 (42 Ligands)'!$E$47:$T$51, MATCH('Analysis (199 Ligands)'!BC$5, 'MCL1 (42 Ligands)'!$C$47:$C$51, 0), MATCH('Analysis (199 Ligands)'!BC$2, 'MCL1 (42 Ligands)'!$E$2:$T$2, 0)) -> 0.5606085199 | BD8: =INDEX('MCL1 (42 Ligands)'!$E$47:$T$51, MATCH('Analysis (199 Ligands)'!BD$5, 'MCL1 (42 Ligands)'!$C$47:$C$51, 0), MATCH('Analysis (199 Ligands)'!BD$2, 'MCL1 (42 Ligands)'!$E$2:$T$2, 0)) -> 0.7044134727 | BE8: =INDEX('MCL1 (42 Ligands)'!$E$47:$T$51, MATCH('Analysis (199 Ligands)'!BE$5, 'MCL1 (42 Ligands)'!$C$47:$C$51, 0), MATCH('Analysis (199 Ligands)'!BE$2, 'MCL1 (42 Ligands)'!$E$2:$T$2, 0)) -> 3.137785757 | BF8: =INDEX('MCL1 (42 Ligands)'!$E$47:$T$51, MATCH('Analysis (199 Ligands)'!BF$5, 'MCL1 (42 Ligands)'!$C$47:$C$51, 0), MATCH('Analysis (199 Ligands)'!BF$2, 'MCL1 (42 Ligands)'!$E$2:$T$2, 0)) -> 3.312259957 | BG8: =INDEX('MCL1 (42 Ligands)'!$E$47:$T$51, MATCH('Analysis (199 Ligands)'!BG$5, 'MCL1 (42 Ligands)'!$C$47:$C$51, 0), MATCH('Analysis (199 Ligands)'!BG$2, 'MCL1 (42 Ligands)'!$E$2:$T$2, 0)) -> 0.384917003 | BH8: =INDEX('MCL1 (42 Ligands)'!$E$47:$T$51, MATCH('Analysis (199 Ligands)'!BH$5, 'MCL1 (42 Ligands)'!$C$47:$C$51, 0), MATCH('Analysis (199 Ligands)'!BH$2, 'MCL1 (42 Ligands)'!$E$2:$T$2, 0)) -> 0.3995513652 | BI8: =INDEX('MCL1 (42 Ligands)'!$E$47:$T$51, MATCH('Analysis (199 Ligands)'!BI$5, 'MCL1 (42 Ligands)'!$C$47:$C$51, 0), MATCH('Analysis (199 Ligands)'!BI$2, 'MCL1 (42 Ligands)'!$E$2:$T$2, 0)) -> 0.6405342625 | BJ8: =INDEX('MCL1 (42 Ligands)'!$E$47:$T$51, MATCH('Analysis (199 Ligands)'!BJ$5, 'MCL1 (42 Ligands)'!$C$47:$C$51, 0), MATCH('Analysis (199 Ligands)'!BJ$2, 'MCL1 (42 Ligands)'!$E$2:$T$2, 0)) -> 3.575095281 | BK8: =INDEX('MCL1 (42 Ligands)'!$E$47:$T$51, MATCH('Analysis (199 Ligands)'!BK$5, 'MCL1 (42 Ligands)'!$C$47:$C$51, 0), MATCH('Analysis (199 Ligands)'!BK$2, 'MCL1 (42 Ligands)'!$E$2:$T$2, 0)) -> 3.745484711 | BL8: =INDEX('MCL1 (42 Ligands)'!$E$47:$T$51, MATCH('Analysis (199 Ligands)'!BL$5, 'MCL1 (42 Ligands)'!$C$47:$C$51, 0), MATCH('Analysis (199 Ligands)'!BL$2, 'MCL1 (42 Ligands)'!$E$2:$T$2, 0)) -> 0.4824501383 | BM8: =INDEX('MCL1 (42 Ligands)'!$E$47:$T$51, MATCH('Analysis (199 Ligands)'!BM$5, 'MCL1 (42 Ligands)'!$C$47:$C$51, 0), MATCH('Analysis (199 Ligands)'!BM$2, 'MCL1 (42 Ligands)'!$E$2:$T$2, 0)) -> 0.4788291915 | BN8: =INDEX('MCL1 (42 Ligands)'!$E$47:$T$51, MATCH('Analysis (199 Ligands)'!BN$5, 'MCL1 (42 Ligands)'!$C$47:$C$51, 0), MATCH('Analysis (199 Ligands)'!BN$2, 'MCL1 (42 Ligands)'!$E$2:$T$2, 0)) -> 0.6660859466 | BP8: =INDEX('MCL1 (42 Ligands)'!$E$47:$T$51, MATCH('Analysis (199 Ligands)'!BP$5, 'MCL1 (42 Ligands)'!$C$47:$C$51, 0), MATCH('Analysis (199 Ligands)'!BP$2, 'MCL1 (42 Ligands)'!$E$2:$T$2, 0)) -> 2.297000043 | BQ8: =INDEX('MCL1 (42 Ligands)'!$E$47:$T$51, MATCH('Analysis (199 Ligands)'!BQ$5, 'MCL1 (42 Ligands)'!$C$47:$C$51, 0), MATCH('Analysis (199 Ligands)'!BQ$2, 'MCL1 (42 Ligands)'!$E$2:$T$2, 0)) -> 2.471189505 | BR8: =INDEX('MCL1 (42 Ligands)'!$E$47:$T$51, MATCH('Analysis (199 Ligands)'!BR$5, 'MCL1 (42 Ligands)'!$C$47:$C$51, 0), MATCH('Analysis (199 Ligands)'!BR$2, 'MCL1 (42 Ligands)'!$E$2:$T$2, 0)) -> 0.5419631133 | BS8: =INDEX('MCL1 (42 Ligands)'!$E$47:$T$51, MATCH('Analysis (199 Ligands)'!BS$5, 'MCL1 (42 Ligands)'!$C$47:$C$51, 0), MATCH('Analysis (199 Ligands)'!BS$2, 'MCL1 (42 Ligands)'!$E$2:$T$2, 0)) -> 0.5370875299 | BT8: =INDEX('MCL1 (42 Ligands)'!$E$47:$T$51, MATCH('Analysis (199 Ligands)'!BT$5, 'MCL1 (42 Ligands)'!$C$47:$C$51, 0), MATCH('Analysis (199 Ligands)'!BT$2, 'MCL1 (42 Ligands)'!$E$2:$T$2, 0)) -> 0.6904761905 | BU8: =INDEX('MCL1 (42 Ligands)'!$E$47:$T$51, MATCH('Analysis (199 Ligands)'!BU$5, 'MCL1 (42 Ligands)'!$C$47:$C$51, 0), MATCH('Analysis (199 Ligands)'!BU$2, 'MCL1 (42 Ligands)'!$E$2:$T$2, 0)) -> 2.837000043 | BV8: =INDEX('MCL1 (42 Ligands)'!$E$47:$T$51, MATCH('Analysis (199 Ligands)'!BV$5, 'MCL1 (42 Ligands)'!$C$47:$C$51, 0), MATCH('Analysis (199 Ligands)'!BV$2, 'MCL1 (42 Ligands)'!$E$2:$T$2, 0)) -> 3.021149848 | BW8: =INDEX('MCL1 (42 Ligands)'!$E$47:$T$51, MATCH('Analysis (199 Ligands)'!BW$5, 'MCL1 (42 Ligands)'!$C$47:$C$51, 0), MATCH('Analysis (199 Ligands)'!BW$2, 'MCL1 (42 Ligands)'!$E$2:$T$2, 0)) -> 0.5446103994 | BX8: =INDEX('MCL1 (42 Ligands)'!$E$47:$T$51, MATCH('Analysis (199 Ligands)'!BX$5, 'MCL1 (42 Ligands)'!$C$47:$C$51, 0), MATCH('Analysis (199 Ligands)'!BX$2, 'MCL1 (42 Ligands)'!$E$2:$T$2, 0)) -> 0.5531638827 | BY8: =INDEX('MCL1 (42 Ligands)'!$E$47:$T$51, MATCH('Analysis (199 Ligands)'!BY$5, 'MCL1 (42 Ligands)'!$C$47:$C$51, 0), MATCH('Analysis (199 Ligands)'!BY$2, 'MCL1 (42 Ligands)'!$E$2:$T$2, 0)) -> 0.6951219512 | BZ8: =INDEX('MCL1 (42 Ligands)'!$E$47:$T$51, MATCH('Analysis (199 Ligands)'!BZ$5, 'MCL1 (42 Ligands)'!$C$47:$C$51, 0), MATCH('Analysis (199 Ligands)'!BZ$2, 'MCL1 (42 Ligands)'!$E$2:$T$2, 0)) -> 3.023928614 | CA8: =INDEX('MCL1 (42 Ligands)'!$E$47:$T$51, MATCH('Analysis (199 Ligands)'!CA$5, 'MCL1 (42 Ligands)'!$C$47:$C$51, 0), MATCH('Analysis (199 Ligands)'!CA$2, 'MCL1 (42 Ligands)'!$E$2:$T$2, 0)) -> 3.191630258 | CB8: =INDEX('MCL1 (42 Ligands)'!$E$47:$T$51, MATCH('Analysis (199 Ligands)'!CB$5, 'MCL1 (42 Ligands)'!$C$47:$C$51, 0), MATCH('Analysis (199 Ligands)'!CB$2, 'MCL1 (42 Ligands)'!$E$2:$T$2, 0)) -> 0.4201276719 | CC8: =INDEX('MCL1 (42 Ligands)'!$E$47:$T$51, MATCH('Analysis (199 Ligands)'!CC$5, 'MCL1 (42 Ligands)'!$C$47:$C$51, 0), MATCH('Analysis (199 Ligands)'!CC$2, 'MCL1 (42 Ligands)'!$E$2:$T$2, 0)) -> 0.4361614546 | CD8: =INDEX('MCL1 (42 Ligands)'!$E$47:$T$51, MATCH('Analysis (199 Ligands)'!CD$5, 'MCL1 (42 Ligands)'!$C$47:$C$51, 0), MATCH('Analysis (199 Ligands)'!CD$2, 'MCL1 (42 Ligands)'!$E$2:$T$2, 0)) -> 0.6538908246 | CE8: =INDEX('MCL1 (42 Ligands)'!$E$47:$T$51, MATCH('Analysis (199 Ligands)'!CE$5, 'MCL1 (42 Ligands)'!$C$47:$C$51, 0), MATCH('Analysis (199 Ligands)'!CE$2, 'MCL1 (42 Ligands)'!$E$2:$T$2, 0)) -> 3.639023852 | CF8: =INDEX('MCL1 (42 Ligands)'!$E$47:$T$51, MATCH('Analysis (199 Ligands)'!CF$5, 'MCL1 (42 Ligands)'!$C$47:$C$51, 0), MATCH('Analysis (199 Ligands)'!CF$2, 'MCL1 (42 Ligands)'!$E$2:$T$2, 0)) -> 3.791155041 | CG8: =INDEX('MCL1 (42 Ligands)'!$E$47:$T$51, MATCH('Analysis (199 Ligands)'!CG$5, 'MCL1 (42 Ligands)'!$C$47:$C$51, 0), MATCH('Analysis (199 Ligands)'!CG$2, 'MCL1 (42 Ligands)'!$E$2:$T$2, 0)) -> 0.5141211883 | CH8: =INDEX('MCL1 (42 Ligands)'!$E$47:$T$51, MATCH('Analysis (199 Ligands)'!CH$5, 'MCL1 (42 Ligands)'!$C$47:$C$51, 0), MATCH('Analysis (199 Ligands)'!CH$2, 'MCL1 (42 Ligands)'!$E$2:$T$2, 0)) -> 0.512095798 | CI8: =INDEX('MCL1 (42 Ligands)'!$E$47:$T$51, MATCH('Analysis (199 Ligands)'!CI$5, 'MCL1 (42 Ligands)'!$C$47:$C$51, 0), MATCH('Analysis (199 Ligands)'!CI$2, 'MCL1 (42 Ligands)'!$E$2:$T$2, 0)) -> 0.6881533101 | CK8: =INDEX($E$2:$CI$2, MATCH(MIN(IF(CL$5 = $E$5:$CI$5, $E8:$CI8, 999999)),IF(CL$5 = $E$5:$CI$5, $E8:$CI8, 999999),0)) -> GAS21 (r = 1 A) | CL8: =IFERROR(INDEX($E8:$CI8, SMALL(IF(CK8 = $E$2:$CI$2, COLUMN($E$2:$CI$2) - MIN(COLUMN($E$2:$CI$2))+1, ""), COLUMN(CL8:CP8) - COLUMN(CL8)+1)), "") -> 1.786092538 | CM8: 2.06146148 | CN8: 0.5293147656 | CO8: 0.55561574 | CP8: 0.6922183508 | CQ8: =INDEX($E$2:$CI$2, MATCH(MIN(IF(CS$5 = $E$5:$CI$5, $E8:$CI8, 999999)),IF(CS$5 = $E$5:$CI$5, $E8:$CI8, 999999),0)) -> GAS21 (r = 1 A) | CR8: =IFERROR(INDEX($E8:$CI8, SMALL(IF(CQ8 = $E$2:$CI$2, COLUMN($E$2:$CI$2) - MIN(COLUMN($E$2:$CI$2))+1, ""), COLUMN(CR8:CV8) - COLUMN(CR8)+1)), "") -> 1.786092538 | CS8: 2.06146148 | CT8: 0.5293147656 | CU8: 0.55561574 | CV8: 0.6922183508 | CW8: =INDEX($E$2:$CI$2, MATCH(MAX(IF(CZ$5 = $E$5:$CI$5, $E8:$CI8, -1)),IF(CZ$5 = $E$5:$CI$5, $E8:$CI8, -1),0)) -> GAS21 (r = 2 A) | CX8: =IFERROR(INDEX($E8:$CI8, SMALL(IF(CW8 = $E$2:$CI$2, COLUMN($E$2:$CI$2) - MIN(COLUMN($E$2:$CI$2))+1, ""), COLUMN(CX8:DB8) - COLUMN(CX8)+1)), "") -> 2.274976233 | CY8: 2.462873176 | CZ8: 0.5676364234 | DA8: 0.5655583925 | DB8: 0.6951219512 | DC8: =INDEX($E$2:$CI$2, MATCH(MAX(IF(DG$5 = $E$5:$CI$5, $E8:$CI8, -1)),IF(DG$5 = $E$5:$CI$5, $E8:$CI8, -1),0)) -> GAX21 (r = 1 A) | DD8: =IFERROR(INDEX($E8:$CI8, SMALL(IF(DC8 = $E$2:$CI$2, COLUMN($E$2:$CI$2) - MIN(COLUMN($E$2:$CI$2))+1, ""), COLUMN(DD8:DH8) - COLUMN(DD8)+1)), "") -> 2.189579135 | DE8: 2.415039175 | DF8: 0.5375228254 | DG8: 0.5671293515 | DH8: 0.6957026713 | DI8: =INDEX($E$2:$CI$2, MATCH(MAX(IF(DN$5 = $E$5:$CI$5, $E8:$CI8, -1)),IF(DN$5 = $E$5:$CI$5, $E8:$CI8, -1),0)) -> GAX21 (r = 5 A) | DJ8: =IFERROR(INDEX($E8:$CI8, SMALL(IF(DI8 = $E$2:$CI$2, COLUMN($E$2:$CI$2) - MIN(COLUMN($E$2:$CI$2))+1, ""), COLUMN(DJ8:DN8) - COLUMN(DJ8)+1)), "") -> 2.854023852 | DK8: 3.029062703 | DL8: 0.5662888396 | DM8: 0.5606085199 | DN8: 0.7044134727 | DP8: =INDEX('MCL1 (42 Ligands)'!$V$47:$AV$51, MATCH('Analysis (199 Ligands)'!DP$5, 'MCL1 (42 Ligands)'!$C$47:$C$51, 0), MATCH('Analysis (199 Ligands)'!DP$2, 'MCL1 (42 Ligands)'!$V$2:$AV$2, 0)) -> 2.605309567 | DQ8: =INDEX('MCL1 (42 Ligands)'!$V$47:$AV$51, MATCH('Analysis (199 Ligands)'!DQ$5, 'MCL1 (42 Ligands)'!$C$47:$C$51, 0), MATCH('Analysis (199 Ligands)'!DQ$2, 'MCL1 (42 Ligands)'!$V$2:$AV$2, 0)) -> 2.733937904 | DR8: =INDEX('MCL1 (42 Ligands)'!$V$47:$AV$51, MATCH('Analysis (199 Ligands)'!DR$5, 'MCL1 (42 Ligands)'!$C$47:$C$51, 0), MATCH('Analysis (199 Ligands)'!DR$2, 'MCL1 (42 Ligands)'!$V$2:$AV$2, 0)) -> 0.6306406517 | DS8: =INDEX('MCL1 (42 Ligands)'!$V$47:$AV$51, MATCH('Analysis (199 Ligands)'!DS$5, 'MCL1 (42 Ligands)'!$C$47:$C$51, 0), MATCH('Analysis (199 Ligands)'!DS$2, 'MCL1 (42 Ligands)'!$V$2:$AV$2, 0)) -> 0.6452799621 | DT8: =INDEX('MCL1 (42 Ligands)'!$V$47:$AV$51, MATCH('Analysis (199 Ligands)'!DT$5, 'MCL1 (42 Ligands)'!$C$47:$C$51, 0), MATCH('Analysis (199 Ligands)'!DT$2, 'MCL1 (42 Ligands)'!$V$2:$AV$2, 0)) -> 0.7369337979 | DU8: =INDEX('MCL1 (42 Ligands)'!$V$47:$AV$51, MATCH('Analysis (199 Ligands)'!DU$5, 'MCL1 (42 Ligands)'!$C$47:$C$51, 0), MATCH('Analysis (199 Ligands)'!DU$2, 'MCL1 (42 Ligands)'!$V$2:$AV$2, 0)) -> 3.756785757 | DV8: =INDEX('MCL1 (42 Ligands)'!$V$47:$AV$51, MATCH('Analysis (199 Ligands)'!DV$5, 'MCL1 (42 Ligands)'!$C$47:$C$51, 0), MATCH('Analysis (199 Ligands)'!DV$2, 'MCL1 (42 Ligands)'!$V$2:$AV$2, 0)) -> 3.900445829 | DW8: =INDEX('MCL1 (42 Ligands)'!$V$47:$AV$51, MATCH('Analysis (199 Ligands)'!DW$5, 'MCL1 (42 Ligands)'!$C$47:$C$51, 0), MATCH('Analysis (199 Ligands)'!DW$2, 'MCL1 (42 Ligands)'!$V$2:$AV$2, 0)) -> 0.720859299 | DX8: =INDEX('MCL1 (42 Ligands)'!$V$47:$AV$51, MATCH('Analysis (199 Ligands)'!DX$5, 'MCL1 (42 Ligands)'!$C$47:$C$51, 0), MATCH('Analysis (199 Ligands)'!DX$2, 'MCL1 (42 Ligands)'!$V$2:$AV$2, 0)) -> 0.7449622516 | DY8: =INDEX('MCL1 (42 Ligands)'!$V$47:$AV$51, MATCH('Analysis (199 Ligands)'!DY$5, 'MCL1 (42 Ligands)'!$C$47:$C$51, 0), MATCH('Analysis (199 Ligands)'!DY$2, 'MCL1 (42 Ligands)'!$V$2:$AV$2, 0)) -> 0.7764227642 | DZ8: =INDEX('MCL1 (42 Ligands)'!$V$47:$AV$51, MATCH('Analysis (199 Ligands)'!DZ$5, 'MCL1 (42 Ligands)'!$C$47:$C$51, 0), MATCH('Analysis (199 Ligands)'!DZ$2, 'MCL1 (42 Ligands)'!$V$2:$AV$2, 0)) -> 4.572500043 | EA8: =INDEX('MCL1 (42 Ligands)'!$V$47:$AV$51, MATCH('Analysis (199 Ligands)'!EA$5, 'MCL1 (42 Ligands)'!$C$47:$C$51, 0), MATCH('Analysis (199 Ligands)'!EA$2, 'MCL1 (42 Ligands)'!$V$2:$AV$2, 0)) -> 4.669008526 | EB8: =INDEX('MCL1 (42 Ligands)'!$V$47:$AV$51, MATCH('Analysis (199 Ligands)'!EB$5, 'MCL1 (42 Ligands)'!$C$47:$C$51, 0), MATCH('Analysis (199 Ligands)'!EB$2, 'MCL1 (42 Ligands)'!$V$2:$AV$2, 0)) -> 0.7823602959 | EC8: =INDEX('MCL1 (42 Ligands)'!$V$47:$AV$51, MATCH('Analysis (199 Ligands)'!EC$5, 'MCL1 (42 Ligands)'!$C$47:$C$51, 0), MATCH('Analysis (199 Ligands)'!EC$2, 'MCL1 (42 Ligands)'!$V$2:$AV$2, 0)) -> 0.7902597229 | ED8: =INDEX('MCL1 (42 Ligands)'!$V$47:$AV$51, MATCH('Analysis (199 Ligands)'!ED$5, 'MCL1 (42 Ligands)'!$C$47:$C$51, 0), MATCH('Analysis (199 Ligands)'!ED$2, 'MCL1 (42 Ligands)'!$V$2:$AV$2, 0)) -> 0.7915214866 | EE8: =INDEX('MCL1 (42 Ligands)'!$V$47:$AV$51, MATCH('Analysis (199 Ligands)'!EE$5, 'MCL1 (42 Ligands)'!$C$47:$C$51, 0), MATCH('Analysis (199 Ligands)'!EE$2, 'MCL1 (42 Ligands)'!$V$2:$AV$2, 0)) -> 4.325809567 | EF8: =INDEX('MCL1 (42 Ligands)'!$V$47:$AV$51, MATCH('Analysis (199 Ligands)'!EF$5, 'MCL1 (42 Ligands)'!$C$47:$C$51, 0), MATCH('Analysis (199 Ligands)'!EF$2, 'MCL1 (42 Ligands)'!$V$2:$AV$2, 0)) -> 4.399489459 | EG8: =INDEX('MCL1 (42 Ligands)'!$V$47:$AV$51, MATCH('Analysis (199 Ligands)'!EG$5, 'MCL1 (42 Ligands)'!$C$47:$C$51, 0), MATCH('Analysis (199 Ligands)'!EG$2, 'MCL1 (42 Ligands)'!$V$2:$AV$2, 0)) -> 0.7608681256 | EH8: =INDEX('MCL1 (42 Ligands)'!$V$47:$AV$51, MATCH('Analysis (199 Ligands)'!EH$5, 'MCL1 (42 Ligands)'!$C$47:$C$51, 0), MATCH('Analysis (199 Ligands)'!EH$2, 'MCL1 (42 Ligands)'!$V$2:$AV$2, 0)) -> 0.7431988968 | EI8: =INDEX('MCL1 (42 Ligands)'!$V$47:$AV$51, MATCH('Analysis (199 Ligands)'!EI$5, 'MCL1 (42 Ligands)'!$C$47:$C$51, 0), MATCH('Analysis (199 Ligands)'!EI$2, 'MCL1 (42 Ligands)'!$V$2:$AV$2, 0)) -> 0.7775842044 | EK8: =INDEX($DP$2:$EI$2, MATCH(MAX(IF($EP$5 = $DP$5:$EI$5, $DP8:$EI8, -1)),IF($EP$5 = $DP$5:$EI$5, $DP8:$EI8, -1),0)) -> SS21* (r = 5 A) | EL8: =IFERROR(INDEX($DP8:$EI8, SMALL(IF(EK8 = $DP$2:$EI$2, COLUMN($DP$2:$EI$2) - MIN(COLUMN($DP$2:$EI$2))+1, ""), COLUMN(EL8:EP8) - COLUMN(EL8)+1)), "") -> 4.572500043 | EM8: 4.669008526 | EN8: 0.7823602959 | EO8: 0.7902597229 | EP8: 0.7915214866 | ER8: =INDEX('MCL1 (42 Ligands)'!$AX$47:$BC$51, MATCH('Analysis (199 Ligands)'!ER$5, 'MCL1 (42 Ligands)'!$C$47:$C$51, 0), MATCH('Analysis (199 Ligands)'!ER$2, 'MCL1 (42 Ligands)'!$AX$2:$BC$2, 0)) -> 0.8444801946 | ES8: =INDEX('MCL1 (42 Ligands)'!$AX$47:$BC$51, MATCH('Analysis (199 Ligands)'!ES$5, 'MCL1 (42 Ligands)'!$C$47:$C$51, 0), MATCH('Analysis (199 Ligands)'!ES$2, 'MCL1 (42 Ligands)'!$AX$2:$BC$2, 0)) -> 1.048397065 | ET8: =INDEX('MCL1 (42 Ligands)'!$AX$47:$BC$51, MATCH('Analysis (199 Ligands)'!ET$5, 'MCL1 (42 Ligands)'!$C$47:$C$51, 0), MATCH('Analysis (199 Ligands)'!ET$2, 'MCL1 (42 Ligands)'!$AX$2:$BC$2, 0)) -> 0.7718701048 | EU8: =INDEX('MCL1 (42 Ligands)'!$AX$47:$BC$51, MATCH('Analysis (199 Ligands)'!EU$5, 'MCL1 (42 Ligands)'!$C$47:$C$51, 0), MATCH('Analysis (199 Ligands)'!EU$2, 'MCL1 (42 Ligands)'!$AX$2:$BC$2, 0)) -> 0.7738544978 | EV8: =INDEX('MCL1 (42 Ligands)'!$AX$47:$BC$51, MATCH('Analysis (199 Ligands)'!EV$5, 'MCL1 (42 Ligands)'!$C$47:$C$51, 0), MATCH('Analysis (199 Ligands)'!EV$2, 'MCL1 (42 Ligands)'!$AX$2:$BC$2, 0)) -> 0.8008130081 | EW8: =INDEX('MCL1 (42 Ligands)'!$AX$47:$BC$51, MATCH('Analysis (199 Ligands)'!EW$5, 'MCL1 (42 Ligands)'!$C$47:$C$51, 0), MATCH('Analysis (199 Ligands)'!EW$2, 'MCL1 (42 Ligands)'!$AX$2:$BC$2, 0)) -> 1.184678036 | EX8: =INDEX('MCL1 (42 Ligands)'!$AX$47:$BC$51, MATCH('Analysis (199 Ligands)'!EX$5, 'MCL1 (42 Ligands)'!$C$47:$C$51, 0), MATCH('Analysis (199 Ligands)'!EX$2, 'MCL1 (42 Ligands)'!$AX$2:$BC$2, 0)) -> 1.508767813 | EY8: =INDEX('MCL1 (42 Ligands)'!$AX$47:$BC$51, MATCH('Analysis (199 Ligands)'!EY$5, 'MCL1 (42 Ligands)'!$C$47:$C$51, 0), MATCH('Analysis (199 Ligands)'!EY$2, 'MCL1 (42 Ligands)'!$AX$2:$BC$2, 0)) -> 0.7385905734 | EZ8: =INDEX('MCL1 (42 Ligands)'!$AX$47:$BC$51, MATCH('Analysis (199 Ligands)'!EZ$5, 'MCL1 (42 Ligands)'!$C$47:$C$51, 0), MATCH('Analysis (199 Ligands)'!EZ$2, 'MCL1 (42 Ligands)'!$AX$2:$BC$2, 0)) -> 0.7393420099 | FA8: =INDEX('MCL1 (42 Ligands)'!$AX$47:$BC$51, MATCH('Analysis (199 Ligands)'!FA$5, 'MCL1 (42 Ligands)'!$C$47:$C$51, 0), MATCH('Analysis (199 Ligands)'!FA$2, 'MCL1 (42 Ligands)'!$AX$2:$BC$2, 0)) -> 0.7740998839 | FB8: =INDEX('MCL1 (42 Ligands)'!$AX$47:$BC$51, MATCH('Analysis (199 Ligands)'!FB$5, 'MCL1 (42 Ligands)'!$C$47:$C$51, 0), MATCH('Analysis (199 Ligands)'!FB$2, 'MCL1 (42 Ligands)'!$AX$2:$BC$2, 0)) -> 0.8580017322 | FC8: =INDEX('MCL1 (42 Ligands)'!$AX$47:$BC$51, MATCH('Analysis (199 Ligands)'!FC$5, 'MCL1 (42 Ligands)'!$C$47:$C$51, 0), MATCH('Analysis (199 Ligands)'!FC$2, 'MCL1 (42 Ligands)'!$AX$2:$BC$2, 0)) -> 1.131700136 | FD8: =INDEX('MCL1 (42 Ligands)'!$AX$47:$BC$51, MATCH('Analysis (199 Ligands)'!FD$5, 'MCL1 (42 Ligands)'!$C$47:$C$51, 0), MATCH('Analysis (199 Ligands)'!FD$2, 'MCL1 (42 Ligands)'!$AX$2:$BC$2, 0)) -> 0.7673997231 | FE8: =INDEX('MCL1 (42 Ligands)'!$AX$47:$BC$51, MATCH('Analysis (199 Ligands)'!FE$5, 'MCL1 (42 Ligands)'!$C$47:$C$51, 0), MATCH('Analysis (199 Ligands)'!FE$2, 'MCL1 (42 Ligands)'!$AX$2:$BC$2, 0)) -> 0.8077460885 | FF8: =INDEX('MCL1 (42 Ligands)'!$AX$47:$BC$51, MATCH('Analysis (199 Ligands)'!FF$5, 'MCL1 (42 Ligands)'!$C$47:$C$51, 0), MATCH('Analysis (199 Ligands)'!FF$2, 'MCL1 (42 Ligands)'!$AX$2:$BC$2, 0)) -> 0.8042973287 | FG8: =INDEX('MCL1 (42 Ligands)'!$AX$47:$BC$51, MATCH('Analysis (199 Ligands)'!FG$5, 'MCL1 (42 Ligands)'!$C$47:$C$51, 0), MATCH('Analysis (199 Ligands)'!FG$2, 'MCL1 (42 Ligands)'!$AX$2:$BC$2, 0)) -> 1.083865952 | FH8: =INDEX('MCL1 (42 Ligands)'!$AX$47:$BC$51, MATCH('Analysis (199 Ligands)'!FH$5, 'MCL1 (42 Ligands)'!$C$47:$C$51, 0), MATCH('Analysis (199 Ligands)'!FH$2, 'MCL1 (42 Ligands)'!$AX$2:$BC$2, 0)) -> 1.362540143 | FI8: =INDEX('MCL1 (42 Ligands)'!$AX$47:$BC$51, MATCH('Analysis (199 Ligands)'!FI$5, 'MCL1 (42 Ligands)'!$C$47:$C$51, 0), MATCH('Analysis (199 Ligands)'!FI$2, 'MCL1 (42 Ligands)'!$AX$2:$BC$2, 0)) -> 0.5532948737 | FJ8: =INDEX('MCL1 (42 Ligands)'!$AX$47:$BC$51, MATCH('Analysis (199 Ligands)'!FJ$5, 'MCL1 (42 Ligands)'!$C$47:$C$51, 0), MATCH('Analysis (199 Ligands)'!FJ$2, 'MCL1 (42 Ligands)'!$AX$2:$BC$2, 0)) -> 0.5646107507 | FK8: =INDEX('MCL1 (42 Ligands)'!$AX$47:$BC$51, MATCH('Analysis (199 Ligands)'!FK$5, 'MCL1 (42 Ligands)'!$C$47:$C$51, 0), MATCH('Analysis (199 Ligands)'!FK$2, 'MCL1 (42 Ligands)'!$AX$2:$BC$2, 0)) -> 0.7102206736 | FL8: =INDEX('MCL1 (42 Ligands)'!$AX$47:$BC$51, MATCH('Analysis (199 Ligands)'!FL$5, 'MCL1 (42 Ligands)'!$C$47:$C$51, 0), MATCH('Analysis (199 Ligands)'!FL$2, 'MCL1 (42 Ligands)'!$AX$2:$BC$2, 0)) -> 0.8587880741 | FM8: =INDEX('MCL1 (42 Ligands)'!$AX$47:$BC$51, MATCH('Analysis (199 Ligands)'!FM$5, 'MCL1 (42 Ligands)'!$C$47:$C$51, 0), MATCH('Analysis (199 Ligands)'!FM$2, 'MCL1 (42 Ligands)'!$AX$2:$BC$2, 0)) -> 1.046401603 | FN8: =INDEX('MCL1 (42 Ligands)'!$AX$47:$BC$51, MATCH('Analysis (199 Ligands)'!FN$5, 'MCL1 (42 Ligands)'!$C$47:$C$51, 0), MATCH('Analysis (199 Ligands)'!FN$2, 'MCL1 (42 Ligands)'!$AX$2:$BC$2, 0)) -> 0.6889819352 | FO8: =INDEX('MCL1 (42 Ligands)'!$AX$47:$BC$51, MATCH('Analysis (199 Ligands)'!FO$5, 'MCL1 (42 Ligands)'!$C$47:$C$51, 0), MATCH('Analysis (199 Ligands)'!FO$2, 'MCL1 (42 Ligands)'!$AX$2:$BC$2, 0)) -> 0.6914018938 | FP8: =INDEX('MCL1 (42 Ligands)'!$AX$47:$BC$51, MATCH('Analysis (199 Ligands)'!FP$5, 'MCL1 (42 Ligands)'!$C$47:$C$51, 0), MATCH('Analysis (199 Ligands)'!FP$2, 'MCL1 (42 Ligands)'!$AX$2:$BC$2, 0)) -> 0.7601626016 | FQ8: =INDEX('MCL1 (42 Ligands)'!$AX$47:$BC$51, MATCH('Analysis (199 Ligands)'!FQ$5, 'MCL1 (42 Ligands)'!$C$47:$C$51, 0), MATCH('Analysis (199 Ligands)'!FQ$2, 'MCL1 (42 Ligands)'!$AX$2:$BC$2, 0)) -> 1.22498068 | FR8: =INDEX('MCL1 (42 Ligands)'!$AX$47:$BC$51, MATCH('Analysis (199 Ligands)'!FR$5, 'MCL1 (42 Ligands)'!$C$47:$C$51, 0), MATCH('Analysis (199 Ligands)'!FR$2, 'MCL1 (42 Ligands)'!$AX$2:$BC$2, 0)) -> 1.480841883 | FS8: =INDEX('MCL1 (42 Ligands)'!$AX$47:$BC$51, MATCH('Analysis (199 Ligands)'!FS$5, 'MCL1 (42 Ligands)'!$C$47:$C$51, 0), MATCH('Analysis (199 Ligands)'!FS$2, 'MCL1 (42 Ligands)'!$AX$2:$BC$2, 0)) -> 0.6503522695 | FT8: =INDEX('MCL1 (42 Ligands)'!$AX$47:$BC$51, MATCH('Analysis (199 Ligands)'!FT$5, 'MCL1 (42 Ligands)'!$C$47:$C$51, 0), MATCH('Analysis (199 Ligands)'!FT$2, 'MCL1 (42 Ligands)'!$AX$2:$BC$2, 0)) -> 0.6434799778 | FU8: =INDEX('MCL1 (42 Ligands)'!$AX$47:$BC$51, MATCH('Analysis (199 Ligands)'!FU$5, 'MCL1 (42 Ligands)'!$C$47:$C$51, 0), MATCH('Analysis (199 Ligands)'!FU$2, 'MCL1 (42 Ligands)'!$AX$2:$BC$2, 0)) -> 0.743902439
B9: TYK2 | C9: 16 | E9: =INDEX('TYK2 (16 Ligands)'!$E$21:$T$25, MATCH('Analysis (199 Ligands)'!E$5, 'TYK2 (16 Ligands)'!$C$21:$C$25, 0), MATCH('Analysis (199 Ligands)'!E$2, 'TYK2 (16 Ligands)'!$E$2:$T$2, 0)) -> 1.549142837 | F9: =INDEX('TYK2 (16 Ligands)'!$E$21:$T$25, MATCH('Analysis (199 Ligands)'!F$5, 'TYK2 (16 Ligands)'!$C$21:$C$25, 0), MATCH('Analysis (199 Ligands)'!F$2, 'TYK2 (16 Ligands)'!$E$2:$T$2, 0)) -> 2.039676999 | G9: =INDEX('TYK2 (16 Ligands)'!$E$21:$T$25, MATCH('Analysis (199 Ligands)'!G$5, 'TYK2 (16 Ligands)'!$C$21:$C$25, 0), MATCH('Analysis (199 Ligands)'!G$2, 'TYK2 (16 Ligands)'!$E$2:$T$2, 0)) -> -0.287248308 | H9: =INDEX('TYK2 (16 Ligands)'!$E$21:$T$25, MATCH('Analysis (199 Ligands)'!H$5, 'TYK2 (16 Ligands)'!$C$21:$C$25, 0), MATCH('Analysis (199 Ligands)'!H$2, 'TYK2 (16 Ligands)'!$E$2:$T$2, 0)) -> -0.2965487667 | I9: =INDEX('TYK2 (16 Ligands)'!$E$21:$T$25, MATCH('Analysis (199 Ligands)'!I$5, 'TYK2 (16 Ligands)'!$C$21:$C$25, 0), MATCH('Analysis (199 Ligands)'!I$2, 'TYK2 (16 Ligands)'!$E$2:$T$2, 0)) -> 0.4166666667 | J9: =INDEX('TYK2 (16 Ligands)'!$E$21:$T$25, MATCH('Analysis (199 Ligands)'!J$5, 'TYK2 (16 Ligands)'!$C$21:$C$25, 0), MATCH('Analysis (199 Ligands)'!J$2, 'TYK2 (16 Ligands)'!$E$2:$T$2, 0)) -> 1.655545205 | K9: =INDEX('TYK2 (16 Ligands)'!$E$21:$T$25, MATCH('Analysis (199 Ligands)'!K$5, 'TYK2 (16 Ligands)'!$C$21:$C$25, 0), MATCH('Analysis (199 Ligands)'!K$2, 'TYK2 (16 Ligands)'!$E$2:$T$2, 0)) -> 2.086896619 | L9: =INDEX('TYK2 (16 Ligands)'!$E$21:$T$25, MATCH('Analysis (199 Ligands)'!L$5, 'TYK2 (16 Ligands)'!$C$21:$C$25, 0), MATCH('Analysis (199 Ligands)'!L$2, 'TYK2 (16 Ligands)'!$E$2:$T$2, 0)) -> 0.1220460627 | M9: =INDEX('TYK2 (16 Ligands)'!$E$21:$T$25, MATCH('Analysis (199 Ligands)'!M$5, 'TYK2 (16 Ligands)'!$C$21:$C$25, 0), MATCH('Analysis (199 Ligands)'!M$2, 'TYK2 (16 Ligands)'!$E$2:$T$2, 0)) -> 0.05687348452 | N9: =INDEX('TYK2 (16 Ligands)'!$E$21:$T$25, MATCH('Analysis (199 Ligands)'!N$5, 'TYK2 (16 Ligands)'!$C$21:$C$25, 0), MATCH('Analysis (199 Ligands)'!N$2, 'TYK2 (16 Ligands)'!$E$2:$T$2, 0)) -> 0.5166666667 | O9: =INDEX('TYK2 (16 Ligands)'!$E$21:$T$25, MATCH('Analysis (199 Ligands)'!O$5, 'TYK2 (16 Ligands)'!$C$21:$C$25, 0), MATCH('Analysis (199 Ligands)'!O$2, 'TYK2 (16 Ligands)'!$E$2:$T$2, 0)) -> 1.466586917 | P9: =INDEX('TYK2 (16 Ligands)'!$E$21:$T$25, MATCH('Analysis (199 Ligands)'!P$5, 'TYK2 (16 Ligands)'!$C$21:$C$25, 0), MATCH('Analysis (199 Ligands)'!P$2, 'TYK2 (16 Ligands)'!$E$2:$T$2, 0)) -> 1.787406948 | Q9: =INDEX('TYK2 (16 Ligands)'!$E$21:$T$25, MATCH('Analysis (199 Ligands)'!Q$5, 'TYK2 (16 Ligands)'!$C$21:$C$25, 0), MATCH('Analysis (199 Ligands)'!Q$2, 'TYK2 (16 Ligands)'!$E$2:$T$2, 0)) -> -0.1914666552 | R9: =INDEX('TYK2 (16 Ligands)'!$E$21:$T$25, MATCH('Analysis (199 Ligands)'!R$5, 'TYK2 (16 Ligands)'!$C$21:$C$25, 0), MATCH('Analysis (199 Ligands)'!R$2, 'TYK2 (16 Ligands)'!$E$2:$T$2, 0)) -> -0.1930418324 | S9: =INDEX('TYK2 (16 Ligands)'!$E$21:$T$25, MATCH('Analysis (199 Ligands)'!S$5, 'TYK2 (16 Ligands)'!$C$21:$C$25, 0), MATCH('Analysis (199 Ligands)'!S$2, 'TYK2 (16 Ligands)'!$E$2:$T$2, 0)) -> 0.4833333333 | T9: =INDEX('TYK2 (16 Ligands)'!$E$21:$T$25, MATCH('Analysis (199 Ligands)'!T$5, 'TYK2 (16 Ligands)'!$C$21:$C$25, 0), MATCH('Analysis (199 Ligands)'!T$2, 'TYK2 (16 Ligands)'!$E$2:$T$2, 0)) -> 1.368700877 | U9: =INDEX('TYK2 (16 Ligands)'!$E$21:$T$25, MATCH('Analysis (199 Ligands)'!U$5, 'TYK2 (16 Ligands)'!$C$21:$C$25, 0), MATCH('Analysis (199 Ligands)'!U$2, 'TYK2 (16 Ligands)'!$E$2:$T$2, 0)) -> 1.826275389 | V9: =INDEX('TYK2 (16 Ligands)'!$E$21:$T$25, MATCH('Analysis (199 Ligands)'!V$5, 'TYK2 (16 Ligands)'!$C$21:$C$25, 0), MATCH('Analysis (199 Ligands)'!V$2, 'TYK2 (16 Ligands)'!$E$2:$T$2, 0)) -> 0.141026457 | W9: =INDEX('TYK2 (16 Ligands)'!$E$21:$T$25, MATCH('Analysis (199 Ligands)'!W$5, 'TYK2 (16 Ligands)'!$C$21:$C$25, 0), MATCH('Analysis (199 Ligands)'!W$2, 'TYK2 (16 Ligands)'!$E$2:$T$2, 0)) -> 0.1454448959 | X9: =INDEX('TYK2 (16 Ligands)'!$E$21:$T$25, MATCH('Analysis (199 Ligands)'!X$5, 'TYK2 (16 Ligands)'!$C$21:$C$25, 0), MATCH('Analysis (199 Ligands)'!X$2, 'TYK2 (16 Ligands)'!$E$2:$T$2, 0)) -> 0.55 | Z9: =INDEX('TYK2 (16 Ligands)'!$E$21:$T$25, MATCH('Analysis (199 Ligands)'!Z$5, 'TYK2 (16 Ligands)'!$C$21:$C$25, 0), MATCH('Analysis (199 Ligands)'!Z$2, 'TYK2 (16 Ligands)'!$E$2:$T$2, 0)) -> 1.425566499 | AA9: =INDEX('TYK2 (16 Ligands)'!$E$21:$T$25, MATCH('Analysis (199 Ligands)'!AA$5, 'TYK2 (16 Ligands)'!$C$21:$C$25, 0), MATCH('Analysis (199 Ligands)'!AA$2, 'TYK2 (16 Ligands)'!$E$2:$T$2, 0)) -> 1.841068357 | AB9: =INDEX('TYK2 (16 Ligands)'!$E$21:$T$25, MATCH('Analysis (199 Ligands)'!AB$5, 'TYK2 (16 Ligands)'!$C$21:$C$25, 0), MATCH('Analysis (199 Ligands)'!AB$2, 'TYK2 (16 Ligands)'!$E$2:$T$2, 0)) -> -0.1908192989 | AC9: =INDEX('TYK2 (16 Ligands)'!$E$21:$T$25, MATCH('Analysis (199 Ligands)'!AC$5, 'TYK2 (16 Ligands)'!$C$21:$C$25, 0), MATCH('Analysis (199 Ligands)'!AC$2, 'TYK2 (16 Ligands)'!$E$2:$T$2, 0)) -> -0.2520452522 | AD9: =INDEX('TYK2 (16 Ligands)'!$E$21:$T$25, MATCH('Analysis (199 Ligands)'!AD$5, 'TYK2 (16 Ligands)'!$C$21:$C$25, 0), MATCH('Analysis (199 Ligands)'!AD$2, 'TYK2 (16 Ligands)'!$E$2:$T$2, 0)) -> 0.4416666667 | AE9: =INDEX('TYK2 (16 Ligands)'!$E$21:$T$25, MATCH('Analysis (199 Ligands)'!AE$5, 'TYK2 (16 Ligands)'!$C$21:$C$25, 0), MATCH('Analysis (199 Ligands)'!AE$2, 'TYK2 (16 Ligands)'!$E$2:$T$2, 0)) -> 1.23782183 | AF9: =INDEX('TYK2 (16 Ligands)'!$E$21:$T$25, MATCH('Analysis (199 Ligands)'!AF$5, 'TYK2 (16 Ligands)'!$C$21:$C$25, 0), MATCH('Analysis (199 Ligands)'!AF$2, 'TYK2 (16 Ligands)'!$E$2:$T$2, 0)) -> 1.633961147 | AG9: =INDEX('TYK2 (16 Ligands)'!$E$21:$T$25, MATCH('Analysis (199 Ligands)'!AG$5, 'TYK2 (16 Ligands)'!$C$21:$C$25, 0), MATCH('Analysis (199 Ligands)'!AG$2, 'TYK2 (16 Ligands)'!$E$2:$T$2, 0)) -> 0.3451109058 | AH9: =INDEX('TYK2 (16 Ligands)'!$E$21:$T$25, MATCH('Analysis (199 Ligands)'!AH$5, 'TYK2 (16 Ligands)'!$C$21:$C$25, 0), MATCH('Analysis (199 Ligands)'!AH$2, 'TYK2 (16 Ligands)'!$E$2:$T$2, 0)) -> 0.3792373895 | AI9: =INDEX('TYK2 (16 Ligands)'!$E$21:$T$25, MATCH('Analysis (199 Ligands)'!AI$5, 'TYK2 (16 Ligands)'!$C$21:$C$25, 0), MATCH('Analysis (199 Ligands)'!AI$2, 'TYK2 (16 Ligands)'!$E$2:$T$2, 0)) -> 0.65 | AJ9: =INDEX('TYK2 (16 Ligands)'!$E$21:$T$25, MATCH('Analysis (199 Ligands)'!AJ$5, 'TYK2 (16 Ligands)'!$C$21:$C$25, 0), MATCH('Analysis (199 Ligands)'!AJ$2, 'TYK2 (16 Ligands)'!$E$2:$T$2, 0)) -> 1.457336917 | AK9: =INDEX('TYK2 (16 Ligands)'!$E$21:$T$25, MATCH('Analysis (199 Ligands)'!AK$5, 'TYK2 (16 Ligands)'!$C$21:$C$25, 0), MATCH('Analysis (199 Ligands)'!AK$2, 'TYK2 (16 Ligands)'!$E$2:$T$2, 0)) -> 1.706595646 | AL9: =INDEX('TYK2 (16 Ligands)'!$E$21:$T$25, MATCH('Analysis (199 Ligands)'!AL$5, 'TYK2 (16 Ligands)'!$C$21:$C$25, 0), MATCH('Analysis (199 Ligands)'!AL$2, 'TYK2 (16 Ligands)'!$E$2:$T$2, 0)) -> -0.2012384863 | AM9: =INDEX('TYK2 (16 Ligands)'!$E$21:$T$25, MATCH('Analysis (199 Ligands)'!AM$5, 'TYK2 (16 Ligands)'!$C$21:$C$25, 0), MATCH('Analysis (199 Ligands)'!AM$2, 'TYK2 (16 Ligands)'!$E$2:$T$2, 0)) -> -0.09962688529 | AN9: =INDEX('TYK2 (16 Ligands)'!$E$21:$T$25, MATCH('Analysis (199 Ligands)'!AN$5, 'TYK2 (16 Ligands)'!$C$21:$C$25, 0), MATCH('Analysis (199 Ligands)'!AN$2, 'TYK2 (16 Ligands)'!$E$2:$T$2, 0)) -> 0.475 | AO9: =INDEX('TYK2 (16 Ligands)'!$E$21:$T$25, MATCH('Analysis (199 Ligands)'!AO$5, 'TYK2 (16 Ligands)'!$C$21:$C$25, 0), MATCH('Analysis (199 Ligands)'!AO$2, 'TYK2 (16 Ligands)'!$E$2:$T$2, 0)) -> 1.131094552 | AP9: =INDEX('TYK2 (16 Ligands)'!$E$21:$T$25, MATCH('Analysis (199 Ligands)'!AP$5, 'TYK2 (16 Ligands)'!$C$21:$C$25, 0), MATCH('Analysis (199 Ligands)'!AP$2, 'TYK2 (16 Ligands)'!$E$2:$T$2, 0)) -> 1.417424695 | AQ9: =INDEX('TYK2 (16 Ligands)'!$E$21:$T$25, MATCH('Analysis (199 Ligands)'!AQ$5, 'TYK2 (16 Ligands)'!$C$21:$C$25, 0), MATCH('Analysis (199 Ligands)'!AQ$2, 'TYK2 (16 Ligands)'!$E$2:$T$2, 0)) -> 0.3029702021 | AR9: =INDEX('TYK2 (16 Ligands)'!$E$21:$T$25, MATCH('Analysis (199 Ligands)'!AR$5, 'TYK2 (16 Ligands)'!$C$21:$C$25, 0), MATCH('Analysis (199 Ligands)'!AR$2, 'TYK2 (16 Ligands)'!$E$2:$T$2, 0)) -> 0.2433411775 | AS9: =INDEX('TYK2 (16 Ligands)'!$E$21:$T$25, MATCH('Analysis (199 Ligands)'!AS$5, 'TYK2 (16 Ligands)'!$C$21:$C$25, 0), MATCH('Analysis (199 Ligands)'!AS$2, 'TYK2 (16 Ligands)'!$E$2:$T$2, 0)) -> 0.5916666667 | AU9: =INDEX('TYK2 (16 Ligands)'!$E$21:$T$25, MATCH('Analysis (199 Ligands)'!AU$5, 'TYK2 (16 Ligands)'!$C$21:$C$25, 0), MATCH('Analysis (199 Ligands)'!AU$2, 'TYK2 (16 Ligands)'!$E$2:$T$2, 0)) -> 1.124745593 | AV9: =INDEX('TYK2 (16 Ligands)'!$E$21:$T$25, MATCH('Analysis (199 Ligands)'!AV$5, 'TYK2 (16 Ligands)'!$C$21:$C$25, 0), MATCH('Analysis (199 Ligands)'!AV$2, 'TYK2 (16 Ligands)'!$E$2:$T$2, 0)) -> 1.481205051 | AW9: =INDEX('TYK2 (16 Ligands)'!$E$21:$T$25, MATCH('Analysis (199 Ligands)'!AW$5, 'TYK2 (16 Ligands)'!$C$21:$C$25, 0), MATCH('Analysis (199 Ligands)'!AW$2, 'TYK2 (16 Ligands)'!$E$2:$T$2, 0)) -> -0.1225667501 | AX9: =INDEX('TYK2 (16 Ligands)'!$E$21:$T$25, MATCH('Analysis (199 Ligands)'!AX$5, 'TYK2 (16 Ligands)'!$C$21:$C$25, 0), MATCH('Analysis (199 Ligands)'!AX$2, 'TYK2 (16 Ligands)'!$E$2:$T$2, 0)) -> -0.1837124703 | AY9: =INDEX('TYK2 (16 Ligands)'!$E$21:$T$25, MATCH('Analysis (199 Ligands)'!AY$5, 'TYK2 (16 Ligands)'!$C$21:$C$25, 0), MATCH('Analysis (199 Ligands)'!AY$2, 'TYK2 (16 Ligands)'!$E$2:$T$2, 0)) -> 0.4583333333 | AZ9: =INDEX('TYK2 (16 Ligands)'!$E$21:$T$25, MATCH('Analysis (199 Ligands)'!AZ$5, 'TYK2 (16 Ligands)'!$C$21:$C$25, 0), MATCH('Analysis (199 Ligands)'!AZ$2, 'TYK2 (16 Ligands)'!$E$2:$T$2, 0)) -> 1.097787777 | BA9: =INDEX('TYK2 (16 Ligands)'!$E$21:$T$25, MATCH('Analysis (199 Ligands)'!BA$5, 'TYK2 (16 Ligands)'!$C$21:$C$25, 0), MATCH('Analysis (199 Ligands)'!BA$2, 'TYK2 (16 Ligands)'!$E$2:$T$2, 0)) -> 1.330553289 | BB9: =INDEX('TYK2 (16 Ligands)'!$E$21:$T$25, MATCH('Analysis (199 Ligands)'!BB$5, 'TYK2 (16 Ligands)'!$C$21:$C$25, 0), MATCH('Analysis (199 Ligands)'!BB$2, 'TYK2 (16 Ligands)'!$E$2:$T$2, 0)) -> 0.4396476057 | BC9: =INDEX('TYK2 (16 Ligands)'!$E$21:$T$25, MATCH('Analysis (199 Ligands)'!BC$5, 'TYK2 (16 Ligands)'!$C$21:$C$25, 0), MATCH('Analysis (199 Ligands)'!BC$2, 'TYK2 (16 Ligands)'!$E$2:$T$2, 0)) -> 0.4556694543 | BD9: =INDEX('TYK2 (16 Ligands)'!$E$21:$T$25, MATCH('Analysis (199 Ligands)'!BD$5, 'TYK2 (16 Ligands)'!$C$21:$C$25, 0), MATCH('Analysis (199 Ligands)'!BD$2, 'TYK2 (16 Ligands)'!$E$2:$T$2, 0)) -> 0.6416666667 | BE9: =INDEX('TYK2 (16 Ligands)'!$E$21:$T$25, MATCH('Analysis (199 Ligands)'!BE$5, 'TYK2 (16 Ligands)'!$C$21:$C$25, 0), MATCH('Analysis (199 Ligands)'!BE$2, 'TYK2 (16 Ligands)'!$E$2:$T$2, 0)) -> 1.397049945 | BF9: =INDEX('TYK2 (16 Ligands)'!$E$21:$T$25, MATCH('Analysis (199 Ligands)'!BF$5, 'TYK2 (16 Ligands)'!$C$21:$C$25, 0), MATCH('Analysis (199 Ligands)'!BF$2, 'TYK2 (16 Ligands)'!$E$2:$T$2, 0)) -> 1.634720256 | BG9: =INDEX('TYK2 (16 Ligands)'!$E$21:$T$25, MATCH('Analysis (199 Ligands)'!BG$5, 'TYK2 (16 Ligands)'!$C$21:$C$25, 0), MATCH('Analysis (199 Ligands)'!BG$2, 'TYK2 (16 Ligands)'!$E$2:$T$2, 0)) -> -0.2184368312 | BH9: =INDEX('TYK2 (16 Ligands)'!$E$21:$T$25, MATCH('Analysis (199 Ligands)'!BH$5, 'TYK2 (16 Ligands)'!$C$21:$C$25, 0), MATCH('Analysis (199 Ligands)'!BH$2, 'TYK2 (16 Ligands)'!$E$2:$T$2, 0)) -> -0.1982060217 | BI9: =INDEX('TYK2 (16 Ligands)'!$E$21:$T$25, MATCH('Analysis (199 Ligands)'!BI$5, 'TYK2 (16 Ligands)'!$C$21:$C$25, 0), MATCH('Analysis (199 Ligands)'!BI$2, 'TYK2 (16 Ligands)'!$E$2:$T$2, 0)) -> 0.4666666667 | BJ9: =INDEX('TYK2 (16 Ligands)'!$E$21:$T$25, MATCH('Analysis (199 Ligands)'!BJ$5, 'TYK2 (16 Ligands)'!$C$21:$C$25, 0), MATCH('Analysis (199 Ligands)'!BJ$2, 'TYK2 (16 Ligands)'!$E$2:$T$2, 0)) -> 0.9122914373 | BK9: =INDEX('TYK2 (16 Ligands)'!$E$21:$T$25, MATCH('Analysis (199 Ligands)'!BK$5, 'TYK2 (16 Ligands)'!$C$21:$C$25, 0), MATCH('Analysis (199 Ligands)'!BK$2, 'TYK2 (16 Ligands)'!$E$2:$T$2, 0)) -> 1.160715771 | BL9: =INDEX('TYK2 (16 Ligands)'!$E$21:$T$25, MATCH('Analysis (199 Ligands)'!BL$5, 'TYK2 (16 Ligands)'!$C$21:$C$25, 0), MATCH('Analysis (199 Ligands)'!BL$2, 'TYK2 (16 Ligands)'!$E$2:$T$2, 0)) -> 0.5926147525 | BM9: =INDEX('TYK2 (16 Ligands)'!$E$21:$T$25, MATCH('Analysis (199 Ligands)'!BM$5, 'TYK2 (16 Ligands)'!$C$21:$C$25, 0), MATCH('Analysis (199 Ligands)'!BM$2, 'TYK2 (16 Ligands)'!$E$2:$T$2, 0)) -> 0.7211603701 | BN9: =INDEX('TYK2 (16 Ligands)'!$E$21:$T$25, MATCH('Analysis (199 Ligands)'!BN$5, 'TYK2 (16 Ligands)'!$C$21:$C$25, 0), MATCH('Analysis (199 Ligands)'!BN$2, 'TYK2 (16 Ligands)'!$E$2:$T$2, 0)) -> 0.775 | BP9: =INDEX('TYK2 (16 Ligands)'!$E$21:$T$25, MATCH('Analysis (199 Ligands)'!BP$5, 'TYK2 (16 Ligands)'!$C$21:$C$25, 0), MATCH('Analysis (199 Ligands)'!BP$2, 'TYK2 (16 Ligands)'!$E$2:$T$2, 0)) -> 1.021273479 | BQ9: =INDEX('TYK2 (16 Ligands)'!$E$21:$T$25, MATCH('Analysis (199 Ligands)'!BQ$5, 'TYK2 (16 Ligands)'!$C$21:$C$25, 0), MATCH('Analysis (199 Ligands)'!BQ$2, 'TYK2 (16 Ligands)'!$E$2:$T$2, 0)) -> 1.245162605 | BR9: =INDEX('TYK2 (16 Ligands)'!$E$21:$T$25, MATCH('Analysis (199 Ligands)'!BR$5, 'TYK2 (16 Ligands)'!$C$21:$C$25, 0), MATCH('Analysis (199 Ligands)'!BR$2, 'TYK2 (16 Ligands)'!$E$2:$T$2, 0)) -> 0.3440611959 | BS9: =INDEX('TYK2 (16 Ligands)'!$E$21:$T$25, MATCH('Analysis (199 Ligands)'!BS$5, 'TYK2 (16 Ligands)'!$C$21:$C$25, 0), MATCH('Analysis (199 Ligands)'!BS$2, 'TYK2 (16 Ligands)'!$E$2:$T$2, 0)) -> 0.3521288605 | BT9: =INDEX('TYK2 (16 Ligands)'!$E$21:$T$25, MATCH('Analysis (199 Ligands)'!BT$5, 'TYK2 (16 Ligands)'!$C$21:$C$25, 0), MATCH('Analysis (199 Ligands)'!BT$2, 'TYK2 (16 Ligands)'!$E$2:$T$2, 0)) -> 0.6166666667 | BU9: =INDEX('TYK2 (16 Ligands)'!$E$21:$T$25, MATCH('Analysis (199 Ligands)'!BU$5, 'TYK2 (16 Ligands)'!$C$21:$C$25, 0), MATCH('Analysis (199 Ligands)'!BU$2, 'TYK2 (16 Ligands)'!$E$2:$T$2, 0)) -> 1.192346321 | BV9: =INDEX('TYK2 (16 Ligands)'!$E$21:$T$25, MATCH('Analysis (199 Ligands)'!BV$5, 'TYK2 (16 Ligands)'!$C$21:$C$25, 0), MATCH('Analysis (199 Ligands)'!BV$2, 'TYK2 (16 Ligands)'!$E$2:$T$2, 0)) -> 1.450594305 | BW9: =INDEX('TYK2 (16 Ligands)'!$E$21:$T$25, MATCH('Analysis (199 Ligands)'!BW$5, 'TYK2 (16 Ligands)'!$C$21:$C$25, 0), MATCH('Analysis (199 Ligands)'!BW$2, 'TYK2 (16 Ligands)'!$E$2:$T$2, 0)) -> 0.3642003023 | BX9: =INDEX('TYK2 (16 Ligands)'!$E$21:$T$25, MATCH('Analysis (199 Ligands)'!BX$5, 'TYK2 (16 Ligands)'!$C$21:$C$25, 0), MATCH('Analysis (199 Ligands)'!BX$2, 'TYK2 (16 Ligands)'!$E$2:$T$2, 0)) -> 0.3408952862 | BY9: =INDEX('TYK2 (16 Ligands)'!$E$21:$T$25, MATCH('Analysis (199 Ligands)'!BY$5, 'TYK2 (16 Ligands)'!$C$21:$C$25, 0), MATCH('Analysis (199 Ligands)'!BY$2, 'TYK2 (16 Ligands)'!$E$2:$T$2, 0)) -> 0.6083333333 | BZ9: =INDEX('TYK2 (16 Ligands)'!$E$21:$T$25, MATCH('Analysis (199 Ligands)'!BZ$5, 'TYK2 (16 Ligands)'!$C$21:$C$25, 0), MATCH('Analysis (199 Ligands)'!BZ$2, 'TYK2 (16 Ligands)'!$E$2:$T$2, 0)) -> 1.486601271 | CA9: =INDEX('TYK2 (16 Ligands)'!$E$21:$T$25, MATCH('Analysis (199 Ligands)'!CA$5, 'TYK2 (16 Ligands)'!$C$21:$C$25, 0), MATCH('Analysis (199 Ligands)'!CA$2, 'TYK2 (16 Ligands)'!$E$2:$T$2, 0)) -> 1.817760982 | CB9: =INDEX('TYK2 (16 Ligands)'!$E$21:$T$25, MATCH('Analysis (199 Ligands)'!CB$5, 'TYK2 (16 Ligands)'!$C$21:$C$25, 0), MATCH('Analysis (199 Ligands)'!CB$2, 'TYK2 (16 Ligands)'!$E$2:$T$2, 0)) -> 0.2374702872 | CC9: =INDEX('TYK2 (16 Ligands)'!$E$21:$T$25, MATCH('Analysis (199 Ligands)'!CC$5, 'TYK2 (16 Ligands)'!$C$21:$C$25, 0), MATCH('Analysis (199 Ligands)'!CC$2, 'TYK2 (16 Ligands)'!$E$2:$T$2, 0)) -> 0.2122803569 | CD9: =INDEX('TYK2 (16 Ligands)'!$E$21:$T$25, MATCH('Analysis (199 Ligands)'!CD$5, 'TYK2 (16 Ligands)'!$C$21:$C$25, 0), MATCH('Analysis (199 Ligands)'!CD$2, 'TYK2 (16 Ligands)'!$E$2:$T$2, 0)) -> 0.5583333333 | CE9: =INDEX('TYK2 (16 Ligands)'!$E$21:$T$25, MATCH('Analysis (199 Ligands)'!CE$5, 'TYK2 (16 Ligands)'!$C$21:$C$25, 0), MATCH('Analysis (199 Ligands)'!CE$2, 'TYK2 (16 Ligands)'!$E$2:$T$2, 0)) -> 1.905158821 | CF9: =INDEX('TYK2 (16 Ligands)'!$E$21:$T$25, MATCH('Analysis (199 Ligands)'!CF$5, 'TYK2 (16 Ligands)'!$C$21:$C$25, 0), MATCH('Analysis (199 Ligands)'!CF$2, 'TYK2 (16 Ligands)'!$E$2:$T$2, 0)) -> 2.341575071 | CG9: =INDEX('TYK2 (16 Ligands)'!$E$21:$T$25, MATCH('Analysis (199 Ligands)'!CG$5, 'TYK2 (16 Ligands)'!$C$21:$C$25, 0), MATCH('Analysis (199 Ligands)'!CG$2, 'TYK2 (16 Ligands)'!$E$2:$T$2, 0)) -> -0.02534592681 | CH9: =INDEX('TYK2 (16 Ligands)'!$E$21:$T$25, MATCH('Analysis (199 Ligands)'!CH$5, 'TYK2 (16 Ligands)'!$C$21:$C$25, 0), MATCH('Analysis (199 Ligands)'!CH$2, 'TYK2 (16 Ligands)'!$E$2:$T$2, 0)) -> -0.1170083759 | CI9: =INDEX('TYK2 (16 Ligands)'!$E$21:$T$25, MATCH('Analysis (199 Ligands)'!CI$5, 'TYK2 (16 Ligands)'!$C$21:$C$25, 0), MATCH('Analysis (199 Ligands)'!CI$2, 'TYK2 (16 Ligands)'!$E$2:$T$2, 0)) -> 0.4666666667 | CK9: =INDEX($E$2:$CI$2, MATCH(MIN(IF(CL$5 = $E$5:$CI$5, $E9:$CI9, 999999)),IF(CL$5 = $E$5:$CI$5, $E9:$CI9, 999999),0)) -> SX21 (r = 5 A) | CL9: =IFERROR(INDEX($E9:$CI9, SMALL(IF(CK9 = $E$2:$CI$2, COLUMN($E$2:$CI$2) - MIN(COLUMN($E$2:$CI$2))+1, ""), COLUMN(CL9:CP9) - COLUMN(CL9)+1)), "") -> 0.9122914373 | CM9: 1.160715771 | CN9: 0.5926147525 | CO9: 0.7211603701 | CP9: 0.775 | CQ9: =INDEX($E$2:$CI$2, MATCH(MIN(IF(CS$5 = $E$5:$CI$5, $E9:$CI9, 999999)),IF(CS$5 = $E$5:$CI$5, $E9:$CI9, 999999),0)) -> SX21 (r = 5 A) | CR9: =IFERROR(INDEX($E9:$CI9, SMALL(IF(CQ9 = $E$2:$CI$2, COLUMN($E$2:$CI$2) - MIN(COLUMN($E$2:$CI$2))+1, ""), COLUMN(CR9:CV9) - COLUMN(CR9)+1)), "") -> 0.9122914373 | CS9: 1.160715771 | CT9: 0.5926147525 | CU9: 0.7211603701 | CV9: 0.775 | CW9: =INDEX($E$2:$CI$2, MATCH(MAX(IF(CZ$5 = $E$5:$CI$5, $E9:$CI9, -1)),IF(CZ$5 = $E$5:$CI$5, $E9:$CI9, -1),0)) -> SX21 (r = 5 A) | CX9: =IFERROR(INDEX($E9:$CI9, SMALL(IF(CW9 = $E$2:$CI$2, COLUMN($E$2:$CI$2) - MIN(COLUMN($E$2:$CI$2))+1, ""), COLUMN(CX9:DB9) - COLUMN(CX9)+1)), "") -> 0.9122914373 | CY9: 1.160715771 | CZ9: 0.5926147525 | DA9: 0.7211603701 | DB9: 0.775 | DC9: =INDEX($E$2:$CI$2, MATCH(MAX(IF(DG$5 = $E$5:$CI$5, $E9:$CI9, -1)),IF(DG$5 = $E$5:$CI$5, $E9:$CI9, -1),0)) -> SX21 (r = 5 A) | DD9: =IFERROR(INDEX($E9:$CI9, SMALL(IF(DC9 = $E$2:$CI$2, COLUMN($E$2:$CI$2) - MIN(COLUMN($E$2:$CI$2))+1, ""), COLUMN(DD9:DH9) - COLUMN(DD9)+1)), "") -> 0.9122914373 | DE9: 1.160715771 | DF9: 0.5926147525 | DG9: 0.7211603701 | DH9: 0.775 | DI9: =INDEX($E$2:$CI$2, MATCH(MAX(IF(DN$5 = $E$5:$CI$5, $E9:$CI9, -1)),IF(DN$5 = $E$5:$CI$5, $E9:$CI9, -1),0)) -> SX21 (r = 5 A) | DJ9: =IFERROR(INDEX($E9:$CI9, SMALL(IF(DI9 = $E$2:$CI$2, COLUMN($E$2:$CI$2) - MIN(COLUMN($E$2:$CI$2))+1, ""), COLUMN(DJ9:DN9) - COLUMN(DJ9)+1)), "") -> 0.9122914373 | DK9: 1.160715771 | DL9: 0.5926147525 | DM9: 0.7211603701 | DN9: 0.775 | DP9: =INDEX('TYK2 (16 Ligands)'!$V$21:$AV$25, MATCH('Analysis (199 Ligands)'!DP$5, 'TYK2 (16 Ligands)'!$C$21:$C$25, 0), MATCH('Analysis (199 Ligands)'!DP$2, 'TYK2 (16 Ligands)'!$V$2:$AV$2, 0)) -> 1.047710567 | DQ9: =INDEX('TYK2 (16 Ligands)'!$V$21:$AV$25, MATCH('Analysis (199 Ligands)'!DQ$5, 'TYK2 (16 Ligands)'!$C$21:$C$25, 0), MATCH('Analysis (199 Ligands)'!DQ$2, 'TYK2 (16 Ligands)'!$V$2:$AV$2, 0)) -> 1.254162272 | DR9: =INDEX('TYK2 (16 Ligands)'!$V$21:$AV$25, MATCH('Analysis (199 Ligands)'!DR$5, 'TYK2 (16 Ligands)'!$C$21:$C$25, 0), MATCH('Analysis (199 Ligands)'!DR$2, 'TYK2 (16 Ligands)'!$V$2:$AV$2, 0)) -> 0.3146906897 | DS9: =INDEX('TYK2 (16 Ligands)'!$V$21:$AV$25, MATCH('Analysis (199 Ligands)'!DS$5, 'TYK2 (16 Ligands)'!$C$21:$C$25, 0), MATCH('Analysis (199 Ligands)'!DS$2, 'TYK2 (16 Ligands)'!$V$2:$AV$2, 0)) -> 0.4714581775 | DT9: =INDEX('TYK2 (16 Ligands)'!$V$21:$AV$25, MATCH('Analysis (199 Ligands)'!DT$5, 'TYK2 (16 Ligands)'!$C$21:$C$25, 0), MATCH('Analysis (199 Ligands)'!DT$2, 'TYK2 (16 Ligands)'!$V$2:$AV$2, 0)) -> 0.6416666667 | DU9: =INDEX('TYK2 (16 Ligands)'!$V$21:$AV$25, MATCH('Analysis (199 Ligands)'!DU$5, 'TYK2 (16 Ligands)'!$C$21:$C$25, 0), MATCH('Analysis (199 Ligands)'!DU$2, 'TYK2 (16 Ligands)'!$V$2:$AV$2, 0)) -> 0.8262172476 | DV9: =INDEX('TYK2 (16 Ligands)'!$V$21:$AV$25, MATCH('Analysis (199 Ligands)'!DV$5, 'TYK2 (16 Ligands)'!$C$21:$C$25, 0), MATCH('Analysis (199 Ligands)'!DV$2, 'TYK2 (16 Ligands)'!$V$2:$AV$2, 0)) -> 0.9407375549 | DW9: =INDEX('TYK2 (16 Ligands)'!$V$21:$AV$25, MATCH('Analysis (199 Ligands)'!DW$5, 'TYK2 (16 Ligands)'!$C$21:$C$25, 0), MATCH('Analysis (199 Ligands)'!DW$2, 'TYK2 (16 Ligands)'!$V$2:$AV$2, 0)) -> 0.6842028462 | DX9: =INDEX('TYK2 (16 Ligands)'!$V$21:$AV$25, MATCH('Analysis (199 Ligands)'!DX$5, 'TYK2 (16 Ligands)'!$C$21:$C$25, 0), MATCH('Analysis (199 Ligands)'!DX$2, 'TYK2 (16 Ligands)'!$V$2:$AV$2, 0)) -> 0.7432686775 | DY9: =INDEX('TYK2 (16 Ligands)'!$V$21:$AV$25, MATCH('Analysis (199 Ligands)'!DY$5, 'TYK2 (16 Ligands)'!$C$21:$C$25, 0), MATCH('Analysis (199 Ligands)'!DY$2, 'TYK2 (16 Ligands)'!$V$2:$AV$2, 0)) -> 0.7416666667 | DZ9: =INDEX('TYK2 (16 Ligands)'!$V$21:$AV$25, MATCH('Analysis (199 Ligands)'!DZ$5, 'TYK2 (16 Ligands)'!$C$21:$C$25, 0), MATCH('Analysis (199 Ligands)'!DZ$2, 'TYK2 (16 Ligands)'!$V$2:$AV$2, 0)) -> 2.248409403 | EA9: =INDEX('TYK2 (16 Ligands)'!$V$21:$AV$25, MATCH('Analysis (199 Ligands)'!EA$5, 'TYK2 (16 Ligands)'!$C$21:$C$25, 0), MATCH('Analysis (199 Ligands)'!EA$2, 'TYK2 (16 Ligands)'!$V$2:$AV$2, 0)) -> 2.55295671 | EB9: =INDEX('TYK2 (16 Ligands)'!$V$21:$AV$25, MATCH('Analysis (199 Ligands)'!EB$5, 'TYK2 (16 Ligands)'!$C$21:$C$25, 0), MATCH('Analysis (199 Ligands)'!EB$2, 'TYK2 (16 Ligands)'!$V$2:$AV$2, 0)) -> 0.2513283295 | EC9: =INDEX('TYK2 (16 Ligands)'!$V$21:$AV$25, MATCH('Analysis (199 Ligands)'!EC$5, 'TYK2 (16 Ligands)'!$C$21:$C$25, 0), MATCH('Analysis (199 Ligands)'!EC$2, 'TYK2 (16 Ligands)'!$V$2:$AV$2, 0)) -> 0.247366218 | ED9: =INDEX('TYK2 (16 Ligands)'!$V$21:$AV$25, MATCH('Analysis (199 Ligands)'!ED$5, 'TYK2 (16 Ligands)'!$C$21:$C$25, 0), MATCH('Analysis (199 Ligands)'!ED$2, 'TYK2 (16 Ligands)'!$V$2:$AV$2, 0)) -> 0.55 | EE9: =INDEX('TYK2 (16 Ligands)'!$V$21:$AV$25, MATCH('Analysis (199 Ligands)'!EE$5, 'TYK2 (16 Ligands)'!$C$21:$C$25, 0), MATCH('Analysis (199 Ligands)'!EE$2, 'TYK2 (16 Ligands)'!$V$2:$AV$2, 0)) -> 1.506216401 | EF9: =INDEX('TYK2 (16 Ligands)'!$V$21:$AV$25, MATCH('Analysis (199 Ligands)'!EF$5, 'TYK2 (16 Ligands)'!$C$21:$C$25, 0), MATCH('Analysis (199 Ligands)'!EF$2, 'TYK2 (16 Ligands)'!$V$2:$AV$2, 0)) -> 1.760094768 | EG9: =INDEX('TYK2 (16 Ligands)'!$V$21:$AV$25, MATCH('Analysis (199 Ligands)'!EG$5, 'TYK2 (16 Ligands)'!$C$21:$C$25, 0), MATCH('Analysis (199 Ligands)'!EG$2, 'TYK2 (16 Ligands)'!$V$2:$AV$2, 0)) -> 0.5256325846 | EH9: =INDEX('TYK2 (16 Ligands)'!$V$21:$AV$25, MATCH('Analysis (199 Ligands)'!EH$5, 'TYK2 (16 Ligands)'!$C$21:$C$25, 0), MATCH('Analysis (199 Ligands)'!EH$2, 'TYK2 (16 Ligands)'!$V$2:$AV$2, 0)) -> 0.5402145446 | EI9: =INDEX('TYK2 (16 Ligands)'!$V$21:$AV$25, MATCH('Analysis (199 Ligands)'!EI$5, 'TYK2 (16 Ligands)'!$C$21:$C$25, 0), MATCH('Analysis (199 Ligands)'!EI$2, 'TYK2 (16 Ligands)'!$V$2:$AV$2, 0)) -> 0.7 | EK9: =INDEX($DP$2:$EI$2, MATCH(MAX(IF($EP$5 = $DP$5:$EI$5, $DP9:$EI9, -1)),IF($EP$5 = $DP$5:$EI$5, $DP9:$EI9, -1),0)) -> GAX21* (r = 5 A) | EL9: =IFERROR(INDEX($DP9:$EI9, SMALL(IF(EK9 = $DP$2:$EI$2, COLUMN($DP$2:$EI$2) - MIN(COLUMN($DP$2:$EI$2))+1, ""), COLUMN(EL9:EP9) - COLUMN(EL9)+1)), "") -> 0.8262172476 | EM9: 0.9407375549 | EN9: 0.6842028462 | EO9: 0.7432686775 | EP9: 0.7416666667 | ER9: =INDEX('TYK2 (16 Ligands)'!$AX$21:$BC$25, MATCH('Analysis (199 Ligands)'!ER$5, 'TYK2 (16 Ligands)'!$C$21:$C$25, 0), MATCH('Analysis (199 Ligands)'!ER$2, 'TYK2 (16 Ligands)'!$AX$2:$BC$2, 0)) -> 0.4438498456 | ES9: =INDEX('TYK2 (16 Ligands)'!$AX$21:$BC$25, MATCH('Analysis (199 Ligands)'!ES$5, 'TYK2 (16 Ligands)'!$C$21:$C$25, 0), MATCH('Analysis (199 Ligands)'!ES$2, 'TYK2 (16 Ligands)'!$AX$2:$BC$2, 0)) -> 0.570445644 | ET9: =INDEX('TYK2 (16 Ligands)'!$AX$21:$BC$25, MATCH('Analysis (199 Ligands)'!ET$5, 'TYK2 (16 Ligands)'!$C$21:$C$25, 0), MATCH('Analysis (199 Ligands)'!ET$2, 'TYK2 (16 Ligands)'!$AX$2:$BC$2, 0)) -> 0.8908584928 | EU9: =INDEX('TYK2 (16 Ligands)'!$AX$21:$BC$25, MATCH('Analysis (199 Ligands)'!EU$5, 'TYK2 (16 Ligands)'!$C$21:$C$25, 0), MATCH('Analysis (199 Ligands)'!EU$2, 'TYK2 (16 Ligands)'!$AX$2:$BC$2, 0)) -> 0.9095821126 | EV9: =INDEX('TYK2 (16 Ligands)'!$AX$21:$BC$25, MATCH('Analysis (199 Ligands)'!EV$5, 'TYK2 (16 Ligands)'!$C$21:$C$25, 0), MATCH('Analysis (199 Ligands)'!EV$2, 'TYK2 (16 Ligands)'!$AX$2:$BC$2, 0)) -> 0.85 | EW9: =INDEX('TYK2 (16 Ligands)'!$AX$21:$BC$25, MATCH('Analysis (199 Ligands)'!EW$5, 'TYK2 (16 Ligands)'!$C$21:$C$25, 0), MATCH('Analysis (199 Ligands)'!EW$2, 'TYK2 (16 Ligands)'!$AX$2:$BC$2, 0)) -> 0.705534696 | EX9: =INDEX('TYK2 (16 Ligands)'!$AX$21:$BC$25, MATCH('Analysis (199 Ligands)'!EX$5, 'TYK2 (16 Ligands)'!$C$21:$C$25, 0), MATCH('Analysis (199 Ligands)'!EX$2, 'TYK2 (16 Ligands)'!$AX$2:$BC$2, 0)) -> 0.8650933867 | EY9: =INDEX('TYK2 (16 Ligands)'!$AX$21:$BC$25, MATCH('Analysis (199 Ligands)'!EY$5, 'TYK2 (16 Ligands)'!$C$21:$C$25, 0), MATCH('Analysis (199 Ligands)'!EY$2, 'TYK2 (16 Ligands)'!$AX$2:$BC$2, 0)) -> 0.7252492262 | EZ9: =INDEX('TYK2 (16 Ligands)'!$AX$21:$BC$25, MATCH('Analysis (199 Ligands)'!EZ$5, 'TYK2 (16 Ligands)'!$C$21:$C$25, 0), MATCH('Analysis (199 Ligands)'!EZ$2, 'TYK2 (16 Ligands)'!$AX$2:$BC$2, 0)) -> 0.7277482014 | FA9: =INDEX('TYK2 (16 Ligands)'!$AX$21:$BC$25, MATCH('Analysis (199 Ligands)'!FA$5, 'TYK2 (16 Ligands)'!$C$21:$C$25, 0), MATCH('Analysis (199 Ligands)'!FA$2, 'TYK2 (16 Ligands)'!$AX$2:$BC$2, 0)) -> 0.7625 | FB9: =INDEX('TYK2 (16 Ligands)'!$AX$21:$BC$25, MATCH('Analysis (199 Ligands)'!FB$5, 'TYK2 (16 Ligands)'!$C$21:$C$25, 0), MATCH('Analysis (199 Ligands)'!FB$2, 'TYK2 (16 Ligands)'!$AX$2:$BC$2, 0)) -> 0.8683228126 | FC9: =INDEX('TYK2 (16 Ligands)'!$AX$21:$BC$25, MATCH('Analysis (199 Ligands)'!FC$5, 'TYK2 (16 Ligands)'!$C$21:$C$25, 0), MATCH('Analysis (199 Ligands)'!FC$2, 'TYK2 (16 Ligands)'!$AX$2:$BC$2, 0)) -> 0.9672766921 | FD9: =INDEX('TYK2 (16 Ligands)'!$AX$21:$BC$25, MATCH('Analysis (199 Ligands)'!FD$5, 'TYK2 (16 Ligands)'!$C$21:$C$25, 0), MATCH('Analysis (199 Ligands)'!FD$2, 'TYK2 (16 Ligands)'!$AX$2:$BC$2, 0)) -> 0.6870811161 | FE9: =INDEX('TYK2 (16 Ligands)'!$AX$21:$BC$25, MATCH('Analysis (199 Ligands)'!FE$5, 'TYK2 (16 Ligands)'!$C$21:$C$25, 0), MATCH('Analysis (199 Ligands)'!FE$2, 'TYK2 (16 Ligands)'!$AX$2:$BC$2, 0)) -> 0.5997510408 | FF9: =INDEX('TYK2 (16 Ligands)'!$AX$21:$BC$25, MATCH('Analysis (199 Ligands)'!FF$5, 'TYK2 (16 Ligands)'!$C$21:$C$25, 0), MATCH('Analysis (199 Ligands)'!FF$2, 'TYK2 (16 Ligands)'!$AX$2:$BC$2, 0)) -> 0.7 | FG9: =INDEX('TYK2 (16 Ligands)'!$AX$21:$BC$25, MATCH('Analysis (199 Ligands)'!FG$5, 'TYK2 (16 Ligands)'!$C$21:$C$25, 0), MATCH('Analysis (199 Ligands)'!FG$2, 'TYK2 (16 Ligands)'!$AX$2:$BC$2, 0)) -> 0.9939726354 | FH9: =INDEX('TYK2 (16 Ligands)'!$AX$21:$BC$25, MATCH('Analysis (199 Ligands)'!FH$5, 'TYK2 (16 Ligands)'!$C$21:$C$25, 0), MATCH('Analysis (199 Ligands)'!FH$2, 'TYK2 (16 Ligands)'!$AX$2:$BC$2, 0)) -> 1.12959905 | FI9: =INDEX('TYK2 (16 Ligands)'!$AX$21:$BC$25, MATCH('Analysis (199 Ligands)'!FI$5, 'TYK2 (16 Ligands)'!$C$21:$C$25, 0), MATCH('Analysis (199 Ligands)'!FI$2, 'TYK2 (16 Ligands)'!$AX$2:$BC$2, 0)) -> 0.6503880015 | FJ9: =INDEX('TYK2 (16 Ligands)'!$AX$21:$BC$25, MATCH('Analysis (199 Ligands)'!FJ$5, 'TYK2 (16 Ligands)'!$C$21:$C$25, 0), MATCH('Analysis (199 Ligands)'!FJ$2, 'TYK2 (16 Ligands)'!$AX$2:$BC$2, 0)) -> 0.6095162355 | FK9: =INDEX('TYK2 (16 Ligands)'!$AX$21:$BC$25, MATCH('Analysis (199 Ligands)'!FK$5, 'TYK2 (16 Ligands)'!$C$21:$C$25, 0), MATCH('Analysis (199 Ligands)'!FK$2, 'TYK2 (16 Ligands)'!$AX$2:$BC$2, 0)) -> 0.6916666667 | FL9: =INDEX('TYK2 (16 Ligands)'!$AX$21:$BC$25, MATCH('Analysis (199 Ligands)'!FL$5, 'TYK2 (16 Ligands)'!$C$21:$C$25, 0), MATCH('Analysis (199 Ligands)'!FL$2, 'TYK2 (16 Ligands)'!$AX$2:$BC$2, 0)) -> 1.003872112 | FM9: =INDEX('TYK2 (16 Ligands)'!$AX$21:$BC$25, MATCH('Analysis (199 Ligands)'!FM$5, 'TYK2 (16 Ligands)'!$C$21:$C$25, 0), MATCH('Analysis (199 Ligands)'!FM$2, 'TYK2 (16 Ligands)'!$AX$2:$BC$2, 0)) -> 1.088243585 | FN9: =INDEX('TYK2 (16 Ligands)'!$AX$21:$BC$25, MATCH('Analysis (199 Ligands)'!FN$5, 'TYK2 (16 Ligands)'!$C$21:$C$25, 0), MATCH('Analysis (199 Ligands)'!FN$2, 'TYK2 (16 Ligands)'!$AX$2:$BC$2, 0)) -> 0.6495166256 | FO9: =INDEX('TYK2 (16 Ligands)'!$AX$21:$BC$25, MATCH('Analysis (199 Ligands)'!FO$5, 'TYK2 (16 Ligands)'!$C$21:$C$25, 0), MATCH('Analysis (199 Ligands)'!FO$2, 'TYK2 (16 Ligands)'!$AX$2:$BC$2, 0)) -> 0.5561942325 | FP9: =INDEX('TYK2 (16 Ligands)'!$AX$21:$BC$25, MATCH('Analysis (199 Ligands)'!FP$5, 'TYK2 (16 Ligands)'!$C$21:$C$25, 0), MATCH('Analysis (199 Ligands)'!FP$2, 'TYK2 (16 Ligands)'!$AX$2:$BC$2, 0)) -> 0.6916666667 | FQ9: =INDEX('TYK2 (16 Ligands)'!$AX$21:$BC$25, MATCH('Analysis (199 Ligands)'!FQ$5, 'TYK2 (16 Ligands)'!$C$21:$C$25, 0), MATCH('Analysis (199 Ligands)'!FQ$2, 'TYK2 (16 Ligands)'!$AX$2:$BC$2, 0)) -> 0.8856966678 | FR9: =INDEX('TYK2 (16 Ligands)'!$AX$21:$BC$25, MATCH('Analysis (199 Ligands)'!FR$5, 'TYK2 (16 Ligands)'!$C$21:$C$25, 0), MATCH('Analysis (199 Ligands)'!FR$2, 'TYK2 (16 Ligands)'!$AX$2:$BC$2, 0)) -> 1.128282393 | FS9: =INDEX('TYK2 (16 Ligands)'!$AX$21:$BC$25, MATCH('Analysis (199 Ligands)'!FS$5, 'TYK2 (16 Ligands)'!$C$21:$C$25, 0), MATCH('Analysis (199 Ligands)'!FS$2, 'TYK2 (16 Ligands)'!$AX$2:$BC$2, 0)) -> 0.5744047832 | FT9: =INDEX('TYK2 (16 Ligands)'!$AX$21:$BC$25, MATCH('Analysis (199 Ligands)'!FT$5, 'TYK2 (16 Ligands)'!$C$21:$C$25, 0), MATCH('Analysis (199 Ligands)'!FT$2, 'TYK2 (16 Ligands)'!$AX$2:$BC$2, 0)) -> 0.6512376485 | FU9: =INDEX('TYK2 (16 Ligands)'!$AX$21:$BC$25, MATCH('Analysis (199 Ligands)'!FU$5, 'TYK2 (16 Ligands)'!$C$21:$C$25, 0), MATCH('Analysis (199 Ligands)'!FU$2, 'TYK2 (16 Ligands)'!$AX$2:$BC$2, 0)) -> 0.725
B10: JNK1 | C10: 21 | E10: =INDEX('JNK1 (21 Ligands)'!$E$26:$T$30, MATCH('Analysis (199 Ligands)'!E$5, 'JNK1 (21 Ligands)'!$C$26:$C$30, 0), MATCH('Analysis (199 Ligands)'!E$2, 'JNK1 (21 Ligands)'!$E$2:$T$2, 0)) -> 1.386513091 | F10: =INDEX('JNK1 (21 Ligands)'!$E$26:$T$30, MATCH('Analysis (199 Ligands)'!F$5, 'JNK1 (21 Ligands)'!$C$26:$C$30, 0), MATCH('Analysis (199 Ligands)'!F$2, 'JNK1 (21 Ligands)'!$E$2:$T$2, 0)) -> 1.658807725 | G10: =INDEX('JNK1 (21 Ligands)'!$E$26:$T$30, MATCH('Analysis (199 Ligands)'!G$5, 'JNK1 (21 Ligands)'!$C$26:$C$30, 0), MATCH('Analysis (199 Ligands)'!G$2, 'JNK1 (21 Ligands)'!$E$2:$T$2, 0)) -> 0.02313242069 | H10: =INDEX('JNK1 (21 Ligands)'!$E$26:$T$30, MATCH('Analysis (199 Ligands)'!H$5, 'JNK1 (21 Ligands)'!$C$26:$C$30, 0), MATCH('Analysis (199 Ligands)'!H$2, 'JNK1 (21 Ligands)'!$E$2:$T$2, 0)) -> -0.02970958079 | I10: =INDEX('JNK1 (21 Ligands)'!$E$26:$T$30, MATCH('Analysis (199 Ligands)'!I$5, 'JNK1 (21 Ligands)'!$C$26:$C$30, 0), MATCH('Analysis (199 Ligands)'!I$2, 'JNK1 (21 Ligands)'!$E$2:$T$2, 0)) -> 0.5404761905 | J10: =INDEX('JNK1 (21 Ligands)'!$E$26:$T$30, MATCH('Analysis (199 Ligands)'!J$5, 'JNK1 (21 Ligands)'!$C$26:$C$30, 0), MATCH('Analysis (199 Ligands)'!J$2, 'JNK1 (21 Ligands)'!$E$2:$T$2, 0)) -> 1.521842408 | K10: =INDEX('JNK1 (21 Ligands)'!$E$26:$T$30, MATCH('Analysis (199 Ligands)'!K$5, 'JNK1 (21 Ligands)'!$C$26:$C$30, 0), MATCH('Analysis (199 Ligands)'!K$2, 'JNK1 (21 Ligands)'!$E$2:$T$2, 0)) -> 1.859624573 | L10: =INDEX('JNK1 (21 Ligands)'!$E$26:$T$30, MATCH('Analysis (199 Ligands)'!L$5, 'JNK1 (21 Ligands)'!$C$26:$C$30, 0), MATCH('Analysis (199 Ligands)'!L$2, 'JNK1 (21 Ligands)'!$E$2:$T$2, 0)) -> -0.4510154456 | M10: =INDEX('JNK1 (21 Ligands)'!$E$26:$T$30, MATCH('Analysis (199 Ligands)'!M$5, 'JNK1 (21 Ligands)'!$C$26:$C$30, 0), MATCH('Analysis (199 Ligands)'!M$2, 'JNK1 (21 Ligands)'!$E$2:$T$2, 0)) -> -0.4517021314 | N10: =INDEX('JNK1 (21 Ligands)'!$E$26:$T$30, MATCH('Analysis (199 Ligands)'!N$5, 'JNK1 (21 Ligands)'!$C$26:$C$30, 0), MATCH('Analysis (199 Ligands)'!N$2, 'JNK1 (21 Ligands)'!$E$2:$T$2, 0)) -> 0.35 | O10: =INDEX('JNK1 (21 Ligands)'!$E$26:$T$30, MATCH('Analysis (199 Ligands)'!O$5, 'JNK1 (21 Ligands)'!$C$26:$C$30, 0), MATCH('Analysis (199 Ligands)'!O$2, 'JNK1 (21 Ligands)'!$E$2:$T$2, 0)) -> 1.399878024 | P10: =INDEX('JNK1 (21 Ligands)'!$E$26:$T$30, MATCH('Analysis (199 Ligands)'!P$5, 'JNK1 (21 Ligands)'!$C$26:$C$30, 0), MATCH('Analysis (199 Ligands)'!P$2, 'JNK1 (21 Ligands)'!$E$2:$T$2, 0)) -> 1.600295018 | Q10: =INDEX('JNK1 (21 Ligands)'!$E$26:$T$30, MATCH('Analysis (199 Ligands)'!Q$5, 'JNK1 (21 Ligands)'!$C$26:$C$30, 0), MATCH('Analysis (199 Ligands)'!Q$2, 'JNK1 (21 Ligands)'!$E$2:$T$2, 0)) -> 0.2448780506 | R10: =INDEX('JNK1 (21 Ligands)'!$E$26:$T$30, MATCH('Analysis (199 Ligands)'!R$5, 'JNK1 (21 Ligands)'!$C$26:$C$30, 0), MATCH('Analysis (199 Ligands)'!R$2, 'JNK1 (21 Ligands)'!$E$2:$T$2, 0)) -> 0.1172727167 | S10: =INDEX('JNK1 (21 Ligands)'!$E$26:$T$30, MATCH('Analysis (199 Ligands)'!S$5, 'JNK1 (21 Ligands)'!$C$26:$C$30, 0), MATCH('Analysis (199 Ligands)'!S$2, 'JNK1 (21 Ligands)'!$E$2:$T$2, 0)) -> 0.5880952381 | T10: =INDEX('JNK1 (21 Ligands)'!$E$26:$T$30, MATCH('Analysis (199 Ligands)'!T$5, 'JNK1 (21 Ligands)'!$C$26:$C$30, 0), MATCH('Analysis (199 Ligands)'!T$2, 'JNK1 (21 Ligands)'!$E$2:$T$2, 0)) -> 1.486208208 | U10: =INDEX('JNK1 (21 Ligands)'!$E$26:$T$30, MATCH('Analysis (199 Ligands)'!U$5, 'JNK1 (21 Ligands)'!$C$26:$C$30, 0), MATCH('Analysis (199 Ligands)'!U$2, 'JNK1 (21 Ligands)'!$E$2:$T$2, 0)) -> 1.838080954 | V10: =INDEX('JNK1 (21 Ligands)'!$E$26:$T$30, MATCH('Analysis (199 Ligands)'!V$5, 'JNK1 (21 Ligands)'!$C$26:$C$30, 0), MATCH('Analysis (199 Ligands)'!V$2, 'JNK1 (21 Ligands)'!$E$2:$T$2, 0)) -> 0.1353236068 | W10: =INDEX('JNK1 (21 Ligands)'!$E$26:$T$30, MATCH('Analysis (199 Ligands)'!W$5, 'JNK1 (21 Ligands)'!$C$26:$C$30, 0), MATCH('Analysis (199 Ligands)'!W$2, 'JNK1 (21 Ligands)'!$E$2:$T$2, 0)) -> 0.05794771632 | X10: =INDEX('JNK1 (21 Ligands)'!$E$26:$T$30, MATCH('Analysis (199 Ligands)'!X$5, 'JNK1 (21 Ligands)'!$C$26:$C$30, 0), MATCH('Analysis (199 Ligands)'!X$2, 'JNK1 (21 Ligands)'!$E$2:$T$2, 0)) -> 0.5333333333 | Z10: =INDEX('JNK1 (21 Ligands)'!$E$26:$T$30, MATCH('Analysis (199 Ligands)'!Z$5, 'JNK1 (21 Ligands)'!$C$26:$C$30, 0), MATCH('Analysis (199 Ligands)'!Z$2, 'JNK1 (21 Ligands)'!$E$2:$T$2, 0)) -> 2.775453792 | AA10: =INDEX('JNK1 (21 Ligands)'!$E$26:$T$30, MATCH('Analysis (199 Ligands)'!AA$5, 'JNK1 (21 Ligands)'!$C$26:$C$30, 0), MATCH('Analysis (199 Ligands)'!AA$2, 'JNK1 (21 Ligands)'!$E$2:$T$2, 0)) -> 2.928133169 | AB10: =INDEX('JNK1 (21 Ligands)'!$E$26:$T$30, MATCH('Analysis (199 Ligands)'!AB$5, 'JNK1 (21 Ligands)'!$C$26:$C$30, 0), MATCH('Analysis (199 Ligands)'!AB$2, 'JNK1 (21 Ligands)'!$E$2:$T$2, 0)) -> 0.4638534061 | AC10: =INDEX('JNK1 (21 Ligands)'!$E$26:$T$30, MATCH('Analysis (199 Ligands)'!AC$5, 'JNK1 (21 Ligands)'!$C$26:$C$30, 0), MATCH('Analysis (199 Ligands)'!AC$2, 'JNK1 (21 Ligands)'!$E$2:$T$2, 0)) -> 0.499351161 | AD10: =INDEX('JNK1 (21 Ligands)'!$E$26:$T$30, MATCH('Analysis (199 Ligands)'!AD$5, 'JNK1 (21 Ligands)'!$C$26:$C$30, 0), MATCH('Analysis (199 Ligands)'!AD$2, 'JNK1 (21 Ligands)'!$E$2:$T$2, 0)) -> 0.6595238095 | AE10: =INDEX('JNK1 (21 Ligands)'!$E$26:$T$30, MATCH('Analysis (199 Ligands)'!AE$5, 'JNK1 (21 Ligands)'!$C$26:$C$30, 0), MATCH('Analysis (199 Ligands)'!AE$2, 'JNK1 (21 Ligands)'!$E$2:$T$2, 0)) -> 2.749644268 | AF10: =INDEX('JNK1 (21 Ligands)'!$E$26:$T$30, MATCH('Analysis (199 Ligands)'!AF$5, 'JNK1 (21 Ligands)'!$C$26:$C$30, 0), MATCH('Analysis (199 Ligands)'!AF$2, 'JNK1 (21 Ligands)'!$E$2:$T$2, 0)) -> 2.895804819 | AG10: =INDEX('JNK1 (21 Ligands)'!$E$26:$T$30, MATCH('Analysis (199 Ligands)'!AG$5, 'JNK1 (21 Ligands)'!$C$26:$C$30, 0), MATCH('Analysis (199 Ligands)'!AG$2, 'JNK1 (21 Ligands)'!$E$2:$T$2, 0)) -> 0.5057426462 | AH10: =INDEX('JNK1 (21 Ligands)'!$E$26:$T$30, MATCH('Analysis (199 Ligands)'!AH$5, 'JNK1 (21 Ligands)'!$C$26:$C$30, 0), MATCH('Analysis (199 Ligands)'!AH$2, 'JNK1 (21 Ligands)'!$E$2:$T$2, 0)) -> 0.5550776763 | AI10: =INDEX('JNK1 (21 Ligands)'!$E$26:$T$30, MATCH('Analysis (199 Ligands)'!AI$5, 'JNK1 (21 Ligands)'!$C$26:$C$30, 0), MATCH('Analysis (199 Ligands)'!AI$2, 'JNK1 (21 Ligands)'!$E$2:$T$2, 0)) -> 0.6976190476 | AJ10: =INDEX('JNK1 (21 Ligands)'!$E$26:$T$30, MATCH('Analysis (199 Ligands)'!AJ$5, 'JNK1 (21 Ligands)'!$C$26:$C$30, 0), MATCH('Analysis (199 Ligands)'!AJ$2, 'JNK1 (21 Ligands)'!$E$2:$T$2, 0)) -> 2.708406173 | AK10: =INDEX('JNK1 (21 Ligands)'!$E$26:$T$30, MATCH('Analysis (199 Ligands)'!AK$5, 'JNK1 (21 Ligands)'!$C$26:$C$30, 0), MATCH('Analysis (199 Ligands)'!AK$2, 'JNK1 (21 Ligands)'!$E$2:$T$2, 0)) -> 2.851443972 | AL10: =INDEX('JNK1 (21 Ligands)'!$E$26:$T$30, MATCH('Analysis (199 Ligands)'!AL$5, 'JNK1 (21 Ligands)'!$C$26:$C$30, 0), MATCH('Analysis (199 Ligands)'!AL$2, 'JNK1 (21 Ligands)'!$E$2:$T$2, 0)) -> 0.6449670915 | AM10: =INDEX('JNK1 (21 Ligands)'!$E$26:$T$30, MATCH('Analysis (199 Ligands)'!AM$5, 'JNK1 (21 Ligands)'!$C$26:$C$30, 0), MATCH('Analysis (199 Ligands)'!AM$2, 'JNK1 (21 Ligands)'!$E$2:$T$2, 0)) -> 0.7199428903 | AN10: =INDEX('JNK1 (21 Ligands)'!$E$26:$T$30, MATCH('Analysis (199 Ligands)'!AN$5, 'JNK1 (21 Ligands)'!$C$26:$C$30, 0), MATCH('Analysis (199 Ligands)'!AN$2, 'JNK1 (21 Ligands)'!$E$2:$T$2, 0)) -> 0.769047619 | AO10: =INDEX('JNK1 (21 Ligands)'!$E$26:$T$30, MATCH('Analysis (199 Ligands)'!AO$5, 'JNK1 (21 Ligands)'!$C$26:$C$30, 0), MATCH('Analysis (199 Ligands)'!AO$2, 'JNK1 (21 Ligands)'!$E$2:$T$2, 0)) -> 2.710739506 | AP10: =INDEX('JNK1 (21 Ligands)'!$E$26:$T$30, MATCH('Analysis (199 Ligands)'!AP$5, 'JNK1 (21 Ligands)'!$C$26:$C$30, 0), MATCH('Analysis (199 Ligands)'!AP$2, 'JNK1 (21 Ligands)'!$E$2:$T$2, 0)) -> 2.891492885 | AQ10: =INDEX('JNK1 (21 Ligands)'!$E$26:$T$30, MATCH('Analysis (199 Ligands)'!AQ$5, 'JNK1 (21 Ligands)'!$C$26:$C$30, 0), MATCH('Analysis (199 Ligands)'!AQ$2, 'JNK1 (21 Ligands)'!$E$2:$T$2, 0)) -> 0.6143455385 | AR10: =INDEX('JNK1 (21 Ligands)'!$E$26:$T$30, MATCH('Analysis (199 Ligands)'!AR$5, 'JNK1 (21 Ligands)'!$C$26:$C$30, 0), MATCH('Analysis (199 Ligands)'!AR$2, 'JNK1 (21 Ligands)'!$E$2:$T$2, 0)) -> 0.6212981393 | AS10: =INDEX('JNK1 (21 Ligands)'!$E$26:$T$30, MATCH('Analysis (199 Ligands)'!AS$5, 'JNK1 (21 Ligands)'!$C$26:$C$30, 0), MATCH('Analysis (199 Ligands)'!AS$2, 'JNK1 (21 Ligands)'!$E$2:$T$2, 0)) -> 0.7214285714 | AU10: =INDEX('JNK1 (21 Ligands)'!$E$26:$T$30, MATCH('Analysis (199 Ligands)'!AU$5, 'JNK1 (21 Ligands)'!$C$26:$C$30, 0), MATCH('Analysis (199 Ligands)'!AU$2, 'JNK1 (21 Ligands)'!$E$2:$T$2, 0)) -> 2.989358554 | AV10: =INDEX('JNK1 (21 Ligands)'!$E$26:$T$30, MATCH('Analysis (199 Ligands)'!AV$5, 'JNK1 (21 Ligands)'!$C$26:$C$30, 0), MATCH('Analysis (199 Ligands)'!AV$2, 'JNK1 (21 Ligands)'!$E$2:$T$2, 0)) -> 3.227403179 | AW10: =INDEX('JNK1 (21 Ligands)'!$E$26:$T$30, MATCH('Analysis (199 Ligands)'!AW$5, 'JNK1 (21 Ligands)'!$C$26:$C$30, 0), MATCH('Analysis (199 Ligands)'!AW$2, 'JNK1 (21 Ligands)'!$E$2:$T$2, 0)) -> 0.4951331361 | AX10: =INDEX('JNK1 (21 Ligands)'!$E$26:$T$30, MATCH('Analysis (199 Ligands)'!AX$5, 'JNK1 (21 Ligands)'!$C$26:$C$30, 0), MATCH('Analysis (199 Ligands)'!AX$2, 'JNK1 (21 Ligands)'!$E$2:$T$2, 0)) -> 0.5487024552 | AY10: =INDEX('JNK1 (21 Ligands)'!$E$26:$T$30, MATCH('Analysis (199 Ligands)'!AY$5, 'JNK1 (21 Ligands)'!$C$26:$C$30, 0), MATCH('Analysis (199 Ligands)'!AY$2, 'JNK1 (21 Ligands)'!$E$2:$T$2, 0)) -> 0.7023809524 | AZ10: =INDEX('JNK1 (21 Ligands)'!$E$26:$T$30, MATCH('Analysis (199 Ligands)'!AZ$5, 'JNK1 (21 Ligands)'!$C$26:$C$30, 0), MATCH('Analysis (199 Ligands)'!AZ$2, 'JNK1 (21 Ligands)'!$E$2:$T$2, 0)) -> 3.132453792 | BA10: =INDEX('JNK1 (21 Ligands)'!$E$26:$T$30, MATCH('Analysis (199 Ligands)'!BA$5, 'JNK1 (21 Ligands)'!$C$26:$C$30, 0), MATCH('Analysis (199 Ligands)'!BA$2, 'JNK1 (21 Ligands)'!$E$2:$T$2, 0)) -> 3.37054495 | BB10: =INDEX('JNK1 (21 Ligands)'!$E$26:$T$30, MATCH('Analysis (199 Ligands)'!BB$5, 'JNK1 (21 Ligands)'!$C$26:$C$30, 0), MATCH('Analysis (199 Ligands)'!BB$2, 'JNK1 (21 Ligands)'!$E$2:$T$2, 0)) -> 0.472979555 | BC10: =INDEX('JNK1 (21 Ligands)'!$E$26:$T$30, MATCH('Analysis (199 Ligands)'!BC$5, 'JNK1 (21 Ligands)'!$C$26:$C$30, 0), MATCH('Analysis (199 Ligands)'!BC$2, 'JNK1 (21 Ligands)'!$E$2:$T$2, 0)) -> 0.4953421328 | BD10: =INDEX('JNK1 (21 Ligands)'!$E$26:$T$30, MATCH('Analysis (199 Ligands)'!BD$5, 'JNK1 (21 Ligands)'!$C$26:$C$30, 0), MATCH('Analysis (199 Ligands)'!BD$2, 'JNK1 (21 Ligands)'!$E$2:$T$2, 0)) -> 0.6785714286 | BE10: =INDEX('JNK1 (21 Ligands)'!$E$26:$T$30, MATCH('Analysis (199 Ligands)'!BE$5, 'JNK1 (21 Ligands)'!$C$26:$C$30, 0), MATCH('Analysis (199 Ligands)'!BE$2, 'JNK1 (21 Ligands)'!$E$2:$T$2, 0)) -> 3.29702522 | BF10: =INDEX('JNK1 (21 Ligands)'!$E$26:$T$30, MATCH('Analysis (199 Ligands)'!BF$5, 'JNK1 (21 Ligands)'!$C$26:$C$30, 0), MATCH('Analysis (199 Ligands)'!BF$2, 'JNK1 (21 Ligands)'!$E$2:$T$2, 0)) -> 3.588478553 | BG10: =INDEX('JNK1 (21 Ligands)'!$E$26:$T$30, MATCH('Analysis (199 Ligands)'!BG$5, 'JNK1 (21 Ligands)'!$C$26:$C$30, 0), MATCH('Analysis (199 Ligands)'!BG$2, 'JNK1 (21 Ligands)'!$E$2:$T$2, 0)) -> 0.5686896873 | BH10: =INDEX('JNK1 (21 Ligands)'!$E$26:$T$30, MATCH('Analysis (199 Ligands)'!BH$5, 'JNK1 (21 Ligands)'!$C$26:$C$30, 0), MATCH('Analysis (199 Ligands)'!BH$2, 'JNK1 (21 Ligands)'!$E$2:$T$2, 0)) -> 0.6057081593 | BI10: =INDEX('JNK1 (21 Ligands)'!$E$26:$T$30, MATCH('Analysis (199 Ligands)'!BI$5, 'JNK1 (21 Ligands)'!$C$26:$C$30, 0), MATCH('Analysis (199 Ligands)'!BI$2, 'JNK1 (21 Ligands)'!$E$2:$T$2, 0)) -> 0.730952381 | BJ10: =INDEX('JNK1 (21 Ligands)'!$E$26:$T$30, MATCH('Analysis (199 Ligands)'!BJ$5, 'JNK1 (21 Ligands)'!$C$26:$C$30, 0), MATCH('Analysis (199 Ligands)'!BJ$2, 'JNK1 (21 Ligands)'!$E$2:$T$2, 0)) -> 3.32254903 | BK10: =INDEX('JNK1 (21 Ligands)'!$E$26:$T$30, MATCH('Analysis (199 Ligands)'!BK$5, 'JNK1 (21 Ligands)'!$C$26:$C$30, 0), MATCH('Analysis (199 Ligands)'!BK$2, 'JNK1 (21 Ligands)'!$E$2:$T$2, 0)) -> 3.58567898 | BL10: =INDEX('JNK1 (21 Ligands)'!$E$26:$T$30, MATCH('Analysis (199 Ligands)'!BL$5, 'JNK1 (21 Ligands)'!$C$26:$C$30, 0), MATCH('Analysis (199 Ligands)'!BL$2, 'JNK1 (21 Ligands)'!$E$2:$T$2, 0)) -> 0.5469310545 | BM10: =INDEX('JNK1 (21 Ligands)'!$E$26:$T$30, MATCH('Analysis (199 Ligands)'!BM$5, 'JNK1 (21 Ligands)'!$C$26:$C$30, 0), MATCH('Analysis (199 Ligands)'!BM$2, 'JNK1 (21 Ligands)'!$E$2:$T$2, 0)) -> 0.5440137482 | BN10: =INDEX('JNK1 (21 Ligands)'!$E$26:$T$30, MATCH('Analysis (199 Ligands)'!BN$5, 'JNK1 (21 Ligands)'!$C$26:$C$30, 0), MATCH('Analysis (199 Ligands)'!BN$2, 'JNK1 (21 Ligands)'!$E$2:$T$2, 0)) -> 0.6928571429 | BP10: =INDEX('JNK1 (21 Ligands)'!$E$26:$T$30, MATCH('Analysis (199 Ligands)'!BP$5, 'JNK1 (21 Ligands)'!$C$26:$C$30, 0), MATCH('Analysis (199 Ligands)'!BP$2, 'JNK1 (21 Ligands)'!$E$2:$T$2, 0)) -> 2.879358554 | BQ10: =INDEX('JNK1 (21 Ligands)'!$E$26:$T$30, MATCH('Analysis (199 Ligands)'!BQ$5, 'JNK1 (21 Ligands)'!$C$26:$C$30, 0), MATCH('Analysis (199 Ligands)'!BQ$2, 'JNK1 (21 Ligands)'!$E$2:$T$2, 0)) -> 3.168019644 | BR10: =INDEX('JNK1 (21 Ligands)'!$E$26:$T$30, MATCH('Analysis (199 Ligands)'!BR$5, 'JNK1 (21 Ligands)'!$C$26:$C$30, 0), MATCH('Analysis (199 Ligands)'!BR$2, 'JNK1 (21 Ligands)'!$E$2:$T$2, 0)) -> 0.4610618497 | BS10: =INDEX('JNK1 (21 Ligands)'!$E$26:$T$30, MATCH('Analysis (199 Ligands)'!BS$5, 'JNK1 (21 Ligands)'!$C$26:$C$30, 0), MATCH('Analysis (199 Ligands)'!BS$2, 'JNK1 (21 Ligands)'!$E$2:$T$2, 0)) -> 0.484641932 | BT10: =INDEX('JNK1 (21 Ligands)'!$E$26:$T$30, MATCH('Analysis (199 Ligands)'!BT$5, 'JNK1 (21 Ligands)'!$C$26:$C$30, 0), MATCH('Analysis (199 Ligands)'!BT$2, 'JNK1 (21 Ligands)'!$E$2:$T$2, 0)) -> 0.6785714286 | BU10: =INDEX('JNK1 (21 Ligands)'!$E$26:$T$30, MATCH('Analysis (199 Ligands)'!BU$5, 'JNK1 (21 Ligands)'!$C$26:$C$30, 0), MATCH('Analysis (199 Ligands)'!BU$2, 'JNK1 (21 Ligands)'!$E$2:$T$2, 0)) -> 2.87902522 | BV10: =INDEX('JNK1 (21 Ligands)'!$E$26:$T$30, MATCH('Analysis (199 Ligands)'!BV$5, 'JNK1 (21 Ligands)'!$C$26:$C$30, 0), MATCH('Analysis (199 Ligands)'!BV$2, 'JNK1 (21 Ligands)'!$E$2:$T$2, 0)) -> 3.135701494 | BW10: =INDEX('JNK1 (21 Ligands)'!$E$26:$T$30, MATCH('Analysis (199 Ligands)'!BW$5, 'JNK1 (21 Ligands)'!$C$26:$C$30, 0), MATCH('Analysis (199 Ligands)'!BW$2, 'JNK1 (21 Ligands)'!$E$2:$T$2, 0)) -> 0.4618988772 | BX10: =INDEX('JNK1 (21 Ligands)'!$E$26:$T$30, MATCH('Analysis (199 Ligands)'!BX$5, 'JNK1 (21 Ligands)'!$C$26:$C$30, 0), MATCH('Analysis (199 Ligands)'!BX$2, 'JNK1 (21 Ligands)'!$E$2:$T$2, 0)) -> 0.4611585986 | BY10: =INDEX('JNK1 (21 Ligands)'!$E$26:$T$30, MATCH('Analysis (199 Ligands)'!BY$5, 'JNK1 (21 Ligands)'!$C$26:$C$30, 0), MATCH('Analysis (199 Ligands)'!BY$2, 'JNK1 (21 Ligands)'!$E$2:$T$2, 0)) -> 0.6833333333 | BZ10: =INDEX('JNK1 (21 Ligands)'!$E$26:$T$30, MATCH('Analysis (199 Ligands)'!BZ$5, 'JNK1 (21 Ligands)'!$C$26:$C$30, 0), MATCH('Analysis (199 Ligands)'!BZ$2, 'JNK1 (21 Ligands)'!$E$2:$T$2, 0)) -> 3.208739506 | CA10: =INDEX('JNK1 (21 Ligands)'!$E$26:$T$30, MATCH('Analysis (199 Ligands)'!CA$5, 'JNK1 (21 Ligands)'!$C$26:$C$30, 0), MATCH('Analysis (199 Ligands)'!CA$2, 'JNK1 (21 Ligands)'!$E$2:$T$2, 0)) -> 3.466769715 | CB10: =INDEX('JNK1 (21 Ligands)'!$E$26:$T$30, MATCH('Analysis (199 Ligands)'!CB$5, 'JNK1 (21 Ligands)'!$C$26:$C$30, 0), MATCH('Analysis (199 Ligands)'!CB$2, 'JNK1 (21 Ligands)'!$E$2:$T$2, 0)) -> 0.6137172257 | CC10: =INDEX('JNK1 (21 Ligands)'!$E$26:$T$30, MATCH('Analysis (199 Ligands)'!CC$5, 'JNK1 (21 Ligands)'!$C$26:$C$30, 0), MATCH('Analysis (199 Ligands)'!CC$2, 'JNK1 (21 Ligands)'!$E$2:$T$2, 0)) -> 0.5559769102 | CD10: =INDEX('JNK1 (21 Ligands)'!$E$26:$T$30, MATCH('Analysis (199 Ligands)'!CD$5, 'JNK1 (21 Ligands)'!$C$26:$C$30, 0), MATCH('Analysis (199 Ligands)'!CD$2, 'JNK1 (21 Ligands)'!$E$2:$T$2, 0)) -> 0.6976190476 | CE10: =INDEX('JNK1 (21 Ligands)'!$E$26:$T$30, MATCH('Analysis (199 Ligands)'!CE$5, 'JNK1 (21 Ligands)'!$C$26:$C$30, 0), MATCH('Analysis (199 Ligands)'!CE$2, 'JNK1 (21 Ligands)'!$E$2:$T$2, 0)) -> 3.401644268 | CF10: =INDEX('JNK1 (21 Ligands)'!$E$26:$T$30, MATCH('Analysis (199 Ligands)'!CF$5, 'JNK1 (21 Ligands)'!$C$26:$C$30, 0), MATCH('Analysis (199 Ligands)'!CF$2, 'JNK1 (21 Ligands)'!$E$2:$T$2, 0)) -> 3.696380451 | CG10: =INDEX('JNK1 (21 Ligands)'!$E$26:$T$30, MATCH('Analysis (199 Ligands)'!CG$5, 'JNK1 (21 Ligands)'!$C$26:$C$30, 0), MATCH('Analysis (199 Ligands)'!CG$2, 'JNK1 (21 Ligands)'!$E$2:$T$2, 0)) -> 0.5638517252 | CH10: =INDEX('JNK1 (21 Ligands)'!$E$26:$T$30, MATCH('Analysis (199 Ligands)'!CH$5, 'JNK1 (21 Ligands)'!$C$26:$C$30, 0), MATCH('Analysis (199 Ligands)'!CH$2, 'JNK1 (21 Ligands)'!$E$2:$T$2, 0)) -> 0.4926165649 | CI10: =INDEX('JNK1 (21 Ligands)'!$E$26:$T$30, MATCH('Analysis (199 Ligands)'!CI$5, 'JNK1 (21 Ligands)'!$C$26:$C$30, 0), MATCH('Analysis (199 Ligands)'!CI$2, 'JNK1 (21 Ligands)'!$E$2:$T$2, 0)) -> 0.6642857143 | CK10: =INDEX($E$2:$CI$2, MATCH(MIN(IF(CL$5 = $E$5:$CI$5, $E10:$CI10, 999999)),IF(CL$5 = $E$5:$CI$5, $E10:$CI10, 999999),0)) -> GAS21 (r = 1 A) | CL10: =IFERROR(INDEX($E10:$CI10, SMALL(IF(CK10 = $E$2:$CI$2, COLUMN($E$2:$CI$2) - MIN(COLUMN($E$2:$CI$2))+1, ""), COLUMN(CL10:CP10) - COLUMN(CL10)+1)), "") -> 1.386513091 | CM10: 1.658807725 | CN10: 0.02313242069 | CO10: -0.02970958079 | CP10: 0.5404761905 | CQ10: =INDEX($E$2:$CI$2, MATCH(MIN(IF(CS$5 = $E$5:$CI$5, $E10:$CI10, 999999)),IF(CS$5 = $E$5:$CI$5, $E10:$CI10, 999999),0)) -> SS21 (r = 1 A) | CR10: =IFERROR(INDEX($E10:$CI10, SMALL(IF(CQ10 = $E$2:$CI$2, COLUMN($E$2:$CI$2) - MIN(COLUMN($E$2:$CI$2))+1, ""), COLUMN(CR10:CV10) - COLUMN(CR10)+1)), "") -> 1.399878024 | CS10: 1.600295018 | CT10: 0.2448780506 | CU10: 0.1172727167 | CV10: 0.5880952381 | CW10: =INDEX($E$2:$CI$2, MATCH(MAX(IF(CZ$5 = $E$5:$CI$5, $E10:$CI10, -1)),IF(CZ$5 = $E$5:$CI$5, $E10:$CI10, -1),0)) -> SS21 (r = 2 A) | CX10: =IFERROR(INDEX($E10:$CI10, SMALL(IF(CW10 = $E$2:$CI$2, COLUMN($E$2:$CI$2) - MIN(COLUMN($E$2:$CI$2))+1, ""), COLUMN(CX10:DB10) - COLUMN(CX10)+1)), "") -> 2.708406173 | CY10: 2.851443972 | CZ10: 0.6449670915 | DA10: 0.7199428903 | DB10: 0.769047619 | DC10: =INDEX($E$2:$CI$2, MATCH(MAX(IF(DG$5 = $E$5:$CI$5, $E10:$CI10, -1)),IF(DG$5 = $E$5:$CI$5, $E10:$CI10, -1),0)) -> SS21 (r = 2 A) | DD10: =IFERROR(INDEX($E10:$CI10, SMALL(IF(DC10 = $E$2:$CI$2, COLUMN($E$2:$CI$2) - MIN(COLUMN($E$2:$CI$2))+1, ""), COLUMN(DD10:DH10) - COLUMN(DD10)+1)), "") -> 2.708406173 | DE10: 2.851443972 | DF10: 0.6449670915 | DG10: 0.7199428903 | DH10: 0.769047619 | DI10: =INDEX($E$2:$CI$2, MATCH(MAX(IF(DN$5 = $E$5:$CI$5, $E10:$CI10, -1)),IF(DN$5 = $E$5:$CI$5, $E10:$CI10, -1),0)) -> SS21 (r = 2 A) | DJ10: =IFERROR(INDEX($E10:$CI10, SMALL(IF(DI10 = $E$2:$CI$2, COLUMN($E$2:$CI$2) - MIN(COLUMN($E$2:$CI$2))+1, ""), COLUMN(DJ10:DN10) - COLUMN(DJ10)+1)), "") -> 2.708406173 | DK10: 2.851443972 | DL10: 0.6449670915 | DM10: 0.7199428903 | DN10: 0.769047619 | DP10: =INDEX('JNK1 (21 Ligands)'!$V$26:$AV$30, MATCH('Analysis (199 Ligands)'!DP$5, 'JNK1 (21 Ligands)'!$C$26:$C$30, 0), MATCH('Analysis (199 Ligands)'!DP$2, 'JNK1 (21 Ligands)'!$V$2:$AV$2, 0)) -> 5.395787125 | DQ10: =INDEX('JNK1 (21 Ligands)'!$V$26:$AV$30, MATCH('Analysis (199 Ligands)'!DQ$5, 'JNK1 (21 Ligands)'!$C$26:$C$30, 0), MATCH('Analysis (199 Ligands)'!DQ$2, 'JNK1 (21 Ligands)'!$V$2:$AV$2, 0)) -> 5.457862562 | DR10: =INDEX('JNK1 (21 Ligands)'!$V$26:$AV$30, MATCH('Analysis (199 Ligands)'!DR$5, 'JNK1 (21 Ligands)'!$C$26:$C$30, 0), MATCH('Analysis (199 Ligands)'!DR$2, 'JNK1 (21 Ligands)'!$V$2:$AV$2, 0)) -> 0.7060849946 | DS10: =INDEX('JNK1 (21 Ligands)'!$V$26:$AV$30, MATCH('Analysis (199 Ligands)'!DS$5, 'JNK1 (21 Ligands)'!$C$26:$C$30, 0), MATCH('Analysis (199 Ligands)'!DS$2, 'JNK1 (21 Ligands)'!$V$2:$AV$2, 0)) -> 0.7298504856 | DT10: =INDEX('JNK1 (21 Ligands)'!$V$26:$AV$30, MATCH('Analysis (199 Ligands)'!DT$5, 'JNK1 (21 Ligands)'!$C$26:$C$30, 0), MATCH('Analysis (199 Ligands)'!DT$2, 'JNK1 (21 Ligands)'!$V$2:$AV$2, 0)) -> 0.8119047619 | DU10: =INDEX('JNK1 (21 Ligands)'!$V$26:$AV$30, MATCH('Analysis (199 Ligands)'!DU$5, 'JNK1 (21 Ligands)'!$C$26:$C$30, 0), MATCH('Analysis (199 Ligands)'!DU$2, 'JNK1 (21 Ligands)'!$V$2:$AV$2, 0)) -> 5.977644268 | DV10: =INDEX('JNK1 (21 Ligands)'!$V$26:$AV$30, MATCH('Analysis (199 Ligands)'!DV$5, 'JNK1 (21 Ligands)'!$C$26:$C$30, 0), MATCH('Analysis (199 Ligands)'!DV$2, 'JNK1 (21 Ligands)'!$V$2:$AV$2, 0)) -> 6.026946056 | DW10: =INDEX('JNK1 (21 Ligands)'!$V$26:$AV$30, MATCH('Analysis (199 Ligands)'!DW$5, 'JNK1 (21 Ligands)'!$C$26:$C$30, 0), MATCH('Analysis (199 Ligands)'!DW$2, 'JNK1 (21 Ligands)'!$V$2:$AV$2, 0)) -> 0.6860735689 | DX10: =INDEX('JNK1 (21 Ligands)'!$V$26:$AV$30, MATCH('Analysis (199 Ligands)'!DX$5, 'JNK1 (21 Ligands)'!$C$26:$C$30, 0), MATCH('Analysis (199 Ligands)'!DX$2, 'JNK1 (21 Ligands)'!$V$2:$AV$2, 0)) -> 0.6984370658 | DY10: =INDEX('JNK1 (21 Ligands)'!$V$26:$AV$30, MATCH('Analysis (199 Ligands)'!DY$5, 'JNK1 (21 Ligands)'!$C$26:$C$30, 0), MATCH('Analysis (199 Ligands)'!DY$2, 'JNK1 (21 Ligands)'!$V$2:$AV$2, 0)) -> 0.7880952381 | DZ10: =INDEX('JNK1 (21 Ligands)'!$V$26:$AV$30, MATCH('Analysis (199 Ligands)'!DZ$5, 'JNK1 (21 Ligands)'!$C$26:$C$30, 0), MATCH('Analysis (199 Ligands)'!DZ$2, 'JNK1 (21 Ligands)'!$V$2:$AV$2, 0)) -> 5.68402522 | EA10: =INDEX('JNK1 (21 Ligands)'!$V$26:$AV$30, MATCH('Analysis (199 Ligands)'!EA$5, 'JNK1 (21 Ligands)'!$C$26:$C$30, 0), MATCH('Analysis (199 Ligands)'!EA$2, 'JNK1 (21 Ligands)'!$V$2:$AV$2, 0)) -> 5.715523124 | EB10: =INDEX('JNK1 (21 Ligands)'!$V$26:$AV$30, MATCH('Analysis (199 Ligands)'!EB$5, 'JNK1 (21 Ligands)'!$C$26:$C$30, 0), MATCH('Analysis (199 Ligands)'!EB$2, 'JNK1 (21 Ligands)'!$V$2:$AV$2, 0)) -> 0.7145967869 | EC10: =INDEX('JNK1 (21 Ligands)'!$V$26:$AV$30, MATCH('Analysis (199 Ligands)'!EC$5, 'JNK1 (21 Ligands)'!$C$26:$C$30, 0), MATCH('Analysis (199 Ligands)'!EC$2, 'JNK1 (21 Ligands)'!$V$2:$AV$2, 0)) -> 0.6977957146 | ED10: =INDEX('JNK1 (21 Ligands)'!$V$26:$AV$30, MATCH('Analysis (199 Ligands)'!ED$5, 'JNK1 (21 Ligands)'!$C$26:$C$30, 0), MATCH('Analysis (199 Ligands)'!ED$2, 'JNK1 (21 Ligands)'!$V$2:$AV$2, 0)) -> 0.7976190476 | EE10: =INDEX('JNK1 (21 Ligands)'!$V$26:$AV$30, MATCH('Analysis (199 Ligands)'!EE$5, 'JNK1 (21 Ligands)'!$C$26:$C$30, 0), MATCH('Analysis (199 Ligands)'!EE$2, 'JNK1 (21 Ligands)'!$V$2:$AV$2, 0)) -> 4.066644268 | EF10: =INDEX('JNK1 (21 Ligands)'!$V$26:$AV$30, MATCH('Analysis (199 Ligands)'!EF$5, 'JNK1 (21 Ligands)'!$C$26:$C$30, 0), MATCH('Analysis (199 Ligands)'!EF$2, 'JNK1 (21 Ligands)'!$V$2:$AV$2, 0)) -> 4.231888131 | EG10: =INDEX('JNK1 (21 Ligands)'!$V$26:$AV$30, MATCH('Analysis (199 Ligands)'!EG$5, 'JNK1 (21 Ligands)'!$C$26:$C$30, 0), MATCH('Analysis (199 Ligands)'!EG$2, 'JNK1 (21 Ligands)'!$V$2:$AV$2, 0)) -> 0.7230545598 | EH10: =INDEX('JNK1 (21 Ligands)'!$V$26:$AV$30, MATCH('Analysis (199 Ligands)'!EH$5, 'JNK1 (21 Ligands)'!$C$26:$C$30, 0), MATCH('Analysis (199 Ligands)'!EH$2, 'JNK1 (21 Ligands)'!$V$2:$AV$2, 0)) -> 0.6877124417 | EI10: =INDEX('JNK1 (21 Ligands)'!$V$26:$AV$30, MATCH('Analysis (199 Ligands)'!EI$5, 'JNK1 (21 Ligands)'!$C$26:$C$30, 0), MATCH('Analysis (199 Ligands)'!EI$2, 'JNK1 (21 Ligands)'!$V$2:$AV$2, 0)) -> 0.7642857143 | EK10: =INDEX($DP$2:$EI$2, MATCH(MAX(IF($EP$5 = $DP$5:$EI$5, $DP10:$EI10, -1)),IF($EP$5 = $DP$5:$EI$5, $DP10:$EI10, -1),0)) -> GAS21* (r = 5 A) | EL10: =IFERROR(INDEX($DP10:$EI10, SMALL(IF(EK10 = $DP$2:$EI$2, COLUMN($DP$2:$EI$2) - MIN(COLUMN($DP$2:$EI$2))+1, ""), COLUMN(EL10:EP10) - COLUMN(EL10)+1)), "") -> 5.395787125 | EM10: 5.457862562 | EN10: 0.7060849946 | EO10: 0.7298504856 | EP10: 0.8119047619 | ER10: =INDEX('JNK1 (21 Ligands)'!$AX$26:$BC$30, MATCH('Analysis (199 Ligands)'!ER$5, 'JNK1 (21 Ligands)'!$C$26:$C$30, 0), MATCH('Analysis (199 Ligands)'!ER$2, 'JNK1 (21 Ligands)'!$AX$2:$BC$2, 0)) -> 1.056982896 | ES10: =INDEX('JNK1 (21 Ligands)'!$AX$26:$BC$30, MATCH('Analysis (199 Ligands)'!ES$5, 'JNK1 (21 Ligands)'!$C$26:$C$30, 0), MATCH('Analysis (199 Ligands)'!ES$2, 'JNK1 (21 Ligands)'!$AX$2:$BC$2, 0)) -> 1.143883316 | ET10: =INDEX('JNK1 (21 Ligands)'!$AX$26:$BC$30, MATCH('Analysis (199 Ligands)'!ET$5, 'JNK1 (21 Ligands)'!$C$26:$C$30, 0), MATCH('Analysis (199 Ligands)'!ET$2, 'JNK1 (21 Ligands)'!$AX$2:$BC$2, 0)) -> 0.8450287108 | EU10: =INDEX('JNK1 (21 Ligands)'!$AX$26:$BC$30, MATCH('Analysis (199 Ligands)'!EU$5, 'JNK1 (21 Ligands)'!$C$26:$C$30, 0), MATCH('Analysis (199 Ligands)'!EU$2, 'JNK1 (21 Ligands)'!$AX$2:$BC$2, 0)) -> 0.9023319462 | EV10: =INDEX('JNK1 (21 Ligands)'!$AX$26:$BC$30, MATCH('Analysis (199 Ligands)'!EV$5, 'JNK1 (21 Ligands)'!$C$26:$C$30, 0), MATCH('Analysis (199 Ligands)'!EV$2, 'JNK1 (21 Ligands)'!$AX$2:$BC$2, 0)) -> 0.8761904762 | EW10: =INDEX('JNK1 (21 Ligands)'!$AX$26:$BC$30, MATCH('Analysis (199 Ligands)'!EW$5, 'JNK1 (21 Ligands)'!$C$26:$C$30, 0), MATCH('Analysis (199 Ligands)'!EW$2, 'JNK1 (21 Ligands)'!$AX$2:$BC$2, 0)) -> 0.7617974932 | EX10: =INDEX('JNK1 (21 Ligands)'!$AX$26:$BC$30, MATCH('Analysis (199 Ligands)'!EX$5, 'JNK1 (21 Ligands)'!$C$26:$C$30, 0), MATCH('Analysis (199 Ligands)'!EX$2, 'JNK1 (21 Ligands)'!$AX$2:$BC$2, 0)) -> 0.9592479482 | EY10: =INDEX('JNK1 (21 Ligands)'!$AX$26:$BC$30, MATCH('Analysis (199 Ligands)'!EY$5, 'JNK1 (21 Ligands)'!$C$26:$C$30, 0), MATCH('Analysis (199 Ligands)'!EY$2, 'JNK1 (21 Ligands)'!$AX$2:$BC$2, 0)) -> 0.7209057775 | EZ10: =INDEX('JNK1 (21 Ligands)'!$AX$26:$BC$30, MATCH('Analysis (199 Ligands)'!EZ$5, 'JNK1 (21 Ligands)'!$C$26:$C$30, 0), MATCH('Analysis (199 Ligands)'!EZ$2, 'JNK1 (21 Ligands)'!$AX$2:$BC$2, 0)) -> 0.7163617109 | FA10: =INDEX('JNK1 (21 Ligands)'!$AX$26:$BC$30, MATCH('Analysis (199 Ligands)'!FA$5, 'JNK1 (21 Ligands)'!$C$26:$C$30, 0), MATCH('Analysis (199 Ligands)'!FA$2, 'JNK1 (21 Ligands)'!$AX$2:$BC$2, 0)) -> 0.769047619 | FB10: =INDEX('JNK1 (21 Ligands)'!$AX$26:$BC$30, MATCH('Analysis (199 Ligands)'!FB$5, 'JNK1 (21 Ligands)'!$C$26:$C$30, 0), MATCH('Analysis (199 Ligands)'!FB$2, 'JNK1 (21 Ligands)'!$AX$2:$BC$2, 0)) -> 0.8058281893 | FC10: =INDEX('JNK1 (21 Ligands)'!$AX$26:$BC$30, MATCH('Analysis (199 Ligands)'!FC$5, 'JNK1 (21 Ligands)'!$C$26:$C$30, 0), MATCH('Analysis (199 Ligands)'!FC$2, 'JNK1 (21 Ligands)'!$AX$2:$BC$2, 0)) -> 0.9728525499 | FD10: =INDEX('JNK1 (21 Ligands)'!$AX$26:$BC$30, MATCH('Analysis (199 Ligands)'!FD$5, 'JNK1 (21 Ligands)'!$C$26:$C$30, 0), MATCH('Analysis (199 Ligands)'!FD$2, 'JNK1 (21 Ligands)'!$AX$2:$BC$2, 0)) -> 0.7999081843 | FE10: =INDEX('JNK1 (21 Ligands)'!$AX$26:$BC$30, MATCH('Analysis (199 Ligands)'!FE$5, 'JNK1 (21 Ligands)'!$C$26:$C$30, 0), MATCH('Analysis (199 Ligands)'!FE$2, 'JNK1 (21 Ligands)'!$AX$2:$BC$2, 0)) -> 0.819268668 | FF10: =INDEX('JNK1 (21 Ligands)'!$AX$26:$BC$30, MATCH('Analysis (199 Ligands)'!FF$5, 'JNK1 (21 Ligands)'!$C$26:$C$30, 0), MATCH('Analysis (199 Ligands)'!FF$2, 'JNK1 (21 Ligands)'!$AX$2:$BC$2, 0)) -> 0.830952381 | FG10: =INDEX('JNK1 (21 Ligands)'!$AX$26:$BC$30, MATCH('Analysis (199 Ligands)'!FG$5, 'JNK1 (21 Ligands)'!$C$26:$C$30, 0), MATCH('Analysis (199 Ligands)'!FG$2, 'JNK1 (21 Ligands)'!$AX$2:$BC$2, 0)) -> 0.5206800365 | FH10: =INDEX('JNK1 (21 Ligands)'!$AX$26:$BC$30, MATCH('Analysis (199 Ligands)'!FH$5, 'JNK1 (21 Ligands)'!$C$26:$C$30, 0), MATCH('Analysis (199 Ligands)'!FH$2, 'JNK1 (21 Ligands)'!$AX$2:$BC$2, 0)) -> 0.7230481618 | FI10: =INDEX('JNK1 (21 Ligands)'!$AX$26:$BC$30, MATCH('Analysis (199 Ligands)'!FI$5, 'JNK1 (21 Ligands)'!$C$26:$C$30, 0), MATCH('Analysis (199 Ligands)'!FI$2, 'JNK1 (21 Ligands)'!$AX$2:$BC$2, 0)) -> 0.7393057693 | FJ10: =INDEX('JNK1 (21 Ligands)'!$AX$26:$BC$30, MATCH('Analysis (199 Ligands)'!FJ$5, 'JNK1 (21 Ligands)'!$C$26:$C$30, 0), MATCH('Analysis (199 Ligands)'!FJ$2, 'JNK1 (21 Ligands)'!$AX$2:$BC$2, 0)) -> 0.7994444701 | FK10: =INDEX('JNK1 (21 Ligands)'!$AX$26:$BC$30, MATCH('Analysis (199 Ligands)'!FK$5, 'JNK1 (21 Ligands)'!$C$26:$C$30, 0), MATCH('Analysis (199 Ligands)'!FK$2, 'JNK1 (21 Ligands)'!$AX$2:$BC$2, 0)) -> 0.8023809524 | FL10: =INDEX('JNK1 (21 Ligands)'!$AX$26:$BC$30, MATCH('Analysis (199 Ligands)'!FL$5, 'JNK1 (21 Ligands)'!$C$26:$C$30, 0), MATCH('Analysis (199 Ligands)'!FL$2, 'JNK1 (21 Ligands)'!$AX$2:$BC$2, 0)) -> 0.5864550672 | FM10: =INDEX('JNK1 (21 Ligands)'!$AX$26:$BC$30, MATCH('Analysis (199 Ligands)'!FM$5, 'JNK1 (21 Ligands)'!$C$26:$C$30, 0), MATCH('Analysis (199 Ligands)'!FM$2, 'JNK1 (21 Ligands)'!$AX$2:$BC$2, 0)) -> 0.6356267553 | FN10: =INDEX('JNK1 (21 Ligands)'!$AX$26:$BC$30, MATCH('Analysis (199 Ligands)'!FN$5, 'JNK1 (21 Ligands)'!$C$26:$C$30, 0), MATCH('Analysis (199 Ligands)'!FN$2, 'JNK1 (21 Ligands)'!$AX$2:$BC$2, 0)) -> 0.8947025335 | FO10: =INDEX('JNK1 (21 Ligands)'!$AX$26:$BC$30, MATCH('Analysis (199 Ligands)'!FO$5, 'JNK1 (21 Ligands)'!$C$26:$C$30, 0), MATCH('Analysis (199 Ligands)'!FO$2, 'JNK1 (21 Ligands)'!$AX$2:$BC$2, 0)) -> 0.9312444198 | FP10: =INDEX('JNK1 (21 Ligands)'!$AX$26:$BC$30, MATCH('Analysis (199 Ligands)'!FP$5, 'JNK1 (21 Ligands)'!$C$26:$C$30, 0), MATCH('Analysis (199 Ligands)'!FP$2, 'JNK1 (21 Ligands)'!$AX$2:$BC$2, 0)) -> 0.8880952381 | FQ10: =INDEX('JNK1 (21 Ligands)'!$AX$26:$BC$30, MATCH('Analysis (199 Ligands)'!FQ$5, 'JNK1 (21 Ligands)'!$C$26:$C$30, 0), MATCH('Analysis (199 Ligands)'!FQ$2, 'JNK1 (21 Ligands)'!$AX$2:$BC$2, 0)) -> 0.8959674641 | FR10: =INDEX('JNK1 (21 Ligands)'!$AX$26:$BC$30, MATCH('Analysis (199 Ligands)'!FR$5, 'JNK1 (21 Ligands)'!$C$26:$C$30, 0), MATCH('Analysis (199 Ligands)'!FR$2, 'JNK1 (21 Ligands)'!$AX$2:$BC$2, 0)) -> 1.126278224 | FS10: =INDEX('JNK1 (21 Ligands)'!$AX$26:$BC$30, MATCH('Analysis (199 Ligands)'!FS$5, 'JNK1 (21 Ligands)'!$C$26:$C$30, 0), MATCH('Analysis (199 Ligands)'!FS$2, 'JNK1 (21 Ligands)'!$AX$2:$BC$2, 0)) -> 0.4722303798 | FT10: =INDEX('JNK1 (21 Ligands)'!$AX$26:$BC$30, MATCH('Analysis (199 Ligands)'!FT$5, 'JNK1 (21 Ligands)'!$C$26:$C$30, 0), MATCH('Analysis (199 Ligands)'!FT$2, 'JNK1 (21 Ligands)'!$AX$2:$BC$2, 0)) -> 0.508942046 | FU10: =INDEX('JNK1 (21 Ligands)'!$AX$26:$BC$30, MATCH('Analysis (199 Ligands)'!FU$5, 'JNK1 (21 Ligands)'!$C$26:$C$30, 0), MATCH('Analysis (199 Ligands)'!FU$2, 'JNK1 (21 Ligands)'!$AX$2:$BC$2, 0)) -> 0.669047619
B11: Thrombin | C11: 11 | E11: =INDEX('Thrombin (11 Ligands)'!$E$16:$T$20, MATCH('Analysis (199 Ligands)'!E$5, 'Thrombin (11 Ligands)'!$C$16:$C$20, 0), MATCH('Analysis (199 Ligands)'!E$2, 'Thrombin (11 Ligands)'!$E$2:$T$2, 0)) -> 0.685634269 | F11: =INDEX('Thrombin (11 Ligands)'!$E$16:$T$20, MATCH('Analysis (199 Ligands)'!F$5, 'Thrombin (11 Ligands)'!$C$16:$C$20, 0), MATCH('Analysis (199 Ligands)'!F$2, 'Thrombin (11 Ligands)'!$E$2:$T$2, 0)) -> 0.8668048663 | G11: =INDEX('Thrombin (11 Ligands)'!$E$16:$T$20, MATCH('Analysis (199 Ligands)'!G$5, 'Thrombin (11 Ligands)'!$C$16:$C$20, 0), MATCH('Analysis (199 Ligands)'!G$2, 'Thrombin (11 Ligands)'!$E$2:$T$2, 0)) -> 0.6441081331 | H11: =INDEX('Thrombin (11 Ligands)'!$E$16:$T$20, MATCH('Analysis (199 Ligands)'!H$5, 'Thrombin (11 Ligands)'!$C$16:$C$20, 0), MATCH('Analysis (199 Ligands)'!H$2, 'Thrombin (11 Ligands)'!$E$2:$T$2, 0)) -> 0.5910493559 | I11: =INDEX('Thrombin (11 Ligands)'!$E$16:$T$20, MATCH('Analysis (199 Ligands)'!I$5, 'Thrombin (11 Ligands)'!$C$16:$C$20, 0), MATCH('Analysis (199 Ligands)'!I$2, 'Thrombin (11 Ligands)'!$E$2:$T$2, 0)) -> 0.6909090909 | J11: =INDEX('Thrombin (11 Ligands)'!$E$16:$T$20, MATCH('Analysis (199 Ligands)'!J$5, 'Thrombin (11 Ligands)'!$C$16:$C$20, 0), MATCH('Analysis (199 Ligands)'!J$2, 'Thrombin (11 Ligands)'!$E$2:$T$2, 0)) -> 0.6065328894 | K11: =INDEX('Thrombin (11 Ligands)'!$E$16:$T$20, MATCH('Analysis (199 Ligands)'!K$5, 'Thrombin (11 Ligands)'!$C$16:$C$20, 0), MATCH('Analysis (199 Ligands)'!K$2, 'Thrombin (11 Ligands)'!$E$2:$T$2, 0)) -> 0.7177895546 | L11: =INDEX('Thrombin (11 Ligands)'!$E$16:$T$20, MATCH('Analysis (199 Ligands)'!L$5, 'Thrombin (11 Ligands)'!$C$16:$C$20, 0), MATCH('Analysis (199 Ligands)'!L$2, 'Thrombin (11 Ligands)'!$E$2:$T$2, 0)) -> 0.8285821929 | M11: =INDEX('Thrombin (11 Ligands)'!$E$16:$T$20, MATCH('Analysis (199 Ligands)'!M$5, 'Thrombin (11 Ligands)'!$C$16:$C$20, 0), MATCH('Analysis (199 Ligands)'!M$2, 'Thrombin (11 Ligands)'!$E$2:$T$2, 0)) -> 0.7673674044 | N11: =INDEX('Thrombin (11 Ligands)'!$E$16:$T$20, MATCH('Analysis (199 Ligands)'!N$5, 'Thrombin (11 Ligands)'!$C$16:$C$20, 0), MATCH('Analysis (199 Ligands)'!N$2, 'Thrombin (11 Ligands)'!$E$2:$T$2, 0)) -> 0.7818181818 | O11: =INDEX('Thrombin (11 Ligands)'!$E$16:$T$20, MATCH('Analysis (199 Ligands)'!O$5, 'Thrombin (11 Ligands)'!$C$16:$C$20, 0), MATCH('Analysis (199 Ligands)'!O$2, 'Thrombin (11 Ligands)'!$E$2:$T$2, 0)) -> 1.004601536 | P11: =INDEX('Thrombin (11 Ligands)'!$E$16:$T$20, MATCH('Analysis (199 Ligands)'!P$5, 'Thrombin (11 Ligands)'!$C$16:$C$20, 0), MATCH('Analysis (199 Ligands)'!P$2, 'Thrombin (11 Ligands)'!$E$2:$T$2, 0)) -> 1.269962065 | Q11: =INDEX('Thrombin (11 Ligands)'!$E$16:$T$20, MATCH('Analysis (199 Ligands)'!Q$5, 'Thrombin (11 Ligands)'!$C$16:$C$20, 0), MATCH('Analysis (199 Ligands)'!Q$2, 'Thrombin (11 Ligands)'!$E$2:$T$2, 0)) -> 0.2067897182 | R11: =INDEX('Thrombin (11 Ligands)'!$E$16:$T$20, MATCH('Analysis (199 Ligands)'!R$5, 'Thrombin (11 Ligands)'!$C$16:$C$20, 0), MATCH('Analysis (199 Ligands)'!R$2, 'Thrombin (11 Ligands)'!$E$2:$T$2, 0)) -> 0.09879716123 | S11: =INDEX('Thrombin (11 Ligands)'!$E$16:$T$20, MATCH('Analysis (199 Ligands)'!S$5, 'Thrombin (11 Ligands)'!$C$16:$C$20, 0), MATCH('Analysis (199 Ligands)'!S$2, 'Thrombin (11 Ligands)'!$E$2:$T$2, 0)) -> 0.5272727273 | T11: =INDEX('Thrombin (11 Ligands)'!$E$16:$T$20, MATCH('Analysis (199 Ligands)'!T$5, 'Thrombin (11 Ligands)'!$C$16:$C$20, 0), MATCH('Analysis (199 Ligands)'!T$2, 'Thrombin (11 Ligands)'!$E$2:$T$2, 0)) -> 1.162318338 | U11: =INDEX('Thrombin (11 Ligands)'!$E$16:$T$20, MATCH('Analysis (199 Ligands)'!U$5, 'Thrombin (11 Ligands)'!$C$16:$C$20, 0), MATCH('Analysis (199 Ligands)'!U$2, 'Thrombin (11 Ligands)'!$E$2:$T$2, 0)) -> 1.291231211 | V11: =INDEX('Thrombin (11 Ligands)'!$E$16:$T$20, MATCH('Analysis (199 Ligands)'!V$5, 'Thrombin (11 Ligands)'!$C$16:$C$20, 0), MATCH('Analysis (199 Ligands)'!V$2, 'Thrombin (11 Ligands)'!$E$2:$T$2, 0)) -> 0.6353552702 | W11: =INDEX('Thrombin (11 Ligands)'!$E$16:$T$20, MATCH('Analysis (199 Ligands)'!W$5, 'Thrombin (11 Ligands)'!$C$16:$C$20, 0), MATCH('Analysis (199 Ligands)'!W$2, 'Thrombin (11 Ligands)'!$E$2:$T$2, 0)) -> 0.5903975363 | X11: =INDEX('Thrombin (11 Ligands)'!$E$16:$T$20, MATCH('Analysis (199 Ligands)'!X$5, 'Thrombin (11 Ligands)'!$C$16:$C$20, 0), MATCH('Analysis (199 Ligands)'!X$2, 'Thrombin (11 Ligands)'!$E$2:$T$2, 0)) -> 0.6727272727 | Z11: =INDEX('Thrombin (11 Ligands)'!$E$16:$T$20, MATCH('Analysis (199 Ligands)'!Z$5, 'Thrombin (11 Ligands)'!$C$16:$C$20, 0), MATCH('Analysis (199 Ligands)'!Z$2, 'Thrombin (11 Ligands)'!$E$2:$T$2, 0)) -> 0.6244873261 | AA11: =INDEX('Thrombin (11 Ligands)'!$E$16:$T$20, MATCH('Analysis (199 Ligands)'!AA$5, 'Thrombin (11 Ligands)'!$C$16:$C$20, 0), MATCH('Analysis (199 Ligands)'!AA$2, 'Thrombin (11 Ligands)'!$E$2:$T$2, 0)) -> 0.7481307623 | AB11: =INDEX('Thrombin (11 Ligands)'!$E$16:$T$20, MATCH('Analysis (199 Ligands)'!AB$5, 'Thrombin (11 Ligands)'!$C$16:$C$20, 0), MATCH('Analysis (199 Ligands)'!AB$2, 'Thrombin (11 Ligands)'!$E$2:$T$2, 0)) -> 0.556419614 | AC11: =INDEX('Thrombin (11 Ligands)'!$E$16:$T$20, MATCH('Analysis (199 Ligands)'!AC$5, 'Thrombin (11 Ligands)'!$C$16:$C$20, 0), MATCH('Analysis (199 Ligands)'!AC$2, 'Thrombin (11 Ligands)'!$E$2:$T$2, 0)) -> 0.6260570005 | AD11: =INDEX('Thrombin (11 Ligands)'!$E$16:$T$20, MATCH('Analysis (199 Ligands)'!AD$5, 'Thrombin (11 Ligands)'!$C$16:$C$20, 0), MATCH('Analysis (199 Ligands)'!AD$2, 'Thrombin (11 Ligands)'!$E$2:$T$2, 0)) -> 0.7636363636 | AE11: =INDEX('Thrombin (11 Ligands)'!$E$16:$T$20, MATCH('Analysis (199 Ligands)'!AE$5, 'Thrombin (11 Ligands)'!$C$16:$C$20, 0), MATCH('Analysis (199 Ligands)'!AE$2, 'Thrombin (11 Ligands)'!$E$2:$T$2, 0)) -> 0.5967781593 | AF11: =INDEX('Thrombin (11 Ligands)'!$E$16:$T$20, MATCH('Analysis (199 Ligands)'!AF$5, 'Thrombin (11 Ligands)'!$C$16:$C$20, 0), MATCH('Analysis (199 Ligands)'!AF$2, 'Thrombin (11 Ligands)'!$E$2:$T$2, 0)) -> 0.6780520843 | AG11: =INDEX('Thrombin (11 Ligands)'!$E$16:$T$20, MATCH('Analysis (199 Ligands)'!AG$5, 'Thrombin (11 Ligands)'!$C$16:$C$20, 0), MATCH('Analysis (199 Ligands)'!AG$2, 'Thrombin (11 Ligands)'!$E$2:$T$2, 0)) -> 0.9178427395 | AH11: =INDEX('Thrombin (11 Ligands)'!$E$16:$T$20, MATCH('Analysis (199 Ligands)'!AH$5, 'Thrombin (11 Ligands)'!$C$16:$C$20, 0), MATCH('Analysis (199 Ligands)'!AH$2, 'Thrombin (11 Ligands)'!$E$2:$T$2, 0)) -> 0.9305112741 | AI11: =INDEX('Thrombin (11 Ligands)'!$E$16:$T$20, MATCH('Analysis (199 Ligands)'!AI$5, 'Thrombin (11 Ligands)'!$C$16:$C$20, 0), MATCH('Analysis (199 Ligands)'!AI$2, 'Thrombin (11 Ligands)'!$E$2:$T$2, 0)) -> 0.8727272727 | AJ11: =INDEX('Thrombin (11 Ligands)'!$E$16:$T$20, MATCH('Analysis (199 Ligands)'!AJ$5, 'Thrombin (11 Ligands)'!$C$16:$C$20, 0), MATCH('Analysis (199 Ligands)'!AJ$2, 'Thrombin (11 Ligands)'!$E$2:$T$2, 0)) -> 0.6618736477 | AK11: =INDEX('Thrombin (11 Ligands)'!$E$16:$T$20, MATCH('Analysis (199 Ligands)'!AK$5, 'Thrombin (11 Ligands)'!$C$16:$C$20, 0), MATCH('Analysis (199 Ligands)'!AK$2, 'Thrombin (11 Ligands)'!$E$2:$T$2, 0)) -> 0.8316126818 | AL11: =INDEX('Thrombin (11 Ligands)'!$E$16:$T$20, MATCH('Analysis (199 Ligands)'!AL$5, 'Thrombin (11 Ligands)'!$C$16:$C$20, 0), MATCH('Analysis (199 Ligands)'!AL$2, 'Thrombin (11 Ligands)'!$E$2:$T$2, 0)) -> 0.3934079217 | AM11: =INDEX('Thrombin (11 Ligands)'!$E$16:$T$20, MATCH('Analysis (199 Ligands)'!AM$5, 'Thrombin (11 Ligands)'!$C$16:$C$20, 0), MATCH('Analysis (199 Ligands)'!AM$2, 'Thrombin (11 Ligands)'!$E$2:$T$2, 0)) -> 0.1411955632 | AN11: =INDEX('Thrombin (11 Ligands)'!$E$16:$T$20, MATCH('Analysis (199 Ligands)'!AN$5, 'Thrombin (11 Ligands)'!$C$16:$C$20, 0), MATCH('Analysis (199 Ligands)'!AN$2, 'Thrombin (11 Ligands)'!$E$2:$T$2, 0)) -> 0.5818181818 | AO11: =INDEX('Thrombin (11 Ligands)'!$E$16:$T$20, MATCH('Analysis (199 Ligands)'!AO$5, 'Thrombin (11 Ligands)'!$C$16:$C$20, 0), MATCH('Analysis (199 Ligands)'!AO$2, 'Thrombin (11 Ligands)'!$E$2:$T$2, 0)) -> 0.4475962941 | AP11: =INDEX('Thrombin (11 Ligands)'!$E$16:$T$20, MATCH('Analysis (199 Ligands)'!AP$5, 'Thrombin (11 Ligands)'!$C$16:$C$20, 0), MATCH('Analysis (199 Ligands)'!AP$2, 'Thrombin (11 Ligands)'!$E$2:$T$2, 0)) -> 0.5736765262 | AQ11: =INDEX('Thrombin (11 Ligands)'!$E$16:$T$20, MATCH('Analysis (199 Ligands)'!AQ$5, 'Thrombin (11 Ligands)'!$C$16:$C$20, 0), MATCH('Analysis (199 Ligands)'!AQ$2, 'Thrombin (11 Ligands)'!$E$2:$T$2, 0)) -> 0.8661902396 | AR11: =INDEX('Thrombin (11 Ligands)'!$E$16:$T$20, MATCH('Analysis (199 Ligands)'!AR$5, 'Thrombin (11 Ligands)'!$C$16:$C$20, 0), MATCH('Analysis (199 Ligands)'!AR$2, 'Thrombin (11 Ligands)'!$E$2:$T$2, 0)) -> 0.8706366375 | AS11: =INDEX('Thrombin (11 Ligands)'!$E$16:$T$20, MATCH('Analysis (199 Ligands)'!AS$5, 'Thrombin (11 Ligands)'!$C$16:$C$20, 0), MATCH('Analysis (199 Ligands)'!AS$2, 'Thrombin (11 Ligands)'!$E$2:$T$2, 0)) -> 0.8363636364 | AU11: =INDEX('Thrombin (11 Ligands)'!$E$16:$T$20, MATCH('Analysis (199 Ligands)'!AU$5, 'Thrombin (11 Ligands)'!$C$16:$C$20, 0), MATCH('Analysis (199 Ligands)'!AU$2, 'Thrombin (11 Ligands)'!$E$2:$T$2, 0)) -> 0.608314208 | AV11: =INDEX('Thrombin (11 Ligands)'!$E$16:$T$20, MATCH('Analysis (199 Ligands)'!AV$5, 'Thrombin (11 Ligands)'!$C$16:$C$20, 0), MATCH('Analysis (199 Ligands)'!AV$2, 'Thrombin (11 Ligands)'!$E$2:$T$2, 0)) -> 0.7520990391 | AW11: =INDEX('Thrombin (11 Ligands)'!$E$16:$T$20, MATCH('Analysis (199 Ligands)'!AW$5, 'Thrombin (11 Ligands)'!$C$16:$C$20, 0), MATCH('Analysis (199 Ligands)'!AW$2, 'Thrombin (11 Ligands)'!$E$2:$T$2, 0)) -> 0.6644946575 | AX11: =INDEX('Thrombin (11 Ligands)'!$E$16:$T$20, MATCH('Analysis (199 Ligands)'!AX$5, 'Thrombin (11 Ligands)'!$C$16:$C$20, 0), MATCH('Analysis (199 Ligands)'!AX$2, 'Thrombin (11 Ligands)'!$E$2:$T$2, 0)) -> 0.6049348644 | AY11: =INDEX('Thrombin (11 Ligands)'!$E$16:$T$20, MATCH('Analysis (199 Ligands)'!AY$5, 'Thrombin (11 Ligands)'!$C$16:$C$20, 0), MATCH('Analysis (199 Ligands)'!AY$2, 'Thrombin (11 Ligands)'!$E$2:$T$2, 0)) -> 0.7272727273 | AZ11: =INDEX('Thrombin (11 Ligands)'!$E$16:$T$20, MATCH('Analysis (199 Ligands)'!AZ$5, 'Thrombin (11 Ligands)'!$C$16:$C$20, 0), MATCH('Analysis (199 Ligands)'!AZ$2, 'Thrombin (11 Ligands)'!$E$2:$T$2, 0)) -> 0.9018690684 | BA11: =INDEX('Thrombin (11 Ligands)'!$E$16:$T$20, MATCH('Analysis (199 Ligands)'!BA$5, 'Thrombin (11 Ligands)'!$C$16:$C$20, 0), MATCH('Analysis (199 Ligands)'!BA$2, 'Thrombin (11 Ligands)'!$E$2:$T$2, 0)) -> 1.012211369 | BB11: =INDEX('Thrombin (11 Ligands)'!$E$16:$T$20, MATCH('Analysis (199 Ligands)'!BB$5, 'Thrombin (11 Ligands)'!$C$16:$C$20, 0), MATCH('Analysis (199 Ligands)'!BB$2, 'Thrombin (11 Ligands)'!$E$2:$T$2, 0)) -> 0.868673358 | BC11: =INDEX('Thrombin (11 Ligands)'!$E$16:$T$20, MATCH('Analysis (199 Ligands)'!BC$5, 'Thrombin (11 Ligands)'!$C$16:$C$20, 0), MATCH('Analysis (199 Ligands)'!BC$2, 'Thrombin (11 Ligands)'!$E$2:$T$2, 0)) -> 0.8261229914 | BD11: =INDEX('Thrombin (11 Ligands)'!$E$16:$T$20, MATCH('Analysis (199 Ligands)'!BD$5, 'Thrombin (11 Ligands)'!$C$16:$C$20, 0), MATCH('Analysis (199 Ligands)'!BD$2, 'Thrombin (11 Ligands)'!$E$2:$T$2, 0)) -> 0.8 | BE11: =INDEX('Thrombin (11 Ligands)'!$E$16:$T$20, MATCH('Analysis (199 Ligands)'!BE$5, 'Thrombin (11 Ligands)'!$C$16:$C$20, 0), MATCH('Analysis (199 Ligands)'!BE$2, 'Thrombin (11 Ligands)'!$E$2:$T$2, 0)) -> 0.6711323898 | BF11: =INDEX('Thrombin (11 Ligands)'!$E$16:$T$20, MATCH('Analysis (199 Ligands)'!BF$5, 'Thrombin (11 Ligands)'!$C$16:$C$20, 0), MATCH('Analysis (199 Ligands)'!BF$2, 'Thrombin (11 Ligands)'!$E$2:$T$2, 0)) -> 0.7948829244 | BG11: =INDEX('Thrombin (11 Ligands)'!$E$16:$T$20, MATCH('Analysis (199 Ligands)'!BG$5, 'Thrombin (11 Ligands)'!$C$16:$C$20, 0), MATCH('Analysis (199 Ligands)'!BG$2, 'Thrombin (11 Ligands)'!$E$2:$T$2, 0)) -> 0.4978172668 | BH11: =INDEX('Thrombin (11 Ligands)'!$E$16:$T$20, MATCH('Analysis (199 Ligands)'!BH$5, 'Thrombin (11 Ligands)'!$C$16:$C$20, 0), MATCH('Analysis (199 Ligands)'!BH$2, 'Thrombin (11 Ligands)'!$E$2:$T$2, 0)) -> 0.4786186905 | BI11: =INDEX('Thrombin (11 Ligands)'!$E$16:$T$20, MATCH('Analysis (199 Ligands)'!BI$5, 'Thrombin (11 Ligands)'!$C$16:$C$20, 0), MATCH('Analysis (199 Ligands)'!BI$2, 'Thrombin (11 Ligands)'!$E$2:$T$2, 0)) -> 0.6363636364 | BJ11: =INDEX('Thrombin (11 Ligands)'!$E$16:$T$20, MATCH('Analysis (199 Ligands)'!BJ$5, 'Thrombin (11 Ligands)'!$C$16:$C$20, 0), MATCH('Analysis (199 Ligands)'!BJ$2, 'Thrombin (11 Ligands)'!$E$2:$T$2, 0)) -> 0.7412327048 | BK11: =INDEX('Thrombin (11 Ligands)'!$E$16:$T$20, MATCH('Analysis (199 Ligands)'!BK$5, 'Thrombin (11 Ligands)'!$C$16:$C$20, 0), MATCH('Analysis (199 Ligands)'!BK$2, 'Thrombin (11 Ligands)'!$E$2:$T$2, 0)) -> 0.8672234698 | BL11: =INDEX('Thrombin (11 Ligands)'!$E$16:$T$20, MATCH('Analysis (199 Ligands)'!BL$5, 'Thrombin (11 Ligands)'!$C$16:$C$20, 0), MATCH('Analysis (199 Ligands)'!BL$2, 'Thrombin (11 Ligands)'!$E$2:$T$2, 0)) -> 0.8764683965 | BM11: =INDEX('Thrombin (11 Ligands)'!$E$16:$T$20, MATCH('Analysis (199 Ligands)'!BM$5, 'Thrombin (11 Ligands)'!$C$16:$C$20, 0), MATCH('Analysis (199 Ligands)'!BM$2, 'Thrombin (11 Ligands)'!$E$2:$T$2, 0)) -> 0.8650472312 | BN11: =INDEX('Thrombin (11 Ligands)'!$E$16:$T$20, MATCH('Analysis (199 Ligands)'!BN$5, 'Thrombin (11 Ligands)'!$C$16:$C$20, 0), MATCH('Analysis (199 Ligands)'!BN$2, 'Thrombin (11 Ligands)'!$E$2:$T$2, 0)) -> 0.7818181818 | BP11: =INDEX('Thrombin (11 Ligands)'!$E$16:$T$20, MATCH('Analysis (199 Ligands)'!BP$5, 'Thrombin (11 Ligands)'!$C$16:$C$20, 0), MATCH('Analysis (199 Ligands)'!BP$2, 'Thrombin (11 Ligands)'!$E$2:$T$2, 0)) -> 0.8620271031 | BQ11: =INDEX('Thrombin (11 Ligands)'!$E$16:$T$20, MATCH('Analysis (199 Ligands)'!BQ$5, 'Thrombin (11 Ligands)'!$C$16:$C$20, 0), MATCH('Analysis (199 Ligands)'!BQ$2, 'Thrombin (11 Ligands)'!$E$2:$T$2, 0)) -> 0.979684656 | BR11: =INDEX('Thrombin (11 Ligands)'!$E$16:$T$20, MATCH('Analysis (199 Ligands)'!BR$5, 'Thrombin (11 Ligands)'!$C$16:$C$20, 0), MATCH('Analysis (199 Ligands)'!BR$2, 'Thrombin (11 Ligands)'!$E$2:$T$2, 0)) -> 0.3850322842 | BS11: =INDEX('Thrombin (11 Ligands)'!$E$16:$T$20, MATCH('Analysis (199 Ligands)'!BS$5, 'Thrombin (11 Ligands)'!$C$16:$C$20, 0), MATCH('Analysis (199 Ligands)'!BS$2, 'Thrombin (11 Ligands)'!$E$2:$T$2, 0)) -> 0.2569537952 | BT11: =INDEX('Thrombin (11 Ligands)'!$E$16:$T$20, MATCH('Analysis (199 Ligands)'!BT$5, 'Thrombin (11 Ligands)'!$C$16:$C$20, 0), MATCH('Analysis (199 Ligands)'!BT$2, 'Thrombin (11 Ligands)'!$E$2:$T$2, 0)) -> 0.5636363636 | BU11: =INDEX('Thrombin (11 Ligands)'!$E$16:$T$20, MATCH('Analysis (199 Ligands)'!BU$5, 'Thrombin (11 Ligands)'!$C$16:$C$20, 0), MATCH('Analysis (199 Ligands)'!BU$2, 'Thrombin (11 Ligands)'!$E$2:$T$2, 0)) -> 1.053309236 | BV11: =INDEX('Thrombin (11 Ligands)'!$E$16:$T$20, MATCH('Analysis (199 Ligands)'!BV$5, 'Thrombin (11 Ligands)'!$C$16:$C$20, 0), MATCH('Analysis (199 Ligands)'!BV$2, 'Thrombin (11 Ligands)'!$E$2:$T$2, 0)) -> 1.152077611 | BW11: =INDEX('Thrombin (11 Ligands)'!$E$16:$T$20, MATCH('Analysis (199 Ligands)'!BW$5, 'Thrombin (11 Ligands)'!$C$16:$C$20, 0), MATCH('Analysis (199 Ligands)'!BW$2, 'Thrombin (11 Ligands)'!$E$2:$T$2, 0)) -> 0.8752366014 | BX11: =INDEX('Thrombin (11 Ligands)'!$E$16:$T$20, MATCH('Analysis (199 Ligands)'!BX$5, 'Thrombin (11 Ligands)'!$C$16:$C$20, 0), MATCH('Analysis (199 Ligands)'!BX$2, 'Thrombin (11 Ligands)'!$E$2:$T$2, 0)) -> 0.893431238 | BY11: =INDEX('Thrombin (11 Ligands)'!$E$16:$T$20, MATCH('Analysis (199 Ligands)'!BY$5, 'Thrombin (11 Ligands)'!$C$16:$C$20, 0), MATCH('Analysis (199 Ligands)'!BY$2, 'Thrombin (11 Ligands)'!$E$2:$T$2, 0)) -> 0.8363636364 | BZ11: =INDEX('Thrombin (11 Ligands)'!$E$16:$T$20, MATCH('Analysis (199 Ligands)'!BZ$5, 'Thrombin (11 Ligands)'!$C$16:$C$20, 0), MATCH('Analysis (199 Ligands)'!BZ$2, 'Thrombin (11 Ligands)'!$E$2:$T$2, 0)) -> 0.6527600533 | CA11: =INDEX('Thrombin (11 Ligands)'!$E$16:$T$20, MATCH('Analysis (199 Ligands)'!CA$5, 'Thrombin (11 Ligands)'!$C$16:$C$20, 0), MATCH('Analysis (199 Ligands)'!CA$2, 'Thrombin (11 Ligands)'!$E$2:$T$2, 0)) -> 0.7805651412 | CB11: =INDEX('Thrombin (11 Ligands)'!$E$16:$T$20, MATCH('Analysis (199 Ligands)'!CB$5, 'Thrombin (11 Ligands)'!$C$16:$C$20, 0), MATCH('Analysis (199 Ligands)'!CB$2, 'Thrombin (11 Ligands)'!$E$2:$T$2, 0)) -> 0.5164552256 | CC11: =INDEX('Thrombin (11 Ligands)'!$E$16:$T$20, MATCH('Analysis (199 Ligands)'!CC$5, 'Thrombin (11 Ligands)'!$C$16:$C$20, 0), MATCH('Analysis (199 Ligands)'!CC$2, 'Thrombin (11 Ligands)'!$E$2:$T$2, 0)) -> 0.5640801785 | CD11: =INDEX('Thrombin (11 Ligands)'!$E$16:$T$20, MATCH('Analysis (199 Ligands)'!CD$5, 'Thrombin (11 Ligands)'!$C$16:$C$20, 0), MATCH('Analysis (199 Ligands)'!CD$2, 'Thrombin (11 Ligands)'!$E$2:$T$2, 0)) -> 0.7090909091 | CE11: =INDEX('Thrombin (11 Ligands)'!$E$16:$T$20, MATCH('Analysis (199 Ligands)'!CE$5, 'Thrombin (11 Ligands)'!$C$16:$C$20, 0), MATCH('Analysis (199 Ligands)'!CE$2, 'Thrombin (11 Ligands)'!$E$2:$T$2, 0)) -> 0.6887781593 | CF11: =INDEX('Thrombin (11 Ligands)'!$E$16:$T$20, MATCH('Analysis (199 Ligands)'!CF$5, 'Thrombin (11 Ligands)'!$C$16:$C$20, 0), MATCH('Analysis (199 Ligands)'!CF$2, 'Thrombin (11 Ligands)'!$E$2:$T$2, 0)) -> 0.8379772055 | CG11: =INDEX('Thrombin (11 Ligands)'!$E$16:$T$20, MATCH('Analysis (199 Ligands)'!CG$5, 'Thrombin (11 Ligands)'!$C$16:$C$20, 0), MATCH('Analysis (199 Ligands)'!CG$2, 'Thrombin (11 Ligands)'!$E$2:$T$2, 0)) -> 0.844756842 | CH11: =INDEX('Thrombin (11 Ligands)'!$E$16:$T$20, MATCH('Analysis (199 Ligands)'!CH$5, 'Thrombin (11 Ligands)'!$C$16:$C$20, 0), MATCH('Analysis (199 Ligands)'!CH$2, 'Thrombin (11 Ligands)'!$E$2:$T$2, 0)) -> 0.8470882442 | CI11: =INDEX('Thrombin (11 Ligands)'!$E$16:$T$20, MATCH('Analysis (199 Ligands)'!CI$5, 'Thrombin (11 Ligands)'!$C$16:$C$20, 0), MATCH('Analysis (199 Ligands)'!CI$2, 'Thrombin (11 Ligands)'!$E$2:$T$2, 0)) -> 0.7818181818 | CK11: =INDEX($E$2:$CI$2, MATCH(MIN(IF(CL$5 = $E$5:$CI$5, $E11:$CI11, 999999)),IF(CL$5 = $E$5:$CI$5, $E11:$CI11, 999999),0)) -> SX21 (r = 2 A) | CL11: =IFERROR(INDEX($E11:$CI11, SMALL(IF(CK11 = $E$2:$CI$2, COLUMN($E$2:$CI$2) - MIN(COLUMN($E$2:$CI$2))+1, ""), COLUMN(CL11:CP11) - COLUMN(CL11)+1)), "") -> 0.4475962941 | CM11: 0.5736765262 | CN11: 0.8661902396 | CO11: 0.8706366375 | CP11: 0.8363636364 | CQ11: =INDEX($E$2:$CI$2, MATCH(MIN(IF(CS$5 = $E$5:$CI$5, $E11:$CI11, 999999)),IF(CS$5 = $E$5:$CI$5, $E11:$CI11, 999999),0)) -> SX21 (r = 2 A) | CR11: =IFERROR(INDEX($E11:$CI11, SMALL(IF(CQ11 = $E$2:$CI$2, COLUMN($E$2:$CI$2) - MIN(COLUMN($E$2:$CI$2))+1, ""), COLUMN(CR11:CV11) - COLUMN(CR11)+1)), "") -> 0.4475962941 | CS11: 0.5736765262 | CT11: 0.8661902396 | CU11: 0.8706366375 | CV11: 0.8363636364 | CW11: =INDEX($E$2:$CI$2, MATCH(MAX(IF(CZ$5 = $E$5:$CI$5, $E11:$CI11, -1)),IF(CZ$5 = $E$5:$CI$5, $E11:$CI11, -1),0)) -> GAX21 (r = 2 A) | CX11: =IFERROR(INDEX($E11:$CI11, SMALL(IF(CW11 = $E$2:$CI$2, COLUMN($E$2:$CI$2) - MIN(COLUMN($E$2:$CI$2))+1, ""), COLUMN(CX11:DB11) - COLUMN(CX11)+1)), "") -> 0.5967781593 | CY11: 0.6780520843 | CZ11: 0.9178427395 | DA11: 0.9305112741 | DB11: 0.8727272727 | DC11: =INDEX($E$2:$CI$2, MATCH(MAX(IF(DG$5 = $E$5:$CI$5, $E11:$CI11, -1)),IF(DG$5 = $E$5:$CI$5, $E11:$CI11, -1),0)) -> GAX21 (r = 2 A) | DD11: =IFERROR(INDEX($E11:$CI11, SMALL(IF(DC11 = $E$2:$CI$2, COLUMN($E$2:$CI$2) - MIN(COLUMN($E$2:$CI$2))+1, ""), COLUMN(DD11:DH11) - COLUMN(DD11)+1)), "") -> 0.5967781593 | DE11: 0.6780520843 | DF11: 0.9178427395 | DG11: 0.9305112741 | DH11: 0.8727272727 | DI11: =INDEX($E$2:$CI$2, MATCH(MAX(IF(DN$5 = $E$5:$CI$5, $E11:$CI11, -1)),IF(DN$5 = $E$5:$CI$5, $E11:$CI11, -1),0)) -> GAX21 (r = 2 A) | DJ11: =IFERROR(INDEX($E11:$CI11, SMALL(IF(DI11 = $E$2:$CI$2, COLUMN($E$2:$CI$2) - MIN(COLUMN($E$2:$CI$2))+1, ""), COLUMN(DJ11:DN11) - COLUMN(DJ11)+1)), "") -> 0.5967781593 | DK11: 0.6780520843 | DL11: 0.9178427395 | DM11: 0.9305112741 | DN11: 0.8727272727 | DP11: =INDEX('Thrombin (11 Ligands)'!$V$16:$AV$20, MATCH('Analysis (199 Ligands)'!DP$5, 'Thrombin (11 Ligands)'!$C$16:$C$20, 0), MATCH('Analysis (199 Ligands)'!DP$2, 'Thrombin (11 Ligands)'!$V$2:$AV$2, 0)) -> 0.8082089213 | DQ11: =INDEX('Thrombin (11 Ligands)'!$V$16:$AV$20, MATCH('Analysis (199 Ligands)'!DQ$5, 'Thrombin (11 Ligands)'!$C$16:$C$20, 0), MATCH('Analysis (199 Ligands)'!DQ$2, 'Thrombin (11 Ligands)'!$V$2:$AV$2, 0)) -> 0.9724296369 | DR11: =INDEX('Thrombin (11 Ligands)'!$V$16:$AV$20, MATCH('Analysis (199 Ligands)'!DR$5, 'Thrombin (11 Ligands)'!$C$16:$C$20, 0), MATCH('Analysis (199 Ligands)'!DR$2, 'Thrombin (11 Ligands)'!$V$2:$AV$2, 0)) -> 0.6001646239 | DS11: =INDEX('Thrombin (11 Ligands)'!$V$16:$AV$20, MATCH('Analysis (199 Ligands)'!DS$5, 'Thrombin (11 Ligands)'!$C$16:$C$20, 0), MATCH('Analysis (199 Ligands)'!DS$2, 'Thrombin (11 Ligands)'!$V$2:$AV$2, 0)) -> 0.8278059311 | DT11: =INDEX('Thrombin (11 Ligands)'!$V$16:$AV$20, MATCH('Analysis (199 Ligands)'!DT$5, 'Thrombin (11 Ligands)'!$C$16:$C$20, 0), MATCH('Analysis (199 Ligands)'!DT$2, 'Thrombin (11 Ligands)'!$V$2:$AV$2, 0)) -> 0.8181818182 | DU11: =INDEX('Thrombin (11 Ligands)'!$V$16:$AV$20, MATCH('Analysis (199 Ligands)'!DU$5, 'Thrombin (11 Ligands)'!$C$16:$C$20, 0), MATCH('Analysis (199 Ligands)'!DU$2, 'Thrombin (11 Ligands)'!$V$2:$AV$2, 0)) -> 1.420356962 | DV11: =INDEX('Thrombin (11 Ligands)'!$V$16:$AV$20, MATCH('Analysis (199 Ligands)'!DV$5, 'Thrombin (11 Ligands)'!$C$16:$C$20, 0), MATCH('Analysis (199 Ligands)'!DV$2, 'Thrombin (11 Ligands)'!$V$2:$AV$2, 0)) -> 1.877275496 | DW11: =INDEX('Thrombin (11 Ligands)'!$V$16:$AV$20, MATCH('Analysis (199 Ligands)'!DW$5, 'Thrombin (11 Ligands)'!$C$16:$C$20, 0), MATCH('Analysis (199 Ligands)'!DW$2, 'Thrombin (11 Ligands)'!$V$2:$AV$2, 0)) -> 0.9126393278 | DX11: =INDEX('Thrombin (11 Ligands)'!$V$16:$AV$20, MATCH('Analysis (199 Ligands)'!DX$5, 'Thrombin (11 Ligands)'!$C$16:$C$20, 0), MATCH('Analysis (199 Ligands)'!DX$2, 'Thrombin (11 Ligands)'!$V$2:$AV$2, 0)) -> 0.9630427131 | DY11: =INDEX('Thrombin (11 Ligands)'!$V$16:$AV$20, MATCH('Analysis (199 Ligands)'!DY$5, 'Thrombin (11 Ligands)'!$C$16:$C$20, 0), MATCH('Analysis (199 Ligands)'!DY$2, 'Thrombin (11 Ligands)'!$V$2:$AV$2, 0)) -> 0.9454545455 | DZ11: =INDEX('Thrombin (11 Ligands)'!$V$16:$AV$20, MATCH('Analysis (199 Ligands)'!DZ$5, 'Thrombin (11 Ligands)'!$C$16:$C$20, 0), MATCH('Analysis (199 Ligands)'!DZ$2, 'Thrombin (11 Ligands)'!$V$2:$AV$2, 0)) -> 0.6625043809 | EA11: =INDEX('Thrombin (11 Ligands)'!$V$16:$AV$20, MATCH('Analysis (199 Ligands)'!EA$5, 'Thrombin (11 Ligands)'!$C$16:$C$20, 0), MATCH('Analysis (199 Ligands)'!EA$2, 'Thrombin (11 Ligands)'!$V$2:$AV$2, 0)) -> 0.8222240802 | EB11: =INDEX('Thrombin (11 Ligands)'!$V$16:$AV$20, MATCH('Analysis (199 Ligands)'!EB$5, 'Thrombin (11 Ligands)'!$C$16:$C$20, 0), MATCH('Analysis (199 Ligands)'!EB$2, 'Thrombin (11 Ligands)'!$V$2:$AV$2, 0)) -> 0.746888554 | EC11: =INDEX('Thrombin (11 Ligands)'!$V$16:$AV$20, MATCH('Analysis (199 Ligands)'!EC$5, 'Thrombin (11 Ligands)'!$C$16:$C$20, 0), MATCH('Analysis (199 Ligands)'!EC$2, 'Thrombin (11 Ligands)'!$V$2:$AV$2, 0)) -> 0.8923142287 | ED11: =INDEX('Thrombin (11 Ligands)'!$V$16:$AV$20, MATCH('Analysis (199 Ligands)'!ED$5, 'Thrombin (11 Ligands)'!$C$16:$C$20, 0), MATCH('Analysis (199 Ligands)'!ED$2, 'Thrombin (11 Ligands)'!$V$2:$AV$2, 0)) -> 0.8545454545 | EE11: =INDEX('Thrombin (11 Ligands)'!$V$16:$AV$20, MATCH('Analysis (199 Ligands)'!EE$5, 'Thrombin (11 Ligands)'!$C$16:$C$20, 0), MATCH('Analysis (199 Ligands)'!EE$2, 'Thrombin (11 Ligands)'!$V$2:$AV$2, 0)) -> 1.230672873 | EF11: =INDEX('Thrombin (11 Ligands)'!$V$16:$AV$20, MATCH('Analysis (199 Ligands)'!EF$5, 'Thrombin (11 Ligands)'!$C$16:$C$20, 0), MATCH('Analysis (199 Ligands)'!EF$2, 'Thrombin (11 Ligands)'!$V$2:$AV$2, 0)) -> 1.34988732 | EG11: =INDEX('Thrombin (11 Ligands)'!$V$16:$AV$20, MATCH('Analysis (199 Ligands)'!EG$5, 'Thrombin (11 Ligands)'!$C$16:$C$20, 0), MATCH('Analysis (199 Ligands)'!EG$2, 'Thrombin (11 Ligands)'!$V$2:$AV$2, 0)) -> 0.9147768452 | EH11: =INDEX('Thrombin (11 Ligands)'!$V$16:$AV$20, MATCH('Analysis (199 Ligands)'!EH$5, 'Thrombin (11 Ligands)'!$C$16:$C$20, 0), MATCH('Analysis (199 Ligands)'!EH$2, 'Thrombin (11 Ligands)'!$V$2:$AV$2, 0)) -> 0.9632295481 | EI11: =INDEX('Thrombin (11 Ligands)'!$V$16:$AV$20, MATCH('Analysis (199 Ligands)'!EI$5, 'Thrombin (11 Ligands)'!$C$16:$C$20, 0), MATCH('Analysis (199 Ligands)'!EI$2, 'Thrombin (11 Ligands)'!$V$2:$AV$2, 0)) -> 0.9454545455 | EK11: SX21* (r = 5 A) | EL11: =IFERROR(INDEX($DP11:$EI11, SMALL(IF(EK11 = $DP$2:$EI$2, COLUMN($DP$2:$EI$2) - MIN(COLUMN($DP$2:$EI$2))+1, ""), COLUMN(EL11:EP11) - COLUMN(EL11)+1)), "") -> 1.230672873 | EM11: 1.34988732 | EN11: 0.9147768452 | EO11: 0.9632295481 | EP11: 0.9454545455 | ER11: =INDEX('Thrombin (11 Ligands)'!$AX$16:$BC$20, MATCH('Analysis (199 Ligands)'!ER$5, 'Thrombin (11 Ligands)'!$C$16:$C$20, 0), MATCH('Analysis (199 Ligands)'!ER$2, 'Thrombin (11 Ligands)'!$AX$2:$BC$2, 0)) -> 0.4984984647 | ES11: =INDEX('Thrombin (11 Ligands)'!$AX$16:$BC$20, MATCH('Analysis (199 Ligands)'!ES$5, 'Thrombin (11 Ligands)'!$C$16:$C$20, 0), MATCH('Analysis (199 Ligands)'!ES$2, 'Thrombin (11 Ligands)'!$AX$2:$BC$2, 0)) -> 0.6499509153 | ET11: =INDEX('Thrombin (11 Ligands)'!$AX$16:$BC$20, MATCH('Analysis (199 Ligands)'!ET$5, 'Thrombin (11 Ligands)'!$C$16:$C$20, 0), MATCH('Analysis (199 Ligands)'!ET$2, 'Thrombin (11 Ligands)'!$AX$2:$BC$2, 0)) -> 0.7133908447 | EU11: =INDEX('Thrombin (11 Ligands)'!$AX$16:$BC$20, MATCH('Analysis (199 Ligands)'!EU$5, 'Thrombin (11 Ligands)'!$C$16:$C$20, 0), MATCH('Analysis (199 Ligands)'!EU$2, 'Thrombin (11 Ligands)'!$AX$2:$BC$2, 0)) -> 0.677916713 | EV11: =INDEX('Thrombin (11 Ligands)'!$AX$16:$BC$20, MATCH('Analysis (199 Ligands)'!EV$5, 'Thrombin (11 Ligands)'!$C$16:$C$20, 0), MATCH('Analysis (199 Ligands)'!EV$2, 'Thrombin (11 Ligands)'!$AX$2:$BC$2, 0)) -> 0.7272727273 | EW11: =INDEX('Thrombin (11 Ligands)'!$AX$16:$BC$20, MATCH('Analysis (199 Ligands)'!EW$5, 'Thrombin (11 Ligands)'!$C$16:$C$20, 0), MATCH('Analysis (199 Ligands)'!EW$2, 'Thrombin (11 Ligands)'!$AX$2:$BC$2, 0)) -> 0.5848416094 | EX11: =INDEX('Thrombin (11 Ligands)'!$AX$16:$BC$20, MATCH('Analysis (199 Ligands)'!EX$5, 'Thrombin (11 Ligands)'!$C$16:$C$20, 0), MATCH('Analysis (199 Ligands)'!EX$2, 'Thrombin (11 Ligands)'!$AX$2:$BC$2, 0)) -> 0.6904337984 | EY11: =INDEX('Thrombin (11 Ligands)'!$AX$16:$BC$20, MATCH('Analysis (199 Ligands)'!EY$5, 'Thrombin (11 Ligands)'!$C$16:$C$20, 0), MATCH('Analysis (199 Ligands)'!EY$2, 'Thrombin (11 Ligands)'!$AX$2:$BC$2, 0)) -> 0.7456015777 | EZ11: =INDEX('Thrombin (11 Ligands)'!$AX$16:$BC$20, MATCH('Analysis (199 Ligands)'!EZ$5, 'Thrombin (11 Ligands)'!$C$16:$C$20, 0), MATCH('Analysis (199 Ligands)'!EZ$2, 'Thrombin (11 Ligands)'!$AX$2:$BC$2, 0)) -> 0.7338294846 | FA11: =INDEX('Thrombin (11 Ligands)'!$AX$16:$BC$20, MATCH('Analysis (199 Ligands)'!FA$5, 'Thrombin (11 Ligands)'!$C$16:$C$20, 0), MATCH('Analysis (199 Ligands)'!FA$2, 'Thrombin (11 Ligands)'!$AX$2:$BC$2, 0)) -> 0.7818181818 | FB11: =INDEX('Thrombin (11 Ligands)'!$AX$16:$BC$20, MATCH('Analysis (199 Ligands)'!FB$5, 'Thrombin (11 Ligands)'!$C$16:$C$20, 0), MATCH('Analysis (199 Ligands)'!FB$2, 'Thrombin (11 Ligands)'!$AX$2:$BC$2, 0)) -> 0.675139539 | FC11: =INDEX('Thrombin (11 Ligands)'!$AX$16:$BC$20, MATCH('Analysis (199 Ligands)'!FC$5, 'Thrombin (11 Ligands)'!$C$16:$C$20, 0), MATCH('Analysis (199 Ligands)'!FC$2, 'Thrombin (11 Ligands)'!$AX$2:$BC$2, 0)) -> 0.8694492321 | FD11: =INDEX('Thrombin (11 Ligands)'!$AX$16:$BC$20, MATCH('Analysis (199 Ligands)'!FD$5, 'Thrombin (11 Ligands)'!$C$16:$C$20, 0), MATCH('Analysis (199 Ligands)'!FD$2, 'Thrombin (11 Ligands)'!$AX$2:$BC$2, 0)) -> 0.4299691931 | FE11: =INDEX('Thrombin (11 Ligands)'!$AX$16:$BC$20, MATCH('Analysis (199 Ligands)'!FE$5, 'Thrombin (11 Ligands)'!$C$16:$C$20, 0), MATCH('Analysis (199 Ligands)'!FE$2, 'Thrombin (11 Ligands)'!$AX$2:$BC$2, 0)) -> 0.3672689834 | FF11: =INDEX('Thrombin (11 Ligands)'!$AX$16:$BC$20, MATCH('Analysis (199 Ligands)'!FF$5, 'Thrombin (11 Ligands)'!$C$16:$C$20, 0), MATCH('Analysis (199 Ligands)'!FF$2, 'Thrombin (11 Ligands)'!$AX$2:$BC$2, 0)) -> 0.6181818182 | FG11: =INDEX('Thrombin (11 Ligands)'!$AX$16:$BC$20, MATCH('Analysis (199 Ligands)'!FG$5, 'Thrombin (11 Ligands)'!$C$16:$C$20, 0), MATCH('Analysis (199 Ligands)'!FG$2, 'Thrombin (11 Ligands)'!$AX$2:$BC$2, 0)) -> 0.9291723337 | FH11: =INDEX('Thrombin (11 Ligands)'!$AX$16:$BC$20, MATCH('Analysis (199 Ligands)'!FH$5, 'Thrombin (11 Ligands)'!$C$16:$C$20, 0), MATCH('Analysis (199 Ligands)'!FH$2, 'Thrombin (11 Ligands)'!$AX$2:$BC$2, 0)) -> 1.212329984 | FI11: =INDEX('Thrombin (11 Ligands)'!$AX$16:$BC$20, MATCH('Analysis (199 Ligands)'!FI$5, 'Thrombin (11 Ligands)'!$C$16:$C$20, 0), MATCH('Analysis (199 Ligands)'!FI$2, 'Thrombin (11 Ligands)'!$AX$2:$BC$2, 0)) -> 0.1182956721 | FJ11: =INDEX('Thrombin (11 Ligands)'!$AX$16:$BC$20, MATCH('Analysis (199 Ligands)'!FJ$5, 'Thrombin (11 Ligands)'!$C$16:$C$20, 0), MATCH('Analysis (199 Ligands)'!FJ$2, 'Thrombin (11 Ligands)'!$AX$2:$BC$2, 0)) -> 0.2242457993 | FK11: =INDEX('Thrombin (11 Ligands)'!$AX$16:$BC$20, MATCH('Analysis (199 Ligands)'!FK$5, 'Thrombin (11 Ligands)'!$C$16:$C$20, 0), MATCH('Analysis (199 Ligands)'!FK$2, 'Thrombin (11 Ligands)'!$AX$2:$BC$2, 0)) -> 0.5636363636 | FL11: =INDEX('Thrombin (11 Ligands)'!$AX$16:$BC$20, MATCH('Analysis (199 Ligands)'!FL$5, 'Thrombin (11 Ligands)'!$C$16:$C$20, 0), MATCH('Analysis (199 Ligands)'!FL$2, 'Thrombin (11 Ligands)'!$AX$2:$BC$2, 0)) -> 0.8150163987 | FM11: =INDEX('Thrombin (11 Ligands)'!$AX$16:$BC$20, MATCH('Analysis (199 Ligands)'!FM$5, 'Thrombin (11 Ligands)'!$C$16:$C$20, 0), MATCH('Analysis (199 Ligands)'!FM$2, 'Thrombin (11 Ligands)'!$AX$2:$BC$2, 0)) -> 0.8941495046 | FN11: =INDEX('Thrombin (11 Ligands)'!$AX$16:$BC$20, MATCH('Analysis (199 Ligands)'!FN$5, 'Thrombin (11 Ligands)'!$C$16:$C$20, 0), MATCH('Analysis (199 Ligands)'!FN$2, 'Thrombin (11 Ligands)'!$AX$2:$BC$2, 0)) -> 0.3159713095 | FO11: =INDEX('Thrombin (11 Ligands)'!$AX$16:$BC$20, MATCH('Analysis (199 Ligands)'!FO$5, 'Thrombin (11 Ligands)'!$C$16:$C$20, 0), MATCH('Analysis (199 Ligands)'!FO$2, 'Thrombin (11 Ligands)'!$AX$2:$BC$2, 0)) -> 0.3559698864 | FP11: =INDEX('Thrombin (11 Ligands)'!$AX$16:$BC$20, MATCH('Analysis (199 Ligands)'!FP$5, 'Thrombin (11 Ligands)'!$C$16:$C$20, 0), MATCH('Analysis (199 Ligands)'!FP$2, 'Thrombin (11 Ligands)'!$AX$2:$BC$2, 0)) -> 0.5636363636 | FQ11: =INDEX('Thrombin (11 Ligands)'!$AX$16:$BC$20, MATCH('Analysis (199 Ligands)'!FQ$5, 'Thrombin (11 Ligands)'!$C$16:$C$20, 0), MATCH('Analysis (199 Ligands)'!FQ$2, 'Thrombin (11 Ligands)'!$AX$2:$BC$2, 0)) -> 0.4953580066 | FR11: =INDEX('Thrombin (11 Ligands)'!$AX$16:$BC$20, MATCH('Analysis (199 Ligands)'!FR$5, 'Thrombin (11 Ligands)'!$C$16:$C$20, 0), MATCH('Analysis (199 Ligands)'!FR$2, 'Thrombin (11 Ligands)'!$AX$2:$BC$2, 0)) -> 0.5849430045 | FS11: =INDEX('Thrombin (11 Ligands)'!$AX$16:$BC$20, MATCH('Analysis (199 Ligands)'!FS$5, 'Thrombin (11 Ligands)'!$C$16:$C$20, 0), MATCH('Analysis (199 Ligands)'!FS$2, 'Thrombin (11 Ligands)'!$AX$2:$BC$2, 0)) -> 0.7750101325 | FT11: =INDEX('Thrombin (11 Ligands)'!$AX$16:$BC$20, MATCH('Analysis (199 Ligands)'!FT$5, 'Thrombin (11 Ligands)'!$C$16:$C$20, 0), MATCH('Analysis (199 Ligands)'!FT$2, 'Thrombin (11 Ligands)'!$AX$2:$BC$2, 0)) -> 0.8062300515 | FU11: =INDEX('Thrombin (11 Ligands)'!$AX$16:$BC$20, MATCH('Analysis (199 Ligands)'!FU$5, 'Thrombin (11 Ligands)'!$C$16:$C$20, 0), MATCH('Analysis (199 Ligands)'!FU$2, 'Thrombin (11 Ligands)'!$AX$2:$BC$2, 0)) -> 0.8181818182
B12: CDK2 | C12: 16 | E12: =INDEX('CDK2 (16 Ligands)'!$E$21:$T$25, MATCH('Analysis (199 Ligands)'!E$5, 'CDK2 (16 Ligands)'!$C$21:$C$25, 0), MATCH('Analysis (199 Ligands)'!E$2, 'CDK2 (16 Ligands)'!$E$2:$T$2, 0)) -> 3.795470628 | F12: =INDEX('CDK2 (16 Ligands)'!$E$21:$T$25, MATCH('Analysis (199 Ligands)'!F$5, 'CDK2 (16 Ligands)'!$C$21:$C$25, 0), MATCH('Analysis (199 Ligands)'!F$2, 'CDK2 (16 Ligands)'!$E$2:$T$2, 0)) -> 4.088988417 | G12: =INDEX('CDK2 (16 Ligands)'!$E$21:$T$25, MATCH('Analysis (199 Ligands)'!G$5, 'CDK2 (16 Ligands)'!$C$21:$C$25, 0), MATCH('Analysis (199 Ligands)'!G$2, 'CDK2 (16 Ligands)'!$E$2:$T$2, 0)) -> -0.4224098737 | H12: =INDEX('CDK2 (16 Ligands)'!$E$21:$T$25, MATCH('Analysis (199 Ligands)'!H$5, 'CDK2 (16 Ligands)'!$C$21:$C$25, 0), MATCH('Analysis (199 Ligands)'!H$2, 'CDK2 (16 Ligands)'!$E$2:$T$2, 0)) -> -0.3551738451 | I12: =INDEX('CDK2 (16 Ligands)'!$E$21:$T$25, MATCH('Analysis (199 Ligands)'!I$5, 'CDK2 (16 Ligands)'!$C$21:$C$25, 0), MATCH('Analysis (199 Ligands)'!I$2, 'CDK2 (16 Ligands)'!$E$2:$T$2, 0)) -> 0.35 | J12: =INDEX('CDK2 (16 Ligands)'!$E$21:$T$25, MATCH('Analysis (199 Ligands)'!J$5, 'CDK2 (16 Ligands)'!$C$21:$C$25, 0), MATCH('Analysis (199 Ligands)'!J$2, 'CDK2 (16 Ligands)'!$E$2:$T$2, 0)) -> 3.635408128 | K12: =INDEX('CDK2 (16 Ligands)'!$E$21:$T$25, MATCH('Analysis (199 Ligands)'!K$5, 'CDK2 (16 Ligands)'!$C$21:$C$25, 0), MATCH('Analysis (199 Ligands)'!K$2, 'CDK2 (16 Ligands)'!$E$2:$T$2, 0)) -> 3.886855761 | L12: =INDEX('CDK2 (16 Ligands)'!$E$21:$T$25, MATCH('Analysis (199 Ligands)'!L$5, 'CDK2 (16 Ligands)'!$C$21:$C$25, 0), MATCH('Analysis (199 Ligands)'!L$2, 'CDK2 (16 Ligands)'!$E$2:$T$2, 0)) -> -0.167457655 | M12: =INDEX('CDK2 (16 Ligands)'!$E$21:$T$25, MATCH('Analysis (199 Ligands)'!M$5, 'CDK2 (16 Ligands)'!$C$21:$C$25, 0), MATCH('Analysis (199 Ligands)'!M$2, 'CDK2 (16 Ligands)'!$E$2:$T$2, 0)) -> -0.2988796952 | N12: =INDEX('CDK2 (16 Ligands)'!$E$21:$T$25, MATCH('Analysis (199 Ligands)'!N$5, 'CDK2 (16 Ligands)'!$C$21:$C$25, 0), MATCH('Analysis (199 Ligands)'!N$2, 'CDK2 (16 Ligands)'!$E$2:$T$2, 0)) -> 0.3666666667 | O12: =INDEX('CDK2 (16 Ligands)'!$E$21:$T$25, MATCH('Analysis (199 Ligands)'!O$5, 'CDK2 (16 Ligands)'!$C$21:$C$25, 0), MATCH('Analysis (199 Ligands)'!O$2, 'CDK2 (16 Ligands)'!$E$2:$T$2, 0)) -> 6.091283128 | P12: =INDEX('CDK2 (16 Ligands)'!$E$21:$T$25, MATCH('Analysis (199 Ligands)'!P$5, 'CDK2 (16 Ligands)'!$C$21:$C$25, 0), MATCH('Analysis (199 Ligands)'!P$2, 'CDK2 (16 Ligands)'!$E$2:$T$2, 0)) -> 6.151642143 | Q12: =INDEX('CDK2 (16 Ligands)'!$E$21:$T$25, MATCH('Analysis (199 Ligands)'!Q$5, 'CDK2 (16 Ligands)'!$C$21:$C$25, 0), MATCH('Analysis (199 Ligands)'!Q$2, 'CDK2 (16 Ligands)'!$E$2:$T$2, 0)) -> 0.6873735161 | R12: =INDEX('CDK2 (16 Ligands)'!$E$21:$T$25, MATCH('Analysis (199 Ligands)'!R$5, 'CDK2 (16 Ligands)'!$C$21:$C$25, 0), MATCH('Analysis (199 Ligands)'!R$2, 'CDK2 (16 Ligands)'!$E$2:$T$2, 0)) -> 0.6677083582 | S12: =INDEX('CDK2 (16 Ligands)'!$E$21:$T$25, MATCH('Analysis (199 Ligands)'!S$5, 'CDK2 (16 Ligands)'!$C$21:$C$25, 0), MATCH('Analysis (199 Ligands)'!S$2, 'CDK2 (16 Ligands)'!$E$2:$T$2, 0)) -> 0.75 | T12: =INDEX('CDK2 (16 Ligands)'!$E$21:$T$25, MATCH('Analysis (199 Ligands)'!T$5, 'CDK2 (16 Ligands)'!$C$21:$C$25, 0), MATCH('Analysis (199 Ligands)'!T$2, 'CDK2 (16 Ligands)'!$E$2:$T$2, 0)) -> 6.281720628 | U12: =INDEX('CDK2 (16 Ligands)'!$E$21:$T$25, MATCH('Analysis (199 Ligands)'!U$5, 'CDK2 (16 Ligands)'!$C$21:$C$25, 0), MATCH('Analysis (199 Ligands)'!U$2, 'CDK2 (16 Ligands)'!$E$2:$T$2, 0)) -> 6.342251831 | V12: =INDEX('CDK2 (16 Ligands)'!$E$21:$T$25, MATCH('Analysis (199 Ligands)'!V$5, 'CDK2 (16 Ligands)'!$C$21:$C$25, 0), MATCH('Analysis (199 Ligands)'!V$2, 'CDK2 (16 Ligands)'!$E$2:$T$2, 0)) -> 0.6681342241 | W12: =INDEX('CDK2 (16 Ligands)'!$E$21:$T$25, MATCH('Analysis (199 Ligands)'!W$5, 'CDK2 (16 Ligands)'!$C$21:$C$25, 0), MATCH('Analysis (199 Ligands)'!W$2, 'CDK2 (16 Ligands)'!$E$2:$T$2, 0)) -> 0.6897041598 | X12: =INDEX('CDK2 (16 Ligands)'!$E$21:$T$25, MATCH('Analysis (199 Ligands)'!X$5, 'CDK2 (16 Ligands)'!$C$21:$C$25, 0), MATCH('Analysis (199 Ligands)'!X$2, 'CDK2 (16 Ligands)'!$E$2:$T$2, 0)) -> 0.7666666667 | Z12: =INDEX('CDK2 (16 Ligands)'!$E$21:$T$25, MATCH('Analysis (199 Ligands)'!Z$5, 'CDK2 (16 Ligands)'!$C$21:$C$25, 0), MATCH('Analysis (199 Ligands)'!Z$2, 'CDK2 (16 Ligands)'!$E$2:$T$2, 0)) -> 1.843805529 | AA12: =INDEX('CDK2 (16 Ligands)'!$E$21:$T$25, MATCH('Analysis (199 Ligands)'!AA$5, 'CDK2 (16 Ligands)'!$C$21:$C$25, 0), MATCH('Analysis (199 Ligands)'!AA$2, 'CDK2 (16 Ligands)'!$E$2:$T$2, 0)) -> 2.142224112 | AB12: =INDEX('CDK2 (16 Ligands)'!$E$21:$T$25, MATCH('Analysis (199 Ligands)'!AB$5, 'CDK2 (16 Ligands)'!$C$21:$C$25, 0), MATCH('Analysis (199 Ligands)'!AB$2, 'CDK2 (16 Ligands)'!$E$2:$T$2, 0)) -> 0.401389324 | AC12: =INDEX('CDK2 (16 Ligands)'!$E$21:$T$25, MATCH('Analysis (199 Ligands)'!AC$5, 'CDK2 (16 Ligands)'!$C$21:$C$25, 0), MATCH('Analysis (199 Ligands)'!AC$2, 'CDK2 (16 Ligands)'!$E$2:$T$2, 0)) -> 0.4141902137 | AD12: =INDEX('CDK2 (16 Ligands)'!$E$21:$T$25, MATCH('Analysis (199 Ligands)'!AD$5, 'CDK2 (16 Ligands)'!$C$21:$C$25, 0), MATCH('Analysis (199 Ligands)'!AD$2, 'CDK2 (16 Ligands)'!$E$2:$T$2, 0)) -> 0.625 | AE12: =INDEX('CDK2 (16 Ligands)'!$E$21:$T$25, MATCH('Analysis (199 Ligands)'!AE$5, 'CDK2 (16 Ligands)'!$C$21:$C$25, 0), MATCH('Analysis (199 Ligands)'!AE$2, 'CDK2 (16 Ligands)'!$E$2:$T$2, 0)) -> 1.856243029 | AF12: =INDEX('CDK2 (16 Ligands)'!$E$21:$T$25, MATCH('Analysis (199 Ligands)'!AF$5, 'CDK2 (16 Ligands)'!$C$21:$C$25, 0), MATCH('Analysis (199 Ligands)'!AF$2, 'CDK2 (16 Ligands)'!$E$2:$T$2, 0)) -> 2.16760845 | AG12: =INDEX('CDK2 (16 Ligands)'!$E$21:$T$25, MATCH('Analysis (199 Ligands)'!AG$5, 'CDK2 (16 Ligands)'!$C$21:$C$25, 0), MATCH('Analysis (199 Ligands)'!AG$2, 'CDK2 (16 Ligands)'!$E$2:$T$2, 0)) -> 0.3058073683 | AH12: =INDEX('CDK2 (16 Ligands)'!$E$21:$T$25, MATCH('Analysis (199 Ligands)'!AH$5, 'CDK2 (16 Ligands)'!$C$21:$C$25, 0), MATCH('Analysis (199 Ligands)'!AH$2, 'CDK2 (16 Ligands)'!$E$2:$T$2, 0)) -> 0.2964315186 | AI12: =INDEX('CDK2 (16 Ligands)'!$E$21:$T$25, MATCH('Analysis (199 Ligands)'!AI$5, 'CDK2 (16 Ligands)'!$C$21:$C$25, 0), MATCH('Analysis (199 Ligands)'!AI$2, 'CDK2 (16 Ligands)'!$E$2:$T$2, 0)) -> 0.6 | AJ12: =INDEX('CDK2 (16 Ligands)'!$E$21:$T$25, MATCH('Analysis (199 Ligands)'!AJ$5, 'CDK2 (16 Ligands)'!$C$21:$C$25, 0), MATCH('Analysis (199 Ligands)'!AJ$2, 'CDK2 (16 Ligands)'!$E$2:$T$2, 0)) -> 4.640220628 | AK12: =INDEX('CDK2 (16 Ligands)'!$E$21:$T$25, MATCH('Analysis (199 Ligands)'!AK$5, 'CDK2 (16 Ligands)'!$C$21:$C$25, 0), MATCH('Analysis (199 Ligands)'!AK$2, 'CDK2 (16 Ligands)'!$E$2:$T$2, 0)) -> 4.723711116 | AL12: =INDEX('CDK2 (16 Ligands)'!$E$21:$T$25, MATCH('Analysis (199 Ligands)'!AL$5, 'CDK2 (16 Ligands)'!$C$21:$C$25, 0), MATCH('Analysis (199 Ligands)'!AL$2, 'CDK2 (16 Ligands)'!$E$2:$T$2, 0)) -> 0.6739844728 | AM12: =INDEX('CDK2 (16 Ligands)'!$E$21:$T$25, MATCH('Analysis (199 Ligands)'!AM$5, 'CDK2 (16 Ligands)'!$C$21:$C$25, 0), MATCH('Analysis (199 Ligands)'!AM$2, 'CDK2 (16 Ligands)'!$E$2:$T$2, 0)) -> 0.7034383624 | AN12: =INDEX('CDK2 (16 Ligands)'!$E$21:$T$25, MATCH('Analysis (199 Ligands)'!AN$5, 'CDK2 (16 Ligands)'!$C$21:$C$25, 0), MATCH('Analysis (199 Ligands)'!AN$2, 'CDK2 (16 Ligands)'!$E$2:$T$2, 0)) -> 0.7666666667 | AO12: =INDEX('CDK2 (16 Ligands)'!$E$21:$T$25, MATCH('Analysis (199 Ligands)'!AO$5, 'CDK2 (16 Ligands)'!$C$21:$C$25, 0), MATCH('Analysis (199 Ligands)'!AO$2, 'CDK2 (16 Ligands)'!$E$2:$T$2, 0)) -> 4.616845628 | AP12: =INDEX('CDK2 (16 Ligands)'!$E$21:$T$25, MATCH('Analysis (199 Ligands)'!AP$5, 'CDK2 (16 Ligands)'!$C$21:$C$25, 0), MATCH('Analysis (199 Ligands)'!AP$2, 'CDK2 (16 Ligands)'!$E$2:$T$2, 0)) -> 4.703202491 | AQ12: =INDEX('CDK2 (16 Ligands)'!$E$21:$T$25, MATCH('Analysis (199 Ligands)'!AQ$5, 'CDK2 (16 Ligands)'!$C$21:$C$25, 0), MATCH('Analysis (199 Ligands)'!AQ$2, 'CDK2 (16 Ligands)'!$E$2:$T$2, 0)) -> 0.665218573 | AR12: =INDEX('CDK2 (16 Ligands)'!$E$21:$T$25, MATCH('Analysis (199 Ligands)'!AR$5, 'CDK2 (16 Ligands)'!$C$21:$C$25, 0), MATCH('Analysis (199 Ligands)'!AR$2, 'CDK2 (16 Ligands)'!$E$2:$T$2, 0)) -> 0.64308628 | AS12: =INDEX('CDK2 (16 Ligands)'!$E$21:$T$25, MATCH('Analysis (199 Ligands)'!AS$5, 'CDK2 (16 Ligands)'!$C$21:$C$25, 0), MATCH('Analysis (199 Ligands)'!AS$2, 'CDK2 (16 Ligands)'!$E$2:$T$2, 0)) -> 0.7416666667 | AU12: =INDEX('CDK2 (16 Ligands)'!$E$21:$T$25, MATCH('Analysis (199 Ligands)'!AU$5, 'CDK2 (16 Ligands)'!$C$21:$C$25, 0), MATCH('Analysis (199 Ligands)'!AU$2, 'CDK2 (16 Ligands)'!$E$2:$T$2, 0)) -> 1.294381945 | AV12: =INDEX('CDK2 (16 Ligands)'!$E$21:$T$25, MATCH('Analysis (199 Ligands)'!AV$5, 'CDK2 (16 Ligands)'!$C$21:$C$25, 0), MATCH('Analysis (199 Ligands)'!AV$2, 'CDK2 (16 Ligands)'!$E$2:$T$2, 0)) -> 1.579640706 | AW12: =INDEX('CDK2 (16 Ligands)'!$E$21:$T$25, MATCH('Analysis (199 Ligands)'!AW$5, 'CDK2 (16 Ligands)'!$C$21:$C$25, 0), MATCH('Analysis (199 Ligands)'!AW$2, 'CDK2 (16 Ligands)'!$E$2:$T$2, 0)) -> 0.4834454963 | AX12: =INDEX('CDK2 (16 Ligands)'!$E$21:$T$25, MATCH('Analysis (199 Ligands)'!AX$5, 'CDK2 (16 Ligands)'!$C$21:$C$25, 0), MATCH('Analysis (199 Ligands)'!AX$2, 'CDK2 (16 Ligands)'!$E$2:$T$2, 0)) -> 0.5582485558 | AY12: =INDEX('CDK2 (16 Ligands)'!$E$21:$T$25, MATCH('Analysis (199 Ligands)'!AY$5, 'CDK2 (16 Ligands)'!$C$21:$C$25, 0), MATCH('Analysis (199 Ligands)'!AY$2, 'CDK2 (16 Ligands)'!$E$2:$T$2, 0)) -> 0.6583333333 | AZ12: =INDEX('CDK2 (16 Ligands)'!$E$21:$T$25, MATCH('Analysis (199 Ligands)'!AZ$5, 'CDK2 (16 Ligands)'!$C$21:$C$25, 0), MATCH('Analysis (199 Ligands)'!AZ$2, 'CDK2 (16 Ligands)'!$E$2:$T$2, 0)) -> 1.199647578 | BA12: =INDEX('CDK2 (16 Ligands)'!$E$21:$T$25, MATCH('Analysis (199 Ligands)'!BA$5, 'CDK2 (16 Ligands)'!$C$21:$C$25, 0), MATCH('Analysis (199 Ligands)'!BA$2, 'CDK2 (16 Ligands)'!$E$2:$T$2, 0)) -> 1.360798631 | BB12: =INDEX('CDK2 (16 Ligands)'!$E$21:$T$25, MATCH('Analysis (199 Ligands)'!BB$5, 'CDK2 (16 Ligands)'!$C$21:$C$25, 0), MATCH('Analysis (199 Ligands)'!BB$2, 'CDK2 (16 Ligands)'!$E$2:$T$2, 0)) -> 0.6270074314 | BC12: =INDEX('CDK2 (16 Ligands)'!$E$21:$T$25, MATCH('Analysis (199 Ligands)'!BC$5, 'CDK2 (16 Ligands)'!$C$21:$C$25, 0), MATCH('Analysis (199 Ligands)'!BC$2, 'CDK2 (16 Ligands)'!$E$2:$T$2, 0)) -> 0.6460674967 | BD12: =INDEX('CDK2 (16 Ligands)'!$E$21:$T$25, MATCH('Analysis (199 Ligands)'!BD$5, 'CDK2 (16 Ligands)'!$C$21:$C$25, 0), MATCH('Analysis (199 Ligands)'!BD$2, 'CDK2 (16 Ligands)'!$E$2:$T$2, 0)) -> 0.725 | BE12: =INDEX('CDK2 (16 Ligands)'!$E$21:$T$25, MATCH('Analysis (199 Ligands)'!BE$5, 'CDK2 (16 Ligands)'!$C$21:$C$25, 0), MATCH('Analysis (199 Ligands)'!BE$2, 'CDK2 (16 Ligands)'!$E$2:$T$2, 0)) -> 4.059408128 | BF12: =INDEX('CDK2 (16 Ligands)'!$E$21:$T$25, MATCH('Analysis (199 Ligands)'!BF$5, 'CDK2 (16 Ligands)'!$C$21:$C$25, 0), MATCH('Analysis (199 Ligands)'!BF$2, 'CDK2 (16 Ligands)'!$E$2:$T$2, 0)) -> 4.142499794 | BG12: =INDEX('CDK2 (16 Ligands)'!$E$21:$T$25, MATCH('Analysis (199 Ligands)'!BG$5, 'CDK2 (16 Ligands)'!$C$21:$C$25, 0), MATCH('Analysis (199 Ligands)'!BG$2, 'CDK2 (16 Ligands)'!$E$2:$T$2, 0)) -> 0.7546125921 | BH12: =INDEX('CDK2 (16 Ligands)'!$E$21:$T$25, MATCH('Analysis (199 Ligands)'!BH$5, 'CDK2 (16 Ligands)'!$C$21:$C$25, 0), MATCH('Analysis (199 Ligands)'!BH$2, 'CDK2 (16 Ligands)'!$E$2:$T$2, 0)) -> 0.7420784448 | BI12: =INDEX('CDK2 (16 Ligands)'!$E$21:$T$25, MATCH('Analysis (199 Ligands)'!BI$5, 'CDK2 (16 Ligands)'!$C$21:$C$25, 0), MATCH('Analysis (199 Ligands)'!BI$2, 'CDK2 (16 Ligands)'!$E$2:$T$2, 0)) -> 0.7416666667 | BJ12: =INDEX('CDK2 (16 Ligands)'!$E$21:$T$25, MATCH('Analysis (199 Ligands)'!BJ$5, 'CDK2 (16 Ligands)'!$C$21:$C$25, 0), MATCH('Analysis (199 Ligands)'!BJ$2, 'CDK2 (16 Ligands)'!$E$2:$T$2, 0)) -> 4.057595628 | BK12: =INDEX('CDK2 (16 Ligands)'!$E$21:$T$25, MATCH('Analysis (199 Ligands)'!BK$5, 'CDK2 (16 Ligands)'!$C$21:$C$25, 0), MATCH('Analysis (199 Ligands)'!BK$2, 'CDK2 (16 Ligands)'!$E$2:$T$2, 0)) -> 4.144414919 | BL12: =INDEX('CDK2 (16 Ligands)'!$E$21:$T$25, MATCH('Analysis (199 Ligands)'!BL$5, 'CDK2 (16 Ligands)'!$C$21:$C$25, 0), MATCH('Analysis (199 Ligands)'!BL$2, 'CDK2 (16 Ligands)'!$E$2:$T$2, 0)) -> 0.7174978784 | BM12: =INDEX('CDK2 (16 Ligands)'!$E$21:$T$25, MATCH('Analysis (199 Ligands)'!BM$5, 'CDK2 (16 Ligands)'!$C$21:$C$25, 0), MATCH('Analysis (199 Ligands)'!BM$2, 'CDK2 (16 Ligands)'!$E$2:$T$2, 0)) -> 0.7041120507 | BN12: =INDEX('CDK2 (16 Ligands)'!$E$21:$T$25, MATCH('Analysis (199 Ligands)'!BN$5, 'CDK2 (16 Ligands)'!$C$21:$C$25, 0), MATCH('Analysis (199 Ligands)'!BN$2, 'CDK2 (16 Ligands)'!$E$2:$T$2, 0)) -> 0.7333333333 | BP12: =INDEX('CDK2 (16 Ligands)'!$E$21:$T$25, MATCH('Analysis (199 Ligands)'!BP$5, 'CDK2 (16 Ligands)'!$C$21:$C$25, 0), MATCH('Analysis (199 Ligands)'!BP$2, 'CDK2 (16 Ligands)'!$E$2:$T$2, 0)) -> 1.310885659 | BQ12: =INDEX('CDK2 (16 Ligands)'!$E$21:$T$25, MATCH('Analysis (199 Ligands)'!BQ$5, 'CDK2 (16 Ligands)'!$C$21:$C$25, 0), MATCH('Analysis (199 Ligands)'!BQ$2, 'CDK2 (16 Ligands)'!$E$2:$T$2, 0)) -> 1.505088203 | BR12: =INDEX('CDK2 (16 Ligands)'!$E$21:$T$25, MATCH('Analysis (199 Ligands)'!BR$5, 'CDK2 (16 Ligands)'!$C$21:$C$25, 0), MATCH('Analysis (199 Ligands)'!BR$2, 'CDK2 (16 Ligands)'!$E$2:$T$2, 0)) -> 0.6323759217 | BS12: =INDEX('CDK2 (16 Ligands)'!$E$21:$T$25, MATCH('Analysis (199 Ligands)'!BS$5, 'CDK2 (16 Ligands)'!$C$21:$C$25, 0), MATCH('Analysis (199 Ligands)'!BS$2, 'CDK2 (16 Ligands)'!$E$2:$T$2, 0)) -> 0.6692676385 | BT12: =INDEX('CDK2 (16 Ligands)'!$E$21:$T$25, MATCH('Analysis (199 Ligands)'!BT$5, 'CDK2 (16 Ligands)'!$C$21:$C$25, 0), MATCH('Analysis (199 Ligands)'!BT$2, 'CDK2 (16 Ligands)'!$E$2:$T$2, 0)) -> 0.7 | BU12: =INDEX('CDK2 (16 Ligands)'!$E$21:$T$25, MATCH('Analysis (199 Ligands)'!BU$5, 'CDK2 (16 Ligands)'!$C$21:$C$25, 0), MATCH('Analysis (199 Ligands)'!BU$2, 'CDK2 (16 Ligands)'!$E$2:$T$2, 0)) -> 1.370519495 | BV12: =INDEX('CDK2 (16 Ligands)'!$E$21:$T$25, MATCH('Analysis (199 Ligands)'!BV$5, 'CDK2 (16 Ligands)'!$C$21:$C$25, 0), MATCH('Analysis (199 Ligands)'!BV$2, 'CDK2 (16 Ligands)'!$E$2:$T$2, 0)) -> 1.577305784 | BW12: =INDEX('CDK2 (16 Ligands)'!$E$21:$T$25, MATCH('Analysis (199 Ligands)'!BW$5, 'CDK2 (16 Ligands)'!$C$21:$C$25, 0), MATCH('Analysis (199 Ligands)'!BW$2, 'CDK2 (16 Ligands)'!$E$2:$T$2, 0)) -> 0.6764452824 | BX12: =INDEX('CDK2 (16 Ligands)'!$E$21:$T$25, MATCH('Analysis (199 Ligands)'!BX$5, 'CDK2 (16 Ligands)'!$C$21:$C$25, 0), MATCH('Analysis (199 Ligands)'!BX$2, 'CDK2 (16 Ligands)'!$E$2:$T$2, 0)) -> 0.6721541609 | BY12: =INDEX('CDK2 (16 Ligands)'!$E$21:$T$25, MATCH('Analysis (199 Ligands)'!BY$5, 'CDK2 (16 Ligands)'!$C$21:$C$25, 0), MATCH('Analysis (199 Ligands)'!BY$2, 'CDK2 (16 Ligands)'!$E$2:$T$2, 0)) -> 0.7416666667 | BZ12: =INDEX('CDK2 (16 Ligands)'!$E$21:$T$25, MATCH('Analysis (199 Ligands)'!BZ$5, 'CDK2 (16 Ligands)'!$C$21:$C$25, 0), MATCH('Analysis (199 Ligands)'!BZ$2, 'CDK2 (16 Ligands)'!$E$2:$T$2, 0)) -> 3.668220628 | CA12: =INDEX('CDK2 (16 Ligands)'!$E$21:$T$25, MATCH('Analysis (199 Ligands)'!CA$5, 'CDK2 (16 Ligands)'!$C$21:$C$25, 0), MATCH('Analysis (199 Ligands)'!CA$2, 'CDK2 (16 Ligands)'!$E$2:$T$2, 0)) -> 3.768357567 | CB12: =INDEX('CDK2 (16 Ligands)'!$E$21:$T$25, MATCH('Analysis (199 Ligands)'!CB$5, 'CDK2 (16 Ligands)'!$C$21:$C$25, 0), MATCH('Analysis (199 Ligands)'!CB$2, 'CDK2 (16 Ligands)'!$E$2:$T$2, 0)) -> 0.7176073625 | CC12: =INDEX('CDK2 (16 Ligands)'!$E$21:$T$25, MATCH('Analysis (199 Ligands)'!CC$5, 'CDK2 (16 Ligands)'!$C$21:$C$25, 0), MATCH('Analysis (199 Ligands)'!CC$2, 'CDK2 (16 Ligands)'!$E$2:$T$2, 0)) -> 0.6493328356 | CD12: =INDEX('CDK2 (16 Ligands)'!$E$21:$T$25, MATCH('Analysis (199 Ligands)'!CD$5, 'CDK2 (16 Ligands)'!$C$21:$C$25, 0), MATCH('Analysis (199 Ligands)'!CD$2, 'CDK2 (16 Ligands)'!$E$2:$T$2, 0)) -> 0.7083333333 | CE12: =INDEX('CDK2 (16 Ligands)'!$E$21:$T$25, MATCH('Analysis (199 Ligands)'!CE$5, 'CDK2 (16 Ligands)'!$C$21:$C$25, 0), MATCH('Analysis (199 Ligands)'!CE$2, 'CDK2 (16 Ligands)'!$E$2:$T$2, 0)) -> 3.496095628 | CF12: =INDEX('CDK2 (16 Ligands)'!$E$21:$T$25, MATCH('Analysis (199 Ligands)'!CF$5, 'CDK2 (16 Ligands)'!$C$21:$C$25, 0), MATCH('Analysis (199 Ligands)'!CF$2, 'CDK2 (16 Ligands)'!$E$2:$T$2, 0)) -> 3.638413121 | CG12: =INDEX('CDK2 (16 Ligands)'!$E$21:$T$25, MATCH('Analysis (199 Ligands)'!CG$5, 'CDK2 (16 Ligands)'!$C$21:$C$25, 0), MATCH('Analysis (199 Ligands)'!CG$2, 'CDK2 (16 Ligands)'!$E$2:$T$2, 0)) -> 0.6351059678 | CH12: =INDEX('CDK2 (16 Ligands)'!$E$21:$T$25, MATCH('Analysis (199 Ligands)'!CH$5, 'CDK2 (16 Ligands)'!$C$21:$C$25, 0), MATCH('Analysis (199 Ligands)'!CH$2, 'CDK2 (16 Ligands)'!$E$2:$T$2, 0)) -> 0.5820480353 | CI12: =INDEX('CDK2 (16 Ligands)'!$E$21:$T$25, MATCH('Analysis (199 Ligands)'!CI$5, 'CDK2 (16 Ligands)'!$C$21:$C$25, 0), MATCH('Analysis (199 Ligands)'!CI$2, 'CDK2 (16 Ligands)'!$E$2:$T$2, 0)) -> 0.6583333333 | CK12: =INDEX($E$2:$CI$2, MATCH(MIN(IF(CL$5 = $E$5:$CI$5, $E12:$CI12, 999999)),IF(CL$5 = $E$5:$CI$5, $E12:$CI12, 999999),0)) -> GAX21 (r = 5 A) | CL12: =IFERROR(INDEX($E12:$CI12, SMALL(IF(CK12 = $E$2:$CI$2, COLUMN($E$2:$CI$2) - MIN(COLUMN($E$2:$CI$2))+1, ""), COLUMN(CL12:CP12) - COLUMN(CL12)+1)), "") -> 1.199647578 | CM12: 1.360798631 | CN12: 0.6270074314 | CO12: 0.6460674967 | CP12: 0.725 | CQ12: =INDEX($E$2:$CI$2, MATCH(MIN(IF(CS$5 = $E$5:$CI$5, $E12:$CI12, 999999)),IF(CS$5 = $E$5:$CI$5, $E12:$CI12, 999999),0)) -> GAX21 (r = 5 A) | CR12: =IFERROR(INDEX($E12:$CI12, SMALL(IF(CQ12 = $E$2:$CI$2, COLUMN($E$2:$CI$2) - MIN(COLUMN($E$2:$CI$2))+1, ""), COLUMN(CR12:CV12) - COLUMN(CR12)+1)), "") -> 1.199647578 | CS12: 1.360798631 | CT12: 0.6270074314 | CU12: 0.6460674967 | CV12: 0.725 | CW12: =INDEX($E$2:$CI$2, MATCH(MAX(IF(CZ$5 = $E$5:$CI$5, $E12:$CI12, -1)),IF(CZ$5 = $E$5:$CI$5, $E12:$CI12, -1),0)) -> SS21 (r = 5 A) | CX12: =IFERROR(INDEX($E12:$CI12, SMALL(IF(CW12 = $E$2:$CI$2, COLUMN($E$2:$CI$2) - MIN(COLUMN($E$2:$CI$2))+1, ""), COLUMN(CX12:DB12) - COLUMN(CX12)+1)), "") -> 4.059408128 | CY12: 4.142499794 | CZ12: 0.7546125921 | DA12: 0.7420784448 | DB12: 0.7416666667 | DC12: =INDEX($E$2:$CI$2, MATCH(MAX(IF(DG$5 = $E$5:$CI$5, $E12:$CI12, -1)),IF(DG$5 = $E$5:$CI$5, $E12:$CI12, -1),0)) -> SS21 (r = 5 A) | DD12: =IFERROR(INDEX($E12:$CI12, SMALL(IF(DC12 = $E$2:$CI$2, COLUMN($E$2:$CI$2) - MIN(COLUMN($E$2:$CI$2))+1, ""), COLUMN(DD12:DH12) - COLUMN(DD12)+1)), "") -> 4.059408128 | DE12: 4.142499794 | DF12: 0.7546125921 | DG12: 0.7420784448 | DH12: 0.7416666667 | DI12: =INDEX($E$2:$CI$2, MATCH(MAX(IF(DN$5 = $E$5:$CI$5, $E12:$CI12, -1)),IF(DN$5 = $E$5:$CI$5, $E12:$CI12, -1),0)) -> SX21 (r = 1 A) | DJ12: =IFERROR(INDEX($E12:$CI12, SMALL(IF(DI12 = $E$2:$CI$2, COLUMN($E$2:$CI$2) - MIN(COLUMN($E$2:$CI$2))+1, ""), COLUMN(DJ12:DN12) - COLUMN(DJ12)+1)), "") -> 6.281720628 | DK12: 6.342251831 | DL12: 0.6681342241 | DM12: 0.6897041598 | DN12: 0.7666666667 | DP12: =INDEX('CDK2 (16 Ligands)'!$V$21:$AV$25, MATCH('Analysis (199 Ligands)'!DP$5, 'CDK2 (16 Ligands)'!$C$21:$C$25, 0), MATCH('Analysis (199 Ligands)'!DP$2, 'CDK2 (16 Ligands)'!$V$2:$AV$2, 0)) -> 0.7986867408 | DQ12: =INDEX('CDK2 (16 Ligands)'!$V$21:$AV$25, MATCH('Analysis (199 Ligands)'!DQ$5, 'CDK2 (16 Ligands)'!$C$21:$C$25, 0), MATCH('Analysis (199 Ligands)'!DQ$2, 'CDK2 (16 Ligands)'!$V$2:$AV$2, 0)) -> 1.039683698 | DR12: =INDEX('CDK2 (16 Ligands)'!$V$21:$AV$25, MATCH('Analysis (199 Ligands)'!DR$5, 'CDK2 (16 Ligands)'!$C$21:$C$25, 0), MATCH('Analysis (199 Ligands)'!DR$2, 'CDK2 (16 Ligands)'!$V$2:$AV$2, 0)) -> 0.6310226551 | DS12: =INDEX('CDK2 (16 Ligands)'!$V$21:$AV$25, MATCH('Analysis (199 Ligands)'!DS$5, 'CDK2 (16 Ligands)'!$C$21:$C$25, 0), MATCH('Analysis (199 Ligands)'!DS$2, 'CDK2 (16 Ligands)'!$V$2:$AV$2, 0)) -> 0.7533958423 | DT12: =INDEX('CDK2 (16 Ligands)'!$V$21:$AV$25, MATCH('Analysis (199 Ligands)'!DT$5, 'CDK2 (16 Ligands)'!$C$21:$C$25, 0), MATCH('Analysis (199 Ligands)'!DT$2, 'CDK2 (16 Ligands)'!$V$2:$AV$2, 0)) -> 0.7666666667 | DU12: =INDEX('CDK2 (16 Ligands)'!$V$21:$AV$25, MATCH('Analysis (199 Ligands)'!DU$5, 'CDK2 (16 Ligands)'!$C$21:$C$25, 0), MATCH('Analysis (199 Ligands)'!DU$2, 'CDK2 (16 Ligands)'!$V$2:$AV$2, 0)) -> 0.5993776884 | DV12: =INDEX('CDK2 (16 Ligands)'!$V$21:$AV$25, MATCH('Analysis (199 Ligands)'!DV$5, 'CDK2 (16 Ligands)'!$C$21:$C$25, 0), MATCH('Analysis (199 Ligands)'!DV$2, 'CDK2 (16 Ligands)'!$V$2:$AV$2, 0)) -> 0.6845777513 | DW12: =INDEX('CDK2 (16 Ligands)'!$V$21:$AV$25, MATCH('Analysis (199 Ligands)'!DW$5, 'CDK2 (16 Ligands)'!$C$21:$C$25, 0), MATCH('Analysis (199 Ligands)'!DW$2, 'CDK2 (16 Ligands)'!$V$2:$AV$2, 0)) -> 0.8640562345 | DX12: =INDEX('CDK2 (16 Ligands)'!$V$21:$AV$25, MATCH('Analysis (199 Ligands)'!DX$5, 'CDK2 (16 Ligands)'!$C$21:$C$25, 0), MATCH('Analysis (199 Ligands)'!DX$2, 'CDK2 (16 Ligands)'!$V$2:$AV$2, 0)) -> 0.8731903969 | DY12: =INDEX('CDK2 (16 Ligands)'!$V$21:$AV$25, MATCH('Analysis (199 Ligands)'!DY$5, 'CDK2 (16 Ligands)'!$C$21:$C$25, 0), MATCH('Analysis (199 Ligands)'!DY$2, 'CDK2 (16 Ligands)'!$V$2:$AV$2, 0)) -> 0.825 | DZ12: =INDEX('CDK2 (16 Ligands)'!$V$21:$AV$25, MATCH('Analysis (199 Ligands)'!DZ$5, 'CDK2 (16 Ligands)'!$C$21:$C$25, 0), MATCH('Analysis (199 Ligands)'!DZ$2, 'CDK2 (16 Ligands)'!$V$2:$AV$2, 0)) -> 2.203496231 | EA12: =INDEX('CDK2 (16 Ligands)'!$V$21:$AV$25, MATCH('Analysis (199 Ligands)'!EA$5, 'CDK2 (16 Ligands)'!$C$21:$C$25, 0), MATCH('Analysis (199 Ligands)'!EA$2, 'CDK2 (16 Ligands)'!$V$2:$AV$2, 0)) -> 2.620237963 | EB12: =INDEX('CDK2 (16 Ligands)'!$V$21:$AV$25, MATCH('Analysis (199 Ligands)'!EB$5, 'CDK2 (16 Ligands)'!$C$21:$C$25, 0), MATCH('Analysis (199 Ligands)'!EB$2, 'CDK2 (16 Ligands)'!$V$2:$AV$2, 0)) -> 0.9061873698 | EC12: =INDEX('CDK2 (16 Ligands)'!$V$21:$AV$25, MATCH('Analysis (199 Ligands)'!EC$5, 'CDK2 (16 Ligands)'!$C$21:$C$25, 0), MATCH('Analysis (199 Ligands)'!EC$2, 'CDK2 (16 Ligands)'!$V$2:$AV$2, 0)) -> 0.9137617862 | ED12: =INDEX('CDK2 (16 Ligands)'!$V$21:$AV$25, MATCH('Analysis (199 Ligands)'!ED$5, 'CDK2 (16 Ligands)'!$C$21:$C$25, 0), MATCH('Analysis (199 Ligands)'!ED$2, 'CDK2 (16 Ligands)'!$V$2:$AV$2, 0)) -> 0.8583333333 | EE12: =INDEX('CDK2 (16 Ligands)'!$V$21:$AV$25, MATCH('Analysis (199 Ligands)'!EE$5, 'CDK2 (16 Ligands)'!$C$21:$C$25, 0), MATCH('Analysis (199 Ligands)'!EE$2, 'CDK2 (16 Ligands)'!$V$2:$AV$2, 0)) -> 2.615558731 | EF12: =INDEX('CDK2 (16 Ligands)'!$V$21:$AV$25, MATCH('Analysis (199 Ligands)'!EF$5, 'CDK2 (16 Ligands)'!$C$21:$C$25, 0), MATCH('Analysis (199 Ligands)'!EF$2, 'CDK2 (16 Ligands)'!$V$2:$AV$2, 0)) -> 3.112889643 | EG12: =INDEX('CDK2 (16 Ligands)'!$V$21:$AV$25, MATCH('Analysis (199 Ligands)'!EG$5, 'CDK2 (16 Ligands)'!$C$21:$C$25, 0), MATCH('Analysis (199 Ligands)'!EG$2, 'CDK2 (16 Ligands)'!$V$2:$AV$2, 0)) -> 0.8599934858 | EH12: =INDEX('CDK2 (16 Ligands)'!$V$21:$AV$25, MATCH('Analysis (199 Ligands)'!EH$5, 'CDK2 (16 Ligands)'!$C$21:$C$25, 0), MATCH('Analysis (199 Ligands)'!EH$2, 'CDK2 (16 Ligands)'!$V$2:$AV$2, 0)) -> 0.9004890822 | EI12: =INDEX('CDK2 (16 Ligands)'!$V$21:$AV$25, MATCH('Analysis (199 Ligands)'!EI$5, 'CDK2 (16 Ligands)'!$C$21:$C$25, 0), MATCH('Analysis (199 Ligands)'!EI$2, 'CDK2 (16 Ligands)'!$V$2:$AV$2, 0)) -> 0.85 | EK12: GAX21* (r = 5 A) | EL12: =IFERROR(INDEX($DP12:$EI12, SMALL(IF(EK12 = $DP$2:$EI$2, COLUMN($DP$2:$EI$2) - MIN(COLUMN($DP$2:$EI$2))+1, ""), COLUMN(EL12:EP12) - COLUMN(EL12)+1)), "") -> 0.5993776884 | EM12: 0.6845777513 | EN12: 0.8640562345 | EO12: 0.8731903969 | EP12: 0.825 | ER12: =INDEX('CDK2 (16 Ligands)'!$AX$21:$BC$25, MATCH('Analysis (199 Ligands)'!ER$5, 'CDK2 (16 Ligands)'!$C$21:$C$25, 0), MATCH('Analysis (199 Ligands)'!ER$2, 'CDK2 (16 Ligands)'!$AX$2:$BC$2, 0)) -> 0.8749272276 | ES12: =INDEX('CDK2 (16 Ligands)'!$AX$21:$BC$25, MATCH('Analysis (199 Ligands)'!ES$5, 'CDK2 (16 Ligands)'!$C$21:$C$25, 0), MATCH('Analysis (199 Ligands)'!ES$2, 'CDK2 (16 Ligands)'!$AX$2:$BC$2, 0)) -> 1.037292689 | ET12: =INDEX('CDK2 (16 Ligands)'!$AX$21:$BC$25, MATCH('Analysis (199 Ligands)'!ET$5, 'CDK2 (16 Ligands)'!$C$21:$C$25, 0), MATCH('Analysis (199 Ligands)'!ET$2, 'CDK2 (16 Ligands)'!$AX$2:$BC$2, 0)) -> 0.4771579426 | EU12: =INDEX('CDK2 (16 Ligands)'!$AX$21:$BC$25, MATCH('Analysis (199 Ligands)'!EU$5, 'CDK2 (16 Ligands)'!$C$21:$C$25, 0), MATCH('Analysis (199 Ligands)'!EU$2, 'CDK2 (16 Ligands)'!$AX$2:$BC$2, 0)) -> 0.4430867046 | EV12: =INDEX('CDK2 (16 Ligands)'!$AX$21:$BC$25, MATCH('Analysis (199 Ligands)'!EV$5, 'CDK2 (16 Ligands)'!$C$21:$C$25, 0), MATCH('Analysis (199 Ligands)'!EV$2, 'CDK2 (16 Ligands)'!$AX$2:$BC$2, 0)) -> 0.6333333333 | EW12: =INDEX('CDK2 (16 Ligands)'!$AX$21:$BC$25, MATCH('Analysis (199 Ligands)'!EW$5, 'CDK2 (16 Ligands)'!$C$21:$C$25, 0), MATCH('Analysis (199 Ligands)'!EW$2, 'CDK2 (16 Ligands)'!$AX$2:$BC$2, 0)) -> 0.6897505159 | EX12: =INDEX('CDK2 (16 Ligands)'!$AX$21:$BC$25, MATCH('Analysis (199 Ligands)'!EX$5, 'CDK2 (16 Ligands)'!$C$21:$C$25, 0), MATCH('Analysis (199 Ligands)'!EX$2, 'CDK2 (16 Ligands)'!$AX$2:$BC$2, 0)) -> 0.8733629358 | EY12: =INDEX('CDK2 (16 Ligands)'!$AX$21:$BC$25, MATCH('Analysis (199 Ligands)'!EY$5, 'CDK2 (16 Ligands)'!$C$21:$C$25, 0), MATCH('Analysis (199 Ligands)'!EY$2, 'CDK2 (16 Ligands)'!$AX$2:$BC$2, 0)) -> 0.7345302487 | EZ12: =INDEX('CDK2 (16 Ligands)'!$AX$21:$BC$25, MATCH('Analysis (199 Ligands)'!EZ$5, 'CDK2 (16 Ligands)'!$C$21:$C$25, 0), MATCH('Analysis (199 Ligands)'!EZ$2, 'CDK2 (16 Ligands)'!$AX$2:$BC$2, 0)) -> 0.6307889902 | FA12: =INDEX('CDK2 (16 Ligands)'!$AX$21:$BC$25, MATCH('Analysis (199 Ligands)'!FA$5, 'CDK2 (16 Ligands)'!$C$21:$C$25, 0), MATCH('Analysis (199 Ligands)'!FA$2, 'CDK2 (16 Ligands)'!$AX$2:$BC$2, 0)) -> 0.7208333333 | FB12: =INDEX('CDK2 (16 Ligands)'!$AX$21:$BC$25, MATCH('Analysis (199 Ligands)'!FB$5, 'CDK2 (16 Ligands)'!$C$21:$C$25, 0), MATCH('Analysis (199 Ligands)'!FB$2, 'CDK2 (16 Ligands)'!$AX$2:$BC$2, 0)) -> 0.4747328897 | FC12: =INDEX('CDK2 (16 Ligands)'!$AX$21:$BC$25, MATCH('Analysis (199 Ligands)'!FC$5, 'CDK2 (16 Ligands)'!$C$21:$C$25, 0), MATCH('Analysis (199 Ligands)'!FC$2, 'CDK2 (16 Ligands)'!$AX$2:$BC$2, 0)) -> 0.6649621013 | FD12: =INDEX('CDK2 (16 Ligands)'!$AX$21:$BC$25, MATCH('Analysis (199 Ligands)'!FD$5, 'CDK2 (16 Ligands)'!$C$21:$C$25, 0), MATCH('Analysis (199 Ligands)'!FD$2, 'CDK2 (16 Ligands)'!$AX$2:$BC$2, 0)) -> 0.8473787138 | FE12: =INDEX('CDK2 (16 Ligands)'!$AX$21:$BC$25, MATCH('Analysis (199 Ligands)'!FE$5, 'CDK2 (16 Ligands)'!$C$21:$C$25, 0), MATCH('Analysis (199 Ligands)'!FE$2, 'CDK2 (16 Ligands)'!$AX$2:$BC$2, 0)) -> 0.8627695257 | FF12: =INDEX('CDK2 (16 Ligands)'!$AX$21:$BC$25, MATCH('Analysis (199 Ligands)'!FF$5, 'CDK2 (16 Ligands)'!$C$21:$C$25, 0), MATCH('Analysis (199 Ligands)'!FF$2, 'CDK2 (16 Ligands)'!$AX$2:$BC$2, 0)) -> 0.8 | FG12: =INDEX('CDK2 (16 Ligands)'!$AX$21:$BC$25, MATCH('Analysis (199 Ligands)'!FG$5, 'CDK2 (16 Ligands)'!$C$21:$C$25, 0), MATCH('Analysis (199 Ligands)'!FG$2, 'CDK2 (16 Ligands)'!$AX$2:$BC$2, 0)) -> 0.7680618331 | FH12: =INDEX('CDK2 (16 Ligands)'!$AX$21:$BC$25, MATCH('Analysis (199 Ligands)'!FH$5, 'CDK2 (16 Ligands)'!$C$21:$C$25, 0), MATCH('Analysis (199 Ligands)'!FH$2, 'CDK2 (16 Ligands)'!$AX$2:$BC$2, 0)) -> 0.947163075 | FI12: =INDEX('CDK2 (16 Ligands)'!$AX$21:$BC$25, MATCH('Analysis (199 Ligands)'!FI$5, 'CDK2 (16 Ligands)'!$C$21:$C$25, 0), MATCH('Analysis (199 Ligands)'!FI$2, 'CDK2 (16 Ligands)'!$AX$2:$BC$2, 0)) -> 0.6142629763 | FJ12: =INDEX('CDK2 (16 Ligands)'!$AX$21:$BC$25, MATCH('Analysis (199 Ligands)'!FJ$5, 'CDK2 (16 Ligands)'!$C$21:$C$25, 0), MATCH('Analysis (199 Ligands)'!FJ$2, 'CDK2 (16 Ligands)'!$AX$2:$BC$2, 0)) -> 0.7021059132 | FK12: =INDEX('CDK2 (16 Ligands)'!$AX$21:$BC$25, MATCH('Analysis (199 Ligands)'!FK$5, 'CDK2 (16 Ligands)'!$C$21:$C$25, 0), MATCH('Analysis (199 Ligands)'!FK$2, 'CDK2 (16 Ligands)'!$AX$2:$BC$2, 0)) -> 0.7583333333 | FL12: =INDEX('CDK2 (16 Ligands)'!$AX$21:$BC$25, MATCH('Analysis (199 Ligands)'!FL$5, 'CDK2 (16 Ligands)'!$C$21:$C$25, 0), MATCH('Analysis (199 Ligands)'!FL$2, 'CDK2 (16 Ligands)'!$AX$2:$BC$2, 0)) -> 0.5524189076 | FM12: =INDEX('CDK2 (16 Ligands)'!$AX$21:$BC$25, MATCH('Analysis (199 Ligands)'!FM$5, 'CDK2 (16 Ligands)'!$C$21:$C$25, 0), MATCH('Analysis (199 Ligands)'!FM$2, 'CDK2 (16 Ligands)'!$AX$2:$BC$2, 0)) -> 0.7539560331 | FN12: =INDEX('CDK2 (16 Ligands)'!$AX$21:$BC$25, MATCH('Analysis (199 Ligands)'!FN$5, 'CDK2 (16 Ligands)'!$C$21:$C$25, 0), MATCH('Analysis (199 Ligands)'!FN$2, 'CDK2 (16 Ligands)'!$AX$2:$BC$2, 0)) -> 0.7708692817 | FO12: =INDEX('CDK2 (16 Ligands)'!$AX$21:$BC$25, MATCH('Analysis (199 Ligands)'!FO$5, 'CDK2 (16 Ligands)'!$C$21:$C$25, 0), MATCH('Analysis (199 Ligands)'!FO$2, 'CDK2 (16 Ligands)'!$AX$2:$BC$2, 0)) -> 0.8218728856 | FP12: =INDEX('CDK2 (16 Ligands)'!$AX$21:$BC$25, MATCH('Analysis (199 Ligands)'!FP$5, 'CDK2 (16 Ligands)'!$C$21:$C$25, 0), MATCH('Analysis (199 Ligands)'!FP$2, 'CDK2 (16 Ligands)'!$AX$2:$BC$2, 0)) -> 0.8166666667 | FQ12: =INDEX('CDK2 (16 Ligands)'!$AX$21:$BC$25, MATCH('Analysis (199 Ligands)'!FQ$5, 'CDK2 (16 Ligands)'!$C$21:$C$25, 0), MATCH('Analysis (199 Ligands)'!FQ$2, 'CDK2 (16 Ligands)'!$AX$2:$BC$2, 0)) -> 0.9044387155 | FR12: =INDEX('CDK2 (16 Ligands)'!$AX$21:$BC$25, MATCH('Analysis (199 Ligands)'!FR$5, 'CDK2 (16 Ligands)'!$C$21:$C$25, 0), MATCH('Analysis (199 Ligands)'!FR$2, 'CDK2 (16 Ligands)'!$AX$2:$BC$2, 0)) -> 1.076155717 | FS12: =INDEX('CDK2 (16 Ligands)'!$AX$21:$BC$25, MATCH('Analysis (199 Ligands)'!FS$5, 'CDK2 (16 Ligands)'!$C$21:$C$25, 0), MATCH('Analysis (199 Ligands)'!FS$2, 'CDK2 (16 Ligands)'!$AX$2:$BC$2, 0)) -> 0.4726343196 | FT12: =INDEX('CDK2 (16 Ligands)'!$AX$21:$BC$25, MATCH('Analysis (199 Ligands)'!FT$5, 'CDK2 (16 Ligands)'!$C$21:$C$25, 0), MATCH('Analysis (199 Ligands)'!FT$2, 'CDK2 (16 Ligands)'!$AX$2:$BC$2, 0)) -> 0.4865903589 | FU12: =INDEX('CDK2 (16 Ligands)'!$AX$21:$BC$25, MATCH('Analysis (199 Ligands)'!FU$5, 'CDK2 (16 Ligands)'!$C$21:$C$25, 0), MATCH('Analysis (199 Ligands)'!FU$2, 'CDK2 (16 Ligands)'!$AX$2:$BC$2, 0)) -> 0.6333333333
B13: PTP1B | C13: 23 | E13: =INDEX('PTP1B (23 Ligands)'!$E$28:$T$32, MATCH('Analysis (199 Ligands)'!E$5, 'PTP1B (23 Ligands)'!$C$28:$C$32, 0), MATCH('Analysis (199 Ligands)'!E$2, 'PTP1B (23 Ligands)'!$E$2:$T$2, 0)) -> 0.8761581584 | F13: =INDEX('PTP1B (23 Ligands)'!$E$28:$T$32, MATCH('Analysis (199 Ligands)'!F$5, 'PTP1B (23 Ligands)'!$C$28:$C$32, 0), MATCH('Analysis (199 Ligands)'!F$2, 'PTP1B (23 Ligands)'!$E$2:$T$2, 0)) -> 1.108878725 | G13: =INDEX('PTP1B (23 Ligands)'!$E$28:$T$32, MATCH('Analysis (199 Ligands)'!G$5, 'PTP1B (23 Ligands)'!$C$28:$C$32, 0), MATCH('Analysis (199 Ligands)'!G$2, 'PTP1B (23 Ligands)'!$E$2:$T$2, 0)) -> 0.6673296832 | H13: =INDEX('PTP1B (23 Ligands)'!$E$28:$T$32, MATCH('Analysis (199 Ligands)'!H$5, 'PTP1B (23 Ligands)'!$C$28:$C$32, 0), MATCH('Analysis (199 Ligands)'!H$2, 'PTP1B (23 Ligands)'!$E$2:$T$2, 0)) -> 0.765991965 | I13: =INDEX('PTP1B (23 Ligands)'!$E$28:$T$32, MATCH('Analysis (199 Ligands)'!I$5, 'PTP1B (23 Ligands)'!$C$28:$C$32, 0), MATCH('Analysis (199 Ligands)'!I$2, 'PTP1B (23 Ligands)'!$E$2:$T$2, 0)) -> 0.7608695652 | J13: =INDEX('PTP1B (23 Ligands)'!$E$28:$T$32, MATCH('Analysis (199 Ligands)'!J$5, 'PTP1B (23 Ligands)'!$C$28:$C$32, 0), MATCH('Analysis (199 Ligands)'!J$2, 'PTP1B (23 Ligands)'!$E$2:$T$2, 0)) -> 0.8694159983 | K13: =INDEX('PTP1B (23 Ligands)'!$E$28:$T$32, MATCH('Analysis (199 Ligands)'!K$5, 'PTP1B (23 Ligands)'!$C$28:$C$32, 0), MATCH('Analysis (199 Ligands)'!K$2, 'PTP1B (23 Ligands)'!$E$2:$T$2, 0)) -> 1.228937262 | L13: =INDEX('PTP1B (23 Ligands)'!$E$28:$T$32, MATCH('Analysis (199 Ligands)'!L$5, 'PTP1B (23 Ligands)'!$C$28:$C$32, 0), MATCH('Analysis (199 Ligands)'!L$2, 'PTP1B (23 Ligands)'!$E$2:$T$2, 0)) -> 0.4837204588 | M13: =INDEX('PTP1B (23 Ligands)'!$E$28:$T$32, MATCH('Analysis (199 Ligands)'!M$5, 'PTP1B (23 Ligands)'!$C$28:$C$32, 0), MATCH('Analysis (199 Ligands)'!M$2, 'PTP1B (23 Ligands)'!$E$2:$T$2, 0)) -> 0.5904636957 | N13: =INDEX('PTP1B (23 Ligands)'!$E$28:$T$32, MATCH('Analysis (199 Ligands)'!N$5, 'PTP1B (23 Ligands)'!$C$28:$C$32, 0), MATCH('Analysis (199 Ligands)'!N$2, 'PTP1B (23 Ligands)'!$E$2:$T$2, 0)) -> 0.7252964427 | O13: =INDEX('PTP1B (23 Ligands)'!$E$28:$T$32, MATCH('Analysis (199 Ligands)'!O$5, 'PTP1B (23 Ligands)'!$C$28:$C$32, 0), MATCH('Analysis (199 Ligands)'!O$2, 'PTP1B (23 Ligands)'!$E$2:$T$2, 0)) -> 0.8323767175 | P13: =INDEX('PTP1B (23 Ligands)'!$E$28:$T$32, MATCH('Analysis (199 Ligands)'!P$5, 'PTP1B (23 Ligands)'!$C$28:$C$32, 0), MATCH('Analysis (199 Ligands)'!P$2, 'PTP1B (23 Ligands)'!$E$2:$T$2, 0)) -> 1.125335268 | Q13: =INDEX('PTP1B (23 Ligands)'!$E$28:$T$32, MATCH('Analysis (199 Ligands)'!Q$5, 'PTP1B (23 Ligands)'!$C$28:$C$32, 0), MATCH('Analysis (199 Ligands)'!Q$2, 'PTP1B (23 Ligands)'!$E$2:$T$2, 0)) -> 0.6084455179 | R13: =INDEX('PTP1B (23 Ligands)'!$E$28:$T$32, MATCH('Analysis (199 Ligands)'!R$5, 'PTP1B (23 Ligands)'!$C$28:$C$32, 0), MATCH('Analysis (199 Ligands)'!R$2, 'PTP1B (23 Ligands)'!$E$2:$T$2, 0)) -> 0.6654915474 | S13: =INDEX('PTP1B (23 Ligands)'!$E$28:$T$32, MATCH('Analysis (199 Ligands)'!S$5, 'PTP1B (23 Ligands)'!$C$28:$C$32, 0), MATCH('Analysis (199 Ligands)'!S$2, 'PTP1B (23 Ligands)'!$E$2:$T$2, 0)) -> 0.7727272727 | T13: =INDEX('PTP1B (23 Ligands)'!$E$28:$T$32, MATCH('Analysis (199 Ligands)'!T$5, 'PTP1B (23 Ligands)'!$C$28:$C$32, 0), MATCH('Analysis (199 Ligands)'!T$2, 'PTP1B (23 Ligands)'!$E$2:$T$2, 0)) -> 0.9934067404 | U13: =INDEX('PTP1B (23 Ligands)'!$E$28:$T$32, MATCH('Analysis (199 Ligands)'!U$5, 'PTP1B (23 Ligands)'!$C$28:$C$32, 0), MATCH('Analysis (199 Ligands)'!U$2, 'PTP1B (23 Ligands)'!$E$2:$T$2, 0)) -> 1.270956793 | V13: =INDEX('PTP1B (23 Ligands)'!$E$28:$T$32, MATCH('Analysis (199 Ligands)'!V$5, 'PTP1B (23 Ligands)'!$C$28:$C$32, 0), MATCH('Analysis (199 Ligands)'!V$2, 'PTP1B (23 Ligands)'!$E$2:$T$2, 0)) -> 0.5192200014 | W13: =INDEX('PTP1B (23 Ligands)'!$E$28:$T$32, MATCH('Analysis (199 Ligands)'!W$5, 'PTP1B (23 Ligands)'!$C$28:$C$32, 0), MATCH('Analysis (199 Ligands)'!W$2, 'PTP1B (23 Ligands)'!$E$2:$T$2, 0)) -> 0.5411340335 | X13: =INDEX('PTP1B (23 Ligands)'!$E$28:$T$32, MATCH('Analysis (199 Ligands)'!X$5, 'PTP1B (23 Ligands)'!$C$28:$C$32, 0), MATCH('Analysis (199 Ligands)'!X$2, 'PTP1B (23 Ligands)'!$E$2:$T$2, 0)) -> 0.685770751 | Z13: =INDEX('PTP1B (23 Ligands)'!$E$28:$T$32, MATCH('Analysis (199 Ligands)'!Z$5, 'PTP1B (23 Ligands)'!$C$28:$C$32, 0), MATCH('Analysis (199 Ligands)'!Z$2, 'PTP1B (23 Ligands)'!$E$2:$T$2, 0)) -> 1.015386641 | AA13: =INDEX('PTP1B (23 Ligands)'!$E$28:$T$32, MATCH('Analysis (199 Ligands)'!AA$5, 'PTP1B (23 Ligands)'!$C$28:$C$32, 0), MATCH('Analysis (199 Ligands)'!AA$2, 'PTP1B (23 Ligands)'!$E$2:$T$2, 0)) -> 1.263336692 | AB13: =INDEX('PTP1B (23 Ligands)'!$E$28:$T$32, MATCH('Analysis (199 Ligands)'!AB$5, 'PTP1B (23 Ligands)'!$C$28:$C$32, 0), MATCH('Analysis (199 Ligands)'!AB$2, 'PTP1B (23 Ligands)'!$E$2:$T$2, 0)) -> 0.7120391309 | AC13: =INDEX('PTP1B (23 Ligands)'!$E$28:$T$32, MATCH('Analysis (199 Ligands)'!AC$5, 'PTP1B (23 Ligands)'!$C$28:$C$32, 0), MATCH('Analysis (199 Ligands)'!AC$2, 'PTP1B (23 Ligands)'!$E$2:$T$2, 0)) -> 0.7708559576 | AD13: =INDEX('PTP1B (23 Ligands)'!$E$28:$T$32, MATCH('Analysis (199 Ligands)'!AD$5, 'PTP1B (23 Ligands)'!$C$28:$C$32, 0), MATCH('Analysis (199 Ligands)'!AD$2, 'PTP1B (23 Ligands)'!$E$2:$T$2, 0)) -> 0.8003952569 | AE13: =INDEX('PTP1B (23 Ligands)'!$E$28:$T$32, MATCH('Analysis (199 Ligands)'!AE$5, 'PTP1B (23 Ligands)'!$C$28:$C$32, 0), MATCH('Analysis (199 Ligands)'!AE$2, 'PTP1B (23 Ligands)'!$E$2:$T$2, 0)) -> 1.278111346 | AF13: =INDEX('PTP1B (23 Ligands)'!$E$28:$T$32, MATCH('Analysis (199 Ligands)'!AF$5, 'PTP1B (23 Ligands)'!$C$28:$C$32, 0), MATCH('Analysis (199 Ligands)'!AF$2, 'PTP1B (23 Ligands)'!$E$2:$T$2, 0)) -> 1.483290623 | AG13: =INDEX('PTP1B (23 Ligands)'!$E$28:$T$32, MATCH('Analysis (199 Ligands)'!AG$5, 'PTP1B (23 Ligands)'!$C$28:$C$32, 0), MATCH('Analysis (199 Ligands)'!AG$2, 'PTP1B (23 Ligands)'!$E$2:$T$2, 0)) -> 0.5252970628 | AH13: =INDEX('PTP1B (23 Ligands)'!$E$28:$T$32, MATCH('Analysis (199 Ligands)'!AH$5, 'PTP1B (23 Ligands)'!$C$28:$C$32, 0), MATCH('Analysis (199 Ligands)'!AH$2, 'PTP1B (23 Ligands)'!$E$2:$T$2, 0)) -> 0.55021645 | AI13: =INDEX('PTP1B (23 Ligands)'!$E$28:$T$32, MATCH('Analysis (199 Ligands)'!AI$5, 'PTP1B (23 Ligands)'!$C$28:$C$32, 0), MATCH('Analysis (199 Ligands)'!AI$2, 'PTP1B (23 Ligands)'!$E$2:$T$2, 0)) -> 0.6976284585 | AJ13: =INDEX('PTP1B (23 Ligands)'!$E$28:$T$32, MATCH('Analysis (199 Ligands)'!AJ$5, 'PTP1B (23 Ligands)'!$C$28:$C$32, 0), MATCH('Analysis (199 Ligands)'!AJ$2, 'PTP1B (23 Ligands)'!$E$2:$T$2, 0)) -> 1.163734555 | AK13: =INDEX('PTP1B (23 Ligands)'!$E$28:$T$32, MATCH('Analysis (199 Ligands)'!AK$5, 'PTP1B (23 Ligands)'!$C$28:$C$32, 0), MATCH('Analysis (199 Ligands)'!AK$2, 'PTP1B (23 Ligands)'!$E$2:$T$2, 0)) -> 1.395927303 | AL13: =INDEX('PTP1B (23 Ligands)'!$E$28:$T$32, MATCH('Analysis (199 Ligands)'!AL$5, 'PTP1B (23 Ligands)'!$C$28:$C$32, 0), MATCH('Analysis (199 Ligands)'!AL$2, 'PTP1B (23 Ligands)'!$E$2:$T$2, 0)) -> 0.7225684134 | AM13: =INDEX('PTP1B (23 Ligands)'!$E$28:$T$32, MATCH('Analysis (199 Ligands)'!AM$5, 'PTP1B (23 Ligands)'!$C$28:$C$32, 0), MATCH('Analysis (199 Ligands)'!AM$2, 'PTP1B (23 Ligands)'!$E$2:$T$2, 0)) -> 0.7544347493 | AN13: =INDEX('PTP1B (23 Ligands)'!$E$28:$T$32, MATCH('Analysis (199 Ligands)'!AN$5, 'PTP1B (23 Ligands)'!$C$28:$C$32, 0), MATCH('Analysis (199 Ligands)'!AN$2, 'PTP1B (23 Ligands)'!$E$2:$T$2, 0)) -> 0.7608695652 | AO13: =INDEX('PTP1B (23 Ligands)'!$E$28:$T$32, MATCH('Analysis (199 Ligands)'!AO$5, 'PTP1B (23 Ligands)'!$C$28:$C$32, 0), MATCH('Analysis (199 Ligands)'!AO$2, 'PTP1B (23 Ligands)'!$E$2:$T$2, 0)) -> 1.197691077 | AP13: =INDEX('PTP1B (23 Ligands)'!$E$28:$T$32, MATCH('Analysis (199 Ligands)'!AP$5, 'PTP1B (23 Ligands)'!$C$28:$C$32, 0), MATCH('Analysis (199 Ligands)'!AP$2, 'PTP1B (23 Ligands)'!$E$2:$T$2, 0)) -> 1.431626207 | AQ13: =INDEX('PTP1B (23 Ligands)'!$E$28:$T$32, MATCH('Analysis (199 Ligands)'!AQ$5, 'PTP1B (23 Ligands)'!$C$28:$C$32, 0), MATCH('Analysis (199 Ligands)'!AQ$2, 'PTP1B (23 Ligands)'!$E$2:$T$2, 0)) -> 0.6860890777 | AR13: =INDEX('PTP1B (23 Ligands)'!$E$28:$T$32, MATCH('Analysis (199 Ligands)'!AR$5, 'PTP1B (23 Ligands)'!$C$28:$C$32, 0), MATCH('Analysis (199 Ligands)'!AR$2, 'PTP1B (23 Ligands)'!$E$2:$T$2, 0)) -> 0.7484993695 | AS13: =INDEX('PTP1B (23 Ligands)'!$E$28:$T$32, MATCH('Analysis (199 Ligands)'!AS$5, 'PTP1B (23 Ligands)'!$C$28:$C$32, 0), MATCH('Analysis (199 Ligands)'!AS$2, 'PTP1B (23 Ligands)'!$E$2:$T$2, 0)) -> 0.7727272727 | AU13: =INDEX('PTP1B (23 Ligands)'!$E$28:$T$32, MATCH('Analysis (199 Ligands)'!AU$5, 'PTP1B (23 Ligands)'!$C$28:$C$32, 0), MATCH('Analysis (199 Ligands)'!AU$2, 'PTP1B (23 Ligands)'!$E$2:$T$2, 0)) -> 1.376990888 | AV13: =INDEX('PTP1B (23 Ligands)'!$E$28:$T$32, MATCH('Analysis (199 Ligands)'!AV$5, 'PTP1B (23 Ligands)'!$C$28:$C$32, 0), MATCH('Analysis (199 Ligands)'!AV$2, 'PTP1B (23 Ligands)'!$E$2:$T$2, 0)) -> 1.52054956 | AW13: =INDEX('PTP1B (23 Ligands)'!$E$28:$T$32, MATCH('Analysis (199 Ligands)'!AW$5, 'PTP1B (23 Ligands)'!$C$28:$C$32, 0), MATCH('Analysis (199 Ligands)'!AW$2, 'PTP1B (23 Ligands)'!$E$2:$T$2, 0)) -> 0.781127215 | AX13: =INDEX('PTP1B (23 Ligands)'!$E$28:$T$32, MATCH('Analysis (199 Ligands)'!AX$5, 'PTP1B (23 Ligands)'!$C$28:$C$32, 0), MATCH('Analysis (199 Ligands)'!AX$2, 'PTP1B (23 Ligands)'!$E$2:$T$2, 0)) -> 0.8631805118 | AY13: =INDEX('PTP1B (23 Ligands)'!$E$28:$T$32, MATCH('Analysis (199 Ligands)'!AY$5, 'PTP1B (23 Ligands)'!$C$28:$C$32, 0), MATCH('Analysis (199 Ligands)'!AY$2, 'PTP1B (23 Ligands)'!$E$2:$T$2, 0)) -> 0.8280632411 | AZ13: =INDEX('PTP1B (23 Ligands)'!$E$28:$T$32, MATCH('Analysis (199 Ligands)'!AZ$5, 'PTP1B (23 Ligands)'!$C$28:$C$32, 0), MATCH('Analysis (199 Ligands)'!AZ$2, 'PTP1B (23 Ligands)'!$E$2:$T$2, 0)) -> 1.953730018 | BA13: =INDEX('PTP1B (23 Ligands)'!$E$28:$T$32, MATCH('Analysis (199 Ligands)'!BA$5, 'PTP1B (23 Ligands)'!$C$28:$C$32, 0), MATCH('Analysis (199 Ligands)'!BA$2, 'PTP1B (23 Ligands)'!$E$2:$T$2, 0)) -> 2.155558244 | BB13: =INDEX('PTP1B (23 Ligands)'!$E$28:$T$32, MATCH('Analysis (199 Ligands)'!BB$5, 'PTP1B (23 Ligands)'!$C$28:$C$32, 0), MATCH('Analysis (199 Ligands)'!BB$2, 'PTP1B (23 Ligands)'!$E$2:$T$2, 0)) -> 0.4437282639 | BC13: =INDEX('PTP1B (23 Ligands)'!$E$28:$T$32, MATCH('Analysis (199 Ligands)'!BC$5, 'PTP1B (23 Ligands)'!$C$28:$C$32, 0), MATCH('Analysis (199 Ligands)'!BC$2, 'PTP1B (23 Ligands)'!$E$2:$T$2, 0)) -> 0.4334047422 | BD13: =INDEX('PTP1B (23 Ligands)'!$E$28:$T$32, MATCH('Analysis (199 Ligands)'!BD$5, 'PTP1B (23 Ligands)'!$C$28:$C$32, 0), MATCH('Analysis (199 Ligands)'!BD$2, 'PTP1B (23 Ligands)'!$E$2:$T$2, 0)) -> 0.6660079051 | BE13: =INDEX('PTP1B (23 Ligands)'!$E$28:$T$32, MATCH('Analysis (199 Ligands)'!BE$5, 'PTP1B (23 Ligands)'!$C$28:$C$32, 0), MATCH('Analysis (199 Ligands)'!BE$2, 'PTP1B (23 Ligands)'!$E$2:$T$2, 0)) -> 1.541690989 | BF13: =INDEX('PTP1B (23 Ligands)'!$E$28:$T$32, MATCH('Analysis (199 Ligands)'!BF$5, 'PTP1B (23 Ligands)'!$C$28:$C$32, 0), MATCH('Analysis (199 Ligands)'!BF$2, 'PTP1B (23 Ligands)'!$E$2:$T$2, 0)) -> 1.700227928 | BG13: =INDEX('PTP1B (23 Ligands)'!$E$28:$T$32, MATCH('Analysis (199 Ligands)'!BG$5, 'PTP1B (23 Ligands)'!$C$28:$C$32, 0), MATCH('Analysis (199 Ligands)'!BG$2, 'PTP1B (23 Ligands)'!$E$2:$T$2, 0)) -> 0.7419517247 | BH13: =INDEX('PTP1B (23 Ligands)'!$E$28:$T$32, MATCH('Analysis (199 Ligands)'!BH$5, 'PTP1B (23 Ligands)'!$C$28:$C$32, 0), MATCH('Analysis (199 Ligands)'!BH$2, 'PTP1B (23 Ligands)'!$E$2:$T$2, 0)) -> 0.8211430397 | BI13: =INDEX('PTP1B (23 Ligands)'!$E$28:$T$32, MATCH('Analysis (199 Ligands)'!BI$5, 'PTP1B (23 Ligands)'!$C$28:$C$32, 0), MATCH('Analysis (199 Ligands)'!BI$2, 'PTP1B (23 Ligands)'!$E$2:$T$2, 0)) -> 0.8201581028 | BJ13: =INDEX('PTP1B (23 Ligands)'!$E$28:$T$32, MATCH('Analysis (199 Ligands)'!BJ$5, 'PTP1B (23 Ligands)'!$C$28:$C$32, 0), MATCH('Analysis (199 Ligands)'!BJ$2, 'PTP1B (23 Ligands)'!$E$2:$T$2, 0)) -> 1.98243012 | BK13: =INDEX('PTP1B (23 Ligands)'!$E$28:$T$32, MATCH('Analysis (199 Ligands)'!BK$5, 'PTP1B (23 Ligands)'!$C$28:$C$32, 0), MATCH('Analysis (199 Ligands)'!BK$2, 'PTP1B (23 Ligands)'!$E$2:$T$2, 0)) -> 2.135276316 | BL13: =INDEX('PTP1B (23 Ligands)'!$E$28:$T$32, MATCH('Analysis (199 Ligands)'!BL$5, 'PTP1B (23 Ligands)'!$C$28:$C$32, 0), MATCH('Analysis (199 Ligands)'!BL$2, 'PTP1B (23 Ligands)'!$E$2:$T$2, 0)) -> 0.6496352351 | BM13: =INDEX('PTP1B (23 Ligands)'!$E$28:$T$32, MATCH('Analysis (199 Ligands)'!BM$5, 'PTP1B (23 Ligands)'!$C$28:$C$32, 0), MATCH('Analysis (199 Ligands)'!BM$2, 'PTP1B (23 Ligands)'!$E$2:$T$2, 0)) -> 0.7526797629 | BN13: =INDEX('PTP1B (23 Ligands)'!$E$28:$T$32, MATCH('Analysis (199 Ligands)'!BN$5, 'PTP1B (23 Ligands)'!$C$28:$C$32, 0), MATCH('Analysis (199 Ligands)'!BN$2, 'PTP1B (23 Ligands)'!$E$2:$T$2, 0)) -> 0.7608695652 | BP13: =INDEX('PTP1B (23 Ligands)'!$E$28:$T$32, MATCH('Analysis (199 Ligands)'!BP$5, 'PTP1B (23 Ligands)'!$C$28:$C$32, 0), MATCH('Analysis (199 Ligands)'!BP$2, 'PTP1B (23 Ligands)'!$E$2:$T$2, 0)) -> 1.306469149 | BQ13: =INDEX('PTP1B (23 Ligands)'!$E$28:$T$32, MATCH('Analysis (199 Ligands)'!BQ$5, 'PTP1B (23 Ligands)'!$C$28:$C$32, 0), MATCH('Analysis (199 Ligands)'!BQ$2, 'PTP1B (23 Ligands)'!$E$2:$T$2, 0)) -> 1.455480557 | BR13: =INDEX('PTP1B (23 Ligands)'!$E$28:$T$32, MATCH('Analysis (199 Ligands)'!BR$5, 'PTP1B (23 Ligands)'!$C$28:$C$32, 0), MATCH('Analysis (199 Ligands)'!BR$2, 'PTP1B (23 Ligands)'!$E$2:$T$2, 0)) -> 0.6640010497 | BS13: =INDEX('PTP1B (23 Ligands)'!$E$28:$T$32, MATCH('Analysis (199 Ligands)'!BS$5, 'PTP1B (23 Ligands)'!$C$28:$C$32, 0), MATCH('Analysis (199 Ligands)'!BS$2, 'PTP1B (23 Ligands)'!$E$2:$T$2, 0)) -> 0.7279938249 | BT13: =INDEX('PTP1B (23 Ligands)'!$E$28:$T$32, MATCH('Analysis (199 Ligands)'!BT$5, 'PTP1B (23 Ligands)'!$C$28:$C$32, 0), MATCH('Analysis (199 Ligands)'!BT$2, 'PTP1B (23 Ligands)'!$E$2:$T$2, 0)) -> 0.7806324111 | BU13: =INDEX('PTP1B (23 Ligands)'!$E$28:$T$32, MATCH('Analysis (199 Ligands)'!BU$5, 'PTP1B (23 Ligands)'!$C$28:$C$32, 0), MATCH('Analysis (199 Ligands)'!BU$2, 'PTP1B (23 Ligands)'!$E$2:$T$2, 0)) -> 1.715038903 | BV13: =INDEX('PTP1B (23 Ligands)'!$E$28:$T$32, MATCH('Analysis (199 Ligands)'!BV$5, 'PTP1B (23 Ligands)'!$C$28:$C$32, 0), MATCH('Analysis (199 Ligands)'!BV$2, 'PTP1B (23 Ligands)'!$E$2:$T$2, 0)) -> 1.907025115 | BW13: =INDEX('PTP1B (23 Ligands)'!$E$28:$T$32, MATCH('Analysis (199 Ligands)'!BW$5, 'PTP1B (23 Ligands)'!$C$28:$C$32, 0), MATCH('Analysis (199 Ligands)'!BW$2, 'PTP1B (23 Ligands)'!$E$2:$T$2, 0)) -> 0.6321579831 | BX13: =INDEX('PTP1B (23 Ligands)'!$E$28:$T$32, MATCH('Analysis (199 Ligands)'!BX$5, 'PTP1B (23 Ligands)'!$C$28:$C$32, 0), MATCH('Analysis (199 Ligands)'!BX$2, 'PTP1B (23 Ligands)'!$E$2:$T$2, 0)) -> 0.6630348348 | BY13: =INDEX('PTP1B (23 Ligands)'!$E$28:$T$32, MATCH('Analysis (199 Ligands)'!BY$5, 'PTP1B (23 Ligands)'!$C$28:$C$32, 0), MATCH('Analysis (199 Ligands)'!BY$2, 'PTP1B (23 Ligands)'!$E$2:$T$2, 0)) -> 0.7411067194 | BZ13: =INDEX('PTP1B (23 Ligands)'!$E$28:$T$32, MATCH('Analysis (199 Ligands)'!BZ$5, 'PTP1B (23 Ligands)'!$C$28:$C$32, 0), MATCH('Analysis (199 Ligands)'!BZ$2, 'PTP1B (23 Ligands)'!$E$2:$T$2, 0)) -> 1.518169338 | CA13: =INDEX('PTP1B (23 Ligands)'!$E$28:$T$32, MATCH('Analysis (199 Ligands)'!CA$5, 'PTP1B (23 Ligands)'!$C$28:$C$32, 0), MATCH('Analysis (199 Ligands)'!CA$2, 'PTP1B (23 Ligands)'!$E$2:$T$2, 0)) -> 1.711732239 | CB13: =INDEX('PTP1B (23 Ligands)'!$E$28:$T$32, MATCH('Analysis (199 Ligands)'!CB$5, 'PTP1B (23 Ligands)'!$C$28:$C$32, 0), MATCH('Analysis (199 Ligands)'!CB$2, 'PTP1B (23 Ligands)'!$E$2:$T$2, 0)) -> 0.5647126712 | CC13: =INDEX('PTP1B (23 Ligands)'!$E$28:$T$32, MATCH('Analysis (199 Ligands)'!CC$5, 'PTP1B (23 Ligands)'!$C$28:$C$32, 0), MATCH('Analysis (199 Ligands)'!CC$2, 'PTP1B (23 Ligands)'!$E$2:$T$2, 0)) -> 0.6409564778 | CD13: =INDEX('PTP1B (23 Ligands)'!$E$28:$T$32, MATCH('Analysis (199 Ligands)'!CD$5, 'PTP1B (23 Ligands)'!$C$28:$C$32, 0), MATCH('Analysis (199 Ligands)'!CD$2, 'PTP1B (23 Ligands)'!$E$2:$T$2, 0)) -> 0.733201581 | CE13: =INDEX('PTP1B (23 Ligands)'!$E$28:$T$32, MATCH('Analysis (199 Ligands)'!CE$5, 'PTP1B (23 Ligands)'!$C$28:$C$32, 0), MATCH('Analysis (199 Ligands)'!CE$2, 'PTP1B (23 Ligands)'!$E$2:$T$2, 0)) -> 2.037038815 | CF13: =INDEX('PTP1B (23 Ligands)'!$E$28:$T$32, MATCH('Analysis (199 Ligands)'!CF$5, 'PTP1B (23 Ligands)'!$C$28:$C$32, 0), MATCH('Analysis (199 Ligands)'!CF$2, 'PTP1B (23 Ligands)'!$E$2:$T$2, 0)) -> 2.220450615 | CG13: =INDEX('PTP1B (23 Ligands)'!$E$28:$T$32, MATCH('Analysis (199 Ligands)'!CG$5, 'PTP1B (23 Ligands)'!$C$28:$C$32, 0), MATCH('Analysis (199 Ligands)'!CG$2, 'PTP1B (23 Ligands)'!$E$2:$T$2, 0)) -> 0.6502215921 | CH13: =INDEX('PTP1B (23 Ligands)'!$E$28:$T$32, MATCH('Analysis (199 Ligands)'!CH$5, 'PTP1B (23 Ligands)'!$C$28:$C$32, 0), MATCH('Analysis (199 Ligands)'!CH$2, 'PTP1B (23 Ligands)'!$E$2:$T$2, 0)) -> 0.6937799633 | CI13: =INDEX('PTP1B (23 Ligands)'!$E$28:$T$32, MATCH('Analysis (199 Ligands)'!CI$5, 'PTP1B (23 Ligands)'!$C$28:$C$32, 0), MATCH('Analysis (199 Ligands)'!CI$2, 'PTP1B (23 Ligands)'!$E$2:$T$2, 0)) -> 0.7648221344 | CK13: =INDEX($E$2:$CI$2, MATCH(MIN(IF(CL$5 = $E$5:$CI$5, $E13:$CI13, 999999)),IF(CL$5 = $E$5:$CI$5, $E13:$CI13, 999999),0)) -> SS21 (r = 1 A) | CL13: =IFERROR(INDEX($E13:$CI13, SMALL(IF(CK13 = $E$2:$CI$2, COLUMN($E$2:$CI$2) - MIN(COLUMN($E$2:$CI$2))+1, ""), COLUMN(CL13:CP13) - COLUMN(CL13)+1)), "") -> 0.8323767175 | CM13: 1.125335268 | CN13: 0.6084455179 | CO13: 0.6654915474 | CP13: 0.7727272727 | CQ13: =INDEX($E$2:$CI$2, MATCH(MIN(IF(CS$5 = $E$5:$CI$5, $E13:$CI13, 999999)),IF(CS$5 = $E$5:$CI$5, $E13:$CI13, 999999),0)) -> GAS21 (r = 1 A) | CR13: =IFERROR(INDEX($E13:$CI13, SMALL(IF(CQ13 = $E$2:$CI$2, COLUMN($E$2:$CI$2) - MIN(COLUMN($E$2:$CI$2))+1, ""), COLUMN(CR13:CV13) - COLUMN(CR13)+1)), "") -> 0.8761581584 | CS13: 1.108878725 | CT13: 0.6673296832 | CU13: 0.765991965 | CV13: 0.7608695652 | CW13: =INDEX($E$2:$CI$2, MATCH(MAX(IF(CZ$5 = $E$5:$CI$5, $E13:$CI13, -1)),IF(CZ$5 = $E$5:$CI$5, $E13:$CI13, -1),0)) -> GAS21 (r = 5 A) | CX13: =IFERROR(INDEX($E13:$CI13, SMALL(IF(CW13 = $E$2:$CI$2, COLUMN($E$2:$CI$2) - MIN(COLUMN($E$2:$CI$2))+1, ""), COLUMN(CX13:DB13) - COLUMN(CX13)+1)), "") -> 1.376990888 | CY13: 1.52054956 | CZ13: 0.781127215 | DA13: 0.8631805118 | DB13: 0.8280632411 | DC13: =INDEX($E$2:$CI$2, MATCH(MAX(IF(DG$5 = $E$5:$CI$5, $E13:$CI13, -1)),IF(DG$5 = $E$5:$CI$5, $E13:$CI13, -1),0)) -> GAS21 (r = 5 A) | DD13: =IFERROR(INDEX($E13:$CI13, SMALL(IF(DC13 = $E$2:$CI$2, COLUMN($E$2:$CI$2) - MIN(COLUMN($E$2:$CI$2))+1, ""), COLUMN(DD13:DH13) - COLUMN(DD13)+1)), "") -> 1.376990888 | DE13: 1.52054956 | DF13: 0.781127215 | DG13: 0.8631805118 | DH13: 0.8280632411 | DI13: =INDEX($E$2:$CI$2, MATCH(MAX(IF(DN$5 = $E$5:$CI$5, $E13:$CI13, -1)),IF(DN$5 = $E$5:$CI$5, $E13:$CI13, -1),0)) -> GAS21 (r = 5 A) | DJ13: =IFERROR(INDEX($E13:$CI13, SMALL(IF(DI13 = $E$2:$CI$2, COLUMN($E$2:$CI$2) - MIN(COLUMN($E$2:$CI$2))+1, ""), COLUMN(DJ13:DN13) - COLUMN(DJ13)+1)), "") -> 1.376990888 | DK13: 1.52054956 | DL13: 0.781127215 | DM13: 0.8631805118 | DN13: 0.8280632411 | DP13: =INDEX('PTP1B (23 Ligands)'!$V$28:$AV$32, MATCH('Analysis (199 Ligands)'!DP$5, 'PTP1B (23 Ligands)'!$C$28:$C$32, 0), MATCH('Analysis (199 Ligands)'!DP$2, 'PTP1B (23 Ligands)'!$V$2:$AV$2, 0)) -> 1.973282133 | DQ13: =INDEX('PTP1B (23 Ligands)'!$V$28:$AV$32, MATCH('Analysis (199 Ligands)'!DQ$5, 'PTP1B (23 Ligands)'!$C$28:$C$32, 0), MATCH('Analysis (199 Ligands)'!DQ$2, 'PTP1B (23 Ligands)'!$V$2:$AV$2, 0)) -> 2.125615538 | DR13: =INDEX('PTP1B (23 Ligands)'!$V$28:$AV$32, MATCH('Analysis (199 Ligands)'!DR$5, 'PTP1B (23 Ligands)'!$C$28:$C$32, 0), MATCH('Analysis (199 Ligands)'!DR$2, 'PTP1B (23 Ligands)'!$V$2:$AV$2, 0)) -> 0.7886779655 | DS13: =INDEX('PTP1B (23 Ligands)'!$V$28:$AV$32, MATCH('Analysis (199 Ligands)'!DS$5, 'PTP1B (23 Ligands)'!$C$28:$C$32, 0), MATCH('Analysis (199 Ligands)'!DS$2, 'PTP1B (23 Ligands)'!$V$2:$AV$2, 0)) -> 0.8460414647 | DT13: =INDEX('PTP1B (23 Ligands)'!$V$28:$AV$32, MATCH('Analysis (199 Ligands)'!DT$5, 'PTP1B (23 Ligands)'!$C$28:$C$32, 0), MATCH('Analysis (199 Ligands)'!DT$2, 'PTP1B (23 Ligands)'!$V$2:$AV$2, 0)) -> 0.8359683794 | DU13: =INDEX('PTP1B (23 Ligands)'!$V$28:$AV$32, MATCH('Analysis (199 Ligands)'!DU$5, 'PTP1B (23 Ligands)'!$C$28:$C$32, 0), MATCH('Analysis (199 Ligands)'!DU$2, 'PTP1B (23 Ligands)'!$V$2:$AV$2, 0)) -> 1.980647511 | DV13: =INDEX('PTP1B (23 Ligands)'!$V$28:$AV$32, MATCH('Analysis (199 Ligands)'!DV$5, 'PTP1B (23 Ligands)'!$C$28:$C$32, 0), MATCH('Analysis (199 Ligands)'!DV$2, 'PTP1B (23 Ligands)'!$V$2:$AV$2, 0)) -> 2.136854246 | DW13: =INDEX('PTP1B (23 Ligands)'!$V$28:$AV$32, MATCH('Analysis (199 Ligands)'!DW$5, 'PTP1B (23 Ligands)'!$C$28:$C$32, 0), MATCH('Analysis (199 Ligands)'!DW$2, 'PTP1B (23 Ligands)'!$V$2:$AV$2, 0)) -> 0.738994811 | DX13: =INDEX('PTP1B (23 Ligands)'!$V$28:$AV$32, MATCH('Analysis (199 Ligands)'!DX$5, 'PTP1B (23 Ligands)'!$C$28:$C$32, 0), MATCH('Analysis (199 Ligands)'!DX$2, 'PTP1B (23 Ligands)'!$V$2:$AV$2, 0)) -> 0.8389452214 | DY13: =INDEX('PTP1B (23 Ligands)'!$V$28:$AV$32, MATCH('Analysis (199 Ligands)'!DY$5, 'PTP1B (23 Ligands)'!$C$28:$C$32, 0), MATCH('Analysis (199 Ligands)'!DY$2, 'PTP1B (23 Ligands)'!$V$2:$AV$2, 0)) -> 0.8399209486 | DZ13: =INDEX('PTP1B (23 Ligands)'!$V$28:$AV$32, MATCH('Analysis (199 Ligands)'!DZ$5, 'PTP1B (23 Ligands)'!$C$28:$C$32, 0), MATCH('Analysis (199 Ligands)'!DZ$2, 'PTP1B (23 Ligands)'!$V$2:$AV$2, 0)) -> 1.867716915 | EA13: =INDEX('PTP1B (23 Ligands)'!$V$28:$AV$32, MATCH('Analysis (199 Ligands)'!EA$5, 'PTP1B (23 Ligands)'!$C$28:$C$32, 0), MATCH('Analysis (199 Ligands)'!EA$2, 'PTP1B (23 Ligands)'!$V$2:$AV$2, 0)) -> 2.004071871 | EB13: =INDEX('PTP1B (23 Ligands)'!$V$28:$AV$32, MATCH('Analysis (199 Ligands)'!EB$5, 'PTP1B (23 Ligands)'!$C$28:$C$32, 0), MATCH('Analysis (199 Ligands)'!EB$2, 'PTP1B (23 Ligands)'!$V$2:$AV$2, 0)) -> 0.8247851695 | EC13: =INDEX('PTP1B (23 Ligands)'!$V$28:$AV$32, MATCH('Analysis (199 Ligands)'!EC$5, 'PTP1B (23 Ligands)'!$C$28:$C$32, 0), MATCH('Analysis (199 Ligands)'!EC$2, 'PTP1B (23 Ligands)'!$V$2:$AV$2, 0)) -> 0.8765710702 | ED13: =INDEX('PTP1B (23 Ligands)'!$V$28:$AV$32, MATCH('Analysis (199 Ligands)'!ED$5, 'PTP1B (23 Ligands)'!$C$28:$C$32, 0), MATCH('Analysis (199 Ligands)'!ED$2, 'PTP1B (23 Ligands)'!$V$2:$AV$2, 0)) -> 0.8517786561 | EE13: =INDEX('PTP1B (23 Ligands)'!$V$28:$AV$32, MATCH('Analysis (199 Ligands)'!EE$5, 'PTP1B (23 Ligands)'!$C$28:$C$32, 0), MATCH('Analysis (199 Ligands)'!EE$2, 'PTP1B (23 Ligands)'!$V$2:$AV$2, 0)) -> 2.373021263 | EF13: =INDEX('PTP1B (23 Ligands)'!$V$28:$AV$32, MATCH('Analysis (199 Ligands)'!EF$5, 'PTP1B (23 Ligands)'!$C$28:$C$32, 0), MATCH('Analysis (199 Ligands)'!EF$2, 'PTP1B (23 Ligands)'!$V$2:$AV$2, 0)) -> 2.480865186 | EG13: =INDEX('PTP1B (23 Ligands)'!$V$28:$AV$32, MATCH('Analysis (199 Ligands)'!EG$5, 'PTP1B (23 Ligands)'!$C$28:$C$32, 0), MATCH('Analysis (199 Ligands)'!EG$2, 'PTP1B (23 Ligands)'!$V$2:$AV$2, 0)) -> 0.8652089955 | EH13: =INDEX('PTP1B (23 Ligands)'!$V$28:$AV$32, MATCH('Analysis (199 Ligands)'!EH$5, 'PTP1B (23 Ligands)'!$C$28:$C$32, 0), MATCH('Analysis (199 Ligands)'!EH$2, 'PTP1B (23 Ligands)'!$V$2:$AV$2, 0)) -> 0.9438491818 | EI13: =INDEX('PTP1B (23 Ligands)'!$V$28:$AV$32, MATCH('Analysis (199 Ligands)'!EI$5, 'PTP1B (23 Ligands)'!$C$28:$C$32, 0), MATCH('Analysis (199 Ligands)'!EI$2, 'PTP1B (23 Ligands)'!$V$2:$AV$2, 0)) -> 0.895256917 | EK13: =INDEX($DP$2:$EI$2, MATCH(MAX(IF($EP$5 = $DP$5:$EI$5, $DP13:$EI13, -1)),IF($EP$5 = $DP$5:$EI$5, $DP13:$EI13, -1),0)) -> SX21* (r = 5 A) | EL13: =IFERROR(INDEX($DP13:$EI13, SMALL(IF(EK13 = $DP$2:$EI$2, COLUMN($DP$2:$EI$2) - MIN(COLUMN($DP$2:$EI$2))+1, ""), COLUMN(EL13:EP13) - COLUMN(EL13)+1)), "") -> 2.373021263 | EM13: 2.480865186 | EN13: 0.8652089955 | EO13: 0.9438491818 | EP13: 0.895256917 | ER13: =INDEX('PTP1B (23 Ligands)'!$AX$28:$BC$32, MATCH('Analysis (199 Ligands)'!ER$5, 'PTP1B (23 Ligands)'!$C$28:$C$32, 0), MATCH('Analysis (199 Ligands)'!ER$2, 'PTP1B (23 Ligands)'!$AX$2:$BC$2, 0)) -> 0.6040866519 | ES13: =INDEX('PTP1B (23 Ligands)'!$AX$28:$BC$32, MATCH('Analysis (199 Ligands)'!ES$5, 'PTP1B (23 Ligands)'!$C$28:$C$32, 0), MATCH('Analysis (199 Ligands)'!ES$2, 'PTP1B (23 Ligands)'!$AX$2:$BC$2, 0)) -> 0.7994295356 | ET13: =INDEX('PTP1B (23 Ligands)'!$AX$28:$BC$32, MATCH('Analysis (199 Ligands)'!ET$5, 'PTP1B (23 Ligands)'!$C$28:$C$32, 0), MATCH('Analysis (199 Ligands)'!ET$2, 'PTP1B (23 Ligands)'!$AX$2:$BC$2, 0)) -> 0.8026385313 | EU13: =INDEX('PTP1B (23 Ligands)'!$AX$28:$BC$32, MATCH('Analysis (199 Ligands)'!EU$5, 'PTP1B (23 Ligands)'!$C$28:$C$32, 0), MATCH('Analysis (199 Ligands)'!EU$2, 'PTP1B (23 Ligands)'!$AX$2:$BC$2, 0)) -> 0.8435417004 | EV13: =INDEX('PTP1B (23 Ligands)'!$AX$28:$BC$32, MATCH('Analysis (199 Ligands)'!EV$5, 'PTP1B (23 Ligands)'!$C$28:$C$32, 0), MATCH('Analysis (199 Ligands)'!EV$2, 'PTP1B (23 Ligands)'!$AX$2:$BC$2, 0)) -> 0.8438735178 | EW13: =INDEX('PTP1B (23 Ligands)'!$AX$28:$BC$32, MATCH('Analysis (199 Ligands)'!EW$5, 'PTP1B (23 Ligands)'!$C$28:$C$32, 0), MATCH('Analysis (199 Ligands)'!EW$2, 'PTP1B (23 Ligands)'!$AX$2:$BC$2, 0)) -> 0.7199352509 | EX13: =INDEX('PTP1B (23 Ligands)'!$AX$28:$BC$32, MATCH('Analysis (199 Ligands)'!EX$5, 'PTP1B (23 Ligands)'!$C$28:$C$32, 0), MATCH('Analysis (199 Ligands)'!EX$2, 'PTP1B (23 Ligands)'!$AX$2:$BC$2, 0)) -> 0.9446531932 | EY13: =INDEX('PTP1B (23 Ligands)'!$AX$28:$BC$32, MATCH('Analysis (199 Ligands)'!EY$5, 'PTP1B (23 Ligands)'!$C$28:$C$32, 0), MATCH('Analysis (199 Ligands)'!EY$2, 'PTP1B (23 Ligands)'!$AX$2:$BC$2, 0)) -> 0.6915077977 | EZ13: =INDEX('PTP1B (23 Ligands)'!$AX$28:$BC$32, MATCH('Analysis (199 Ligands)'!EZ$5, 'PTP1B (23 Ligands)'!$C$28:$C$32, 0), MATCH('Analysis (199 Ligands)'!EZ$2, 'PTP1B (23 Ligands)'!$AX$2:$BC$2, 0)) -> 0.7763094488 | FA13: =INDEX('PTP1B (23 Ligands)'!$AX$28:$BC$32, MATCH('Analysis (199 Ligands)'!FA$5, 'PTP1B (23 Ligands)'!$C$28:$C$32, 0), MATCH('Analysis (199 Ligands)'!FA$2, 'PTP1B (23 Ligands)'!$AX$2:$BC$2, 0)) -> 0.7806324111 | FB13: =INDEX('PTP1B (23 Ligands)'!$AX$28:$BC$32, MATCH('Analysis (199 Ligands)'!FB$5, 'PTP1B (23 Ligands)'!$C$28:$C$32, 0), MATCH('Analysis (199 Ligands)'!FB$2, 'PTP1B (23 Ligands)'!$AX$2:$BC$2, 0)) -> 0.7654112105 | FC13: =INDEX('PTP1B (23 Ligands)'!$AX$28:$BC$32, MATCH('Analysis (199 Ligands)'!FC$5, 'PTP1B (23 Ligands)'!$C$28:$C$32, 0), MATCH('Analysis (199 Ligands)'!FC$2, 'PTP1B (23 Ligands)'!$AX$2:$BC$2, 0)) -> 0.8932458366 | FD13: =INDEX('PTP1B (23 Ligands)'!$AX$28:$BC$32, MATCH('Analysis (199 Ligands)'!FD$5, 'PTP1B (23 Ligands)'!$C$28:$C$32, 0), MATCH('Analysis (199 Ligands)'!FD$2, 'PTP1B (23 Ligands)'!$AX$2:$BC$2, 0)) -> 0.7200753892 | FE13: =INDEX('PTP1B (23 Ligands)'!$AX$28:$BC$32, MATCH('Analysis (199 Ligands)'!FE$5, 'PTP1B (23 Ligands)'!$C$28:$C$32, 0), MATCH('Analysis (199 Ligands)'!FE$2, 'PTP1B (23 Ligands)'!$AX$2:$BC$2, 0)) -> 0.626304096 | FF13: =INDEX('PTP1B (23 Ligands)'!$AX$28:$BC$32, MATCH('Analysis (199 Ligands)'!FF$5, 'PTP1B (23 Ligands)'!$C$28:$C$32, 0), MATCH('Analysis (199 Ligands)'!FF$2, 'PTP1B (23 Ligands)'!$AX$2:$BC$2, 0)) -> 0.6778656126 | FG13: =INDEX('PTP1B (23 Ligands)'!$AX$28:$BC$32, MATCH('Analysis (199 Ligands)'!FG$5, 'PTP1B (23 Ligands)'!$C$28:$C$32, 0), MATCH('Analysis (199 Ligands)'!FG$2, 'PTP1B (23 Ligands)'!$AX$2:$BC$2, 0)) -> 0.6931553047 | FH13: =INDEX('PTP1B (23 Ligands)'!$AX$28:$BC$32, MATCH('Analysis (199 Ligands)'!FH$5, 'PTP1B (23 Ligands)'!$C$28:$C$32, 0), MATCH('Analysis (199 Ligands)'!FH$2, 'PTP1B (23 Ligands)'!$AX$2:$BC$2, 0)) -> 1.084703722 | FI13: =INDEX('PTP1B (23 Ligands)'!$AX$28:$BC$32, MATCH('Analysis (199 Ligands)'!FI$5, 'PTP1B (23 Ligands)'!$C$28:$C$32, 0), MATCH('Analysis (199 Ligands)'!FI$2, 'PTP1B (23 Ligands)'!$AX$2:$BC$2, 0)) -> 0.5470615294 | FJ13: =INDEX('PTP1B (23 Ligands)'!$AX$28:$BC$32, MATCH('Analysis (199 Ligands)'!FJ$5, 'PTP1B (23 Ligands)'!$C$28:$C$32, 0), MATCH('Analysis (199 Ligands)'!FJ$2, 'PTP1B (23 Ligands)'!$AX$2:$BC$2, 0)) -> 0.5681352846 | FK13: =INDEX('PTP1B (23 Ligands)'!$AX$28:$BC$32, MATCH('Analysis (199 Ligands)'!FK$5, 'PTP1B (23 Ligands)'!$C$28:$C$32, 0), MATCH('Analysis (199 Ligands)'!FK$2, 'PTP1B (23 Ligands)'!$AX$2:$BC$2, 0)) -> 0.7608695652 | FL13: =INDEX('PTP1B (23 Ligands)'!$AX$28:$BC$32, MATCH('Analysis (199 Ligands)'!FL$5, 'PTP1B (23 Ligands)'!$C$28:$C$32, 0), MATCH('Analysis (199 Ligands)'!FL$2, 'PTP1B (23 Ligands)'!$AX$2:$BC$2, 0)) -> 0.9111522683 | FM13: =INDEX('PTP1B (23 Ligands)'!$AX$28:$BC$32, MATCH('Analysis (199 Ligands)'!FM$5, 'PTP1B (23 Ligands)'!$C$28:$C$32, 0), MATCH('Analysis (199 Ligands)'!FM$2, 'PTP1B (23 Ligands)'!$AX$2:$BC$2, 0)) -> 1.149499872 | FN13: =INDEX('PTP1B (23 Ligands)'!$AX$28:$BC$32, MATCH('Analysis (199 Ligands)'!FN$5, 'PTP1B (23 Ligands)'!$C$28:$C$32, 0), MATCH('Analysis (199 Ligands)'!FN$2, 'PTP1B (23 Ligands)'!$AX$2:$BC$2, 0)) -> 0.4532324757 | FO13: =INDEX('PTP1B (23 Ligands)'!$AX$28:$BC$32, MATCH('Analysis (199 Ligands)'!FO$5, 'PTP1B (23 Ligands)'!$C$28:$C$32, 0), MATCH('Analysis (199 Ligands)'!FO$2, 'PTP1B (23 Ligands)'!$AX$2:$BC$2, 0)) -> 0.5371184318 | FP13: =INDEX('PTP1B (23 Ligands)'!$AX$28:$BC$32, MATCH('Analysis (199 Ligands)'!FP$5, 'PTP1B (23 Ligands)'!$C$28:$C$32, 0), MATCH('Analysis (199 Ligands)'!FP$2, 'PTP1B (23 Ligands)'!$AX$2:$BC$2, 0)) -> 0.6897233202 | FQ13: =INDEX('PTP1B (23 Ligands)'!$AX$28:$BC$32, MATCH('Analysis (199 Ligands)'!FQ$5, 'PTP1B (23 Ligands)'!$C$28:$C$32, 0), MATCH('Analysis (199 Ligands)'!FQ$2, 'PTP1B (23 Ligands)'!$AX$2:$BC$2, 0)) -> 0.7589497348 | FR13: =INDEX('PTP1B (23 Ligands)'!$AX$28:$BC$32, MATCH('Analysis (199 Ligands)'!FR$5, 'PTP1B (23 Ligands)'!$C$28:$C$32, 0), MATCH('Analysis (199 Ligands)'!FR$2, 'PTP1B (23 Ligands)'!$AX$2:$BC$2, 0)) -> 1.008372452 | FS13: =INDEX('PTP1B (23 Ligands)'!$AX$28:$BC$32, MATCH('Analysis (199 Ligands)'!FS$5, 'PTP1B (23 Ligands)'!$C$28:$C$32, 0), MATCH('Analysis (199 Ligands)'!FS$2, 'PTP1B (23 Ligands)'!$AX$2:$BC$2, 0)) -> 0.7074822336 | FT13: =INDEX('PTP1B (23 Ligands)'!$AX$28:$BC$32, MATCH('Analysis (199 Ligands)'!FT$5, 'PTP1B (23 Ligands)'!$C$28:$C$32, 0), MATCH('Analysis (199 Ligands)'!FT$2, 'PTP1B (23 Ligands)'!$AX$2:$BC$2, 0)) -> 0.7708171917 | FU13: =INDEX('PTP1B (23 Ligands)'!$AX$28:$BC$32, MATCH('Analysis (199 Ligands)'!FU$5, 'PTP1B (23 Ligands)'!$C$28:$C$32, 0), MATCH('Analysis (199 Ligands)'!FU$2, 'PTP1B (23 Ligands)'!$AX$2:$BC$2, 0)) -> 0.814229249
B14: Average | E14: =AVERAGE(E6:E13) -> 1.800026036 | F14: 2.057299863 | G14: 0.2265642603 | H14: 0.2416043228 | I14: 0.5832121503 | J14: 2.203769577 | K14: 2.469042008 | L14: 0.2664130544 | M14: 0.2599597306 | N14: 0.5874441958 | O14: 2.172251634 | P14: 2.390235822 | Q14: 0.3616096256 | R14: 0.3316790885 | S14: 0.6305973886 | T14: 2.638880489 | U14: 2.879139994 | V14: 0.4563077585 | W14: 0.4392381415 | X14: 0.6491618309 | Z14: =AVERAGE(Z6:Z13) -> 1.681868123 | AA14: 1.903758359 | AB14: 0.4211570713 | AC14: 0.430671558 | AD14: 0.6542148187 | AE14: 2.069603442 | AF14: 2.288896542 | AG14: 0.5040577464 | AH14: 0.5167880967 | AI14: 0.6840115377 | AJ14: 2.117540209 | AK14: 2.296082274 | AL14: 0.4628064537 | AM14: 0.4572814032 | AN14: 0.6662686129 | AO14: 2.476188519 | AP14: 2.677653499 | AQ14: 0.587545346 | AR14: 0.5778658819 | AS14: 0.7079287702 | AU14: =AVERAGE(AU6:AU13) -> 1.63554312 | AV14: 1.854982186 | AW14: 0.455153763 | AX14: 0.4588613936 | AY14: 0.6601742043 | AZ14: 2.080395051 | BA14: 2.271659528 | BB14: 0.5332162193 | BC14: 0.5299964085 | BD14: 0.6826042383 | BE14: 2.214880151 | BF14: 2.394383754 | BG14: 0.4731254994 | BH14: 0.4876565211 | BI14: 0.6774514234 | BJ14: 2.544627673 | BK14: 2.727611359 | BL14: 0.6143512864 | BM14: 0.6402315088 | BN14: 0.7190379412 | BP14: =AVERAGE(BP6:BP13) -> 1.637387725 | BQ14: 1.832214221 | BR14: 0.4837874988 | BS14: 0.4811722331 | BT14: 0.6576609629 | BU14: 2.074185996 | BV14: 2.271786846 | BW14: 0.552301533 | BX14: 0.5625380863 | BY14: 0.6980265891 | BZ14: 2.137237626 | CA14: 2.333748259 | CB14: 0.5089759638 | CC14: 0.507827363 | CD14: 0.6747621767 | CE14: 2.616438858 | CF14: 2.836601546 | CG14: 0.5317356439 | CH14: 0.5103251527 | CI14: 0.6722920244 | CL14: =AVERAGE(CL6:CL13) -> 1.140887372 | CM14: 1.360329732 | CN14: 0.4983261418 | CO14: 0.5271472894 | CP14: 0.6993047533 | CR14: =AVERAGE(CR6:CR13) -> 1.148030669 | CS14: 1.350958576 | CT14: 0.5334048661 | CU14: 0.5580826288 | CV14: 0.7037749208 | CX14: =AVERAGE(CX6:CX13) -> 2.300906358 | CY14: 2.462176175 | CZ14: 0.6804776101 | DA14: 0.7159702878 | DB14: 0.7598410019 | DD14: =AVERAGE(DD6:DD13) -> 2.186792586 | DE14: 2.360651464 | DF14: 0.6750856449 | DG14: 0.7181643508 | DH14: 0.7630866036 | DJ14: =AVERAGE(DJ6:DJ13) -> 2.547637239 | DK14: 2.71237341 | DL14: 0.6678716007 | DM14: 0.7108024613 | DN14: 0.7673004538 | DP14: =AVERAGE(DP6:DP13) -> 1.966733421 | DQ14: 2.127205183 | DR14: 0.5919012083 | DS14: 0.6889482899 | DT14: 0.7555723787 | DU14: 2.552769284 | DV14: 2.752043269 | DW14: 0.7262290948 | DX14: 0.7679799359 | DY14: 0.7949600552 | DZ14: 2.58541199 | EA14: 2.777439669 | EB14: 0.6744458063 | EC14: 0.7220036622 | ED14: 0.7763437312 | EE14: 2.6786428 | EF14: 2.86702819 | EG14: 0.7488454987 | EH14: 0.7669271946 | EI14: 0.8016662555 | EL14: =AVERAGE(EL6:EL13) -> 2.537681901 | EM14: 2.644567057 | EN14: 0.7654573538 | EO14: 0.809035628 | EP14: 0.8156107968 | ER14: =AVERAGE(ER6:ER13) -> 0.7317782122 | ES14: =AVERAGE(ES6:ES13) -> 0.8838006815 | ET14: 0.7420617874 | EU14: 0.7513078176 | EV14: 0.7806075669 | EW14: 0.7933539497 | EX14: 1.005406434 | EY14: 0.6773676653 | EZ14: 0.6886339942 | FA14: 0.7488673623 | FB14: 0.7253183018 | FC14: 0.8933556102 | FD14: 0.6735545801 | FE14: 0.6541988972 | FF14: 0.727430944 | FG14: 0.8365900256 | FH14: 1.08928551 | FI14: 0.5615298802 | FJ14: 0.5905136102 | FK14: 0.7164981125 | FL14: 0.7436106766 | FM14: 0.9020134958 | FN14: 0.6370905302 | FO14: 0.6588657808 | FP14: 0.7383364214 | FQ14: 0.9334148099 | FR14: 1.168283017 | FS14: 0.5591225376 | FT14: 0.5979290741 | FU14: 0.7112312666
B15: Std. error | E15: =STDEV(E6:E13)/SQRT(COUNT(E6:E13)) -> 0.3670182547 | F15: =STDEV(F6:F13)/SQRT(COUNT(F6:F13)) -> 0.3672919231 | G15: 0.1470259473 | H15: 0.1487554127 | I15: 0.05014791869 | J15: =STDEV(J6:J13)/SQRT(COUNT(J6:J13)) -> 0.4618925824 | K15: 0.4588130883 | L15: 0.1510361604 | M15: 0.1606361882 | N15: 0.05930574766 | O15: =STDEV(O6:O13)/SQRT(COUNT(O6:O13)) -> 0.6053657682 | P15: 0.5774617039 | Q15: 0.09990370536 | R15: 0.1068553936 | S15: 0.03528740415 | T15: =STDEV(T6:T13)/SQRT(COUNT(T6:T13)) -> 0.6574791597 | U15: 0.6355682765 | V15: 0.07739316713 | W15: 0.08412403302 | X15: 0.03120515851 | Z15: =STDEV(Z6:Z13)/SQRT(COUNT(Z6:Z13)) -> 0.239666373 | AA15: =STDEV(AA6:AA13)/SQRT(COUNT(AA6:AA13)) -> 0.2382051637 | AB15: 0.09526571645 | AC15: 0.1092887033 | AD15: 0.04031917445 | AE15: =STDEV(AE6:AE13)/SQRT(COUNT(AE6:AE13)) -> 0.4208070057 | AF15: =STDEV(AF6:AF13)/SQRT(COUNT(AF6:AF13)) -> 0.4256307499 | AG15: 0.07067191091 | AH15: 0.0694602848 | AI15: 0.03120145195 | AJ15: =STDEV(AJ6:AJ13)/SQRT(COUNT(AJ6:AJ13)) -> 0.4427150082 | AK15: =STDEV(AK6:AK13)/SQRT(COUNT(AK6:AK13)) -> 0.429641643 | AL15: 0.1037765621 | AM15: 0.1064993084 | AN15: 0.0362355257 | AO15: =STDEV(AO6:AO13)/SQRT(COUNT(AO6:AO13)) -> 0.5719285774 | AP15: =STDEV(AP6:AP13)/SQRT(COUNT(AP6:AP13)) -> 0.5690706602 | AQ15: 0.06071368226 | AR15: 0.07084374094 | AS15: 0.02932512801 | AU15: =STDEV(AU6:AU13)/SQRT(COUNT(AU6:AU13)) -> 0.27373305 | AV15: =STDEV(AV6:AV13)/SQRT(COUNT(AV6:AV13)) -> 0.2744154803 | AW15: 0.09698262072 | AX15: 0.1133649983 | AY15: 0.0423927144 | AZ15: =STDEV(AZ6:AZ13)/SQRT(COUNT(AZ6:AZ13)) -> 0.4371520059 | BA15: =STDEV(BA6:BA13)/SQRT(COUNT(BA6:BA13)) -> 0.4460848814 | BB15: 0.06225115827 | BC15: 0.05948745027 | BD15: 0.02602891589 | BE15: =STDEV(BE6:BE13)/SQRT(COUNT(BE6:BE13)) -> 0.4197972463 | BF15: =STDEV(BF6:BF13)/SQRT(COUNT(BF6:BF13)) -> 0.4211487033 | BG15: 0.1080352198 | BH15: 0.1095534567 | BI15: 0.03670904205 | BJ15: =STDEV(BJ6:BJ13)/SQRT(COUNT(BJ6:BJ13)) -> 0.5451830293 | BK15: =STDEV(BK6:BK13)/SQRT(COUNT(BK6:BK13)) -> 0.5489504948 | BL15: 0.05052917915 | BM15: 0.05367642176 | BN15: 0.02116951588 | BP15: =STDEV(BP6:BP13)/SQRT(COUNT(BP6:BP13)) -> 0.2498065436 | BQ15: =STDEV(BQ6:BQ13)/SQRT(COUNT(BQ6:BQ13)) -> 0.2623570236 | BR15: 0.04421723273 | BS15: 0.06235496049 | BT15: 0.02803762869 | BU15: =STDEV(BU6:BU13)/SQRT(COUNT(BU6:BU13)) -> 0.4129208693 | BV15: =STDEV(BV6:BV13)/SQRT(COUNT(BV6:BV13)) -> 0.4205334877 | BW15: 0.06629237002 | BX15: 0.06698227179 | BY15: 0.02974517366 | BZ15: =STDEV(BZ6:BZ13)/SQRT(COUNT(BZ6:BZ13)) -> 0.3796361792 | CA15: =STDEV(CA6:CA13)/SQRT(COUNT(CA6:CA13)) -> 0.3770844941 | CB15: 0.05084793371 | CC15: 0.05074632005 | CD15: 0.02028952402 | CE15: =STDEV(CE6:CE13)/SQRT(COUNT(CE6:CE13)) -> 0.4908266597 | CF15: =STDEV(CF6:CF13)/SQRT(COUNT(CF6:CF13)) -> 0.4938322885 | CG15: 0.08964629604 | CH15: 0.1002358892 | CI15: 0.03495553243 | CL15: =STDEV(CL6:CL13)/SQRT(COUNT(CL6:CL13)) -> 0.1472343629 | CM15: 0.1583880409 | CN15: 0.08909904128 | CO15: 0.09831344139 | CP15: 0.03445891125 | CR15: =STDEV(CR6:CR13)/SQRT(COUNT(CR6:CR13)) -> 0.1460922109 | CS15: 0.1570177477 | CT15: 0.07191046515 | CU15: 0.08756926948 | CV15: 0.03043607823 | CX15: =STDEV(CX6:CX13)/SQRT(COUNT(CX6:CX13)) -> 0.5118557072 | CY15: 0.5163206068 | CZ15: 0.04483621246 | DA15: 0.04758052549 | DB15: 0.02402185953 | DD15: =STDEV(DD6:DD13)/SQRT(COUNT(DD6:DD13)) -> 0.5057621447 | DE15: 0.5136836478 | DF15: 0.04686935373 | DG15: 0.04677863894 | DH15: 0.02261103549 | DJ15: =STDEV(DJ6:DJ13)/SQRT(COUNT(DJ6:DJ13)) -> 0.6942339692 | DK15: 0.6931949426 | DL15: 0.04416646612 | DM15: 0.04712413082 | DN15: 0.02193512867 | DP15: =STDEV(DP6:DP13)/SQRT(COUNT(DP6:DP13)) -> 0.5429800621 | DQ15: =STDEV(DQ6:DQ13)/SQRT(COUNT(DQ6:DQ13)) -> 0.5280504188 | DR15: 0.04980603637 | DS15: 0.04495553592 | DT15: 0.02319874481 | DU15: =STDEV(DU6:DU13)/SQRT(COUNT(DU6:DU13)) -> 0.6784157745 | DV15: =STDEV(DV6:DV13)/SQRT(COUNT(DV6:DV13)) -> 0.6563293962 | DW15: 0.04016028855 | DX15: 0.0409864174 | DY15: 0.02685155548 | DZ15: =STDEV(DZ6:DZ13)/SQRT(COUNT(DZ6:DZ13)) -> 0.613823953 | EA15: =STDEV(EA6:EA13)/SQRT(COUNT(EA6:EA13)) -> 0.597504643 | EB15: 0.07207566275 | EC15: 0.07605920983 | ED15: 0.03593149268 | EE15: =STDEV(EE6:EE13)/SQRT(COUNT(EE6:EE13)) -> 0.5142964019 | EF15: =STDEV(EF6:EF13)/SQRT(COUNT(EF6:EF13)) -> 0.508512129 | EG15: 0.04765066352 | EH15: 0.0556536268 | EI15: 0.03129847265 | EL15: =STDEV(EL6:EL13)/SQRT(COUNT(EL6:EL13)) -> 0.6993143744 | EM15: 0.6959684421 | EN15: 0.04095795228 | EO15: 0.03739809839 | EP15: 0.02582142451 | ER15: =STDEV(ER6:ER13)/SQRT(COUNT(ER6:ER13)) -> 0.07451913832 | ES15: =STDEV(ES6:ES13)/SQRT(COUNT(ES6:ES13)) -> 0.07143860684 | ET15: 0.04586009113 | EU15: 0.05464993143 | EV15: 0.02846592935 | EW15: 0.06621557772 | EX15: 0.09092559218 | EY15: 0.03712127736 | EZ15: 0.03326456546 | FA15: 0.01732475221 | FB15: 0.04698325021 | FC15: 0.04975331972 | FD15: 0.05417238099 | FE15: 0.06213179515 | FF15: 0.02829625503 | FG15: 0.06528328254 | FH15: 0.06939065614 | FI15: 0.06816518558 | FJ15: 0.06094546889 | FK15: 0.02593171146 | FL15: 0.06156033962 | FM15: 0.06297527822 | FN15: 0.06653171763 | FO15: 0.06853099064 | FP15: 0.03687394652 | FQ15: 0.08856708746 | FR15: 0.111901832 | FS15: 0.04954585861 | FT15: 0.0495768355 | FU15: 0.02687439422
B18: Adjusted dG | E18: SILCS Exhaustive (r = 1 A) | Z18: SILCS Exhaustive (r = 2 A) | AU18: SILCS Exhaustive (r = 5 A) | BP18: SILCS Exhaustive (r = 10 A) | CK18: SILCS Exhaustive (Best Individual Performance) | DP18: SILCS PC-Optimized Exhaustive (r = 5 A) | EK18: SILCS PC-Optimized Exhaustive (Best Individual Performance) | ER18: FEP+ | EW18: Flare FEP | FB18: pmx (GAFF) | FG18: pmx (CGenFF) | FL18: pmx (Consensus) | FQ18: AMBER GPU-TI
B19: 199 Ligands | E19: GAS21 | J19: GAX21 | O19: SS21 | T19: SX21 | Z19: GAS21 | AE19: GAX21 | AJ19: SS21 | AO19: SX21 | AU19: GAS21 | AZ19: GAX21 | BE19: SS21 | BJ19: SX21 | BP19: GAS21 | BU19: GAX21 | BZ19: SS21 | CE19: SX21 | CK19: Best MUE | CQ19: Best RMSE | CW19: Best R | DC19: Best PI | DI19: Best PC | DP19: GAS21* | DU19: GAX21* | DZ19: SS21* | EE19: SX21* | EK19: Best PC | ER19: OPLS 2.1 | EW19: ff14SB/GAFF 2.1 | FB19: OPLS 3.1/GAFF 2.1 | FG19: OPLS 3.1/CGenFF 3.0.1+4.1 | FL19: OPLS 3.1/Consensus | FQ19: ff14SB/GAFF 1.8
B20: Target | C20: Ligands | E20: MUE | F20: RMSE | G20: R | H20: PI | I20: PC | J20: MUE | K20: RMSE | L20: R | M20: PI | N20: PC | O20: MUE | P20: RMSE | Q20: R | R20: PI | S20: PC | T20: MUE | U20: RMSE | V20: R | W20: PI | X20: PC | Z20: MUE | AA20: RMSE | AB20: R | AC20: PI | AD20: PC | AE20: MUE | AF20: RMSE | AG20: R | AH20: PI | AI20: PC | AJ20: MUE | AK20: RMSE | AL20: R | AM20: PI | AN20: PC | AO20: MUE | AP20: RMSE | AQ20: R | AR20: PI | AS20: PC | AU20: MUE | AV20: RMSE | AW20: R | AX20: PI | AY20: PC | AZ20: MUE | BA20: RMSE | BB20: R | BC20: PI | BD20: PC | BE20: MUE | BF20: RMSE | BG20: R | BH20: PI | BI20: PC | BJ20: MUE | BK20: RMSE | BL20: R | BM20: PI | BN20: PC | BP20: MUE | BQ20: RMSE | BR20: R | BS20: PI | BT20: PC | BU20: MUE | BV20: RMSE | BW20: R | BX20: PI | BY20: PC | BZ20: MUE | CA20: RMSE | CB20: R | CC20: PI | CD20: PC | CE20: MUE | CF20: RMSE | CG20: R | CH20: PI | CI20: PC | CK20: Scaling | CL20: MUE | CM20: RMSE | CN20: R | CO20: PI | CP20: PC | CQ20: Scaling | CR20: MUE | CS20: RMSE | CT20: R | CU20: PI | CV20: PC | CW20: Scaling | CX20: MUE | CY20: RMSE | CZ20: R | DA20: PI | DB20: PC | DC20: Scaling | DD20: MUE | DE20: RMSE | DF20: R | DG20: PI | DH20: PC | DI20: Scaling | DJ20: MUE | DK20: RMSE | DL20: R | DM20: PI | DN20: PC | DP20: MUE | DQ20: RMSE | DR20: R | DS20: PI | DT20: PC | DU20: MUE | DV20: RMSE | DW20: R | DX20: PI | DY20: PC | DZ20: MUE | EA20: RMSE | EB20: R | EC20: PI | ED20: PC | EE20: MUE | EF20: RMSE | EG20: R | EH20: PI | EI20: PC | EK20: Scaling | EL20: MUE | EM20: RMSE | EN20: R | EO20: PI | EP20: PC | ER20: MUE | ES20: RMSE | ET20: R | EU20: PI | EV20: PC | EW20: MUE | EX20: RMSE | EY20: R | EZ20: PI | FA20: PC | FB20: MUE | FC20: RMSE | FD20: R | FE20: PI | FF20: PC | FG20: MUE | FH20: RMSE | FI20: R | FJ20: PI | FK20: PC | FL20: MUE | FM20: RMSE | FN20: R | FO20: PI | FP20: PC | FQ20: MUE | FR20: RMSE | FS20: R | FT20: PI | FU20: PC
